Workbook

Sheet Historical scenario - input
B1: Unit cost - historical
B2: Replacement lives - calibrated
D3: Unit cost | E3: Replacement life | G3: Method | H3: Quantities | CV3: Replacement Cost (NOT depreciated)
H4: Installation date | CV4: Installation date
A5: ID | B5: Asset category | C5: Asset ID | D5: $ ('000) | E5: μ | F5: σ | G5: # | H5: 2017 | I5: 2016 | J5: 2015 | K5: 2014 | L5: 2013 | M5: 2012 | N5: 2011 | O5: 2010 | P5: 2009 | Q5: 2008 | R5: 2007 | S5: 2006 | T5: 2005 | U5: 2004 | V5: 2003 | W5: 2002 | X5: 2001 | Y5: 2000 | Z5: 1999 | AA5: 1998 | AB5: 1997 | AC5: 1996 | AD5: 1995 | AE5: 1994 | AF5: 1993 | AG5: 1992 | AH5: 1991 | AI5: 1990 | AJ5: 1989 | AK5: 1988 | AL5: 1987 | AM5: 1986 | AN5: 1985 | AO5: 1984 | AP5: 1983 | AQ5: 1982 | AR5: 1981 | AS5: 1980 | AT5: 1979 | AU5: 1978 | AV5: 1977 | AW5: 1976 | AX5: 1975 | AY5: 1974 | AZ5: 1973 | BA5: 1972 | BB5: 1971 | BC5: 1970 | BD5: 1969 | BE5: 1968 | BF5: 1967 | BG5: 1966 | BH5: 1965 | BI5: 1964 | BJ5: 1963 | BK5: 1962 | BL5: 1961 | BM5: 1960 | BN5: 1959 | BO5: 1958 | BP5: 1957 | BQ5: 1956 | BR5: 1955 | BS5: 1954 | BT5: 1953 | BU5: 1952 | BV5: 1951 | BW5: 1950 | BX5: 1949 | BY5: 1948 | BZ5: 1947 | CA5: 1946 | CB5: 1945 | CC5: 1944 | CD5: 1943 | CE5: 1942 | CF5: 1941 | CG5: 1940 | CH5: 1939 | CI5: 1938 | CJ5: 1937 | CK5: 1936 | CL5: 1935 | CM5: 1934 | CN5: 1933 | CO5: 1932 | CP5: 1931 | CQ5: 1930 | CR5: 1929 | CS5: 1928 | CT5: 1927 | CV5: =H5 -> 2017 | CW5: =I5 -> 2016 | CX5: 2015 | CY5: 2014 | CZ5: 2013 | DA5: 2012 | DB5: 2011 | DC5: 2010 | DD5: 2009 | DE5: 2008 | DF5: 2007 | DG5: 2006 | DH5: 2005 | DI5: 2004 | DJ5: 2003 | DK5: 2002 | DL5: 2001 | DM5: 2000 | DN5: 1999 | DO5: 1998 | DP5: 1997 | DQ5: 1996 | DR5: 1995 | DS5: 1994 | DT5: 1993 | DU5: 1992 | DV5: 1991 | DW5: 1990 | DX5: 1989 | DY5: 1988 | DZ5: 1987 | EA5: 1986 | EB5: 1985 | EC5: 1984 | ED5: 1983 | EE5: 1982 | EF5: 1981 | EG5: 1980 | EH5: 1979 | EI5: 1978 | EJ5: 1977 | EK5: 1976 | EL5: 1975 | EM5: 1974 | EN5: 1973 | EO5: 1972 | EP5: 1971 | EQ5: 1970 | ER5: 1969 | ES5: 1968 | ET5: 1967 | EU5: 1966 | EV5: 1965 | EW5: 1964 | EX5: 1963 | EY5: 1962 | EZ5: 1961 | FA5: 1960 | FB5: 1959 | FC5: 1958 | FD5: 1957 | FE5: 1956 | FF5: 1955 | FG5: 1954 | FH5: 1953 | FI5: =BU5 -> 1952 | FJ5: 1951 | FK5: 1950 | FL5: 1949 | FM5: 1948 | FN5: 1947 | FO5: 1946 | FP5: 1945 | FQ5: 1944 | FR5: 1943 | FS5: 1942 | FT5: 1941 | FU5: 1940 | FV5: 1939 | FW5: 1938 | FX5: 1937 | FY5: 1936 | FZ5: 1935 | GA5: 1934 | GB5: 1933 | GC5: 1932 | GD5: 1931 | GE5: 1930 | GF5: 1929 | GG5: 1928 | GH5: 1927
A21: 1 | B21: OVERHEAD CONDUCTORS | C21: ˂ = 1 kv | D21: 758.5209141 | E21: 64.90292511 | F21: 8.05623517 | G21: =IFERROR(IF($B21="","",2),"") -> 2 | H21: 59.4921 | I21: 66.8555 | J21: 73.9037 | K21: 76.2167 | L21: 78.2074 | M21: 81.6753 | N21: 105.6661 | O21: 121.2946 | P21: 107.1382 | Q21: 90.0599 | R21: 86.2046 | S21: 100.6441 | T21: 111.934 | U21: 100.4561 | V21: 89.4377 | W21: 104.9631 | X21: 117.8247 | Y21: 127.1228 | Z21: 132.404 | AA21: 116.1166 | AB21: 105.6661 | AC21: 99.079 | AD21: 86.7531 | AE21: 76.6314 | AF21: 93.6793 | AG21: 122.6296 | AH21: 118.0743 | AI21: 88.8246 | AJ21: 88.9781 | AK21: 109.8808 | AL21: 115.9317 | AM21: 108.3248 | AN21: 99.7607 | AO21: 101.5729 | AP21: 85.2621 | AQ21: 76.4342 | AR21: 89.6802 | AS21: 84.7157 | AT21: 86.259 | AU21: 85.5377 | AV21: 75.1827 | AW21: 45.902 | AX21: 28.0469 | AY21: 58.0103 | AZ21: 72.7427 | BA21: 100.0967 | BB21: 112.1038 | BC21: 87.0262 | BD21: 78.9557 | BE21: 79.9784 | BF21: 71.6252 | BG21: 51.6834 | BH21: 44.4014 | BI21: 37.251 | BJ21: 32.1274 | BK21: 28.1013 | BL21: 17.1221 | BM21: 10.294 | BN21: 6.1947 | BO21: 4.9579 | BP21: 3.6779 | BQ21: 2.0187 | BR21: 0.7239 | BS21: 0.6786 | BT21: 0.1972 | BU21: 0 | BV21: 0 | BW21: 0 | BX21: 0 | BY21: 0 | BZ21: 0 | CA21: 0 | CB21: 0 | CC21: 0 | CD21: 0 | CE21: 0 | CF21: 0 | CG21: 0 | CH21: 0 | CI21: 0 | CJ21: 0 | CK21: 0 | CL21: 0 | CM21: 0 | CN21: 0 | CO21: 0 | CP21: 0 | CQ21: 0 | CR21: 0 | CS21: 0 | CT21: 0 | CV21: =IFERROR($D21*H21,"") -> 45126.00207 | CW21: =IFERROR($D21*I21,"") -> 50711.29497 | CX21: =IFERROR($D21*J21,"") -> 56057.50208 | CY21: =IFERROR($D21*K21,"") -> 57811.96095 | CZ21: =IFERROR($D21*L21,"") -> 59321.94854 | DA21: =IFERROR($D21*M21,"") -> 61952.42321 | DB21: =IFERROR($D21*N21,"") -> 80149.94676 | DC21: =IFERROR($D21*O21,"") -> 92004.49086 | DD21: =IFERROR($D21*P21,"") -> 81266.5654 | DE21: =IFERROR($D21*Q21,"") -> 68312.31767 | DF21: =IFERROR($D21*R21,"") -> 65387.99199 | DG21: =IFERROR($D21*S21,"") -> 76340.65473 | DH21: =IFERROR($D21*T21,"") -> 84904.28 | DI21: =IFERROR($D21*U21,"") -> 76198.0528 | DJ21: =IFERROR($D21*V21,"") -> 67840.36596 | DK21: =IFERROR($D21*W21,"") -> 79616.70656 | DL21: =IFERROR($D21*X21,"") -> 89372.49914 | DM21: =IFERROR($D21*Y21,"") -> 96425.30246 | DN21: =IFERROR($D21*Z21,"") -> 100431.2031 | DO21: =IFERROR($D21*AA21,"") -> 88076.86957 | DP21: =IFERROR($D21*AB21,"") -> 80149.94676 | DQ21: =IFERROR($D21*AC21,"") -> 75153.49365 | DR21: =IFERROR($D21*AD21,"") -> 65804.04071 | DS21: =IFERROR($D21*AE21,"") -> 58126.51957 | DT21: =IFERROR($D21*AF21,"") -> 71057.70827 | DU21: =IFERROR($D21*AG21,"") -> 93017.11628 | DV21: =IFERROR($D21*AH21,"") -> 89561.82596 | DW21: =IFERROR($D21*AI21,"") -> 67375.31678 | DX21: =IFERROR($D21*AJ21,"") -> 67491.74974 | DY21: =IFERROR($D21*AK21,"") -> 83346.88485 | DZ21: =IFERROR($D21*AL21,"") -> 87936.61905 | EA21: =IFERROR($D21*AM21,"") -> 82166.62631 | EB21: =IFERROR($D21*AN21,"") -> 75670.57735 | EC21: =IFERROR($D21*AO21,"") -> 77045.16895 | ED21: =IFERROR($D21*AP21,"") -> 64673.08603 | EE21: =IFERROR($D21*AQ21,"") -> 57976.93925 | EF21: =IFERROR($D21*AR21,"") -> 68024.30728 | EG21: =IFERROR($D21*AS21,"") -> 64258.6302 | EH21: =IFERROR($D21*AT21,"") -> 65429.25553 | EI21: =IFERROR($D21*AU21,"") -> 64882.13439 | EJ21: =IFERROR($D21*AV21,"") -> 57027.65033 | EK21: =IFERROR($D21*AW21,"") -> 34817.627 | EL21: =IFERROR($D21*AX21,"") -> 21274.16022 | EM21: =IFERROR($D21*AY21,"") -> 44002.02578 | EN21: =IFERROR($D21*AZ21,"") -> 55176.8593 | EO21: =IFERROR($D21*BA21,"") -> 75925.44038 | EP21: =IFERROR($D21*BB21,"") -> 85033.07685 | EQ21: =IFERROR($D21*BC21,"") -> 66011.19277 | ER21: =IFERROR($D21*BD21,"") -> 59889.54974 | ES21: =IFERROR($D21*BE21,"") -> 60665.28907 | ET21: =IFERROR($D21*BF21,"") -> 54329.21217 | EU21: =IFERROR($D21*BG21,"") -> 39202.93981 | EV21: =IFERROR($D21*BH21,"") -> 33679.39051 | EW21: =IFERROR($D21*BI21,"") -> 28255.66257 | EX21: =IFERROR($D21*BJ21,"") -> 24369.30481 | EY21: =IFERROR($D21*BK21,"") -> 21315.42376 | EZ21: =IFERROR($D21*BL21,"") -> 12987.47094 | FA21: =IFERROR($D21*BM21,"") -> 7808.214289 | FB21: =IFERROR($D21*BN21,"") -> 4698.809506 | FC21: =IFERROR($D21*BO21,"") -> 3760.67084 | FD21: =IFERROR($D21*BP21,"") -> 2789.76407 | FE21: =IFERROR($D21*BQ21,"") -> 1531.226169 | FF21: =IFERROR($D21*BR21,"") -> 549.0932897 | FG21: =IFERROR($D21*BS21,"") -> 514.7322923 | FH21: =IFERROR($D21*BT21,"") -> 149.5803243 | FI21: =IFERROR($D21*BU21,"") -> 0 | FJ21: =IFERROR($D21*BV21,"") -> 0 | FK21: =IFERROR($D21*BW21,"") -> 0 | FL21: =IFERROR($D21*BX21,"") -> 0 | FM21: =IFERROR($D21*BY21,"") -> 0 | FN21: =IFERROR($D21*BZ21,"") -> 0 | FO21: =IFERROR($D21*CA21,"") -> 0 | FP21: =IFERROR($D21*CB21,"") -> 0 | FQ21: =IFERROR($D21*CC21,"") -> 0 | FR21: =IFERROR($D21*CD21,"") -> 0 | FS21: =IFERROR($D21*CE21,"") -> 0 | FT21: =IFERROR($D21*CF21,"") -> 0 | FU21: =IFERROR($D21*CG21,"") -> 0 | FV21: =IFERROR($D21*CH21,"") -> 0 | FW21: =IFERROR($D21*CI21,"") -> 0 | FX21: =IFERROR($D21*CJ21,"") -> 0 | FY21: =IFERROR($D21*CK21,"") -> 0 | FZ21: =IFERROR($D21*CL21,"") -> 0 | GA21: =IFERROR($D21*CM21,"") -> 0 | GB21: =IFERROR($D21*CN21,"") -> 0 | GC21: =IFERROR($D21*CO21,"") -> 0 | GD21: =IFERROR($D21*CP21,"") -> 0 | GE21: =IFERROR($D21*CQ21,"") -> 0 | GF21: =IFERROR($D21*CR21,"") -> 0 | GG21: =IFERROR($D21*CS21,"") -> 0 | GH21: =IFERROR($D21*CT21,"") -> 0
A22: 1 | B22: OVERHEAD CONDUCTORS | C22: ˃ 11 kv & < = 22 kv ; multiple-phase | D22: 133.144563 | E22: 64.48938054 | F22: 8.030528036 | G22: =IFERROR(IF($B22="","",2),"") -> 2 | H22: 96.4328 | I22: 65.1325 | J22: 110.8719 | K22: 104.9429 | L22: 75.1384 | M22: 102.3018 | N22: 133.2393 | O22: 119.5608 | P22: 79.6388 | Q22: 63.8438 | R22: 68.0437 | S22: 82.8978 | T22: 97.2994 | U22: 95.1399 | V22: 95.5155 | W22: 111.5088 | X22: 173.4243 | Y22: 165.0336 | Z22: 126.0334 | AA22: 131.7225 | AB22: 169.2945 | AC22: 198.9201 | AD22: 188.6288 | AE22: 153.1675 | AF22: 137.4433 | AG22: 194.3794 | AH22: 202.3806 | AI22: 171.4523 | AJ22: 182.8966 | AK22: 221.9963 | AL22: 242.6297 | AM22: 232.5946 | AN22: 203.6741 | AO22: 194.1668 | AP22: 174.5824 | AQ22: 167.2191 | AR22: 215.7214 | AS22: 215.9239 | AT22: 219.943 | AU22: 239.7585 | AV22: 215.4182 | AW22: 142.7538 | AX22: 95.9558 | AY22: 169.2131 | AZ22: 190.4783 | BA22: 256.9872 | BB22: 328.1496 | BC22: 277.908 | BD22: 196.7566 | BE22: 196.4312 | BF22: 192.2205 | BG22: 126.1379 | BH22: 155.0697 | BI22: 188.4239 | BJ22: 244.3064 | BK22: 224.0743 | BL22: 109.2849 | BM22: 33.7529 | BN22: 28.7412 | BO22: 27.9638 | BP22: 0.6636 | BQ22: 82.8071 | BR22: 82.4289 | BS22: 0.2854 | BT22: 0 | BU22: 0 | BV22: 0 | BW22: 0 | BX22: 0 | BY22: 0 | BZ22: 0 | CA22: 0 | CB22: 0 | CC22: 0 | CD22: 0 | CE22: 0 | CF22: 0 | CG22: 0 | CH22: 0 | CI22: 0 | CJ22: 0 | CK22: 0 | CL22: 0 | CM22: 0 | CN22: 0 | CO22: 0 | CP22: 0 | CQ22: 0 | CR22: 0 | CS22: 0 | CT22: 0 | CV22: =IFERROR($D22*H22,"") -> 12839.50302 | CW22: 8672.038252 | CX22: 14761.99068 | CY22: 13972.57656 | CZ22: 10004.26944 | DA22: 13620.92846 | DB22: 17740.08838 | DC22: 15918.87047 | DD22: 10603.47323 | DE22: 8500.454853 | DF22: 9059.648704 | DG22: 11037.39136 | DH22: 12954.8861 | DI22: 12667.36041 | DJ22: 12717.36951 | DK22: 14846.79045 | DL22: 23090.50264 | DM22: 21973.32656 | DN22: 16780.66197 | DO22: 17538.1347 | DP22: 22540.64223 | DQ22: 26485.12979 | DR22: 25114.89915 | DS22: 20393.41986 | DT22: 18299.82812 | DU22: 25880.56028 | DV22: 26945.87655 | DW22: 22827.94156 | DX22: 24351.68789 | DY22: 29557.60036 | DZ22: 32304.82539 | EA22: 30968.70638 | EB22: 27118.09905 | EC22: 25852.25374 | ED22: 23244.69736 | EE22: 22264.314 | EF22: 28722.13154 | EG22: 28749.09331 | EH22: 29284.21463 | EI22: 31922.54072 | EJ22: 28681.76211 | EK22: 19006.89232 | EL22: 12775.99306 | EM22: 22529.80426 | EN22: 25361.15002 | EO22: 34216.44845 | EP22: 43691.3351 | EQ22: 37001.93922 | ER22: 26197.07153 | ES22: 26153.74629 | ET22: 25593.11448 | EU22: 16794.57558 | EV22: 20646.68745 | EW22: 25087.61783 | EX22: 32528.06887 | EY22: 29834.27476 | EZ22: 14550.69026 | FA22: 4494.015122 | FB22: 3826.734515 | FC22: 3723.227932 | FD22: 88.35473203 | FE22: 11025.31515 | FF22: 10974.95987 | FG22: 37.99945829 | FH22: 0 | FI22: 0 | FJ22: 0 | FK22: 0 | FL22: 0 | FM22: 0 | FN22: 0 | FO22: 0 | FP22: 0 | FQ22: 0 | FR22: 0 | FS22: 0 | FT22: 0 | FU22: 0 | FV22: 0 | FW22: 0 | FX22: 0 | FY22: 0 | FZ22: 0 | GA22: 0 | GB22: 0 | GC22: 0 | GD22: 0 | GE22: 0 | GF22: 0 | GG22: 0 | GH22: 0
A23: 1 | B23: OVERHEAD CONDUCTORS | C23: ˃ 11 kv & < = 22 kv ; single-phase | D23: 62.61460094 | E23: 64.98278754 | F23: 8.061190206 | G23: 2 | H23: 14.6879 | I23: 9.6491 | J23: 6.53 | K23: 7.6621 | L23: 13.0652 | M23: 13.3113 | N23: 19.0367 | O23: 27.986 | P23: 11.79 | Q23: 9.0664 | R23: 11.1172 | S23: 12.0575 | T23: 20.0962 | U23: 24.6736 | V23: 19.471 | W23: 18.3415 | X23: 31.8738 | Y23: 36.751 | Z23: 34.7846 | AA23: 36.9056 | AB23: 39.9187 | AC23: 49.18 | AD23: 59.8711 | AE23: 60.51 | AF23: 60.0036 | AG23: 59.6798 | AH23: 57.7895 | AI23: 56.8574 | AJ23: 58.2878 | AK23: 61.2605 | AL23: 65.8635 | AM23: 66.3899 | AN23: 66.4538 | AO23: 56.5577 | AP23: 36.6621 | AQ23: 41.3162 | AR23: 49.8894 | AS23: 51.2134 | AT23: 52.4888 | AU23: 46.6697 | AV23: 49.1129 | AW23: 34.648 | AX23: 12.9511 | AY23: 30.0941 | AZ23: 33.7651 | BA23: 42.6274 | BB23: 53.7329 | BC23: 35.2875 | BD23: 23.0034 | BE23: 77.3711 | BF23: 82.4386 | BG23: 27.9916 | BH23: 25.3197 | BI23: 23.5574 | BJ23: 28.1487 | BK23: 27.5476 | BL23: 13.0351 | BM23: 2.9 | BN23: 1.6743 | BO23: 0.9556 | BP23: 0 | BQ23: 2.7297 | BR23: 2.7297 | BS23: 0 | BT23: 0 | BU23: 0 | BV23: 0 | BW23: 0 | BX23: 0 | BY23: 0 | BZ23: 0 | CA23: 0 | CB23: 0 | CC23: 0 | CD23: 0 | CE23: 0 | CF23: 0 | CG23: 0 | CH23: 0 | CI23: 0 | CJ23: 0 | CK23: 0 | CL23: 0 | CM23: 0 | CN23: 0 | CO23: 0 | CP23: 0 | CQ23: 0 | CR23: 0 | CS23: 0 | CT23: 0 | CV23: 919.6769971 | CW23: 604.1745459 | CX23: 408.8733441 | CY23: 479.7593339 | CZ23: 818.0722842 | DA23: 833.4817375 | DB23: 1191.975374 | DC23: 1752.332222 | DD23: 738.2261451 | DE23: 567.689018 | DF23: 696.0990416 | DG23: 754.9755508 | DH23: 1258.315543 | DI23: 1544.927618 | DJ23: 1219.168895 | DK23: 1148.445703 | DL23: 1995.765267 | DM23: 2301.149199 | DN23: 2178.023848 | DO23: 2310.829416 | DP23: 2499.493471 | DQ23: 3079.386074 | DR23: 3748.805034 | DS23: 3788.809503 | DT23: 3757.101469 | DU23: 3736.826861 | DV23: 3618.466481 | DW23: 3560.103411 | DX23: 3649.667337 | DY23: 3835.801761 | DZ23: 4124.016769 | EA23: 4156.977095 | EB23: 4160.978168 | EC23: 3541.337816 | ED23: 2295.582761 | EE23: 2586.997375 | EF23: 3123.804872 | EG23: 3206.706604 | EH23: 3286.565266 | EI23: 2922.204641 | EJ23: 3075.184635 | EK23: 2169.470693 | EL23: 810.9279582 | EM23: 1884.330062 | EN23: 2114.188262 | EO23: 2669.09764 | EP23: 3364.464091 | EQ23: 2209.512731 | ER23: 1440.348711 | ES23: 4844.560551 | ET23: 5161.860041 | EU23: 1752.682864 | EV23: 1585.382911 | EW23: 1475.0372 | EX23: 1762.519617 | EY23: 1724.881981 | EZ23: 816.1875847 | FA23: 181.5823427 | FB23: 104.8356264 | FC23: 59.83451266 | FD23: 0 | FE23: 170.9190762 | FF23: 170.9190762 | FG23: 0 | FH23: 0 | FI23: 0 | FJ23: 0 | FK23: 0 | FL23: 0 | FM23: 0 | FN23: 0 | FO23: 0 | FP23: 0 | FQ23: 0 | FR23: 0 | FS23: 0 | FT23: 0 | FU23: 0 | FV23: 0 | FW23: 0 | FX23: 0 | FY23: 0 | FZ23: 0 | GA23: 0 | GB23: 0 | GC23: 0 | GD23: 0 | GE23: 0 | GF23: 0 | GG23: 0 | GH23: 0
A24: 1 | B24: OVERHEAD CONDUCTORS | C24: ˃ 11 kv & < = 22 kv ; swer | D24: 88.1203733 | E24: 66.65701898 | F24: 8.16437499 | G24: 2 | H24: 6.2008 | I24: 0 | J24: 1.4046 | K24: 0 | L24: 2.3272 | M24: 3.4554 | N24: 2.3747 | O24: 0.5126 | P24: 0.0862 | Q24: 0 | R24: 0.0638 | S24: 2.0289 | T24: 1.9651 | U24: 0.1525 | V24: 0.1576 | W24: 0.4386 | X24: 1.1919 | Y24: 1.2271 | Z24: 2.981 | AA24: 4.2846 | AB24: 5.2006 | AC24: 3.4487 | AD24: 5.1532 | AE24: 6.3925 | AF24: 6.2002 | AG24: 7.2004 | AH24: 4.1398 | AI24: 4.2913 | AJ24: 5.7444 | AK24: 5.4939 | AL24: 8.2123 | AM24: 16.8434 | AN24: 19.9167 | AO24: 16.4399 | AP24: 10.5451 | AQ24: 3.5267 | AR24: 4.5371 | AS24: 6.5415 | AT24: 7.2239 | AU24: 7.0525 | AV24: 13.0437 | AW24: 16.2166 | AX24: 14.3117 | AY24: 22.9508 | AZ24: 23.0242 | BA24: 13.6001 | BB24: 10.209 | BC24: 13.3543 | BD24: 8.3117 | BE24: 15.2153 | BF24: 22.401 | BG24: 11.6045 | BH24: 13.2472 | BI24: 11.66 | BJ24: 18.4137 | BK24: 20.2028 | BL24: 21.5763 | BM24: 17.6043 | BN24: 0 | BO24: 0 | BP24: 0 | BQ24: 0 | BR24: 0 | BS24: 0 | BT24: 0 | BU24: 0 | BV24: 0 | BW24: 0 | BX24: 0 | BY24: 0 | BZ24: 0 | CA24: 0 | CB24: 0 | CC24: 0 | CD24: 0 | CE24: 0 | CF24: 0 | CG24: 0 | CH24: 0 | CI24: 0 | CJ24: 0 | CK24: 0 | CL24: 0 | CM24: 0 | CN24: 0 | CO24: 0 | CP24: 0 | CQ24: 0 | CR24: 0 | CS24: 0 | CT24: 0 | CV24: 546.4168107 | CW24: 0 | CX24: 123.7738763 | CY24: 0 | CZ24: 205.0737327 | DA24: 304.4911379 | DB24: 209.2594505 | DC24: 45.17050335 | DD24: 7.595976178 | DE24: 0 | DF24: 5.622079816 | DG24: 178.7874254 | DH24: 173.1653456 | DI24: 13.43835693 | DJ24: 13.88777083 | DK24: 38.64959573 | DL24: 105.0306729 | DM24: 108.1325101 | DN24: 262.6868328 | DO24: 377.5605514 | DP24: 458.2788134 | DQ24: 303.9007314 | DR24: 454.1019077 | DS24: 563.3094863 | DT24: 546.3639385 | DU24: 634.5019359 | DV24: 364.8007214 | DW24: 378.1509579 | DX24: 506.1986724 | DY24: 484.1245188 | DZ24: 723.6709416 | EA24: 1484.246696 | EB24: 1755.067039 | EC24: 1448.690125 | ED24: 929.2381484 | EE24: 310.7741205 | EF24: 399.8109457 | EG24: 576.4394219 | EH24: 636.5727646 | EI24: 621.4689327 | EJ24: 1149.415713 | EK24: 1429.012846 | EL24: 1261.152346 | EM24: 2022.433063 | EN24: 2028.901099 | EO24: 1198.445889 | EP24: 899.620891 | EQ24: 1176.785901 | ER24: 732.4301067 | ES24: 1340.777916 | ET24: 1973.984482 | EU24: 1022.592872 | EV24: 1167.348209 | EW24: 1027.483553 | EX24: 1622.622118 | EY24: 1780.278278 | EZ24: 1901.31161 | FA24: 1551.297488 | FB24: 0 | FC24: 0 | FD24: 0 | FE24: 0 | FF24: 0 | FG24: 0 | FH24: 0 | FI24: 0 | FJ24: 0 | FK24: 0 | FL24: 0 | FM24: 0 | FN24: 0 | FO24: 0 | FP24: 0 | FQ24: 0 | FR24: 0 | FS24: 0 | FT24: 0 | FU24: 0 | FV24: 0 | FW24: 0 | FX24: 0 | FY24: 0 | FZ24: 0 | GA24: 0 | GB24: 0 | GC24: 0 | GD24: 0 | GE24: 0 | GF24: 0 | GG24: 0 | GH24: 0
A25: 1 | B25: OVERHEAD CONDUCTORS | C25: > 1 kv & < = 11 kv | D25: 120.7834276 | E25: 70.36500106 | F25: 8.38838489 | G25: 2 | H25: 16.0552 | I25: 9.8278 | J25: 10.0316 | K25: 12.4004 | L25: 12.6017 | M25: 17.3215 | N25: 30.4545 | O25: 21.1403 | P25: 17.5105 | Q25: 15.7832 | R25: 16.9016 | S25: 16.7553 | T25: 22.0172 | U25: 29.5409 | V25: 26.3258 | W25: 20.5457 | X25: 51.3248 | Y25: 53.7232 | Z25: 28.182 | AA25: 39.147 | AB25: 48.7975 | AC25: 46.7462 | AD25: 55.6064 | AE25: 52.5212 | AF25: 53.6248 | AG25: 76.2555 | AH25: 81.4272 | AI25: 73.0256 | AJ25: 73.6131 | AK25: 88.1652 | AL25: 126.6942 | AM25: 121.9622 | AN25: 92.6429 | AO25: 99.5934 | AP25: 80.0729 | AQ25: 63.8199 | AR25: 84.014 | AS25: 88.8724 | AT25: 77.244 | AU25: 77.937 | AV25: 80.8148 | AW25: 58.0872 | AX25: 41.9484 | AY25: 57.5263 | AZ25: 57.7194 | BA25: 80.802 | BB25: 114.9552 | BC25: 107.4662 | BD25: 60.1147 | BE25: 50.4785 | BF25: 55.1539 | BG25: 22.1813 | BH25: 16.7579 | BI25: 23.558 | BJ25: 27.9384 | BK25: 23.7532 | BL25: 14.0549 | BM25: 8.6151 | BN25: 4.923 | BO25: 5.4402 | BP25: 4.0207 | BQ25: 14.1455 | BR25: 13.3379 | BS25: 1.6804 | BT25: 0.7352 | BU25: 0 | BV25: 0 | BW25: 0 | BX25: 0 | BY25: 0 | BZ25: 0 | CA25: 0 | CB25: 0 | CC25: 0 | CD25: 0 | CE25: 0 | CF25: 0 | CG25: 0 | CH25: 0 | CI25: 0 | CJ25: 0 | CK25: 0 | CL25: 0 | CM25: 0 | CN25: 0 | CO25: 0 | CP25: 0 | CQ25: 0 | CR25: 0 | CS25: 0 | CT25: 0 | CV25: 1939.202087 | CW25: 1187.03537 | CX25: 1211.651033 | CY25: 1497.762816 | CZ25: 1522.07652 | DA25: 2092.150142 | DB25: 3678.398897 | DC25: 2553.397895 | DD25: 2114.97821 | DE25: 1906.348995 | DF25: 2041.433181 | DG25: 2023.762565 | DH25: 2659.312883 | DI25: 3568.051158 | DJ25: 3179.720359 | DK25: 2481.580069 | DL25: 6199.185267 | DM25: 6488.87224 | DN25: 3403.918558 | DO25: 4728.308842 | DP25: 5893.92931 | DQ25: 5646.166265 | DR25: 6716.331591 | DS25: 6343.69056 | DT25: 6476.987151 | DU25: 9210.400666 | DV25: 9835.056319 | DW25: 8820.282273 | DX25: 8891.242537 | DY25: 10648.89505 | DZ25: 15302.55974 | EA25: 14731.01256 | EB25: 11189.72701 | EC25: 12029.23222 | ED25: 9671.479323 | EE25: 7708.386274 | EF25: 10147.49889 | EG25: 10734.31309 | EH25: 9329.795085 | EI25: 9413.498 | EJ25: 9761.088548 | EK25: 7015.971118 | EL25: 5066.671536 | EM25: 6948.223693 | EN25: 6971.546973 | EO25: 9759.54252 | EP25: 13884.68308 | EQ25: 12980.13599 | ER25: 7260.859518 | ES25: 6096.966252 | ET25: 6661.67709 | EU25: 2679.133444 | EV25: 2024.076602 | EW25: 2845.415988 | EX25: 3374.495715 | EY25: 2868.992913 | EZ25: 1697.598997 | FA25: 1040.561307 | FB25: 594.6168143 | FC25: 657.086003 | FD25: 485.6339275 | FE25: 1708.541976 | FF25: 1610.99728 | FG25: 202.9644718 | FH25: 88.799976 | FI25: 0 | FJ25: 0 | FK25: 0 | FL25: 0 | FM25: 0 | FN25: 0 | FO25: 0 | FP25: 0 | FQ25: 0 | FR25: 0 | FS25: 0 | FT25: 0 | FU25: 0 | FV25: 0 | FW25: 0 | FX25: 0 | FY25: 0 | FZ25: 0 | GA25: 0 | GB25: 0 | GC25: 0 | GD25: 0 | GE25: 0 | GF25: 0 | GG25: 0 | GH25: 0
A26: 1 | B26: OVERHEAD CONDUCTORS | C26: > 22 kv & < = 66 kv | D26: 133.144563 | E26: 64.48938054 | F26: 8.030528036 | G26: 2 | H26: 0 | I26: 0 | J26: 0 | K26: 0 | L26: 0 | M26: 0.115 | N26: 0 | O26: 0 | P26: 0 | Q26: 0 | R26: 0 | S26: 0 | T26: 0 | U26: 0 | V26: 0 | W26: 0 | X26: 0 | Y26: 0 | Z26: 0 | AA26: 0 | AB26: 0 | AC26: 0 | AD26: 0 | AE26: 0 | AF26: 0 | AG26: 0 | AH26: 0 | AI26: 5.0585 | AJ26: 5.442 | AK26: 0.3835 | AL26: 0.9185 | AM26: 0.9185 | AN26: 0 | AO26: 3.3055 | AP26: 3.383 | AQ26: 0.0775 | AR26: 0 | AS26: 0.1235 | AT26: 4.9225 | AU26: 4.9495 | AV26: 0.1505 | AW26: 0 | AX26: 1.779 | AY26: 2.491 | AZ26: 1.956 | BA26: 1.3385 | BB26: 0.443 | BC26: 6.5555 | BD26: 8.887 | BE26: 4.7075 | BF26: 7.2405 | BG26: 10.8015 | BH26: 9.2305 | BI26: 4.5185 | BJ26: 0.8765 | BK26: 1.4 | BL26: 6.128 | BM26: 8.9065 | BN26: 6.236 | BO26: 2.7475 | BP26: 2.9535 | BQ26: 4.0715 | BR26: 5.014 | BS26: 3.8875 | BT26: 1.2855 | BU26: 0.604 | BV26: 0 | BW26: 0 | BX26: 0 | BY26: 0 | BZ26: 0 | CA26: 0 | CB26: 0 | CC26: 0 | CD26: 0 | CE26: 0 | CF26: 0 | CG26: 0 | CH26: 0 | CI26: 0 | CJ26: 0 | CK26: 0 | CL26: 0 | CM26: 0 | CN26: 0 | CO26: 0 | CP26: 0 | CQ26: 0 | CR26: 0 | CS26: 0 | CT26: 0 | CV26: 0 | CW26: 0 | CX26: 0 | CY26: 0 | CZ26: 0 | DA26: 15.31162475 | DB26: 0 | DC26: 0 | DD26: 0 | DE26: 0 | DF26: 0 | DG26: 0 | DH26: 0 | DI26: 0 | DJ26: 0 | DK26: 0 | DL26: 0 | DM26: 0 | DN26: 0 | DO26: 0 | DP26: 0 | DQ26: 0 | DR26: 0 | DS26: 0 | DT26: 0 | DU26: 0 | DV26: 0 | DW26: 673.5117721 | DX26: 724.572712 | DY26: 51.06093992 | DZ26: 122.2932811 | EA26: 122.2932811 | EB26: 0 | EC26: 440.1093531 | ED26: 450.4280567 | EE26: 10.31870364 | EF26: 0 | EG26: 16.44335353 | EH26: 655.4041115 | EI26: 658.9990147 | EJ26: 20.03825674 | EK26: 0 | EL26: 236.8641776 | EM26: 331.6631065 | EN26: 260.4307653 | EO26: 178.2139976 | EP26: 58.98304142 | EQ26: 872.829183 | ER26: 1183.255732 | ES26: 626.7780305 | ET26: 964.0332087 | EU26: 1438.160998 | EV26: 1228.990889 | EW26: 601.6137081 | EX26: 116.7012095 | EY26: 186.4023882 | EZ26: 815.9098823 | FA26: 1185.852051 | FB26: 830.2894951 | FC26: 365.8146869 | FD26: 393.2424669 | FE26: 542.0980884 | FF26: 667.5868391 | FG26: 517.5994888 | FH26: 171.1573358 | FI26: 80.41931607 | FJ26: 0 | FK26: 0 | FL26: 0 | FM26: 0 | FN26: 0 | FO26: 0 | FP26: 0 | FQ26: 0 | FR26: 0 | FS26: 0 | FT26: 0 | FU26: 0 | FV26: 0 | FW26: 0 | FX26: 0 | FY26: 0 | FZ26: 0 | GA26: 0 | GB26: 0 | GC26: 0 | GD26: 0 | GE26: 0 | GF26: 0 | GG26: 0 | GH26: 0
A27: 2 | B27: POLES | C27: ˂ = 1 kv ; concrete | D27: 7.244817652 | E27: 82.0685433 | F27: 9.059169018 | G27: 2 | H27: 5 | I27: 6 | J27: 10 | K27: 2 | L27: 3 | M27: 4 | N27: 5 | O27: 3 | P27: 3 | Q27: 3 | R27: 1 | S27: 4 | T27: 4 | U27: 0 | V27: 0 | W27: 0 | X27: 0 | Y27: 0 | Z27: 1 | AA27: 1 | AB27: 1 | AC27: 1 | AD27: 0 | AE27: 1 | AF27: 2 | AG27: 3 | AH27: 4 | AI27: 4 | AJ27: 15 | AK27: 14 | AL27: 6 | AM27: 17 | AN27: 18 | AO27: 7 | AP27: 3 | AQ27: 6 | AR27: 15 | AS27: 15 | AT27: 6 | AU27: 11 | AV27: 18 | AW27: 18 | AX27: 17 | AY27: 30 | AZ27: 33 | BA27: 53 | BB27: 105 | BC27: 132 | BD27: 186 | BE27: 195 | BF27: 179 | BG27: 276 | BH27: 410 | BI27: 336 | BJ27: 233 | BK27: 279 | BL27: 314 | BM27: 255 | BN27: 175 | BO27: 157 | BP27: 127 | BQ27: 80 | BR27: 42 | BS27: 20 | BT27: 2 | BU27: 1 | BV27: 0 | BW27: 0 | BX27: 0 | BY27: 0 | BZ27: 0 | CA27: 0 | CB27: 0 | CC27: 0 | CD27: 0 | CE27: 0 | CF27: 0 | CG27: 0 | CH27: 0 | CI27: 0 | CJ27: 0 | CK27: 0 | CL27: 0 | CM27: 0 | CN27: 0 | CO27: 0 | CP27: 0 | CQ27: 0 | CR27: 0 | CS27: 0 | CT27: 0 | CV27: 36.22408826 | CW27: 43.46890591 | CX27: 72.44817652 | CY27: 14.4896353 | CZ27: 21.73445296 | DA27: 28.97927061 | DB27: 36.22408826 | DC27: 21.73445296 | DD27: 21.73445296 | DE27: 21.73445296 | DF27: 7.244817652 | DG27: 28.97927061 | DH27: 28.97927061 | DI27: 0 | DJ27: 0 | DK27: 0 | DL27: 0 | DM27: 0 | DN27: 7.244817652 | DO27: 7.244817652 | DP27: 7.244817652 | DQ27: 7.244817652 | DR27: 0 | DS27: 7.244817652 | DT27: 14.4896353 | DU27: 21.73445296 | DV27: 28.97927061 | DW27: 28.97927061 | DX27: 108.6722648 | DY27: 101.4274471 | DZ27: 43.46890591 | EA27: 123.1619001 | EB27: 130.4067177 | EC27: 50.71372356 | ED27: 21.73445296 | EE27: 43.46890591 | EF27: 108.6722648 | EG27: 108.6722648 | EH27: 43.46890591 | EI27: 79.69299417 | EJ27: 130.4067177 | EK27: 130.4067177 | EL27: 123.1619001 | EM27: 217.3445296 | EN27: 239.0789825 | EO27: 383.9753355 | EP27: 760.7058534 | EQ27: 956.31593 | ER27: 1347.536083 | ES27: 1412.739442 | ET27: 1296.82236 | EU27: 1999.569672 | EV27: 2970.375237 | EW27: 2434.258731 | EX27: 1688.042513 | EY27: 2021.304125 | EZ27: 2274.872743 | FA27: 1847.428501 | FB27: 1267.843089 | FC27: 1137.436371 | FD27: 920.0918418 | FE27: 579.5854121 | FF27: 304.2823414 | FG27: 144.896353 | FH27: 14.4896353 | FI27: 7.244817652 | FJ27: 0 | FK27: 0 | FL27: 0 | FM27: 0 | FN27: 0 | FO27: 0 | FP27: 0 | FQ27: 0 | FR27: 0 | FS27: 0 | FT27: 0 | FU27: 0 | FV27: 0 | FW27: 0 | FX27: 0 | FY27: 0 | FZ27: 0 | GA27: 0 | GB27: 0 | GC27: 0 | GD27: 0 | GE27: 0 | GF27: 0 | GG27: 0 | GH27: 0
A28: 2 | B28: POLES | C28: ˂ = 1 kv ; steel | D28: 8.561691459 | E28: 43.10159163 | F28: 6.565180244 | G28: 2 | H28: 309 | I28: 485 | J28: 507 | K28: 363 | L28: 283 | M28: 409 | N28: 590 | O28: 717 | P28: 899 | Q28: 916 | R28: 909 | S28: 1029 | T28: 1061 | U28: 856 | V28: 536 | W28: 323 | X28: 507 | Y28: 454 | Z28: 159 | AA28: 106 | AB28: 69 | AC28: 65 | AD28: 51 | AE28: 36 | AF28: 32 | AG28: 21 | AH28: 30 | AI28: 40 | AJ28: 69 | AK28: 78 | AL28: 53 | AM28: 41 | AN28: 11 | AO28: 10 | AP28: 15 | AQ28: 9 | AR28: 18 | AS28: 25 | AT28: 15 | AU28: 4 | AV28: 4 | AW28: 5 | AX28: 7 | AY28: 13 | AZ28: 10 | BA28: 8 | BB28: 8 | BC28: 7 | BD28: 13 | BE28: 8 | BF28: 8 | BG28: 7 | BH28: 5 | BI28: 6 | BJ28: 8 | BK28: 5 | BL28: 1 | BM28: 1 | BN28: 0 | BO28: 0 | BP28: 0 | BQ28: 0 | BR28: 0 | BS28: 0 | BT28: 0 | BU28: 0 | BV28: 0 | BW28: 0 | BX28: 0 | BY28: 0 | BZ28: 0 | CA28: 0 | CB28: 0 | CC28: 0 | CD28: 0 | CE28: 0 | CF28: 0 | CG28: 0 | CH28: 0 | CI28: 0 | CJ28: 0 | CK28: 0 | CL28: 0 | CM28: 0 | CN28: 0 | CO28: 0 | CP28: 0 | CQ28: 0 | CR28: 0 | CS28: 0 | CT28: 0 | CV28: 2645.562661 | CW28: 4152.420358 | CX28: 4340.77757 | CY28: 3107.894 | CZ28: 2422.958683 | DA28: 3501.731807 | DB28: 5051.397961 | DC28: 6138.732776 | DD28: 7696.960622 | DE28: 7842.509376 | DF28: 7782.577536 | DG28: 8809.980511 | DH28: 9083.954638 | DI28: 7328.807889 | DJ28: 4589.066622 | DK28: 2765.426341 | DL28: 4340.77757 | DM28: 3887.007922 | DN28: 1361.308942 | DO28: 907.5392946 | DP28: 590.7567107 | DQ28: 556.5099448 | DR28: 436.6462644 | DS28: 308.2208925 | DT28: 273.9741267 | DU28: 179.7955206 | DV28: 256.8507438 | DW28: 342.4676584 | DX28: 590.7567107 | DY28: 667.8119338 | DZ28: 453.7696473 | EA28: 351.0293498 | EB28: 94.17860605 | EC28: 85.61691459 | ED28: 128.4253719 | EE28: 77.05522313 | EF28: 154.1104463 | EG28: 214.0422865 | EH28: 128.4253719 | EI28: 34.24676584 | EJ28: 34.24676584 | EK28: 42.80845729 | EL28: 59.93184021 | EM28: 111.301989 | EN28: 85.61691459 | EO28: 68.49353167 | EP28: 68.49353167 | EQ28: 59.93184021 | ER28: 111.301989 | ES28: 68.49353167 | ET28: 68.49353167 | EU28: 59.93184021 | EV28: 42.80845729 | EW28: 51.37014875 | EX28: 68.49353167 | EY28: 42.80845729 | EZ28: 8.561691459 | FA28: 8.561691459 | FB28: 0 | FC28: 0 | FD28: 0 | FE28: 0 | FF28: 0 | FG28: 0 | FH28: 0 | FI28: 0 | FJ28: 0 | FK28: 0 | FL28: 0 | FM28: 0 | FN28: 0 | FO28: 0 | FP28: 0 | FQ28: 0 | FR28: 0 | FS28: 0 | FT28: 0 | FU28: 0 | FV28: 0 | FW28: 0 | FX28: 0 | FY28: 0 | FZ28: 0 | GA28: 0 | GB28: 0 | GC28: 0 | GD28: 0 | GE28: 0 | GF28: 0 | GG28: 0 | GH28: 0
A29: 2 | B29: POLES | C29: ˂ = 1 kv ; wood | D29: 4.399197201 | E29: 59.77145781 | F29: 7.731200283 | G29: 2 | H29: 488 | I29: 473 | J29: 579 | K29: 655 | L29: 508 | M29: 623 | N29: 796 | O29: 963 | P29: 852 | Q29: 720 | R29: 681 | S29: 827 | T29: 892 | U29: 765 | V29: 687 | W29: 781 | X29: 903 | Y29: 913 | Z29: 1010 | AA29: 909 | AB29: 795 | AC29: 735 | AD29: 676 | AE29: 779 | AF29: 1118 | AG29: 1625 | AH29: 1355 | AI29: 793 | AJ29: 1029 | AK29: 1433 | AL29: 1372 | AM29: 967 | AN29: 850 | AO29: 1115 | AP29: 1133 | AQ29: 1056 | AR29: 1079 | AS29: 909 | AT29: 927 | AU29: 996 | AV29: 982 | AW29: 613 | AX29: 288 | AY29: 593 | AZ29: 837 | BA29: 1331 | BB29: 1614 | BC29: 1407 | BD29: 1194 | BE29: 1122 | BF29: 1236 | BG29: 991 | BH29: 712 | BI29: 691 | BJ29: 712 | BK29: 550 | BL29: 284 | BM29: 139 | BN29: 54 | BO29: 16 | BP29: 2 | BQ29: 1 | BR29: 0 | BS29: 0 | BT29: 0 | BU29: 0 | BV29: 0 | BW29: 0 | BX29: 0 | BY29: 0 | BZ29: 0 | CA29: 0 | CB29: 0 | CC29: 0 | CD29: 0 | CE29: 0 | CF29: 0 | CG29: 0 | CH29: 0 | CI29: 0 | CJ29: 0 | CK29: 0 | CL29: 0 | CM29: 0 | CN29: 0 | CO29: 0 | CP29: 0 | CQ29: 0 | CR29: 0 | CS29: 0 | CT29: 0 | CV29: 2146.808234 | CW29: 2080.820276 | CX29: 2547.135179 | CY29: 2881.474167 | CZ29: 2234.792178 | DA29: 2740.699856 | DB29: 3501.760972 | DC29: 4236.426905 | DD29: 3748.116015 | DE29: 3167.421985 | DF29: 2995.853294 | DG29: 3638.136085 | DH29: 3924.083903 | DI29: 3365.385859 | DJ29: 3022.248477 | DK29: 3435.773014 | DL29: 3972.475073 | DM29: 4016.467045 | DN29: 4443.189173 | DO29: 3998.870256 | DP29: 3497.361775 | DQ29: 3233.409943 | DR29: 2973.857308 | DS29: 3426.97462 | DT29: 4918.302471 | DU29: 7148.695452 | DV29: 5960.912207 | DW29: 3488.56338 | DX29: 4526.77392 | DY29: 6304.049589 | DZ29: 6035.69856 | EA29: 4254.023693 | EB29: 3739.317621 | EC29: 4905.104879 | ED29: 4984.290429 | EE29: 4645.552244 | EF29: 4746.73378 | EG29: 3998.870256 | EH29: 4078.055805 | EI29: 4381.600412 | EJ29: 4320.011651 | EK29: 2696.707884 | EL29: 1266.968794 | EM29: 2608.72394 | EN29: 3682.128057 | EO29: 5855.331475 | EP29: 7100.304283 | EQ29: 6189.670462 | ER29: 5252.641458 | ES29: 4935.89926 | ET29: 5437.407741 | EU29: 4359.604426 | EV29: 3132.228407 | EW29: 3039.845266 | EX29: 3132.228407 | EY29: 2419.558461 | EZ29: 1249.372005 | FA29: 611.4884109 | FB29: 237.5566489 | FC29: 70.38715522 | FD29: 8.798394402 | FE29: 4.399197201 | FF29: 0 | FG29: 0 | FH29: 0 | FI29: 0 | FJ29: 0 | FK29: 0 | FL29: 0 | FM29: 0 | FN29: 0 | FO29: 0 | FP29: 0 | FQ29: 0 | FR29: 0 | FS29: 0 | FT29: 0 | FU29: 0 | FV29: 0 | FW29: 0 | FX29: 0 | FY29: 0 | FZ29: 0 | GA29: 0 | GB29: 0 | GC29: 0 | GD29: 0 | GE29: 0 | GF29: 0 | GG29: 0 | GH29: 0
A30: 2 | B30: POLES | C30: ˃ 11 kv & < = 22 kv ; concrete | D30: 16.37880594 | E30: 75.00985206 | F30: 8.660822828 | G30: 2 | H30: 8 | I30: 4 | J30: 0 | K30: 211 | L30: 10 | M30: 7 | N30: 4 | O30: 2 | P30: 2 | Q30: 8 | R30: 7 | S30: 7 | T30: 11 | U30: 4 | V30: 0 | W30: 2 | X30: 8 | Y30: 15 | Z30: 29 | AA30: 23 | AB30: 11 | AC30: 8 | AD30: 1 | AE30: 1 | AF30: 1 | AG30: 4 | AH30: 2 | AI30: 1 | AJ30: 1 | AK30: 1 | AL30: 1 | AM30: 1 | AN30: 1 | AO30: 6 | AP30: 9 | AQ30: 3 | AR30: 1 | AS30: 21 | AT30: 24 | AU30: 6 | AV30: 1 | AW30: 0 | AX30: 0 | AY30: 0 | AZ30: 0 | BA30: 11 | BB30: 37 | BC30: 30 | BD30: 30 | BE30: 67 | BF30: 61 | BG30: 38 | BH30: 30 | BI30: 18 | BJ30: 37 | BK30: 49 | BL30: 23 | BM30: 8 | BN30: 77 | BO30: 83 | BP30: 11 | BQ30: 3 | BR30: 0 | BS30: 0 | BT30: 0 | BU30: 0 | BV30: 0 | BW30: 0 | BX30: 0 | BY30: 0 | BZ30: 0 | CA30: 0 | CB30: 0 | CC30: 0 | CD30: 0 | CE30: 0 | CF30: 0 | CG30: 0 | CH30: 0 | CI30: 0 | CJ30: 0 | CK30: 0 | CL30: 0 | CM30: 0 | CN30: 0 | CO30: 0 | CP30: 0 | CQ30: 0 | CR30: 0 | CS30: 0 | CT30: 0 | CV30: 131.0304475 | CW30: 65.51522377 | CX30: 0 | CY30: 3455.928054 | CZ30: 163.7880594 | DA30: 114.6516416 | DB30: 65.51522377 | DC30: 32.75761189 | DD30: 32.75761189 | DE30: 131.0304475 | DF30: 114.6516416 | DG30: 114.6516416 | DH30: 180.1668654 | DI30: 65.51522377 | DJ30: 0 | DK30: 32.75761189 | DL30: 131.0304475 | DM30: 245.6820891 | DN30: 474.9853723 | DO30: 376.7125367 | DP30: 180.1668654 | DQ30: 131.0304475 | DR30: 16.37880594 | DS30: 16.37880594 | DT30: 16.37880594 | DU30: 65.51522377 | DV30: 32.75761189 | DW30: 16.37880594 | DX30: 16.37880594 | DY30: 16.37880594 | DZ30: 16.37880594 | EA30: 16.37880594 | EB30: 16.37880594 | EC30: 98.27283566 | ED30: 147.4092535 | EE30: 49.13641783 | EF30: 16.37880594 | EG30: 343.9549248 | EH30: 393.0913426 | EI30: 98.27283566 | EJ30: 16.37880594 | EK30: 0 | EL30: 0 | EM30: 0 | EN30: 0 | EO30: 180.1668654 | EP30: 606.0158199 | EQ30: 491.3641783 | ER30: 491.3641783 | ES30: 1097.379998 | ET30: 999.1071625 | EU30: 622.3946258 | EV30: 491.3641783 | EW30: 294.818507 | EX30: 606.0158199 | EY30: 802.5614912 | EZ30: 376.7125367 | FA30: 131.0304475 | FB30: 1261.168058 | FC30: 1359.440893 | FD30: 180.1668654 | FE30: 49.13641783 | FF30: 0 | FG30: 0 | FH30: 0 | FI30: 0 | FJ30: 0 | FK30: 0 | FL30: 0 | FM30: 0 | FN30: 0 | FO30: 0 | FP30: 0 | FQ30: 0 | FR30: 0 | FS30: 0 | FT30: 0 | FU30: 0 | FV30: 0 | FW30: 0 | FX30: 0 | FY30: 0 | FZ30: 0 | GA30: 0 | GB30: 0 | GC30: 0 | GD30: 0 | GE30: 0 | GF30: 0 | GG30: 0 | GH30: 0
A31: 2 | B31: POLES | C31: ˃ 11 kv & < = 22 kv ; steel | D31: 9.255526982 | E31: 68.07144042 | F31: 8.250541826 | G31: 2 | H31: 59 | I31: 6 | J31: 18 | K31: 6 | L31: 43 | M31: 36 | N31: 151 | O31: 242 | P31: 124 | Q31: 101 | R31: 118 | S31: 35 | T31: 6 | U31: 35 | V31: 41 | W31: 18 | X31: 23 | Y31: 100 | Z31: 95 | AA31: 7 | AB31: 7 | AC31: 0 | AD31: 0 | AE31: 8 | AF31: 9 | AG31: 21 | AH31: 28 | AI31: 14 | AJ31: 28 | AK31: 0 | AL31: 0 | AM31: 0 | AN31: 0 | AO31: 0 | AP31: 0 | AQ31: 0 | AR31: 0 | AS31: 0 | AT31: 37 | AU31: 73 | AV31: 52 | AW31: 23 | AX31: 54 | AY31: 64 | AZ31: 25 | BA31: 70 | BB31: 108 | BC31: 94 | BD31: 20 | BE31: 11 | BF31: 36 | BG31: 46 | BH31: 213 | BI31: 218 | BJ31: 58 | BK31: 41 | BL31: 0 | BM31: 0 | BN31: 93 | BO31: 23 | BP31: 0 | BQ31: 0 | BR31: 0 | BS31: 0 | BT31: 0 | BU31: 0 | BV31: 0 | BW31: 0 | BX31: 0 | BY31: 0 | BZ31: 0 | CA31: 0 | CB31: 0 | CC31: 0 | CD31: 0 | CE31: 0 | CF31: 0 | CG31: 0 | CH31: 0 | CI31: 0 | CJ31: 0 | CK31: 0 | CL31: 0 | CM31: 0 | CN31: 0 | CO31: 0 | CP31: 0 | CQ31: 0 | CR31: 0 | CS31: 0 | CT31: 0 | CV31: 546.0760919 | CW31: 55.53316189 | CX31: 166.5994857 | CY31: 55.53316189 | CZ31: 397.9876602 | DA31: 333.1989714 | DB31: 1397.584574 | DC31: 2239.83753 | DD31: 1147.685346 | DE31: 934.8082252 | DF31: 1092.152184 | DG31: 323.9434444 | DH31: 55.53316189 | DI31: 323.9434444 | DJ31: 379.4766063 | DK31: 166.5994857 | DL31: 212.8771206 | DM31: 925.5526982 | DN31: 879.2750633 | DO31: 64.78868887 | DP31: 64.78868887 | DQ31: 0 | DR31: 0 | DS31: 74.04421586 | DT31: 83.29974284 | DU31: 194.3660666 | DV31: 259.1547555 | DW31: 129.5773777 | DX31: 259.1547555 | DY31: 0 | DZ31: 0 | EA31: 0 | EB31: 0 | EC31: 0 | ED31: 0 | EE31: 0 | EF31: 0 | EG31: 0 | EH31: 342.4544983 | EI31: 675.6534697 | EJ31: 481.2874031 | EK31: 212.8771206 | EL31: 499.798457 | EM31: 592.3537268 | EN31: 231.3881745 | EO31: 647.8868887 | EP31: 999.5969141 | EQ31: 870.0195363 | ER31: 185.1105396 | ES31: 101.8107968 | ET31: 333.1989714 | EU31: 425.7542412 | EV31: 1971.427247 | EW31: 2017.704882 | EX31: 536.820565 | EY31: 379.4766063 | EZ31: 0 | FA31: 0 | FB31: 860.7640093 | FC31: 212.8771206 | FD31: 0 | FE31: 0 | FF31: 0 | FG31: 0 | FH31: 0 | FI31: 0 | FJ31: 0 | FK31: 0 | FL31: 0 | FM31: 0 | FN31: 0 | FO31: 0 | FP31: 0 | FQ31: 0 | FR31: 0 | FS31: 0 | FT31: 0 | FU31: 0 | FV31: 0 | FW31: 0 | FX31: 0 | FY31: 0 | FZ31: 0 | GA31: 0 | GB31: 0 | GC31: 0 | GD31: 0 | GE31: 0 | GF31: 0 | GG31: 0 | GH31: 0
A32: 2 | B32: POLES | C32: ˃ 11 kv & < = 22 kv ; wood | D32: 5.060752879 | E32: 60.38831523 | F32: 7.770991908 | G32: 2 | H32: 1380 | I32: 1255 | J32: 1700 | K32: 1621 | L32: 1751 | M32: 1726 | N32: 2136 | O32: 2658 | P32: 2323 | Q32: 1933 | R32: 2021 | S32: 2277 | T32: 2445 | U32: 2183 | V32: 1838 | W32: 2112 | X32: 2297 | Y32: 2357 | Z32: 2679 | AA32: 2843 | AB32: 3156 | AC32: 3152 | AD32: 2501 | AE32: 2082 | AF32: 2332 | AG32: 2568 | AH32: 2364 | AI32: 1987 | AJ32: 2094 | AK32: 2489 | AL32: 2711 | AM32: 2656 | AN32: 2417 | AO32: 2339 | AP32: 1905 | AQ32: 1649 | AR32: 1898 | AS32: 1827 | AT32: 1980 | AU32: 2034 | AV32: 1924 | AW32: 1186 | AX32: 717 | AY32: 1770 | AZ32: 1958 | BA32: 2448 | BB32: 2995 | BC32: 2442 | BD32: 2405 | BE32: 2682 | BF32: 2618 | BG32: 2085 | BH32: 2104 | BI32: 2074 | BJ32: 1987 | BK32: 1683 | BL32: 809 | BM32: 326 | BN32: 73 | BO32: 2 | BP32: 1 | BQ32: 0 | BR32: 0 | BS32: 1 | BT32: 1 | BU32: 0 | BV32: 0 | BW32: 0 | BX32: 0 | BY32: 0 | BZ32: 0 | CA32: 0 | CB32: 0 | CC32: 0 | CD32: 0 | CE32: 0 | CF32: 0 | CG32: 0 | CH32: 0 | CI32: 0 | CJ32: 0 | CK32: 0 | CL32: 0 | CM32: 0 | CN32: 0 | CO32: 0 | CP32: 0 | CQ32: 0 | CR32: 0 | CS32: 0 | CT32: 0 | CV32: 6983.838973 | CW32: 6351.244863 | CX32: 8603.279894 | CY32: 8203.480417 | CZ32: 8861.378291 | DA32: 8734.859469 | DB32: 10809.76815 | DC32: 13451.48115 | DD32: 11756.12894 | DE32: 9782.435315 | DF32: 10227.78157 | DG32: 11523.33431 | DH32: 12373.54079 | DI32: 11047.62353 | DJ32: 9301.663791 | DK32: 10688.31008 | DL32: 11624.54936 | DM32: 11928.19454 | DN32: 13557.75696 | DO32: 14387.72043 | DP32: 15971.73609 | DQ32: 15951.49307 | DR32: 12656.94295 | DS32: 10536.48749 | DT32: 11801.67571 | DU32: 12996.01339 | DV32: 11963.61981 | DW32: 10055.71597 | DX32: 10597.21653 | DY32: 12596.21392 | DZ32: 13719.70105 | EA32: 13441.35965 | EB32: 12231.83971 | EC32: 11837.10098 | ED32: 9640.734234 | EE32: 8345.181497 | EF32: 9605.308964 | EG32: 9245.99551 | EH32: 10020.2907 | EI32: 10293.57136 | EJ32: 9736.888539 | EK32: 6002.052914 | EL32: 3628.559814 | EM32: 8957.532596 | EN32: 9908.954137 | EO32: 12388.72305 | EP32: 15156.95487 | EQ32: 12358.35853 | ER32: 12171.11067 | ES32: 13572.93922 | ET32: 13249.05104 | EU32: 10551.66975 | EV32: 10647.82406 | EW32: 10496.00147 | EX32: 10055.71597 | EY32: 8517.247095 | EZ32: 4094.149079 | FA32: 1649.805439 | FB32: 369.4349602 | FC32: 10.12150576 | FD32: 5.060752879 | FE32: 0 | FF32: 0 | FG32: 5.060752879 | FH32: 5.060752879 | FI32: 0 | FJ32: 0 | FK32: 0 | FL32: 0 | FM32: 0 | FN32: 0 | FO32: 0 | FP32: 0 | FQ32: 0 | FR32: 0 | FS32: 0 | FT32: 0 | FU32: 0 | FV32: 0 | FW32: 0 | FX32: 0 | FY32: 0 | FZ32: 0 | GA32: 0 | GB32: 0 | GC32: 0 | GD32: 0 | GE32: 0 | GF32: 0 | GG32: 0 | GH32: 0
A33: 2 | B33: POLES | C33: > 1 kv & < = 11 kv ; concrete | D33: 7.244817652 | E33: 82.0685433 | F33: 9.059169018 | G33: 2 | H33: 0 | I33: 3 | J33: 3 | K33: 3 | L33: 2 | M33: 3 | N33: 4 | O33: 4 | P33: 4 | Q33: 1 | R33: 1 | S33: 1 | T33: 0 | U33: 0 | V33: 1 | W33: 1 | X33: 1 | Y33: 1 | Z33: 2 | AA33: 2 | AB33: 1 | AC33: 1 | AD33: 1 | AE33: 2 | AF33: 3 | AG33: 0 | AH33: 2 | AI33: 6 | AJ33: 12 | AK33: 14 | AL33: 19 | AM33: 18 | AN33: 13 | AO33: 13 | AP33: 8 | AQ33: 2 | AR33: 7 | AS33: 10 | AT33: 5 | AU33: 2 | AV33: 2 | AW33: 2 | AX33: 1 | AY33: 2 | AZ33: 8 | BA33: 15 | BB33: 26 | BC33: 27 | BD33: 20 | BE33: 52 | BF33: 75 | BG33: 66 | BH33: 86 | BI33: 77 | BJ33: 59 | BK33: 74 | BL33: 97 | BM33: 96 | BN33: 85 | BO33: 70 | BP33: 56 | BQ33: 41 | BR33: 20 | BS33: 28 | BT33: 18 | BU33: 0 | BV33: 0 | BW33: 0 | BX33: 0 | BY33: 0 | BZ33: 0 | CA33: 0 | CB33: 0 | CC33: 0 | CD33: 0 | CE33: 0 | CF33: 0 | CG33: 0 | CH33: 0 | CI33: 0 | CJ33: 0 | CK33: 0 | CL33: 0 | CM33: 0 | CN33: 0 | CO33: 0 | CP33: 0 | CQ33: 0 | CR33: 0 | CS33: 0 | CT33: 0 | CV33: 0 | CW33: 21.73445296 | CX33: 21.73445296 | CY33: 21.73445296 | CZ33: 14.4896353 | DA33: 21.73445296 | DB33: 28.97927061 | DC33: 28.97927061 | DD33: 28.97927061 | DE33: 7.244817652 | DF33: 7.244817652 | DG33: 7.244817652 | DH33: 0 | DI33: 0 | DJ33: 7.244817652 | DK33: 7.244817652 | DL33: 7.244817652 | DM33: 7.244817652 | DN33: 14.4896353 | DO33: 14.4896353 | DP33: 7.244817652 | DQ33: 7.244817652 | DR33: 7.244817652 | DS33: 14.4896353 | DT33: 21.73445296 | DU33: 0 | DV33: 14.4896353 | DW33: 43.46890591 | DX33: 86.93781182 | DY33: 101.4274471 | DZ33: 137.6515354 | EA33: 130.4067177 | EB33: 94.18262947 | EC33: 94.18262947 | ED33: 57.95854121 | EE33: 14.4896353 | EF33: 50.71372356 | EG33: 72.44817652 | EH33: 36.22408826 | EI33: 14.4896353 | EJ33: 14.4896353 | EK33: 14.4896353 | EL33: 7.244817652 | EM33: 14.4896353 | EN33: 57.95854121 | EO33: 108.6722648 | EP33: 188.3652589 | EQ33: 195.6100766 | ER33: 144.896353 | ES33: 376.7305179 | ET33: 543.3613239 | EU33: 478.157965 | EV33: 623.054318 | EW33: 557.8509592 | EX33: 427.4442414 | EY33: 536.1165062 | EZ33: 702.7473122 | FA33: 695.5024946 | FB33: 615.8095004 | FC33: 507.1372356 | FD33: 405.7097885 | FE33: 297.0375237 | FF33: 144.896353 | FG33: 202.8548942 | FH33: 130.4067177 | FI33: 0 | FJ33: 0 | FK33: 0 | FL33: 0 | FM33: 0 | FN33: 0 | FO33: 0 | FP33: 0 | FQ33: 0 | FR33: 0 | FS33: 0 | FT33: 0 | FU33: 0 | FV33: 0 | FW33: 0 | FX33: 0 | FY33: 0 | FZ33: 0 | GA33: 0 | GB33: 0 | GC33: 0 | GD33: 0 | GE33: 0 | GF33: 0 | GG33: 0 | GH33: 0
A34: 2 | B34: POLES | C34: > 1 kv & < = 11 kv ; steel | D34: 7.225368794 | E34: 61.77068548 | F34: 7.859432898 | G34: 2 | H34: 5 | I34: 0 | J34: 5 | K34: 2 | L34: 7 | M34: 5 | N34: 22 | O34: 22 | P34: 2 | Q34: 5 | R34: 12 | S34: 10 | T34: 7 | U34: 7 | V34: 0 | W34: 0 | X34: 0 | Y34: 0 | Z34: 0 | AA34: 0 | AB34: 0 | AC34: 0 | AD34: 0 | AE34: 0 | AF34: 15 | AG34: 15 | AH34: 4 | AI34: 6 | AJ34: 57 | AK34: 58 | AL34: 8 | AM34: 0 | AN34: 14 | AO34: 13 | AP34: 4 | AQ34: 0 | AR34: 11 | AS34: 10 | AT34: 8 | AU34: 6 | AV34: 4 | AW34: 5 | AX34: 11 | AY34: 13 | AZ34: 0 | BA34: 0 | BB34: 8 | BC34: 11 | BD34: 0 | BE34: 0 | BF34: 0 | BG34: 4 | BH34: 4 | BI34: 0 | BJ34: 0 | BK34: 0 | BL34: 13 | BM34: 10 | BN34: 0 | BO34: 38 | BP34: 10 | BQ34: 0 | BR34: 0 | BS34: 0 | BT34: 0 | BU34: 0 | BV34: 0 | BW34: 0 | BX34: 0 | BY34: 0 | BZ34: 0 | CA34: 0 | CB34: 0 | CC34: 0 | CD34: 0 | CE34: 0 | CF34: 0 | CG34: 0 | CH34: 0 | CI34: 0 | CJ34: 0 | CK34: 0 | CL34: 0 | CM34: 0 | CN34: 0 | CO34: 0 | CP34: 0 | CQ34: 0 | CR34: 0 | CS34: 0 | CT34: 0 | CV34: 36.12684397 | CW34: 0 | CX34: 36.12684397 | CY34: 14.45073759 | CZ34: 50.57758156 | DA34: 36.12684397 | DB34: 158.9581135 | DC34: 158.9581135 | DD34: 14.45073759 | DE34: 36.12684397 | DF34: 86.70442553 | DG34: 72.25368794 | DH34: 50.57758156 | DI34: 50.57758156 | DJ34: 0 | DK34: 0 | DL34: 0 | DM34: 0 | DN34: 0 | DO34: 0 | DP34: 0 | DQ34: 0 | DR34: 0 | DS34: 0 | DT34: 108.3805319 | DU34: 108.3805319 | DV34: 28.90147518 | DW34: 43.35221277 | DX34: 411.8460213 | DY34: 419.0713901 | DZ34: 57.80295035 | EA34: 0 | EB34: 101.1551631 | EC34: 93.92979432 | ED34: 28.90147518 | EE34: 0 | EF34: 79.47905674 | EG34: 72.25368794 | EH34: 57.80295035 | EI34: 43.35221277 | EJ34: 28.90147518 | EK34: 36.12684397 | EL34: 79.47905674 | EM34: 93.92979432 | EN34: 0 | EO34: 0 | EP34: 57.80295035 | EQ34: 79.47905674 | ER34: 0 | ES34: 0 | ET34: 0 | EU34: 28.90147518 | EV34: 28.90147518 | EW34: 0 | EX34: 0 | EY34: 0 | EZ34: 93.92979432 | FA34: 72.25368794 | FB34: 0 | FC34: 274.5640142 | FD34: 72.25368794 | FE34: 0 | FF34: 0 | FG34: 0 | FH34: 0 | FI34: 0 | FJ34: 0 | FK34: 0 | FL34: 0 | FM34: 0 | FN34: 0 | FO34: 0 | FP34: 0 | FQ34: 0 | FR34: 0 | FS34: 0 | FT34: 0 | FU34: 0 | FV34: 0 | FW34: 0 | FX34: 0 | FY34: 0 | FZ34: 0 | GA34: 0 | GB34: 0 | GC34: 0 | GD34: 0 | GE34: 0 | GF34: 0 | GG34: 0 | GH34: 0
A35: 2 | B35: POLES | C35: > 1 kv & < = 11 kv ; wood | D35: 4.802346202 | E35: 62.40170398 | F35: 7.899474918 | G35: 2 | H35: 306 | I35: 190 | J35: 260 | K35: 350 | L35: 278 | M35: 358 | N35: 525 | O35: 667 | P35: 624 | Q35: 604 | R35: 520 | S35: 477 | T35: 564 | U35: 590 | V35: 502 | W35: 508 | X35: 490 | Y35: 443 | Z35: 527 | AA35: 636 | AB35: 686 | AC35: 675 | AD35: 684 | AE35: 562 | AF35: 685 | AG35: 995 | AH35: 972 | AI35: 776 | AJ35: 849 | AK35: 1044 | AL35: 1183 | AM35: 1122 | AN35: 906 | AO35: 909 | AP35: 753 | AQ35: 593 | AR35: 677 | AS35: 669 | AT35: 661 | AU35: 632 | AV35: 593 | AW35: 380 | AX35: 255 | AY35: 516 | AZ35: 614 | BA35: 861 | BB35: 1023 | BC35: 762 | BD35: 702 | BE35: 1043 | BF35: 980 | BG35: 451 | BH35: 305 | BI35: 282 | BJ35: 307 | BK35: 253 | BL35: 77 | BM35: 29 | BN35: 2 | BO35: 1 | BP35: 0 | BQ35: 0 | BR35: 0 | BS35: 0 | BT35: 0 | BU35: 0 | BV35: 0 | BW35: 0 | BX35: 0 | BY35: 0 | BZ35: 0 | CA35: 0 | CB35: 0 | CC35: 0 | CD35: 0 | CE35: 0 | CF35: 0 | CG35: 0 | CH35: 0 | CI35: 0 | CJ35: 0 | CK35: 0 | CL35: 0 | CM35: 0 | CN35: 0 | CO35: 0 | CP35: 0 | CQ35: 0 | CR35: 0 | CS35: 0 | CT35: 0 | CV35: 1469.517938 | CW35: 912.4457784 | CX35: 1248.610013 | CY35: 1680.821171 | CZ35: 1335.052244 | DA35: 1719.23994 | DB35: 2521.231756 | DC35: 3203.164917 | DD35: 2996.66403 | DE35: 2900.617106 | DF35: 2497.220025 | DG35: 2290.719138 | DH35: 2708.523258 | DI35: 2833.384259 | DJ35: 2410.777793 | DK35: 2439.591871 | DL35: 2353.149639 | DM35: 2127.439368 | DN35: 2530.836448 | DO35: 3054.292185 | DP35: 3294.409495 | DQ35: 3241.583686 | DR35: 3284.804802 | DS35: 2698.918566 | DT35: 3289.607148 | DU35: 4778.334471 | DV35: 4667.880508 | DW35: 3726.620653 | DX35: 4077.191926 | DY35: 5013.649435 | DZ35: 5681.175557 | EA35: 5388.232439 | EB35: 4350.925659 | EC35: 4365.332698 | ED35: 3616.16669 | EE35: 2847.791298 | EF35: 3251.188379 | EG35: 3212.769609 | EH35: 3174.35084 | EI35: 3035.0828 | EJ35: 2847.791298 | EK35: 1824.891557 | EL35: 1224.598282 | EM35: 2478.01064 | EN35: 2948.640568 | EO35: 4134.82008 | EP35: 4912.800165 | EQ35: 3659.387806 | ER35: 3371.247034 | ES35: 5008.847089 | ET35: 4706.299278 | EU35: 2165.858137 | EV35: 1464.715592 | EW35: 1354.261629 | EX35: 1474.320284 | EY35: 1214.993589 | EZ35: 369.7806576 | FA35: 139.2680399 | FB35: 9.604692404 | FC35: 4.802346202 | FD35: 0 | FE35: 0 | FF35: 0 | FG35: 0 | FH35: 0 | FI35: 0 | FJ35: 0 | FK35: 0 | FL35: 0 | FM35: 0 | FN35: 0 | FO35: 0 | FP35: 0 | FQ35: 0 | FR35: 0 | FS35: 0 | FT35: 0 | FU35: 0 | FV35: 0 | FW35: 0 | FX35: 0 | FY35: 0 | FZ35: 0 | GA35: 0 | GB35: 0 | GC35: 0 | GD35: 0 | GE35: 0 | GF35: 0 | GG35: 0 | GH35: 0
A36: 2 | B36: POLES | C36: > 22 kv & < = 66 kv ; concrete | D36: 16.37880594 | E36: 75.00985206 | F36: 8.660822828 | G36: 2 | H36: 0 | I36: 0 | J36: 3 | K36: 0 | L36: 0 | M36: 0 | N36: 0 | O36: 0 | P36: 1 | Q36: 1 | R36: 1 | S36: 1 | T36: 1 | U36: 1 | V36: 0 | W36: 0 | X36: 0 | Y36: 0 | Z36: 0 | AA36: 0 | AB36: 0 | AC36: 0 | AD36: 0 | AE36: 0 | AF36: 0 | AG36: 0 | AH36: 0 | AI36: 6 | AJ36: 8 | AK36: 3 | AL36: 1 | AM36: 2 | AN36: 3 | AO36: 1 | AP36: 0 | AQ36: 2 | AR36: 1 | AS36: 4 | AT36: 4 | AU36: 0 | AV36: 2 | AW36: 2 | AX36: 0 | AY36: 0 | AZ36: 2 | BA36: 10 | BB36: 28 | BC36: 21 | BD36: 6 | BE36: 12 | BF36: 17 | BG36: 26 | BH36: 29 | BI36: 26 | BJ36: 14 | BK36: 8 | BL36: 18 | BM36: 20 | BN36: 18 | BO36: 11 | BP36: 10 | BQ36: 19 | BR36: 23 | BS36: 12 | BT36: 1 | BU36: 0 | BV36: 0 | BW36: 0 | BX36: 0 | BY36: 0 | BZ36: 0 | CA36: 0 | CB36: 0 | CC36: 0 | CD36: 0 | CE36: 0 | CF36: 0 | CG36: 0 | CH36: 0 | CI36: 0 | CJ36: 0 | CK36: 0 | CL36: 0 | CM36: 0 | CN36: 0 | CO36: 0 | CP36: 0 | CQ36: 0 | CR36: 0 | CS36: 0 | CT36: 0 | CV36: 0 | CW36: 0 | CX36: 49.13641783 | CY36: 0 | CZ36: 0 | DA36: 0 | DB36: 0 | DC36: 0 | DD36: 16.37880594 | DE36: 16.37880594 | DF36: 16.37880594 | DG36: 16.37880594 | DH36: 16.37880594 | DI36: 16.37880594 | DJ36: 0 | DK36: 0 | DL36: 0 | DM36: 0 | DN36: 0 | DO36: 0 | DP36: 0 | DQ36: 0 | DR36: 0 | DS36: 0 | DT36: 0 | DU36: 0 | DV36: 0 | DW36: 98.27283566 | DX36: 131.0304475 | DY36: 49.13641783 | DZ36: 16.37880594 | EA36: 32.75761189 | EB36: 49.13641783 | EC36: 16.37880594 | ED36: 0 | EE36: 32.75761189 | EF36: 16.37880594 | EG36: 65.51522377 | EH36: 65.51522377 | EI36: 0 | EJ36: 32.75761189 | EK36: 32.75761189 | EL36: 0 | EM36: 0 | EN36: 32.75761189 | EO36: 163.7880594 | EP36: 458.6065664 | EQ36: 343.9549248 | ER36: 98.27283566 | ES36: 196.5456713 | ET36: 278.439701 | EU36: 425.8489545 | EV36: 474.9853723 | EW36: 425.8489545 | EX36: 229.3032832 | EY36: 131.0304475 | EZ36: 294.818507 | FA36: 327.5761189 | FB36: 294.818507 | FC36: 180.1668654 | FD36: 163.7880594 | FE36: 311.1973129 | FF36: 376.7125367 | FG36: 196.5456713 | FH36: 16.37880594 | FI36: 0 | FJ36: 0 | FK36: 0 | FL36: 0 | FM36: 0 | FN36: 0 | FO36: 0 | FP36: 0 | FQ36: 0 | FR36: 0 | FS36: 0 | FT36: 0 | FU36: 0 | FV36: 0 | FW36: 0 | FX36: 0 | FY36: 0 | FZ36: 0 | GA36: 0 | GB36: 0 | GC36: 0 | GD36: 0 | GE36: 0 | GF36: 0 | GG36: 0 | GH36: 0
A37: 2 | B37: POLES | C37: > 22 kv & < = 66 kv ; steel | D37: 9.255526982 | E37: 68.07144042 | F37: 8.250541826 | G37: 2 | H37: 0 | I37: 0 | J37: 0 | K37: 0 | L37: 0 | M37: 0 | N37: 0 | O37: 0 | P37: 10 | Q37: 33 | R37: 23 | S37: 0 | T37: 0 | U37: 0 | V37: 0 | W37: 0 | X37: 0 | Y37: 0 | Z37: 0 | AA37: 0 | AB37: 0 | AC37: 0 | AD37: 0 | AE37: 0 | AF37: 1 | AG37: 1 | AH37: 0 | AI37: 0 | AJ37: 0 | AK37: 0 | AL37: 0 | AM37: 0 | AN37: 0 | AO37: 0 | AP37: 0 | AQ37: 0 | AR37: 0 | AS37: 0 | AT37: 0 | AU37: 0 | AV37: 0 | AW37: 0 | AX37: 0 | AY37: 0 | AZ37: 0 | BA37: 0 | BB37: 0 | BC37: 0 | BD37: 0 | BE37: 0 | BF37: 0 | BG37: 0 | BH37: 0 | BI37: 0 | BJ37: 0 | BK37: 0 | BL37: 0 | BM37: 0 | BN37: 0 | BO37: 0 | BP37: 0 | BQ37: 0 | BR37: 0 | BS37: 0 | BT37: 0 | BU37: 0 | BV37: 0 | BW37: 0 | BX37: 0 | BY37: 0 | BZ37: 0 | CA37: 0 | CB37: 0 | CC37: 0 | CD37: 0 | CE37: 0 | CF37: 0 | CG37: 0 | CH37: 0 | CI37: 0 | CJ37: 0 | CK37: 0 | CL37: 0 | CM37: 0 | CN37: 0 | CO37: 0 | CP37: 0 | CQ37: 0 | CR37: 0 | CS37: 0 | CT37: 0 | CV37: 0 | CW37: 0 | CX37: 0 | CY37: 0 | CZ37: 0 | DA37: 0 | DB37: 0 | DC37: 0 | DD37: 92.55526982 | DE37: 305.4323904 | DF37: 212.8771206 | DG37: 0 | DH37: 0 | DI37: 0 | DJ37: 0 | DK37: 0 | DL37: 0 | DM37: 0 | DN37: 0 | DO37: 0 | DP37: 0 | DQ37: 0 | DR37: 0 | DS37: 0 | DT37: 9.255526982 | DU37: 9.255526982 | DV37: 0 | DW37: 0 | DX37: 0 | DY37: 0 | DZ37: 0 | EA37: 0 | EB37: 0 | EC37: 0 | ED37: 0 | EE37: 0 | EF37: 0 | EG37: 0 | EH37: 0 | EI37: 0 | EJ37: 0 | EK37: 0 | EL37: 0 | EM37: 0 | EN37: 0 | EO37: 0 | EP37: 0 | EQ37: 0 | ER37: 0 | ES37: 0 | ET37: 0 | EU37: 0 | EV37: 0 | EW37: 0 | EX37: 0 | EY37: 0 | EZ37: 0 | FA37: 0 | FB37: 0 | FC37: 0 | FD37: 0 | FE37: 0 | FF37: 0 | FG37: 0 | FH37: 0 | FI37: 0 | FJ37: 0 | FK37: 0 | FL37: 0 | FM37: 0 | FN37: 0 | FO37: 0 | FP37: 0 | FQ37: 0 | FR37: 0 | FS37: 0 | FT37: 0 | FU37: 0 | FV37: 0 | FW37: 0 | FX37: 0 | FY37: 0 | FZ37: 0 | GA37: 0 | GB37: 0 | GC37: 0 | GD37: 0 | GE37: 0 | GF37: 0 | GG37: 0 | GH37: 0
A38: 2 | B38: POLES | C38: > 22 kv & < = 66 kv ; wood | D38: 6.657701792 | E38: 56.90748311 | F38: 7.543704866 | G38: 2 | H38: 4 | I38: 5 | J38: 10 | K38: 5 | L38: 6 | M38: 1 | N38: 5 | O38: 12 | P38: 6 | Q38: 5 | R38: 18 | S38: 49 | T38: 43 | U38: 5 | V38: 11 | W38: 12 | X38: 5 | Y38: 7 | Z38: 10 | AA38: 9 | AB38: 5 | AC38: 5 | AD38: 6 | AE38: 5 | AF38: 11 | AG38: 14 | AH38: 26 | AI38: 41 | AJ38: 28 | AK38: 10 | AL38: 32 | AM38: 34 | AN38: 12 | AO38: 20 | AP38: 17 | AQ38: 10 | AR38: 20 | AS38: 59 | AT38: 62 | AU38: 21 | AV38: 14 | AW38: 10 | AX38: 6 | AY38: 24 | AZ38: 34 | BA38: 27 | BB38: 24 | BC38: 32 | BD38: 28 | BE38: 12 | BF38: 8 | BG38: 3 | BH38: 1 | BI38: 1 | BJ38: 1 | BK38: 1 | BL38: 0 | BM38: 0 | BN38: 0 | BO38: 1 | BP38: 1 | BQ38: 1 | BR38: 1 | BS38: 0 | BT38: 0 | BU38: 0 | BV38: 0 | BW38: 0 | BX38: 0 | BY38: 0 | BZ38: 0 | CA38: 0 | CB38: 0 | CC38: 0 | CD38: 0 | CE38: 0 | CF38: 0 | CG38: 0 | CH38: 0 | CI38: 0 | CJ38: 0 | CK38: 0 | CL38: 0 | CM38: 0 | CN38: 0 | CO38: 0 | CP38: 0 | CQ38: 0 | CR38: 0 | CS38: 0 | CT38: 0 | CV38: 26.63080717 | CW38: 33.28850896 | CX38: 66.57701792 | CY38: 33.28850896 | CZ38: 39.94621075 | DA38: 6.657701792 | DB38: 33.28850896 | DC38: 79.8924215 | DD38: 39.94621075 | DE38: 33.28850896 | DF38: 119.8386323 | DG38: 326.2273878 | DH38: 286.281177 | DI38: 33.28850896 | DJ38: 73.23471971 | DK38: 79.8924215 | DL38: 33.28850896 | DM38: 46.60391254 | DN38: 66.57701792 | DO38: 59.91931613 | DP38: 33.28850896 | DQ38: 33.28850896 | DR38: 39.94621075 | DS38: 33.28850896 | DT38: 73.23471971 | DU38: 93.20782508 | DV38: 173.1002466 | DW38: 272.9657735 | DX38: 186.4156502 | DY38: 66.57701792 | DZ38: 213.0464573 | EA38: 226.3618609 | EB38: 79.8924215 | EC38: 133.1540358 | ED38: 113.1809305 | EE38: 66.57701792 | EF38: 133.1540358 | EG38: 392.8044057 | EH38: 412.7775111 | EI38: 139.8117376 | EJ38: 93.20782508 | EK38: 66.57701792 | EL38: 39.94621075 | EM38: 159.784843 | EN38: 226.3618609 | EO38: 179.7579484 | EP38: 159.784843 | EQ38: 213.0464573 | ER38: 186.4156502 | ES38: 79.8924215 | ET38: 53.26161433 | EU38: 19.97310538 | EV38: 6.657701792 | EW38: 6.657701792 | EX38: 6.657701792 | EY38: 6.657701792 | EZ38: 0 | FA38: 0 | FB38: 0 | FC38: 6.657701792 | FD38: 6.657701792 | FE38: 6.657701792 | FF38: 6.657701792 | FG38: 0 | FH38: 0 | FI38: 0 | FJ38: 0 | FK38: 0 | FL38: 0 | FM38: 0 | FN38: 0 | FO38: 0 | FP38: 0 | FQ38: 0 | FR38: 0 | FS38: 0 | FT38: 0 | FU38: 0 | FV38: 0 | FW38: 0 | FX38: 0 | FY38: 0 | FZ38: 0 | GA38: 0 | GB38: 0 | GC38: 0 | GD38: 0 | GE38: 0 | GF38: 0 | GG38: 0 | GH38: 0
A39: 2 | B39: POLES | C39: staking of a wooden pole | D39: 9.724968887 | E39: 30.76350381 | F39: 5.546485717 | G39: 2 | H39: 936 | I39: 1159 | J39: 1752 | K39: 2784 | L39: 1719 | M39: 1727 | N39: 1750 | O39: 1613 | P39: 1359 | Q39: 691 | R39: 713 | S39: 922 | T39: 1206 | U39: 347 | V39: 212 | W39: 456 | X39: 613 | Y39: 1026 | Z39: 1237 | AA39: 979 | AB39: 969 | AC39: 1064 | AD39: 1084 | AE39: 823 | AF39: 687 | AG39: 739 | AH39: 779 | AI39: 664 | AJ39: 324 | AK39: 117 | AL39: 32 | AM39: 7 | AN39: 1 | AO39: 0 | AP39: 0 | AQ39: 0 | AR39: 0 | AS39: 0 | AT39: 0 | AU39: 0 | AV39: 0 | AW39: 0 | AX39: 0 | AY39: 0 | AZ39: 0 | BA39: 0 | BB39: 0 | BC39: 0 | BD39: 0 | BE39: 0 | BF39: 0 | BG39: 0 | BH39: 0 | BI39: 0 | BJ39: 0 | BK39: 0 | BL39: 0 | BM39: 0 | BN39: 0 | BO39: 0 | BP39: 0 | BQ39: 0 | BR39: 0 | BS39: 0 | BT39: 0 | BU39: 0 | BV39: 0 | BW39: 0 | BX39: 0 | BY39: 0 | BZ39: 0 | CA39: 0 | CB39: 0 | CC39: 0 | CD39: 0 | CE39: 0 | CF39: 0 | CG39: 0 | CH39: 0 | CI39: 0 | CJ39: 0 | CK39: 0 | CL39: 0 | CM39: 0 | CN39: 0 | CO39: 0 | CP39: 0 | CQ39: 0 | CR39: 0 | CS39: 0 | CT39: 0 | CV39: 9102.570878 | CW39: 11271.23894 | CX39: 17038.14549 | CY39: 27074.31338 | CZ39: 16717.22152 | DA39: 16795.02127 | DB39: 17018.69555 | DC39: 15686.37481 | DD39: 13216.23272 | DE39: 6719.953501 | DF39: 6933.902816 | DG39: 8966.421314 | DH39: 11728.31248 | DI39: 3374.564204 | DJ39: 2061.693404 | DK39: 4434.585812 | DL39: 5961.405928 | DM39: 9977.818078 | DN39: 12029.78651 | DO39: 9520.74454 | DP39: 9423.494851 | DQ39: 10347.3669 | DR39: 10541.86627 | DS39: 8003.649394 | DT39: 6681.053625 | DU39: 7186.752007 | DV39: 7575.750763 | DW39: 6457.379341 | DX39: 3150.889919 | DY39: 1137.82136 | DZ39: 311.1990044 | EA39: 68.07478221 | EB39: 9.724968887 | EC39: 0 | ED39: 0 | EE39: 0 | EF39: 0 | EG39: 0 | EH39: 0 | EI39: 0 | EJ39: 0 | EK39: 0 | EL39: 0 | EM39: 0 | EN39: 0 | EO39: 0 | EP39: 0 | EQ39: 0 | ER39: 0 | ES39: 0 | ET39: 0 | EU39: 0 | EV39: 0 | EW39: 0 | EX39: 0 | EY39: 0 | EZ39: 0 | FA39: 0 | FB39: 0 | FC39: 0 | FD39: 0 | FE39: 0 | FF39: 0 | FG39: 0 | FH39: 0 | FI39: 0 | FJ39: 0 | FK39: 0 | FL39: 0 | FM39: 0 | FN39: 0 | FO39: 0 | FP39: 0 | FQ39: 0 | FR39: 0 | FS39: 0 | FT39: 0 | FU39: 0 | FV39: 0 | FW39: 0 | FX39: 0 | FY39: 0 | FZ39: 0 | GA39: 0 | GB39: 0 | GC39: 0 | GD39: 0 | GE39: 0 | GF39: 0 | GG39: 0 | GH39: 0
A40: 3 | B40: SERVICE LINES | C40: ˂ = 11 kv ; commercial and industrial ; simple type | D40: 1.474960428 | E40: 59.16008989 | F40: 7.691559653 | G40: 2 | H40: 548 | I40: 722 | J40: 579 | K40: 444 | L40: 341 | M40: 506 | N40: 701 | O40: 881 | P40: 601 | Q40: 308 | R40: 439 | S40: 563 | T40: 654 | U40: 610 | V40: 492 | W40: 508 | X40: 676 | Y40: 680 | Z40: 587 | AA40: 512 | AB40: 439 | AC40: 418 | AD40: 375 | AE40: 360 | AF40: 497 | AG40: 701 | AH40: 633 | AI40: 453 | AJ40: 500 | AK40: 619 | AL40: 636 | AM40: 538 | AN40: 493 | AO40: 556 | AP40: 532 | AQ40: 498 | AR40: 519 | AS40: 455 | AT40: 477 | AU40: 514 | AV40: 496 | AW40: 307 | AX40: 164 | AY40: 362 | AZ40: 488 | BA40: 704 | BB40: 845 | BC40: 728 | BD40: 679 | BE40: 697 | BF40: 684 | BG40: 532 | BH40: 490 | BI40: 465 | BJ40: 436 | BK40: 392 | BL40: 259 | BM40: 162 | BN40: 92 | BO40: 66 | BP40: 49 | BQ40: 31 | BR40: 17 | BS40: 10 | BT40: 1 | BU40: 0 | BV40: 0 | BW40: 0 | BX40: 0 | BY40: 0 | BZ40: 0 | CA40: 0 | CB40: 0 | CC40: 0 | CD40: 0 | CE40: 0 | CF40: 0 | CG40: 0 | CH40: 0 | CI40: 0 | CJ40: 0 | CK40: 0 | CL40: 0 | CM40: 0 | CN40: 0 | CO40: 0 | CP40: 0 | CQ40: 0 | CR40: 0 | CS40: 0 | CT40: 0 | CV40: 808.2783145 | CW40: 1064.921429 | CX40: 854.0020878 | CY40: 654.88243 | CZ40: 502.9615059 | DA40: 746.3299765 | DB40: 1033.94726 | DC40: 1299.440137 | DD40: 886.4512172 | DE40: 454.2878118 | DF40: 647.5076279 | DG40: 830.4027209 | DH40: 964.6241199 | DI40: 899.725861 | DJ40: 725.6805305 | DK40: 749.2798974 | DL40: 997.0732493 | DM40: 1002.973091 | DN40: 865.8017712 | DO40: 755.1797391 | DP40: 647.5076279 | DQ40: 616.5334589 | DR40: 553.1101605 | DS40: 530.9857541 | DT40: 733.0553327 | DU40: 1033.94726 | DV40: 933.6499509 | DW40: 668.1570739 | DX40: 737.480214 | DY40: 913.0005049 | DZ40: 938.0748322 | EA40: 793.5287102 | EB40: 727.155491 | EC40: 820.0779979 | ED40: 784.6789477 | EE40: 734.5302931 | EF40: 765.5044621 | EG40: 671.1069947 | EH40: 703.5561241 | EI40: 758.12966 | EJ40: 731.5803723 | EK40: 452.8128514 | EL40: 241.8935102 | EM40: 533.9356749 | EN40: 719.7806888 | EO40: 1038.372141 | EP40: 1246.341562 | EQ40: 1073.771192 | ER40: 1001.498131 | ES40: 1028.047418 | ET40: 1008.872933 | EU40: 784.6789477 | EV40: 722.7306097 | EW40: 685.856599 | EX40: 643.0827466 | EY40: 578.1844877 | EZ40: 382.0147508 | FA40: 238.9435893 | FB40: 135.6963594 | FC40: 97.34738824 | FD40: 72.27306097 | FE40: 45.72377327 | FF40: 25.07432727 | FG40: 14.74960428 | FH40: 1.474960428 | FI40: 0 | FJ40: 0 | FK40: 0 | FL40: 0 | FM40: 0 | FN40: 0 | FO40: 0 | FP40: 0 | FQ40: 0 | FR40: 0 | FS40: 0 | FT40: 0 | FU40: 0 | FV40: 0 | FW40: 0 | FX40: 0 | FY40: 0 | FZ40: 0 | GA40: 0 | GB40: 0 | GC40: 0 | GD40: 0 | GE40: 0 | GF40: 0 | GG40: 0 | GH40: 0
A41: 3 | B41: SERVICE LINES | C41: ˂ = 11 kv ; residential ; simple type | D41: 1.305183898 | E41: 58.80299383 | F41: 7.668311015 | G41: 2 | H41: 2901 | I41: 3823 | J41: 3068 | K41: 2348 | L41: 1806 | M41: 2679 | N41: 3710 | O41: 4666 | P41: 3184 | Q41: 1631 | R41: 2324 | S41: 2979 | T41: 3465 | U41: 3231 | V41: 2603 | W41: 2692 | X41: 3580 | Y41: 3598 | Z41: 3108 | AA41: 2711 | AB41: 2322 | AC41: 2215 | AD41: 1985 | AE41: 1904 | AF41: 2629 | AG41: 3714 | AH41: 3352 | AI41: 2401 | AJ41: 2647 | AK41: 3279 | AL41: 3370 | AM41: 2848 | AN41: 2608 | AO41: 2942 | AP41: 2815 | AQ41: 2636 | AR41: 2747 | AS41: 2406 | AT41: 2524 | AU41: 2724 | AV41: 2625 | AW41: 1628 | AX41: 866 | AY41: 1917 | AZ41: 2586 | BA41: 3725 | BB41: 4472 | BC41: 3856 | BD41: 3596 | BE41: 3690 | BF41: 3620 | BG41: 2814 | BH41: 2594 | BI41: 2463 | BJ41: 2308 | BK41: 2073 | BL41: 1369 | BM41: 856 | BN41: 486 | BO41: 351 | BP41: 258 | BQ41: 167 | BR41: 87 | BS41: 50 | BT41: 4 | BU41: 0 | BV41: 0 | BW41: 0 | BX41: 0 | BY41: 0 | BZ41: 0 | CA41: 0 | CB41: 0 | CC41: 0 | CD41: 0 | CE41: 0 | CF41: 0 | CG41: 0 | CH41: 0 | CI41: 0 | CJ41: 0 | CK41: 0 | CL41: 0 | CM41: 0 | CN41: 0 | CO41: 0 | CP41: 0 | CQ41: 0 | CR41: 0 | CS41: 0 | CT41: 0 | CV41: 3786.338488 | CW41: 4989.718042 | CX41: 4004.304199 | CY41: 3064.571793 | CZ41: 2357.16212 | DA41: 3496.587663 | DB41: 4842.232262 | DC41: 6089.988068 | DD41: 4155.705531 | DE41: 2128.754938 | DF41: 3033.247379 | DG41: 3888.142832 | DH41: 4522.462207 | DI41: 4217.049175 | DJ41: 3397.393687 | DK41: 3513.555054 | DL41: 4672.558355 | DM41: 4696.051665 | DN41: 4056.511555 | DO41: 3538.353548 | DP41: 3030.637011 | DQ41: 2890.982334 | DR41: 2590.790038 | DS41: 2485.070142 | DT41: 3431.328468 | DU41: 4847.452997 | DV41: 4374.976426 | DW41: 3133.746539 | DX41: 3454.821778 | DY41: 4279.698002 | DZ41: 4398.469736 | EA41: 3717.163742 | EB41: 3403.919606 | EC41: 3839.851028 | ED41: 3674.092673 | EE41: 3440.464755 | EF41: 3585.340168 | EG41: 3140.272459 | EH41: 3294.284159 | EI41: 3555.320938 | EJ41: 3426.107732 | EK41: 2124.839386 | EL41: 1130.289256 | EM41: 2502.037533 | EN41: 3375.20556 | EO41: 4861.81002 | EP41: 5836.782392 | EQ41: 5032.789111 | ER41: 4693.441297 | ES41: 4816.128584 | ET41: 4724.765711 | EU41: 3672.787489 | EV41: 3385.647032 | EW41: 3214.667941 | EX41: 3012.364437 | EY41: 2705.646221 | EZ41: 1786.796756 | FA41: 1117.237417 | FB41: 634.3193745 | FC41: 458.1195482 | FD41: 336.7374457 | FE41: 217.965711 | FF41: 113.5509991 | FG41: 65.2591949 | FH41: 5.220735592 | FI41: 0 | FJ41: 0 | FK41: 0 | FL41: 0 | FM41: 0 | FN41: 0 | FO41: 0 | FP41: 0 | FQ41: 0 | FR41: 0 | FS41: 0 | FT41: 0 | FU41: 0 | FV41: 0 | FW41: 0 | FX41: 0 | FY41: 0 | FZ41: 0 | GA41: 0 | GB41: 0 | GC41: 0 | GD41: 0 | GE41: 0 | GF41: 0 | GG41: 0 | GH41: 0
A42: 4 | B42: SWITCHGEAR | C42: ˂ = 11 kv ; circuit breaker | D42: 19.73047443 | E42: 47.25421271 | F42: 6.874169965 | G42: 2 | H42: 47 | I42: 72 | J42: 60 | K42: 62 | L42: 31 | M42: 102 | N42: 150 | O42: 122 | P42: 96 | Q42: 56 | R42: 55 | S42: 68 | T42: 53 | U42: 35 | V42: 26 | W42: 14 | X42: 24 | Y42: 10 | Z42: 5 | AA42: 1 | AB42: 6 | AC42: 5 | AD42: 2 | AE42: 4 | AF42: 2 | AG42: 5 | AH42: 4 | AI42: 7 | AJ42: 4 | AK42: 6 | AL42: 11 | AM42: 9 | AN42: 12 | AO42: 14 | AP42: 16 | AQ42: 11 | AR42: 16 | AS42: 20 | AT42: 13 | AU42: 4 | AV42: 15 | AW42: 8 | AX42: 0 | AY42: 11 | AZ42: 6 | BA42: 10 | BB42: 13 | BC42: 13 | BD42: 5 | BE42: 11 | BF42: 9 | BG42: 9 | BH42: 5 | BI42: 19 | BJ42: 11 | BK42: 4 | BL42: 11 | BM42: 13 | BN42: 0 | BO42: 0 | BP42: 0 | BQ42: 0 | BR42: 0 | BS42: 0 | BT42: 0 | BU42: 0 | BV42: 0 | BW42: 0 | BX42: 0 | BY42: 0 | BZ42: 0 | CA42: 0 | CB42: 0 | CC42: 0 | CD42: 0 | CE42: 0 | CF42: 0 | CG42: 0 | CH42: 0 | CI42: 0 | CJ42: 0 | CK42: 0 | CL42: 0 | CM42: 0 | CN42: 0 | CO42: 0 | CP42: 0 | CQ42: 0 | CR42: 0 | CS42: 0 | CT42: 0 | CV42: 927.3322984 | CW42: 1420.594159 | CX42: 1183.828466 | CY42: 1223.289415 | CZ42: 611.6447075 | DA42: 2012.508392 | DB42: 2959.571165 | DC42: 2407.117881 | DD42: 1894.125546 | DE42: 1104.906568 | DF42: 1085.176094 | DG42: 1341.672262 | DH42: 1045.715145 | DI42: 690.5666052 | DJ42: 512.9923353 | DK42: 276.2266421 | DL42: 473.5313864 | DM42: 197.3047443 | DN42: 98.65237217 | DO42: 19.73047443 | DP42: 118.3828466 | DQ42: 98.65237217 | DR42: 39.46094887 | DS42: 78.92189774 | DT42: 39.46094887 | DU42: 98.65237217 | DV42: 78.92189774 | DW42: 138.113321 | DX42: 78.92189774 | DY42: 118.3828466 | DZ42: 217.0352188 | EA42: 177.5742699 | EB42: 236.7656932 | EC42: 276.2266421 | ED42: 315.687591 | EE42: 217.0352188 | EF42: 315.687591 | EG42: 394.6094887 | EH42: 256.4961676 | EI42: 78.92189774 | EJ42: 295.9571165 | EK42: 157.8437955 | EL42: 0 | EM42: 217.0352188 | EN42: 118.3828466 | EO42: 197.3047443 | EP42: 256.4961676 | EQ42: 256.4961676 | ER42: 98.65237217 | ES42: 217.0352188 | ET42: 177.5742699 | EU42: 177.5742699 | EV42: 98.65237217 | EW42: 374.8790143 | EX42: 217.0352188 | EY42: 78.92189774 | EZ42: 217.0352188 | FA42: 256.4961676 | FB42: 0 | FC42: 0 | FD42: 0 | FE42: 0 | FF42: 0 | FG42: 0 | FH42: 0 | FI42: 0 | FJ42: 0 | FK42: 0 | FL42: 0 | FM42: 0 | FN42: 0 | FO42: 0 | FP42: 0 | FQ42: 0 | FR42: 0 | FS42: 0 | FT42: 0 | FU42: 0 | FV42: 0 | FW42: 0 | FX42: 0 | FY42: 0 | FZ42: 0 | GA42: 0 | GB42: 0 | GC42: 0 | GD42: 0 | GE42: 0 | GF42: 0 | GG42: 0 | GH42: 0
A43: 4 | B43: SWITCHGEAR | C43: ˂ = 11 kv ; fuse | D43: 0.01946243369 | E43: 45.2372404 | F43: 6.725863543 | G43: 2 | H43: 162 | I43: 145 | J43: 117 | K43: 80 | L43: 84 | M43: 141 | N43: 276 | O43: 300 | P43: 195 | Q43: 357 | R43: 294 | S43: 287 | T43: 323 | U43: 288 | V43: 226 | W43: 170 | X43: 137 | Y43: 211 | Z43: 232 | AA43: 377 | AB43: 474 | AC43: 484 | AD43: 291 | AE43: 313 | AF43: 257 | AG43: 303 | AH43: 341 | AI43: 358 | AJ43: 385 | AK43: 341 | AL43: 259 | AM43: 203 | AN43: 223 | AO43: 204 | AP43: 169 | AQ43: 144 | AR43: 128 | AS43: 136 | AT43: 69 | AU43: 65 | AV43: 89 | AW43: 50 | AX43: 26 | AY43: 52 | AZ43: 42 | BA43: 54 | BB43: 53 | BC43: 46 | BD43: 31 | BE43: 39 | BF43: 39 | BG43: 20 | BH43: 24 | BI43: 17 | BJ43: 21 | BK43: 14 | BL43: 18 | BM43: 9 | BN43: 2 | BO43: 2 | BP43: 1 | BQ43: 0 | BR43: 0 | BS43: 0 | BT43: 0 | BU43: 0 | BV43: 0 | BW43: 0 | BX43: 0 | BY43: 0 | BZ43: 0 | CA43: 0 | CB43: 0 | CC43: 0 | CD43: 0 | CE43: 0 | CF43: 0 | CG43: 0 | CH43: 0 | CI43: 0 | CJ43: 0 | CK43: 0 | CL43: 0 | CM43: 0 | CN43: 0 | CO43: 0 | CP43: 0 | CQ43: 0 | CR43: 0 | CS43: 0 | CT43: 0 | CV43: 3.152914258 | CW43: 2.822052885 | CX43: 2.277104742 | CY43: 1.556994695 | CZ43: 1.63484443 | DA43: 2.74420315 | DB43: 5.371631698 | DC43: 5.838730107 | DD43: 3.795174569 | DE43: 6.948088827 | DF43: 5.721955505 | DG43: 5.585718469 | DH43: 6.286366082 | DI43: 5.605180902 | DJ43: 4.398510014 | DK43: 3.308613727 | DL43: 2.666353415 | DM43: 4.106573508 | DN43: 4.515284616 | DO43: 7.337337501 | DP43: 9.225193569 | DQ43: 9.419817905 | DR43: 5.663568203 | DS43: 6.091741745 | DT43: 5.001845458 | DU43: 5.897117408 | DV43: 6.636689888 | DW43: 6.967551261 | DX43: 7.49303697 | DY43: 6.636689888 | DZ43: 5.040770325 | EA43: 3.950874039 | EB43: 4.340122713 | EC43: 3.970336473 | ED43: 3.289151293 | EE43: 2.802590451 | EF43: 2.491191512 | EG43: 2.646890982 | EH43: 1.342907925 | EI43: 1.26505819 | EJ43: 1.732156598 | EK43: 0.9731216844 | EL43: 0.5060232759 | EM43: 1.012046552 | EN43: 0.8174222149 | EO43: 1.050971419 | EP43: 1.031508986 | EQ43: 0.8952719497 | ER43: 0.6033354444 | ES43: 0.7590349139 | ET43: 0.7590349139 | EU43: 0.3892486738 | EV43: 0.4670984085 | EW43: 0.3308613727 | EX43: 0.4087111075 | EY43: 0.2724740716 | EZ43: 0.3503238064 | FA43: 0.1751619032 | FB43: 0.03892486738 | FC43: 0.03892486738 | FD43: 0.01946243369 | FE43: 0 | FF43: 0 | FG43: 0 | FH43: 0 | FI43: 0 | FJ43: 0 | FK43: 0 | FL43: 0 | FM43: 0 | FN43: 0 | FO43: 0 | FP43: 0 | FQ43: 0 | FR43: 0 | FS43: 0 | FT43: 0 | FU43: 0 | FV43: 0 | FW43: 0 | FX43: 0 | FY43: 0 | FZ43: 0 | GA43: 0 | GB43: 0 | GC43: 0 | GD43: 0 | GE43: 0 | GF43: 0 | GG43: 0 | GH43: 0
A44: 4 | B44: SWITCHGEAR | C44: ˂ = 11 kv ; switch | D44: 3.994636506 | E44: 42.20189442 | F44: 6.496298517 | G44: 2 | H44: 939 | I44: 798 | J44: 666 | K44: 435 | L44: 402 | M44: 640 | N44: 944 | O44: 1050 | P44: 922 | Q44: 1468 | R44: 1449 | S44: 1621 | T44: 1575 | U44: 1364 | V44: 1124 | W44: 916 | X44: 852 | Y44: 1109 | Z44: 1174 | AA44: 1484 | AB44: 1522 | AC44: 1479 | AD44: 1126 | AE44: 1182 | AF44: 1052 | AG44: 1052 | AH44: 1190 | AI44: 1205 | AJ44: 1280 | AK44: 1082 | AL44: 841 | AM44: 851 | AN44: 793 | AO44: 772 | AP44: 695 | AQ44: 681 | AR44: 567 | AS44: 540 | AT44: 466 | AU44: 437 | AV44: 437 | AW44: 323 | AX44: 285 | AY44: 293 | AZ44: 266 | BA44: 217 | BB44: 204 | BC44: 148 | BD44: 142 | BE44: 146 | BF44: 91 | BG44: 22 | BH44: 31 | BI44: 25 | BJ44: 24 | BK44: 14 | BL44: 13 | BM44: 12 | BN44: 12 | BO44: 3 | BP44: 5 | BQ44: 1 | BR44: 1 | BS44: 4 | BT44: 0 | BU44: 0 | BV44: 0 | BW44: 0 | BX44: 0 | BY44: 0 | BZ44: 0 | CA44: 0 | CB44: 0 | CC44: 0 | CD44: 0 | CE44: 0 | CF44: 0 | CG44: 0 | CH44: 0 | CI44: 0 | CJ44: 0 | CK44: 0 | CL44: 0 | CM44: 0 | CN44: 0 | CO44: 0 | CP44: 0 | CQ44: 0 | CR44: 0 | CS44: 0 | CT44: 0 | CV44: 3750.963679 | CW44: 3187.719932 | CX44: 2660.427913 | CY44: 1737.66688 | CZ44: 1605.843875 | DA44: 2556.567364 | DB44: 3770.936862 | DC44: 4194.368332 | DD44: 3683.054859 | DE44: 5864.126391 | DF44: 5788.228298 | DG44: 6475.305777 | DH44: 6291.552497 | DI44: 5448.684194 | DJ44: 4489.971433 | DK44: 3659.08704 | DL44: 3403.430303 | DM44: 4430.051885 | DN44: 4689.703258 | DO44: 5928.040575 | DP44: 6079.836762 | DQ44: 5908.067393 | DR44: 4497.960706 | DS44: 4721.66035 | DT44: 4202.357605 | DU44: 4202.357605 | DV44: 4753.617442 | DW44: 4813.53699 | DX44: 5113.134728 | DY44: 4322.1967 | DZ44: 3359.489302 | EA44: 3399.435667 | EB44: 3167.746749 | EC44: 3083.859383 | ED44: 2776.272372 | EE44: 2720.347461 | EF44: 2264.958899 | EG44: 2157.103713 | EH44: 1861.500612 | EI44: 1745.656153 | EJ44: 1745.656153 | EK44: 1290.267592 | EL44: 1138.471404 | EM44: 1170.428496 | EN44: 1062.573311 | EO44: 866.8361218 | EP44: 814.9058473 | EQ44: 591.2062029 | ER44: 567.2383839 | ES44: 583.2169299 | ET44: 363.5119221 | EU44: 87.88200314 | EV44: 123.8337317 | EW44: 99.86591266 | EX44: 95.87127615 | EY44: 55.92491109 | EZ44: 51.93027458 | FA44: 47.93563807 | FB44: 47.93563807 | FC44: 11.98390952 | FD44: 19.97318253 | FE44: 3.994636506 | FF44: 3.994636506 | FG44: 15.97854602 | FH44: 0 | FI44: 0 | FJ44: 0 | FK44: 0 | FL44: 0 | FM44: 0 | FN44: 0 | FO44: 0 | FP44: 0 | FQ44: 0 | FR44: 0 | FS44: 0 | FT44: 0 | FU44: 0 | FV44: 0 | FW44: 0 | FX44: 0 | FY44: 0 | FZ44: 0 | GA44: 0 | GB44: 0 | GC44: 0 | GD44: 0 | GE44: 0 | GF44: 0 | GG44: 0 | GH44: 0
A45: 4 | B45: SWITCHGEAR | C45: > 11 kv & < = 22 kv ; circuit breaker | D45: 19.73047443 | E45: 47.25421271 | F45: 6.874169965 | G45: 2 | H45: 23 | I45: 23 | J45: 24 | K45: 20 | L45: 14 | M45: 29 | N45: 77 | O45: 61 | P45: 64 | Q45: 29 | R45: 35 | S45: 49 | T45: 39 | U45: 18 | V45: 24 | W45: 16 | X45: 8 | Y45: 17 | Z45: 9 | AA45: 9 | AB45: 11 | AC45: 2 | AD45: 5 | AE45: 1 | AF45: 0 | AG45: 1 | AH45: 1 | AI45: 1 | AJ45: 0 | AK45: 1 | AL45: 3 | AM45: 0 | AN45: 9 | AO45: 2 | AP45: 6 | AQ45: 5 | AR45: 7 | AS45: 6 | AT45: 9 | AU45: 2 | AV45: 3 | AW45: 3 | AX45: 1 | AY45: 1 | AZ45: 0 | BA45: 0 | BB45: 0 | BC45: 0 | BD45: 0 | BE45: 0 | BF45: 0 | BG45: 0 | BH45: 0 | BI45: 0 | BJ45: 0 | BK45: 2 | BL45: 0 | BM45: 7 | BN45: 0 | BO45: 0 | BP45: 0 | BQ45: 0 | BR45: 0 | BS45: 0 | BT45: 0 | BU45: 0 | BV45: 0 | BW45: 0 | BX45: 0 | BY45: 0 | BZ45: 0 | CA45: 0 | CB45: 0 | CC45: 0 | CD45: 0 | CE45: 0 | CF45: 0 | CG45: 0 | CH45: 0 | CI45: 0 | CJ45: 0 | CK45: 0 | CL45: 0 | CM45: 0 | CN45: 0 | CO45: 0 | CP45: 0 | CQ45: 0 | CR45: 0 | CS45: 0 | CT45: 0 | CV45: 453.800912 | CW45: 453.800912 | CX45: 473.5313864 | CY45: 394.6094887 | CZ45: 276.2266421 | DA45: 572.1837586 | DB45: 1519.246531 | DC45: 1203.558941 | DD45: 1262.750364 | DE45: 572.1837586 | DF45: 690.5666052 | DG45: 966.7932473 | DH45: 769.4885029 | DI45: 355.1485398 | DJ45: 473.5313864 | DK45: 315.687591 | DL45: 157.8437955 | DM45: 335.4180654 | DN45: 177.5742699 | DO45: 177.5742699 | DP45: 217.0352188 | DQ45: 39.46094887 | DR45: 98.65237217 | DS45: 19.73047443 | DT45: 0 | DU45: 19.73047443 | DV45: 19.73047443 | DW45: 19.73047443 | DX45: 0 | DY45: 19.73047443 | DZ45: 59.1914233 | EA45: 0 | EB45: 177.5742699 | EC45: 39.46094887 | ED45: 118.3828466 | EE45: 98.65237217 | EF45: 138.113321 | EG45: 118.3828466 | EH45: 177.5742699 | EI45: 39.46094887 | EJ45: 59.1914233 | EK45: 59.1914233 | EL45: 19.73047443 | EM45: 19.73047443 | EN45: 0 | EO45: 0 | EP45: 0 | EQ45: 0 | ER45: 0 | ES45: 0 | ET45: 0 | EU45: 0 | EV45: 0 | EW45: 0 | EX45: 0 | EY45: 39.46094887 | EZ45: 0 | FA45: 138.113321 | FB45: 0 | FC45: 0 | FD45: 0 | FE45: 0 | FF45: 0 | FG45: 0 | FH45: 0 | FI45: 0 | FJ45: 0 | FK45: 0 | FL45: 0 | FM45: 0 | FN45: 0 | FO45: 0 | FP45: 0 | FQ45: 0 | FR45: 0 | FS45: 0 | FT45: 0 | FU45: 0 | FV45: 0 | FW45: 0 | FX45: 0 | FY45: 0 | FZ45: 0 | GA45: 0 | GB45: 0 | GC45: 0 | GD45: 0 | GE45: 0 | GF45: 0 | GG45: 0 | GH45: 0
A46: 4 | B46: SWITCHGEAR | C46: > 11 kv & < = 22 kv ; switch | D46: 6.997344248 | E46: 16.7848013 | F46: 4.096925835 | G46: 2 | H46: 1026 | I46: 473 | J46: 125 | K46: 155 | L46: 238 | M46: 143 | N46: 333 | O46: 311 | P46: 112 | Q46: 149 | R46: 341 | S46: 421 | T46: 316 | U46: 139 | V46: 96 | W46: 36 | X46: 8 | Y46: 52 | Z46: 4 | AA46: 4 | AB46: 16 | AC46: 0 | AD46: 0 | AE46: 0 | AF46: 0 | AG46: 0 | AH46: 4 | AI46: 0 | AJ46: 4 | AK46: 0 | AL46: 0 | AM46: 0 | AN46: 0 | AO46: 0 | AP46: 0 | AQ46: 0 | AR46: 0 | AS46: 0 | AT46: 0 | AU46: 0 | AV46: 4 | AW46: 0 | AX46: 0 | AY46: 0 | AZ46: 0 | BA46: 0 | BB46: 0 | BC46: 0 | BD46: 0 | BE46: 0 | BF46: 0 | BG46: 0 | BH46: 0 | BI46: 0 | BJ46: 0 | BK46: 0 | BL46: 0 | BM46: 0 | BN46: 0 | BO46: 0 | BP46: 4 | BQ46: 0 | BR46: 0 | BS46: 0 | BT46: 0 | BU46: 0 | BV46: 0 | BW46: 0 | BX46: 0 | BY46: 0 | BZ46: 0 | CA46: 0 | CB46: 0 | CC46: 0 | CD46: 0 | CE46: 0 | CF46: 0 | CG46: 0 | CH46: 0 | CI46: 0 | CJ46: 0 | CK46: 0 | CL46: 0 | CM46: 0 | CN46: 0 | CO46: 0 | CP46: 0 | CQ46: 0 | CR46: 0 | CS46: 0 | CT46: 0 | CV46: 7179.275199 | CW46: 3309.74383 | CX46: 874.6680311 | CY46: 1084.588359 | CZ46: 1665.367931 | DA46: 1000.620228 | DB46: 2330.115635 | DC46: 2176.174061 | DD46: 783.7025558 | DE46: 1042.604293 | DF46: 2386.094389 | DG46: 2945.881929 | DH46: 2211.160783 | DI46: 972.6308505 | DJ46: 671.7450478 | DK46: 251.9043929 | DL46: 55.97875399 | DM46: 363.8619009 | DN46: 27.98937699 | DO46: 27.98937699 | DP46: 111.957508 | DQ46: 0 | DR46: 0 | DS46: 0 | DT46: 0 | DU46: 0 | DV46: 27.98937699 | DW46: 0 | DX46: 27.98937699 | DY46: 0 | DZ46: 0 | EA46: 0 | EB46: 0 | EC46: 0 | ED46: 0 | EE46: 0 | EF46: 0 | EG46: 0 | EH46: 0 | EI46: 0 | EJ46: 27.98937699 | EK46: 0 | EL46: 0 | EM46: 0 | EN46: 0 | EO46: 0 | EP46: 0 | EQ46: 0 | ER46: 0 | ES46: 0 | ET46: 0 | EU46: 0 | EV46: 0 | EW46: 0 | EX46: 0 | EY46: 0 | EZ46: 0 | FA46: 0 | FB46: 0 | FC46: 0 | FD46: 27.98937699 | FE46: 0 | FF46: 0 | FG46: 0 | FH46: 0 | FI46: 0 | FJ46: 0 | FK46: 0 | FL46: 0 | FM46: 0 | FN46: 0 | FO46: 0 | FP46: 0 | FQ46: 0 | FR46: 0 | FS46: 0 | FT46: 0 | FU46: 0 | FV46: 0 | FW46: 0 | FX46: 0 | FY46: 0 | FZ46: 0 | GA46: 0 | GB46: 0 | GC46: 0 | GD46: 0 | GE46: 0 | GF46: 0 | GG46: 0 | GH46: 0
A47: 4 | B47: SWITCHGEAR | C47: > 22 kv & < = 33 kv ; switch | D47: 6.956353097 | E47: 16.7848013 | F47: 4.096925835 | G47: 2 | H47: 0 | I47: 0 | J47: 0 | K47: 0 | L47: 0 | M47: 0 | N47: 0 | O47: 0 | P47: 0 | Q47: 0 | R47: 0 | S47: 0 | T47: 0 | U47: 0 | V47: 0 | W47: 1 | X47: 0 | Y47: 0 | Z47: 0 | AA47: 0 | AB47: 0 | AC47: 0 | AD47: 0 | AE47: 0 | AF47: 0 | AG47: 0 | AH47: 0 | AI47: 0 | AJ47: 0 | AK47: 0 | AL47: 0 | AM47: 0 | AN47: 0 | AO47: 0 | AP47: 0 | AQ47: 0 | AR47: 0 | AS47: 0 | AT47: 0 | AU47: 0 | AV47: 0 | AW47: 0 | AX47: 0 | AY47: 0 | AZ47: 0 | BA47: 0 | BB47: 0 | BC47: 0 | BD47: 0 | BE47: 0 | BF47: 0 | BG47: 0 | BH47: 0 | BI47: 0 | BJ47: 0 | BK47: 0 | BL47: 0 | BM47: 0 | BN47: 0 | BO47: 0 | BP47: 0 | BQ47: 0 | BR47: 0 | BS47: 0 | BT47: 0 | BU47: 0 | BV47: 0 | BW47: 0 | BX47: 0 | BY47: 0 | BZ47: 0 | CA47: 0 | CB47: 0 | CC47: 0 | CD47: 0 | CE47: 0 | CF47: 0 | CG47: 0 | CH47: 0 | CI47: 0 | CJ47: 0 | CK47: 0 | CL47: 0 | CM47: 0 | CN47: 0 | CO47: 0 | CP47: 0 | CQ47: 0 | CR47: 0 | CS47: 0 | CT47: 0 | CV47: 0 | CW47: 0 | CX47: 0 | CY47: 0 | CZ47: 0 | DA47: 0 | DB47: 0 | DC47: 0 | DD47: 0 | DE47: 0 | DF47: 0 | DG47: 0 | DH47: 0 | DI47: 0 | DJ47: 0 | DK47: 6.956353097 | DL47: 0 | DM47: 0 | DN47: 0 | DO47: 0 | DP47: 0 | DQ47: 0 | DR47: 0 | DS47: 0 | DT47: 0 | DU47: 0 | DV47: 0 | DW47: 0 | DX47: 0 | DY47: 0 | DZ47: 0 | EA47: 0 | EB47: 0 | EC47: 0 | ED47: 0 | EE47: 0 | EF47: 0 | EG47: 0 | EH47: 0 | EI47: 0 | EJ47: 0 | EK47: 0 | EL47: 0 | EM47: 0 | EN47: 0 | EO47: 0 | EP47: 0 | EQ47: 0 | ER47: 0 | ES47: 0 | ET47: 0 | EU47: 0 | EV47: 0 | EW47: 0 | EX47: 0 | EY47: 0 | EZ47: 0 | FA47: 0 | FB47: 0 | FC47: 0 | FD47: 0 | FE47: 0 | FF47: 0 | FG47: 0 | FH47: 0 | FI47: 0 | FJ47: 0 | FK47: 0 | FL47: 0 | FM47: 0 | FN47: 0 | FO47: 0 | FP47: 0 | FQ47: 0 | FR47: 0 | FS47: 0 | FT47: 0 | FU47: 0 | FV47: 0 | FW47: 0 | FX47: 0 | FY47: 0 | FZ47: 0 | GA47: 0 | GB47: 0 | GC47: 0 | GD47: 0 | GE47: 0 | GF47: 0 | GG47: 0 | GH47: 0
A48: 5 | B48: TRANSFORMERS | C48: ground outdoor / indoor chamber mounted ; ˂ 22 kv ; < = 60 kva ; multiple phase | D48: 25.80665615 | E48: 15.06860492 | F48: 3.881830099 | G48: 2 | H48: 0 | I48: 0 | J48: 0 | K48: 0 | L48: 0 | M48: 0 | N48: 0 | O48: 0 | P48: 0 | Q48: 0 | R48: 0 | S48: 3 | T48: 0 | U48: 0 | V48: 0 | W48: 0 | X48: 0 | Y48: 0 | Z48: 0 | AA48: 0 | AB48: 0 | AC48: 0 | AD48: 0 | AE48: 0 | AF48: 0 | AG48: 1 | AH48: 0 | AI48: 0 | AJ48: 0 | AK48: 0 | AL48: 0 | AM48: 0 | AN48: 0 | AO48: 0 | AP48: 0 | AQ48: 0 | AR48: 0 | AS48: 0 | AT48: 0 | AU48: 0 | AV48: 0 | AW48: 0 | AX48: 0 | AY48: 0 | AZ48: 0 | BA48: 0 | BB48: 0 | BC48: 0 | BD48: 0 | BE48: 0 | BF48: 0 | BG48: 0 | BH48: 0 | BI48: 0 | BJ48: 0 | BK48: 0 | BL48: 0 | BM48: 0 | BN48: 0 | BO48: 0 | BP48: 0 | BQ48: 0 | BR48: 0 | BS48: 0 | BT48: 0 | BU48: 0 | BV48: 0 | BW48: 0 | BX48: 0 | BY48: 0 | BZ48: 0 | CA48: 0 | CB48: 0 | CC48: 0 | CD48: 0 | CE48: 0 | CF48: 0 | CG48: 0 | CH48: 0 | CI48: 0 | CJ48: 0 | CK48: 0 | CL48: 0 | CM48: 0 | CN48: 0 | CO48: 0 | CP48: 0 | CQ48: 0 | CR48: 0 | CS48: 0 | CT48: 0 | CV48: 0 | CW48: 0 | CX48: 0 | CY48: 0 | CZ48: 0 | DA48: 0 | DB48: 0 | DC48: 0 | DD48: 0 | DE48: 0 | DF48: 0 | DG48: 77.41996845 | DH48: 0 | DI48: 0 | DJ48: 0 | DK48: 0 | DL48: 0 | DM48: 0 | DN48: 0 | DO48: 0 | DP48: 0 | DQ48: 0 | DR48: 0 | DS48: 0 | DT48: 0 | DU48: 25.80665615 | DV48: 0 | DW48: 0 | DX48: 0 | DY48: 0 | DZ48: 0 | EA48: 0 | EB48: 0 | EC48: 0 | ED48: 0 | EE48: 0 | EF48: 0 | EG48: 0 | EH48: 0 | EI48: 0 | EJ48: 0 | EK48: 0 | EL48: 0 | EM48: 0 | EN48: 0 | EO48: 0 | EP48: 0 | EQ48: 0 | ER48: 0 | ES48: 0 | ET48: 0 | EU48: 0 | EV48: 0 | EW48: 0 | EX48: 0 | EY48: 0 | EZ48: 0 | FA48: 0 | FB48: 0 | FC48: 0 | FD48: 0 | FE48: 0 | FF48: 0 | FG48: 0 | FH48: 0 | FI48: 0 | FJ48: 0 | FK48: 0 | FL48: 0 | FM48: 0 | FN48: 0 | FO48: 0 | FP48: 0 | FQ48: 0 | FR48: 0 | FS48: 0 | FT48: 0 | FU48: 0 | FV48: 0 | FW48: 0 | FX48: 0 | FY48: 0 | FZ48: 0 | GA48: 0 | GB48: 0 | GC48: 0 | GD48: 0 | GE48: 0 | GF48: 0 | GG48: 0 | GH48: 0
A49: 5 | B49: TRANSFORMERS | C49: ground outdoor / indoor chamber mounted ; ˂ 22 kv ; > 60 kva and < = 600 kva ; multiple phase | D49: 1065.746574 | E49: 71.70300279 | F49: 8.467762561 | G49: 2 | H49: 1 | I49: 0 | J49: 1 | K49: 2 | L49: 0 | M49: 0 | N49: 1 | O49: 0 | P49: 0 | Q49: 0 | R49: 0 | S49: 0 | T49: 1 | U49: 0 | V49: 0 | W49: 0 | X49: 0 | Y49: 1 | Z49: 1 | AA49: 1 | AB49: 0 | AC49: 2 | AD49: 1 | AE49: 2 | AF49: 0 | AG49: 0 | AH49: 1 | AI49: 0 | AJ49: 1 | AK49: 5 | AL49: 2 | AM49: 1 | AN49: 3 | AO49: 0 | AP49: 3 | AQ49: 5 | AR49: 3 | AS49: 6 | AT49: 0 | AU49: 3 | AV49: 1 | AW49: 1 | AX49: 1 | AY49: 1 | AZ49: 2 | BA49: 3 | BB49: 1 | BC49: 2 | BD49: 3 | BE49: 7 | BF49: 13 | BG49: 7 | BH49: 11 | BI49: 15 | BJ49: 13 | BK49: 7 | BL49: 6 | BM49: 2 | BN49: 0 | BO49: 0 | BP49: 0 | BQ49: 0 | BR49: 0 | BS49: 0 | BT49: 0 | BU49: 0 | BV49: 0 | BW49: 0 | BX49: 0 | BY49: 0 | BZ49: 0 | CA49: 0 | CB49: 0 | CC49: 0 | CD49: 0 | CE49: 0 | CF49: 0 | CG49: 0 | CH49: 0 | CI49: 0 | CJ49: 0 | CK49: 0 | CL49: 0 | CM49: 0 | CN49: 0 | CO49: 0 | CP49: 0 | CQ49: 0 | CR49: 0 | CS49: 0 | CT49: 0 | CV49: 1065.746574 | CW49: 0 | CX49: 1065.746574 | CY49: 2131.493149 | CZ49: 0 | DA49: 0 | DB49: 1065.746574 | DC49: 0 | DD49: 0 | DE49: 0 | DF49: 0 | DG49: 0 | DH49: 1065.746574 | DI49: 0 | DJ49: 0 | DK49: 0 | DL49: 0 | DM49: 1065.746574 | DN49: 1065.746574 | DO49: 1065.746574 | DP49: 0 | DQ49: 2131.493149 | DR49: 1065.746574 | DS49: 2131.493149 | DT49: 0 | DU49: 0 | DV49: 1065.746574 | DW49: 0 | DX49: 1065.746574 | DY49: 5328.732872 | DZ49: 2131.493149 | EA49: 1065.746574 | EB49: 3197.239723 | EC49: 0 | ED49: 3197.239723 | EE49: 5328.732872 | EF49: 3197.239723 | EG49: 6394.479447 | EH49: 0 | EI49: 3197.239723 | EJ49: 1065.746574 | EK49: 1065.746574 | EL49: 1065.746574 | EM49: 1065.746574 | EN49: 2131.493149 | EO49: 3197.239723 | EP49: 1065.746574 | EQ49: 2131.493149 | ER49: 3197.239723 | ES49: 7460.226021 | ET49: 13854.70547 | EU49: 7460.226021 | EV49: 11723.21232 | EW49: 15986.19862 | EX49: 13854.70547 | EY49: 7460.226021 | EZ49: 6394.479447 | FA49: 2131.493149 | FB49: 0 | FC49: 0 | FD49: 0 | FE49: 0 | FF49: 0 | FG49: 0 | FH49: 0 | FI49: 0 | FJ49: 0 | FK49: 0 | FL49: 0 | FM49: 0 | FN49: 0 | FO49: 0 | FP49: 0 | FQ49: 0 | FR49: 0 | FS49: 0 | FT49: 0 | FU49: 0 | FV49: 0 | FW49: 0 | FX49: 0 | FY49: 0 | FZ49: 0 | GA49: 0 | GB49: 0 | GC49: 0 | GD49: 0 | GE49: 0 | GF49: 0 | GG49: 0 | GH49: 0
A50: 5 | B50: TRANSFORMERS | C50: ground outdoor / indoor chamber mounted ; ˂ 22 kv ; > 600 kva ; multiple phase | D50: 2361.635811 | E50: 68.32947231 | F50: 8.266164305 | G50: 2 | H50: 3 | I50: 2 | J50: 5 | K50: 1 | L50: 1 | M50: 5 | N50: 7 | O50: 2 | P50: 0 | Q50: 5 | R50: 7 | S50: 6 | T50: 5 | U50: 11 | V50: 5 | W50: 6 | X50: 6 | Y50: 8 | Z50: 11 | AA50: 25 | AB50: 31 | AC50: 16 | AD50: 7 | AE50: 8 | AF50: 4 | AG50: 16 | AH50: 12 | AI50: 25 | AJ50: 24 | AK50: 21 | AL50: 24 | AM50: 15 | AN50: 15 | AO50: 16 | AP50: 28 | AQ50: 11 | AR50: 26 | AS50: 26 | AT50: 12 | AU50: 16 | AV50: 15 | AW50: 5 | AX50: 7 | AY50: 11 | AZ50: 10 | BA50: 12 | BB50: 6 | BC50: 7 | BD50: 7 | BE50: 7 | BF50: 2 | BG50: 1 | BH50: 0 | BI50: 8 | BJ50: 6 | BK50: 10 | BL50: 8 | BM50: 16 | BN50: 0 | BO50: 0 | BP50: 2 | BQ50: 0 | BR50: 0 | BS50: 0 | BT50: 0 | BU50: 0 | BV50: 0 | BW50: 0 | BX50: 0 | BY50: 0 | BZ50: 0 | CA50: 0 | CB50: 0 | CC50: 0 | CD50: 0 | CE50: 0 | CF50: 0 | CG50: 0 | CH50: 0 | CI50: 0 | CJ50: 0 | CK50: 0 | CL50: 0 | CM50: 0 | CN50: 0 | CO50: 0 | CP50: 0 | CQ50: 0 | CR50: 0 | CS50: 0 | CT50: 0 | CV50: 7084.907432 | CW50: 4723.271621 | CX50: 11808.17905 | CY50: 2361.635811 | CZ50: 2361.635811 | DA50: 11808.17905 | DB50: 16531.45067 | DC50: 4723.271621 | DD50: 0 | DE50: 11808.17905 | DF50: 16531.45067 | DG50: 14169.81486 | DH50: 11808.17905 | DI50: 25977.99392 | DJ50: 11808.17905 | DK50: 14169.81486 | DL50: 14169.81486 | DM50: 18893.08649 | DN50: 25977.99392 | DO50: 59040.89527 | DP50: 73210.71013 | DQ50: 37786.17297 | DR50: 16531.45067 | DS50: 18893.08649 | DT50: 9446.543243 | DU50: 37786.17297 | DV50: 28339.62973 | DW50: 59040.89527 | DX50: 56679.25946 | DY50: 49594.35202 | DZ50: 56679.25946 | EA50: 35424.53716 | EB50: 35424.53716 | EC50: 37786.17297 | ED50: 66125.8027 | EE50: 25977.99392 | EF50: 61402.53108 | EG50: 61402.53108 | EH50: 28339.62973 | EI50: 37786.17297 | EJ50: 35424.53716 | EK50: 11808.17905 | EL50: 16531.45067 | EM50: 25977.99392 | EN50: 23616.35811 | EO50: 28339.62973 | EP50: 14169.81486 | EQ50: 16531.45067 | ER50: 16531.45067 | ES50: 16531.45067 | ET50: 4723.271621 | EU50: 2361.635811 | EV50: 0 | EW50: 18893.08649 | EX50: 14169.81486 | EY50: 23616.35811 | EZ50: 18893.08649 | FA50: 37786.17297 | FB50: 0 | FC50: 0 | FD50: 4723.271621 | FE50: 0 | FF50: 0 | FG50: 0 | FH50: 0 | FI50: 0 | FJ50: 0 | FK50: 0 | FL50: 0 | FM50: 0 | FN50: 0 | FO50: 0 | FP50: 0 | FQ50: 0 | FR50: 0 | FS50: 0 | FT50: 0 | FU50: 0 | FV50: 0 | FW50: 0 | FX50: 0 | FY50: 0 | FZ50: 0 | GA50: 0 | GB50: 0 | GC50: 0 | GD50: 0 | GE50: 0 | GF50: 0 | GG50: 0 | GH50: 0
A51: 5 | B51: TRANSFORMERS | C51: ground outdoor / indoor chamber mounted ; ˂ 22 kv ; > 600 kva ; single phase | D51: 2361.635811 | E51: 68.32947231 | F51: 8.266164305 | G51: 2 | H51: 2 | I51: 0 | J51: 3 | K51: 2 | L51: 0 | M51: 0 | N51: 1 | O51: 1 | P51: 0 | Q51: 1 | R51: 2 | S51: 0 | T51: 1 | U51: 0 | V51: 1 | W51: 0 | X51: 0 | Y51: 0 | Z51: 0 | AA51: 0 | AB51: 1 | AC51: 1 | AD51: 1 | AE51: 1 | AF51: 0 | AG51: 0 | AH51: 0 | AI51: 0 | AJ51: 0 | AK51: 0 | AL51: 0 | AM51: 0 | AN51: 0 | AO51: 1 | AP51: 0 | AQ51: 0 | AR51: 1 | AS51: 1 | AT51: 2 | AU51: 1 | AV51: 0 | AW51: 2 | AX51: 0 | AY51: 0 | AZ51: 0 | BA51: 0 | BB51: 0 | BC51: 1 | BD51: 0 | BE51: 0 | BF51: 0 | BG51: 0 | BH51: 0 | BI51: 0 | BJ51: 0 | BK51: 0 | BL51: 0 | BM51: 0 | BN51: 0 | BO51: 0 | BP51: 0 | BQ51: 0 | BR51: 0 | BS51: 0 | BT51: 0 | BU51: 0 | BV51: 0 | BW51: 0 | BX51: 0 | BY51: 0 | BZ51: 0 | CA51: 0 | CB51: 0 | CC51: 0 | CD51: 0 | CE51: 0 | CF51: 0 | CG51: 0 | CH51: 0 | CI51: 0 | CJ51: 0 | CK51: 0 | CL51: 0 | CM51: 0 | CN51: 0 | CO51: 0 | CP51: 0 | CQ51: 0 | CR51: 0 | CS51: 0 | CT51: 0 | CV51: 4723.271621 | CW51: 0 | CX51: 7084.907432 | CY51: 4723.271621 | CZ51: 0 | DA51: 0 | DB51: 2361.635811 | DC51: 2361.635811 | DD51: 0 | DE51: 2361.635811 | DF51: 4723.271621 | DG51: 0 | DH51: 2361.635811 | DI51: 0 | DJ51: 2361.635811 | DK51: 0 | DL51: 0 | DM51: 0 | DN51: 0 | DO51: 0 | DP51: 2361.635811 | DQ51: 2361.635811 | DR51: 2361.635811 | DS51: 2361.635811 | DT51: 0 | DU51: 0 | DV51: 0 | DW51: 0 | DX51: 0 | DY51: 0 | DZ51: 0 | EA51: 0 | EB51: 0 | EC51: 2361.635811 | ED51: 0 | EE51: 0 | EF51: 2361.635811 | EG51: 2361.635811 | EH51: 4723.271621 | EI51: 2361.635811 | EJ51: 0 | EK51: 4723.271621 | EL51: 0 | EM51: 0 | EN51: 0 | EO51: 0 | EP51: 0 | EQ51: 2361.635811 | ER51: 0 | ES51: 0 | ET51: 0 | EU51: 0 | EV51: 0 | EW51: 0 | EX51: 0 | EY51: 0 | EZ51: 0 | FA51: 0 | FB51: 0 | FC51: 0 | FD51: 0 | FE51: 0 | FF51: 0 | FG51: 0 | FH51: 0 | FI51: 0 | FJ51: 0 | FK51: 0 | FL51: 0 | FM51: 0 | FN51: 0 | FO51: 0 | FP51: 0 | FQ51: 0 | FR51: 0 | FS51: 0 | FT51: 0 | FU51: 0 | FV51: 0 | FW51: 0 | FX51: 0 | FY51: 0 | FZ51: 0 | GA51: 0 | GB51: 0 | GC51: 0 | GD51: 0 | GE51: 0 | GF51: 0 | GG51: 0 | GH51: 0
A52: 5 | B52: TRANSFORMERS | C52: ground outdoor / indoor chamber mounted ; > = 22 kv & < = 33 kv ; > 15 mva and < = 40 mva | D52: 2361.635811 | E52: 68.32947231 | F52: 8.266164305 | G52: 2 | H52: 0 | I52: 0 | J52: 0 | K52: 0 | L52: 0 | M52: 4 | N52: 0 | O52: 0 | P52: 2 | Q52: 2 | R52: 0 | S52: 1 | T52: 6 | U52: 0 | V52: 0 | W52: 3 | X52: 0 | Y52: 1 | Z52: 0 | AA52: 0 | AB52: 0 | AC52: 0 | AD52: 0 | AE52: 0 | AF52: 0 | AG52: 0 | AH52: 0 | AI52: 0 | AJ52: 0 | AK52: 0 | AL52: 0 | AM52: 0 | AN52: 0 | AO52: 0 | AP52: 0 | AQ52: 0 | AR52: 0 | AS52: 0 | AT52: 0 | AU52: 0 | AV52: 0 | AW52: 0 | AX52: 0 | AY52: 0 | AZ52: 0 | BA52: 0 | BB52: 2 | BC52: 0 | BD52: 2 | BE52: 0 | BF52: 0 | BG52: 0 | BH52: 4 | BI52: 0 | BJ52: 0 | BK52: 0 | BL52: 0 | BM52: 0 | BN52: 0 | BO52: 0 | BP52: 0 | BQ52: 0 | BR52: 0 | BS52: 0 | BT52: 0 | BU52: 0 | BV52: 0 | BW52: 0 | BX52: 0 | BY52: 0 | BZ52: 0 | CA52: 0 | CB52: 0 | CC52: 0 | CD52: 0 | CE52: 0 | CF52: 0 | CG52: 0 | CH52: 0 | CI52: 0 | CJ52: 0 | CK52: 0 | CL52: 0 | CM52: 0 | CN52: 0 | CO52: 0 | CP52: 0 | CQ52: 0 | CR52: 0 | CS52: 0 | CT52: 0 | CV52: 0 | CW52: 0 | CX52: 0 | CY52: 0 | CZ52: 0 | DA52: 9446.543243 | DB52: 0 | DC52: 0 | DD52: 4723.271621 | DE52: 4723.271621 | DF52: 0 | DG52: 2361.635811 | DH52: 14169.81486 | DI52: 0 | DJ52: 0 | DK52: 7084.907432 | DL52: 0 | DM52: 2361.635811 | DN52: 0 | DO52: 0 | DP52: 0 | DQ52: 0 | DR52: 0 | DS52: 0 | DT52: 0 | DU52: 0 | DV52: 0 | DW52: 0 | DX52: 0 | DY52: 0 | DZ52: 0 | EA52: 0 | EB52: 0 | EC52: 0 | ED52: 0 | EE52: 0 | EF52: 0 | EG52: 0 | EH52: 0 | EI52: 0 | EJ52: 0 | EK52: 0 | EL52: 0 | EM52: 0 | EN52: 0 | EO52: 0 | EP52: 4723.271621 | EQ52: 0 | ER52: 4723.271621 | ES52: 0 | ET52: 0 | EU52: 0 | EV52: 9446.543243 | EW52: 0 | EX52: 0 | EY52: 0 | EZ52: 0 | FA52: 0 | FB52: 0 | FC52: 0 | FD52: 0 | FE52: 0 | FF52: 0 | FG52: 0 | FH52: 0 | FI52: 0 | FJ52: 0 | FK52: 0 | FL52: 0 | FM52: 0 | FN52: 0 | FO52: 0 | FP52: 0 | FQ52: 0 | FR52: 0 | FS52: 0 | FT52: 0 | FU52: 0 | FV52: 0 | FW52: 0 | FX52: 0 | FY52: 0 | FZ52: 0 | GA52: 0 | GB52: 0 | GC52: 0 | GD52: 0 | GE52: 0 | GF52: 0 | GG52: 0 | GH52: 0
A53: 5 | B53: TRANSFORMERS | C53: kiosk mounted ; < = 22 kv ; < = 60 kva ; multiple phase | D53: 25.80665615 | E53: 15.06860492 | F53: 3.881830099 | G53: 2 | H53: 0 | I53: 0 | J53: 0 | K53: 0 | L53: 0 | M53: 1 | N53: 2 | O53: 1 | P53: 2 | Q53: 0 | R53: 0 | S53: 0 | T53: 0 | U53: 0 | V53: 0 | W53: 0 | X53: 0 | Y53: 1 | Z53: 0 | AA53: 0 | AB53: 0 | AC53: 0 | AD53: 0 | AE53: 0 | AF53: 0 | AG53: 0 | AH53: 0 | AI53: 0 | AJ53: 0 | AK53: 0 | AL53: 0 | AM53: 0 | AN53: 0 | AO53: 0 | AP53: 0 | AQ53: 0 | AR53: 0 | AS53: 0 | AT53: 0 | AU53: 0 | AV53: 0 | AW53: 0 | AX53: 0 | AY53: 0 | AZ53: 0 | BA53: 0 | BB53: 0 | BC53: 0 | BD53: 0 | BE53: 0 | BF53: 0 | BG53: 0 | BH53: 0 | BI53: 0 | BJ53: 0 | BK53: 0 | BL53: 0 | BM53: 0 | BN53: 0 | BO53: 0 | BP53: 0 | BQ53: 0 | BR53: 0 | BS53: 0 | BT53: 0 | BU53: 0 | BV53: 0 | BW53: 0 | BX53: 0 | BY53: 0 | BZ53: 0 | CA53: 0 | CB53: 0 | CC53: 0 | CD53: 0 | CE53: 0 | CF53: 0 | CG53: 0 | CH53: 0 | CI53: 0 | CJ53: 0 | CK53: 0 | CL53: 0 | CM53: 0 | CN53: 0 | CO53: 0 | CP53: 0 | CQ53: 0 | CR53: 0 | CS53: 0 | CT53: 0 | CV53: 0 | CW53: 0 | CX53: 0 | CY53: 0 | CZ53: 0 | DA53: 25.80665615 | DB53: 51.6133123 | DC53: 25.80665615 | DD53: 51.6133123 | DE53: 0 | DF53: 0 | DG53: 0 | DH53: 0 | DI53: 0 | DJ53: 0 | DK53: 0 | DL53: 0 | DM53: 25.80665615 | DN53: 0 | DO53: 0 | DP53: 0 | DQ53: 0 | DR53: 0 | DS53: 0 | DT53: 0 | DU53: 0 | DV53: 0 | DW53: 0 | DX53: 0 | DY53: 0 | DZ53: 0 | EA53: 0 | EB53: 0 | EC53: 0 | ED53: 0 | EE53: 0 | EF53: 0 | EG53: 0 | EH53: 0 | EI53: 0 | EJ53: 0 | EK53: 0 | EL53: 0 | EM53: 0 | EN53: 0 | EO53: 0 | EP53: 0 | EQ53: 0 | ER53: 0 | ES53: 0 | ET53: 0 | EU53: 0 | EV53: 0 | EW53: 0 | EX53: 0 | EY53: 0 | EZ53: 0 | FA53: 0 | FB53: 0 | FC53: 0 | FD53: 0 | FE53: 0 | FF53: 0 | FG53: 0 | FH53: 0 | FI53: 0 | FJ53: 0 | FK53: 0 | FL53: 0 | FM53: 0 | FN53: 0 | FO53: 0 | FP53: 0 | FQ53: 0 | FR53: 0 | FS53: 0 | FT53: 0 | FU53: 0 | FV53: 0 | FW53: 0 | FX53: 0 | FY53: 0 | FZ53: 0 | GA53: 0 | GB53: 0 | GC53: 0 | GD53: 0 | GE53: 0 | GF53: 0 | GG53: 0 | GH53: 0
A54: 5 | B54: TRANSFORMERS | C54: kiosk mounted ; < = 22 kv ; > 60 kva and < = 600 kva ; multiple phase | D54: 160.3159688 | E54: 51.13332593 | F54: 7.150757018 | G54: 2 | H54: 14 | I54: 21 | J54: 14 | K54: 11 | L54: 6 | M54: 20 | N54: 27 | O54: 15 | P54: 14 | Q54: 5 | R54: 9 | S54: 26 | T54: 14 | U54: 10 | V54: 10 | W54: 3 | X54: 7 | Y54: 9 | Z54: 16 | AA54: 5 | AB54: 16 | AC54: 16 | AD54: 15 | AE54: 20 | AF54: 12 | AG54: 17 | AH54: 22 | AI54: 24 | AJ54: 24 | AK54: 28 | AL54: 27 | AM54: 19 | AN54: 30 | AO54: 26 | AP54: 29 | AQ54: 20 | AR54: 14 | AS54: 24 | AT54: 26 | AU54: 17 | AV54: 22 | AW54: 15 | AX54: 9 | AY54: 26 | AZ54: 10 | BA54: 7 | BB54: 17 | BC54: 12 | BD54: 6 | BE54: 4 | BF54: 1 | BG54: 3 | BH54: 1 | BI54: 0 | BJ54: 1 | BK54: 0 | BL54: 0 | BM54: 0 | BN54: 0 | BO54: 0 | BP54: 0 | BQ54: 0 | BR54: 0 | BS54: 0 | BT54: 0 | BU54: 0 | BV54: 0 | BW54: 0 | BX54: 0 | BY54: 0 | BZ54: 0 | CA54: 0 | CB54: 0 | CC54: 0 | CD54: 0 | CE54: 0 | CF54: 0 | CG54: 0 | CH54: 0 | CI54: 0 | CJ54: 0 | CK54: 0 | CL54: 0 | CM54: 0 | CN54: 0 | CO54: 0 | CP54: 0 | CQ54: 0 | CR54: 0 | CS54: 0 | CT54: 0 | CV54: 2244.423563 | CW54: 3366.635344 | CX54: 2244.423563 | CY54: 1763.475656 | CZ54: 961.8958125 | DA54: 3206.319375 | DB54: 4328.531156 | DC54: 2404.739531 | DD54: 2244.423563 | DE54: 801.5798438 | DF54: 1442.843719 | DG54: 4168.215188 | DH54: 2244.423563 | DI54: 1603.159688 | DJ54: 1603.159688 | DK54: 480.9479063 | DL54: 1122.211781 | DM54: 1442.843719 | DN54: 2565.0555 | DO54: 801.5798438 | DP54: 2565.0555 | DQ54: 2565.0555 | DR54: 2404.739531 | DS54: 3206.319375 | DT54: 1923.791625 | DU54: 2725.371469 | DV54: 3526.951313 | DW54: 3847.58325 | DX54: 3847.58325 | DY54: 4488.847125 | DZ54: 4328.531156 | EA54: 3046.003406 | EB54: 4809.479063 | EC54: 4168.215188 | ED54: 4649.163094 | EE54: 3206.319375 | EF54: 2244.423563 | EG54: 3847.58325 | EH54: 4168.215188 | EI54: 2725.371469 | EJ54: 3526.951313 | EK54: 2404.739531 | EL54: 1442.843719 | EM54: 4168.215188 | EN54: 1603.159688 | EO54: 1122.211781 | EP54: 2725.371469 | EQ54: 1923.791625 | ER54: 961.8958125 | ES54: 641.263875 | ET54: 160.3159688 | EU54: 480.9479063 | EV54: 160.3159688 | EW54: 0 | EX54: 160.3159688 | EY54: 0 | EZ54: 0 | FA54: 0 | FB54: 0 | FC54: 0 | FD54: 0 | FE54: 0 | FF54: 0 | FG54: 0 | FH54: 0 | FI54: 0 | FJ54: 0 | FK54: 0 | FL54: 0 | FM54: 0 | FN54: 0 | FO54: 0 | FP54: 0 | FQ54: 0 | FR54: 0 | FS54: 0 | FT54: 0 | FU54: 0 | FV54: 0 | FW54: 0 | FX54: 0 | FY54: 0 | FZ54: 0 | GA54: 0 | GB54: 0 | GC54: 0 | GD54: 0 | GE54: 0 | GF54: 0 | GG54: 0 | GH54: 0
A55: 5 | B55: TRANSFORMERS | C55: kiosk mounted ; < = 22 kv ; > 600 kva ; multiple phase | D55: 160.3159688 | E55: 51.13332593 | F55: 7.150757018 | G55: 2 | H55: 7 | I55: 13 | J55: 18 | K55: 11 | L55: 9 | M55: 24 | N55: 50 | O55: 49 | P55: 47 | Q55: 21 | R55: 26 | S55: 20 | T55: 24 | U55: 12 | V55: 19 | W55: 6 | X55: 13 | Y55: 20 | Z55: 21 | AA55: 13 | AB55: 16 | AC55: 12 | AD55: 9 | AE55: 9 | AF55: 5 | AG55: 11 | AH55: 5 | AI55: 11 | AJ55: 13 | AK55: 7 | AL55: 10 | AM55: 10 | AN55: 16 | AO55: 4 | AP55: 9 | AQ55: 3 | AR55: 9 | AS55: 4 | AT55: 1 | AU55: 0 | AV55: 4 | AW55: 2 | AX55: 0 | AY55: 2 | AZ55: 1 | BA55: 1 | BB55: 2 | BC55: 3 | BD55: 0 | BE55: 0 | BF55: 0 | BG55: 1 | BH55: 1 | BI55: 1 | BJ55: 0 | BK55: 0 | BL55: 0 | BM55: 0 | BN55: 0 | BO55: 0 | BP55: 0 | BQ55: 0 | BR55: 0 | BS55: 0 | BT55: 0 | BU55: 0 | BV55: 0 | BW55: 0 | BX55: 0 | BY55: 0 | BZ55: 0 | CA55: 0 | CB55: 0 | CC55: 0 | CD55: 0 | CE55: 0 | CF55: 0 | CG55: 0 | CH55: 0 | CI55: 0 | CJ55: 0 | CK55: 0 | CL55: 0 | CM55: 0 | CN55: 0 | CO55: 0 | CP55: 0 | CQ55: 0 | CR55: 0 | CS55: 0 | CT55: 0 | CV55: 1122.211781 | CW55: 2084.107594 | CX55: 2885.687438 | CY55: 1763.475656 | CZ55: 1442.843719 | DA55: 3847.58325 | DB55: 8015.798438 | DC55: 7855.482469 | DD55: 7534.850531 | DE55: 3366.635344 | DF55: 4168.215188 | DG55: 3206.319375 | DH55: 3847.58325 | DI55: 1923.791625 | DJ55: 3046.003406 | DK55: 961.8958125 | DL55: 2084.107594 | DM55: 3206.319375 | DN55: 3366.635344 | DO55: 2084.107594 | DP55: 2565.0555 | DQ55: 1923.791625 | DR55: 1442.843719 | DS55: 1442.843719 | DT55: 801.5798438 | DU55: 1763.475656 | DV55: 801.5798438 | DW55: 1763.475656 | DX55: 2084.107594 | DY55: 1122.211781 | DZ55: 1603.159688 | EA55: 1603.159688 | EB55: 2565.0555 | EC55: 641.263875 | ED55: 1442.843719 | EE55: 480.9479063 | EF55: 1442.843719 | EG55: 641.263875 | EH55: 160.3159688 | EI55: 0 | EJ55: 641.263875 | EK55: 320.6319375 | EL55: 0 | EM55: 320.6319375 | EN55: 160.3159688 | EO55: 160.3159688 | EP55: 320.6319375 | EQ55: 480.9479063 | ER55: 0 | ES55: 0 | ET55: 0 | EU55: 160.3159688 | EV55: 160.3159688 | EW55: 160.3159688 | EX55: 0 | EY55: 0 | EZ55: 0 | FA55: 0 | FB55: 0 | FC55: 0 | FD55: 0 | FE55: 0 | FF55: 0 | FG55: 0 | FH55: 0 | FI55: 0 | FJ55: 0 | FK55: 0 | FL55: 0 | FM55: 0 | FN55: 0 | FO55: 0 | FP55: 0 | FQ55: 0 | FR55: 0 | FS55: 0 | FT55: 0 | FU55: 0 | FV55: 0 | FW55: 0 | FX55: 0 | FY55: 0 | FZ55: 0 | GA55: 0 | GB55: 0 | GC55: 0 | GD55: 0 | GE55: 0 | GF55: 0 | GG55: 0 | GH55: 0
A56: 5 | B56: TRANSFORMERS | C56: pole mounted ; < = 22 kv ; < = 60 kva ; multiple phase | D56: 36.73225791 | E56: 59.92158134 | F56: 7.740903135 | G56: 2 | H56: 28 | I56: 23 | J56: 22 | K56: 19 | L56: 16 | M56: 13 | N56: 21 | O56: 46 | P56: 30 | Q56: 67 | R56: 67 | S56: 95 | T56: 73 | U56: 71 | V56: 67 | W56: 72 | X56: 52 | Y56: 102 | Z56: 164 | AA56: 202 | AB56: 182 | AC56: 199 | AD56: 190 | AE56: 178 | AF56: 160 | AG56: 166 | AH56: 181 | AI56: 201 | AJ56: 200 | AK56: 146 | AL56: 102 | AM56: 101 | AN56: 79 | AO56: 97 | AP56: 91 | AQ56: 80 | AR56: 80 | AS56: 74 | AT56: 52 | AU56: 67 | AV56: 58 | AW56: 46 | AX56: 47 | AY56: 36 | AZ56: 35 | BA56: 28 | BB56: 24 | BC56: 29 | BD56: 18 | BE56: 15 | BF56: 7 | BG56: 0 | BH56: 2 | BI56: 2 | BJ56: 2 | BK56: 3 | BL56: 1 | BM56: 2 | BN56: 2 | BO56: 0 | BP56: 0 | BQ56: 1 | BR56: 1 | BS56: 2 | BT56: 0 | BU56: 0 | BV56: 0 | BW56: 0 | BX56: 0 | BY56: 0 | BZ56: 0 | CA56: 0 | CB56: 0 | CC56: 0 | CD56: 0 | CE56: 0 | CF56: 0 | CG56: 0 | CH56: 0 | CI56: 0 | CJ56: 0 | CK56: 0 | CL56: 0 | CM56: 0 | CN56: 0 | CO56: 0 | CP56: 0 | CQ56: 0 | CR56: 0 | CS56: 0 | CT56: 0 | CV56: 1028.503222 | CW56: 844.841932 | CX56: 808.1096741 | CY56: 697.9129004 | CZ56: 587.7161266 | DA56: 477.5193529 | DB56: 771.3774162 | DC56: 1689.683864 | DD56: 1101.967737 | DE56: 2461.06128 | DF56: 2461.06128 | DG56: 3489.564502 | DH56: 2681.454828 | DI56: 2607.990312 | DJ56: 2461.06128 | DK56: 2644.72257 | DL56: 1910.077411 | DM56: 3746.690307 | DN56: 6024.090298 | DO56: 7419.916098 | DP56: 6685.27094 | DQ56: 7309.719325 | DR56: 6979.129004 | DS56: 6538.341909 | DT56: 5877.161266 | DU56: 6097.554814 | DV56: 6648.538682 | DW56: 7383.183841 | DX56: 7346.451583 | DY56: 5362.909655 | DZ56: 3746.690307 | EA56: 3709.958049 | EB56: 2901.848375 | EC56: 3563.029018 | ED56: 3342.63547 | EE56: 2938.580633 | EF56: 2938.580633 | EG56: 2718.187086 | EH56: 1910.077411 | EI56: 2461.06128 | EJ56: 2130.470959 | EK56: 1689.683864 | EL56: 1726.416122 | EM56: 1322.361285 | EN56: 1285.629027 | EO56: 1028.503222 | EP56: 881.5741899 | EQ56: 1065.235479 | ER56: 661.1806424 | ES56: 550.9838687 | ET56: 257.1258054 | EU56: 0 | EV56: 73.46451583 | EW56: 73.46451583 | EX56: 73.46451583 | EY56: 110.1967737 | EZ56: 36.73225791 | FA56: 73.46451583 | FB56: 73.46451583 | FC56: 0 | FD56: 0 | FE56: 36.73225791 | FF56: 36.73225791 | FG56: 73.46451583 | FH56: 0 | FI56: 0 | FJ56: 0 | FK56: 0 | FL56: 0 | FM56: 0 | FN56: 0 | FO56: 0 | FP56: 0 | FQ56: 0 | FR56: 0 | FS56: 0 | FT56: 0 | FU56: 0 | FV56: 0 | FW56: 0 | FX56: 0 | FY56: 0 | FZ56: 0 | GA56: 0 | GB56: 0 | GC56: 0 | GD56: 0 | GE56: 0 | GF56: 0 | GG56: 0 | GH56: 0
A57: 5 | B57: TRANSFORMERS | C57: pole mounted ; < = 22 kv ; < = 60 kva ; single phase | D57: 36.74833682 | E57: 53.26628263 | F57: 7.298375342 | G57: 2 | H57: 225 | I57: 196 | J57: 199 | K57: 116 | L57: 115 | M57: 186 | N57: 338 | O57: 376 | P57: 296 | Q57: 433 | R57: 441 | S57: 502 | T57: 494 | U57: 449 | V57: 321 | W57: 265 | X57: 263 | Y57: 350 | Z57: 387 | AA57: 527 | AB57: 589 | AC57: 558 | AD57: 440 | AE57: 516 | AF57: 475 | AG57: 440 | AH57: 494 | AI57: 486 | AJ57: 518 | AK57: 465 | AL57: 363 | AM57: 366 | AN57: 344 | AO57: 295 | AP57: 250 | AQ57: 270 | AR57: 212 | AS57: 220 | AT57: 188 | AU57: 162 | AV57: 173 | AW57: 122 | AX57: 117 | AY57: 106 | AZ57: 110 | BA57: 87 | BB57: 86 | BC57: 49 | BD57: 60 | BE57: 73 | BF57: 35 | BG57: 2 | BH57: 5 | BI57: 7 | BJ57: 3 | BK57: 2 | BL57: 4 | BM57: 3 | BN57: 5 | BO57: 1 | BP57: 3 | BQ57: 1 | BR57: 0 | BS57: 1 | BT57: 0 | BU57: 0 | BV57: 0 | BW57: 0 | BX57: 0 | BY57: 0 | BZ57: 0 | CA57: 0 | CB57: 0 | CC57: 0 | CD57: 0 | CE57: 0 | CF57: 0 | CG57: 0 | CH57: 0 | CI57: 0 | CJ57: 0 | CK57: 0 | CL57: 0 | CM57: 0 | CN57: 0 | CO57: 0 | CP57: 0 | CQ57: 0 | CR57: 0 | CS57: 0 | CT57: 0 | CV57: 8268.375784 | CW57: 7202.674016 | CX57: 7312.919027 | CY57: 4262.807071 | CZ57: 4226.058734 | DA57: 6835.190648 | DB57: 12420.93784 | DC57: 13817.37464 | DD57: 10877.5077 | DE57: 15912.02984 | DF57: 16206.01654 | DG57: 18447.66508 | DH57: 18153.67839 | DI57: 16500.00323 | DJ57: 11796.21612 | DK57: 9738.309257 | DL57: 9664.812583 | DM57: 12861.91789 | DN57: 14221.60635 | DO57: 19366.3735 | DP57: 21644.77039 | DQ57: 20505.57194 | DR57: 16169.2682 | DS57: 18962.1418 | DT57: 17455.45999 | DU57: 16169.2682 | DV57: 18153.67839 | DW57: 17859.69169 | DX57: 19035.63847 | DY57: 17087.97662 | DZ57: 13339.64626 | EA57: 13449.89128 | EB57: 12641.42787 | EC57: 10840.75936 | ED57: 9187.084204 | EE57: 9922.050941 | EF57: 7790.647405 | EG57: 8084.6341 | EH57: 6908.687322 | EI57: 5953.230564 | EJ57: 6357.462269 | EK57: 4483.297092 | EL57: 4299.555408 | EM57: 3895.323703 | EN57: 4042.31705 | EO57: 3197.105303 | EP57: 3160.356966 | EQ57: 1800.668504 | ER57: 2204.900209 | ES57: 2682.628588 | ET57: 1286.191789 | EU57: 73.49667364 | EV57: 183.7416841 | EW57: 257.2383577 | EX57: 110.2450105 | EY57: 73.49667364 | EZ57: 146.9933473 | FA57: 110.2450105 | FB57: 183.7416841 | FC57: 36.74833682 | FD57: 110.2450105 | FE57: 36.74833682 | FF57: 0 | FG57: 36.74833682 | FH57: 0 | FI57: 0 | FJ57: 0 | FK57: 0 | FL57: 0 | FM57: 0 | FN57: 0 | FO57: 0 | FP57: 0 | FQ57: 0 | FR57: 0 | FS57: 0 | FT57: 0 | FU57: 0 | FV57: 0 | FW57: 0 | FX57: 0 | FY57: 0 | FZ57: 0 | GA57: 0 | GB57: 0 | GC57: 0 | GD57: 0 | GE57: 0 | GF57: 0 | GG57: 0 | GH57: 0
A58: 5 | B58: TRANSFORMERS | C58: pole mounted ; < = 22 kv ; > 60 kva and < = 600 kva ; multiple phase | D58: 42.04011272 | E58: 50.24383514 | F58: 7.08828859 | G58: 2 | H58: 320 | I58: 309 | J58: 249 | K58: 162 | L58: 149 | M58: 228 | N58: 291 | O58: 302 | P58: 334 | Q58: 542 | R58: 526 | S58: 558 | T58: 560 | U58: 468 | V58: 421 | W58: 320 | X58: 305 | Y58: 353 | Z58: 295 | AA58: 357 | AB58: 353 | AC58: 339 | AD58: 206 | AE58: 181 | AF58: 174 | AG58: 180 | AH58: 206 | AI58: 213 | AJ58: 230 | AK58: 180 | AL58: 131 | AM58: 134 | AN58: 131 | AO58: 157 | AP58: 136 | AQ58: 134 | AR58: 98 | AS58: 73 | AT58: 78 | AU58: 73 | AV58: 78 | AW58: 56 | AX58: 37 | AY58: 51 | AZ58: 39 | BA58: 36 | BB58: 33 | BC58: 27 | BD58: 18 | BE58: 13 | BF58: 19 | BG58: 11 | BH58: 9 | BI58: 3 | BJ58: 6 | BK58: 1 | BL58: 4 | BM58: 3 | BN58: 2 | BO58: 1 | BP58: 0 | BQ58: 0 | BR58: 0 | BS58: 0 | BT58: 0 | BU58: 0 | BV58: 0 | BW58: 0 | BX58: 0 | BY58: 0 | BZ58: 0 | CA58: 0 | CB58: 0 | CC58: 0 | CD58: 0 | CE58: 0 | CF58: 0 | CG58: 0 | CH58: 0 | CI58: 0 | CJ58: 0 | CK58: 0 | CL58: 0 | CM58: 0 | CN58: 0 | CO58: 0 | CP58: 0 | CQ58: 0 | CR58: 0 | CS58: 0 | CT58: 0 | CV58: 13452.83607 | CW58: 12990.39483 | CX58: 10467.98807 | CY58: 6810.498261 | CZ58: 6263.976796 | DA58: 9585.145701 | DB58: 12233.6728 | DC58: 12696.11404 | DD58: 14041.39765 | DE58: 22785.7411 | DF58: 22113.09929 | DG58: 23458.3829 | DH58: 23542.46312 | DI58: 19674.77275 | DJ58: 17698.88746 | DK58: 13452.83607 | DL58: 12822.23438 | DM58: 14840.15979 | DN58: 12401.83325 | DO58: 15008.32024 | DP58: 14840.15979 | DQ58: 14251.59821 | DR58: 8660.263221 | DS58: 7609.260403 | DT58: 7314.979614 | DU58: 7567.22029 | DV58: 8660.263221 | DW58: 8954.54401 | DX58: 9669.225926 | DY58: 7567.22029 | DZ58: 5507.254767 | EA58: 5633.375105 | EB58: 5507.254767 | EC58: 6600.297697 | ED58: 5717.45533 | EE58: 5633.375105 | EF58: 4119.931047 | EG58: 3068.928229 | EH58: 3279.128792 | EI58: 3068.928229 | EJ58: 3279.128792 | EK58: 2354.246312 | EL58: 1555.484171 | EM58: 2144.045749 | EN58: 1639.564396 | EO58: 1513.444058 | EP58: 1387.32372 | EQ58: 1135.083043 | ER58: 756.722029 | ES58: 546.5214654 | ET58: 798.7621417 | EU58: 462.4412399 | EV58: 378.3610145 | EW58: 126.1203382 | EX58: 252.2406763 | EY58: 42.04011272 | EZ58: 168.1604509 | FA58: 126.1203382 | FB58: 84.08022544 | FC58: 42.04011272 | FD58: 0 | FE58: 0 | FF58: 0 | FG58: 0 | FH58: 0 | FI58: 0 | FJ58: 0 | FK58: 0 | FL58: 0 | FM58: 0 | FN58: 0 | FO58: 0 | FP58: 0 | FQ58: 0 | FR58: 0 | FS58: 0 | FT58: 0 | FU58: 0 | FV58: 0 | FW58: 0 | FX58: 0 | FY58: 0 | FZ58: 0 | GA58: 0 | GB58: 0 | GC58: 0 | GD58: 0 | GE58: 0 | GF58: 0 | GG58: 0 | GH58: 0
A59: 5 | B59: TRANSFORMERS | C59: pole mounted ; < = 22 kv ; > 60 kva and < = 600 kva ; single phase | D59: 51.6133123 | E59: 21.92320463 | F59: 4.68222219 | G59: 2 | H59: 0 | I59: 1 | J59: 1 | K59: 0 | L59: 0 | M59: 0 | N59: 3 | O59: 1 | P59: 1 | Q59: 0 | R59: 3 | S59: 0 | T59: 0 | U59: 0 | V59: 0 | W59: 1 | X59: 1 | Y59: 0 | Z59: 0 | AA59: 6 | AB59: 1 | AC59: 1 | AD59: 1 | AE59: 1 | AF59: 0 | AG59: 0 | AH59: 0 | AI59: 0 | AJ59: 0 | AK59: 0 | AL59: 0 | AM59: 0 | AN59: 0 | AO59: 0 | AP59: 0 | AQ59: 0 | AR59: 0 | AS59: 0 | AT59: 0 | AU59: 0 | AV59: 0 | AW59: 0 | AX59: 0 | AY59: 0 | AZ59: 0 | BA59: 0 | BB59: 0 | BC59: 0 | BD59: 0 | BE59: 0 | BF59: 0 | BG59: 0 | BH59: 0 | BI59: 0 | BJ59: 0 | BK59: 0 | BL59: 0 | BM59: 0 | BN59: 0 | BO59: 0 | BP59: 0 | BQ59: 0 | BR59: 0 | BS59: 0 | BT59: 0 | BU59: 0 | BV59: 0 | BW59: 0 | BX59: 0 | BY59: 0 | BZ59: 0 | CA59: 0 | CB59: 0 | CC59: 0 | CD59: 0 | CE59: 0 | CF59: 0 | CG59: 0 | CH59: 0 | CI59: 0 | CJ59: 0 | CK59: 0 | CL59: 0 | CM59: 0 | CN59: 0 | CO59: 0 | CP59: 0 | CQ59: 0 | CR59: 0 | CS59: 0 | CT59: 0 | CV59: 0 | CW59: 51.6133123 | CX59: 51.6133123 | CY59: 0 | CZ59: 0 | DA59: 0 | DB59: 154.8399369 | DC59: 51.6133123 | DD59: 51.6133123 | DE59: 0 | DF59: 154.8399369 | DG59: 0 | DH59: 0 | DI59: 0 | DJ59: 0 | DK59: 51.6133123 | DL59: 51.6133123 | DM59: 0 | DN59: 0 | DO59: 309.6798738 | DP59: 51.6133123 | DQ59: 51.6133123 | DR59: 51.6133123 | DS59: 51.6133123 | DT59: 0 | DU59: 0 | DV59: 0 | DW59: 0 | DX59: 0 | DY59: 0 | DZ59: 0 | EA59: 0 | EB59: 0 | EC59: 0 | ED59: 0 | EE59: 0 | EF59: 0 | EG59: 0 | EH59: 0 | EI59: 0 | EJ59: 0 | EK59: 0 | EL59: 0 | EM59: 0 | EN59: 0 | EO59: 0 | EP59: 0 | EQ59: 0 | ER59: 0 | ES59: 0 | ET59: 0 | EU59: 0 | EV59: 0 | EW59: 0 | EX59: 0 | EY59: 0 | EZ59: 0 | FA59: 0 | FB59: 0 | FC59: 0 | FD59: 0 | FE59: 0 | FF59: 0 | FG59: 0 | FH59: 0 | FI59: 0 | FJ59: 0 | FK59: 0 | FL59: 0 | FM59: 0 | FN59: 0 | FO59: 0 | FP59: 0 | FQ59: 0 | FR59: 0 | FS59: 0 | FT59: 0 | FU59: 0 | FV59: 0 | FW59: 0 | FX59: 0 | FY59: 0 | FZ59: 0 | GA59: 0 | GB59: 0 | GC59: 0 | GD59: 0 | GE59: 0 | GF59: 0 | GG59: 0 | GH59: 0
A60: 5 | B60: TRANSFORMERS | C60: pole mounted ; < = 22 kv ; > 600 kva ; single phase | D60: 51.6133123 | E60: 21.92320463 | F60: 4.68222219 | G60: 2 | H60: 1 | I60: 1 | J60: 0 | K60: 0 | L60: 0 | M60: 3 | N60: 1 | O60: 7 | P60: 2 | Q60: 2 | R60: 4 | S60: 4 | T60: 3 | U60: 0 | V60: 0 | W60: 3 | X60: 2 | Y60: 1 | Z60: 0 | AA60: 0 | AB60: 0 | AC60: 0 | AD60: 0 | AE60: 0 | AF60: 0 | AG60: 0 | AH60: 0 | AI60: 0 | AJ60: 0 | AK60: 0 | AL60: 0 | AM60: 0 | AN60: 0 | AO60: 0 | AP60: 0 | AQ60: 0 | AR60: 0 | AS60: 0 | AT60: 0 | AU60: 0 | AV60: 0 | AW60: 0 | AX60: 0 | AY60: 0 | AZ60: 0 | BA60: 0 | BB60: 0 | BC60: 0 | BD60: 0 | BE60: 0 | BF60: 0 | BG60: 0 | BH60: 0 | BI60: 0 | BJ60: 0 | BK60: 0 | BL60: 0 | BM60: 0 | BN60: 0 | BO60: 0 | BP60: 0 | BQ60: 0 | BR60: 0 | BS60: 0 | BT60: 0 | BU60: 0 | BV60: 0 | BW60: 0 | BX60: 0 | BY60: 0 | BZ60: 0 | CA60: 0 | CB60: 0 | CC60: 0 | CD60: 0 | CE60: 0 | CF60: 0 | CG60: 0 | CH60: 0 | CI60: 0 | CJ60: 0 | CK60: 0 | CL60: 0 | CM60: 0 | CN60: 0 | CO60: 0 | CP60: 0 | CQ60: 0 | CR60: 0 | CS60: 0 | CT60: 0 | CV60: 51.6133123 | CW60: 51.6133123 | CX60: 0 | CY60: 0 | CZ60: 0 | DA60: 154.8399369 | DB60: 51.6133123 | DC60: 361.2931861 | DD60: 103.2266246 | DE60: 103.2266246 | DF60: 206.4532492 | DG60: 206.4532492 | DH60: 154.8399369 | DI60: 0 | DJ60: 0 | DK60: 154.8399369 | DL60: 103.2266246 | DM60: 51.6133123 | DN60: 0 | DO60: 0 | DP60: 0 | DQ60: 0 | DR60: 0 | DS60: 0 | DT60: 0 | DU60: 0 | DV60: 0 | DW60: 0 | DX60: 0 | DY60: 0 | DZ60: 0 | EA60: 0 | EB60: 0 | EC60: 0 | ED60: 0 | EE60: 0 | EF60: 0 | EG60: 0 | EH60: 0 | EI60: 0 | EJ60: 0 | EK60: 0 | EL60: 0 | EM60: 0 | EN60: 0 | EO60: 0 | EP60: 0 | EQ60: 0 | ER60: 0 | ES60: 0 | ET60: 0 | EU60: 0 | EV60: 0 | EW60: 0 | EX60: 0 | EY60: 0 | EZ60: 0 | FA60: 0 | FB60: 0 | FC60: 0 | FD60: 0 | FE60: 0 | FF60: 0 | FG60: 0 | FH60: 0 | FI60: 0 | FJ60: 0 | FK60: 0 | FL60: 0 | FM60: 0 | FN60: 0 | FO60: 0 | FP60: 0 | FQ60: 0 | FR60: 0 | FS60: 0 | FT60: 0 | FU60: 0 | FV60: 0 | FW60: 0 | FX60: 0 | FY60: 0 | FZ60: 0 | GA60: 0 | GB60: 0 | GC60: 0 | GD60: 0 | GE60: 0 | GF60: 0 | GG60: 0 | GH60: 0
A61: 6 | B61: UNDERGROUND CABLES | C61: ˂ = 1 kv | D61: 305.6350359 | E61: 52.01212838 | F61: 7.211943454 | G61: 2 | H61: 51.937 | I61: 84.3733 | J61: 99.8606 | K61: 47.5464 | L61: 33.0465 | M61: 78.3612 | N61: 147.448 | O61: 110.189 | P61: 24.7506 | Q61: 9.4375 | R61: 13.5513 | S61: 21.8516 | T61: 24.359 | U61: 15.3187 | V61: 12.9822 | W61: 11.6897 | X61: 6.6728 | Y61: 10.5481 | Z61: 11.4129 | AA61: 15.1395 | AB61: 21.8666 | AC61: 17.8432 | AD61: 14.0944 | AE61: 18.11 | AF61: 13.1929 | AG61: 10.4088 | AH61: 15.5739 | AI61: 17.2436 | AJ61: 15.0779 | AK61: 17.3922 | AL61: 22.3187 | AM61: 23.1008 | AN61: 22.9494 | AO61: 19.5956 | AP61: 21.1571 | AQ61: 19.3709 | AR61: 16.2051 | AS61: 18.1805 | AT61: 14.6736 | AU61: 11.384 | AV61: 17.2135 | AW61: 12.6338 | AX61: 5.7858 | AY61: 9.2922 | AZ61: 7.3063 | BA61: 3.9008 | BB61: 5.1639 | BC61: 4.3629 | BD61: 2.7964 | BE61: 3.3567 | BF61: 3.0715 | BG61: 3.254 | BH61: 2.2711 | BI61: 4.0956 | BJ61: 5.0275 | BK61: 3.1536 | BL61: 3.0149 | BM61: 2.3925 | BN61: 0.9813 | BO61: 0 | BP61: 0 | BQ61: 0 | BR61: 0 | BS61: 0 | BT61: 0 | BU61: 0 | BV61: 0 | BW61: 0 | BX61: 0 | BY61: 0 | BZ61: 0 | CA61: 0 | CB61: 0 | CC61: 0 | CD61: 0 | CE61: 0 | CF61: 0 | CG61: 0 | CH61: 0 | CI61: 0 | CJ61: 0 | CK61: 0 | CL61: 0 | CM61: 0 | CN61: 0 | CO61: 0 | CP61: 0 | CQ61: 0 | CR61: 0 | CS61: 0 | CT61: 0 | CV61: 15873.76686 | CW61: 25787.43657 | CX61: 30520.89806 | CY61: 14531.84567 | CZ61: 10100.16821 | DA61: 23949.92817 | DB61: 45065.27477 | DC61: 33677.61897 | DD61: 7564.650519 | DE61: 2884.430651 | DF61: 4141.752062 | DG61: 6678.61455 | DH61: 7444.963839 | DI61: 4681.931424 | DJ61: 3967.815163 | DK61: 3572.781879 | DL61: 2039.441467 | DM61: 3223.868922 | DN61: 3488.182101 | DO61: 4627.161626 | DP61: 6683.199075 | DQ61: 5453.507072 | DR61: 4307.74245 | DS61: 5535.0505 | DT61: 4032.212465 | DU61: 3181.293961 | DV61: 4759.929485 | DW61: 5270.248305 | DX61: 4608.334507 | DY61: 5315.665671 | DZ61: 6821.376675 | EA61: 7060.413837 | EB61: 7014.140692 | EC61: 5989.101909 | ED61: 6466.351017 | EE61: 5920.425716 | EF61: 4952.84632 | EG61: 5556.59777 | EH61: 4484.766262 | EI61: 3479.349248 | EJ61: 5261.04869 | EK61: 3861.331916 | EL61: 1768.343191 | EM61: 2840.02188 | EN61: 2233.061263 | EO61: 1192.221148 | EP61: 1578.268762 | EQ61: 1333.455098 | ER61: 854.6778143 | ES61: 1025.925125 | ET61: 938.7580127 | EU61: 994.5364067 | EV61: 694.12773 | EW61: 1251.758853 | EX61: 1536.580143 | EY61: 963.8506491 | EZ61: 921.4590696 | FA61: 731.2318233 | FB61: 299.9196607 | FC61: 0 | FD61: 0 | FE61: 0 | FF61: 0 | FG61: 0 | FH61: 0 | FI61: 0 | FJ61: 0 | FK61: 0 | FL61: 0 | FM61: 0 | FN61: 0 | FO61: 0 | FP61: 0 | FQ61: 0 | FR61: 0 | FS61: 0 | FT61: 0 | FU61: 0 | FV61: 0 | FW61: 0 | FX61: 0 | FY61: 0 | FZ61: 0 | GA61: 0 | GB61: 0 | GC61: 0 | GD61: 0 | GE61: 0 | GF61: 0 | GG61: 0 | GH61: 0
A62: 6 | B62: UNDERGROUND CABLES | C62: > 1 kv & < = 11 kv | D62: 144.4701925 | E62: 67.3177225 | F62: 8.204737808 | G62: 2 | H62: 6.8426 | I62: 6.3964 | J62: 5.9742 | K62: 7.7499 | L62: 3.6605 | M62: 8.631 | N62: 23.718 | O62: 15.601 | P62: 17.7822 | Q62: 14.8455 | R62: 10.2737 | S62: 12.4222 | T62: 14.9326 | U62: 12.0861 | V62: 8.8386 | W62: 12.9172 | X62: 12.5794 | Y62: 8.3585 | Z62: 7.3737 | AA62: 13.3055 | AB62: 13.2591 | AC62: 10.74 | AD62: 14.4469 | AE62: 13.0686 | AF62: 8.2249 | AG62: 6.6384 | AH62: 8.4721 | AI62: 12.1085 | AJ62: 18.0598 | AK62: 20.4917 | AL62: 19.4248 | AM62: 18.428 | AN62: 16.5559 | AO62: 11.7018 | AP62: 11.9691 | AQ62: 12.5949 | AR62: 23.1049 | AS62: 24.7418 | AT62: 13.4443 | AU62: 14.9545 | AV62: 12.0872 | AW62: 4.6779 | AX62: 3.0525 | AY62: 6.5576 | AZ62: 6.5025 | BA62: 8.0356 | BB62: 9.5619 | BC62: 7.0675 | BD62: 7.1065 | BE62: 8.9442 | BF62: 7.5946 | BG62: 5.2699 | BH62: 7.107 | BI62: 6.6063 | BJ62: 6.0075 | BK62: 5.5452 | BL62: 3.8451 | BM62: 3.0255 | BN62: 0.9894 | BO62: 0 | BP62: 0 | BQ62: 0 | BR62: 0 | BS62: 0 | BT62: 0 | BU62: 0 | BV62: 0 | BW62: 0 | BX62: 0 | BY62: 0 | BZ62: 0 | CA62: 0 | CB62: 0 | CC62: 0 | CD62: 0 | CE62: 0 | CF62: 0 | CG62: 0 | CH62: 0 | CI62: 0 | CJ62: 0 | CK62: 0 | CL62: 0 | CM62: 0 | CN62: 0 | CO62: 0 | CP62: 0 | CQ62: 0 | CR62: 0 | CS62: 0 | CT62: 0 | CV62: 988.5517389 | CW62: 924.0891391 | CX62: 863.0938238 | CY62: 1119.629545 | CZ62: 528.8331395 | DA62: 1246.922231 | DB62: 3426.544025 | DC62: 2253.879473 | DD62: 2568.997856 | DE62: 2144.732242 | DF62: 1484.243416 | DG62: 1794.637625 | DH62: 2157.315596 | DI62: 1746.081193 | DJ62: 1276.914243 | DK62: 1866.15037 | DL62: 1817.348339 | DM62: 1207.554104 | DN62: 1065.279858 | DO62: 1922.248146 | DP62: 1915.544729 | DQ62: 1551.609867 | DR62: 2087.146423 | DS62: 1888.023157 | DT62: 1188.252886 | DU62: 959.0509256 | DV62: 1223.965918 | DW62: 1749.317325 | DX62: 2609.102782 | DY62: 2960.439843 | DZ62: 2806.304595 | EA62: 2662.296707 | EB62: 2391.834059 | EC62: 1690.561298 | ED62: 1729.178181 | EE62: 1819.587627 | EF62: 3337.96935 | EG62: 3574.452608 | EH62: 1942.300609 | EI62: 2160.479493 | EJ62: 1746.24011 | EK62: 675.8171133 | EL62: 440.9952625 | EM62: 947.3777341 | EN62: 939.4174265 | EO62: 1160.904679 | EP62: 1381.409533 | EQ62: 1021.043085 | ER62: 1026.677423 | ES62: 1292.170295 | ET62: 1097.193324 | EU62: 761.3434673 | EV62: 1026.749658 | EW62: 954.4134325 | EX62: 867.9046812 | EY62: 801.1161112 | EZ62: 555.502337 | FA62: 437.0945673 | FB62: 142.9388084 | FC62: 0 | FD62: 0 | FE62: 0 | FF62: 0 | FG62: 0 | FH62: 0 | FI62: 0 | FJ62: 0 | FK62: 0 | FL62: 0 | FM62: 0 | FN62: 0 | FO62: 0 | FP62: 0 | FQ62: 0 | FR62: 0 | FS62: 0 | FT62: 0 | FU62: 0 | FV62: 0 | FW62: 0 | FX62: 0 | FY62: 0 | FZ62: 0 | GA62: 0 | GB62: 0 | GC62: 0 | GD62: 0 | GE62: 0 | GF62: 0 | GG62: 0 | GH62: 0
A63: 6 | B63: UNDERGROUND CABLES | C63: > 11 kv & < = 22 kv | D63: 120.5838107 | E63: 49.69612603 | F63: 7.049547931 | G63: 2 | H63: 5.4002 | I63: 4.4759 | J63: 4.1149 | K63: 6.8081 | L63: 14.964 | M63: 8.8014 | N63: 23.3055 | O63: 26.2659 | P63: 21.0768 | Q63: 35.3681 | R63: 45.3692 | S63: 28.6577 | T63: 19.7319 | U63: 22.1602 | V63: 15.311 | W63: 23.036 | X63: 25.2699 | Y63: 13.7765 | Z63: 14.4509 | AA63: 21.5048 | AB63: 22.6114 | AC63: 12.2934 | AD63: 5.2614 | AE63: 4.3255 | AF63: 4.322 | AG63: 5.6755 | AH63: 6.2054 | AI63: 5.3355 | AJ63: 7.1552 | AK63: 8.4098 | AL63: 7.0603 | AM63: 5.6252 | AN63: 4.8166 | AO63: 6.4304 | AP63: 6.955 | AQ63: 4.7373 | AR63: 6.2083 | AS63: 6.7 | AT63: 4.3007 | AU63: 5.0844 | AV63: 5.0867 | AW63: 2.8679 | AX63: 2.5017 | AY63: 2.0384 | AZ63: 1.0748 | BA63: 0.5403 | BB63: 0.7051 | BC63: 0.6918 | BD63: 0.424 | BE63: 0 | BF63: 0.092 | BG63: 0.092 | BH63: 0.0978 | BI63: 0.0978 | BJ63: 0 | BK63: 0 | BL63: 0.0174 | BM63: 0.0174 | BN63: 0 | BO63: 0 | BP63: 0 | BQ63: 0 | BR63: 0 | BS63: 0 | BT63: 0 | BU63: 0 | BV63: 0 | BW63: 0 | BX63: 0 | BY63: 0 | BZ63: 0 | CA63: 0 | CB63: 0 | CC63: 0 | CD63: 0 | CE63: 0 | CF63: 0 | CG63: 0 | CH63: 0 | CI63: 0 | CJ63: 0 | CK63: 0 | CL63: 0 | CM63: 0 | CN63: 0 | CO63: 0 | CP63: 0 | CQ63: 0 | CR63: 0 | CS63: 0 | CT63: 0 | CV63: 651.1766945 | CW63: 539.7210783 | CX63: 496.1903226 | CY63: 820.9466416 | CZ63: 1804.416143 | DA63: 1061.306351 | DB63: 2810.266 | DC63: 3167.242313 | DD63: 2541.520861 | DE63: 4264.820275 | DF63: 5470.791024 | DG63: 3455.654672 | DH63: 2379.347694 | DI63: 2672.161362 | DJ63: 1846.258725 | DK63: 2777.768663 | DL63: 3047.140838 | DM63: 1661.222868 | DN63: 1742.54459 | DO63: 2593.130732 | DP63: 2726.568777 | DQ63: 1482.385018 | DR63: 634.4396616 | DS63: 521.5852731 | DT63: 521.1632298 | DU63: 684.3734176 | DV63: 748.2707789 | DW63: 643.3749219 | DX63: 862.8012823 | DY63: 1014.085731 | DZ63: 851.3578786 | EA63: 678.3080519 | EB63: 580.8039826 | EC63: 775.4021363 | ED63: 838.6604034 | EE63: 571.2416864 | EF63: 748.6204719 | EG63: 807.9115316 | EH63: 518.5947946 | EI63: 613.0963271 | EJ63: 613.3736698 | EK63: 345.8223107 | EL63: 301.6645192 | EM63: 245.7980397 | EN63: 129.6034797 | EO63: 65.15143292 | EP63: 85.02364492 | EQ63: 83.41988024 | ER63: 51.12753573 | ES63: 0 | ET63: 11.09371058 | EU63: 11.09371058 | EV63: 11.79309669 | EW63: 11.79309669 | EX63: 0 | EY63: 0 | EZ63: 2.098158306 | FA63: 2.098158306 | FB63: 0 | FC63: 0 | FD63: 0 | FE63: 0 | FF63: 0 | FG63: 0 | FH63: 0 | FI63: 0 | FJ63: 0 | FK63: 0 | FL63: 0 | FM63: 0 | FN63: 0 | FO63: 0 | FP63: 0 | FQ63: 0 | FR63: 0 | FS63: 0 | FT63: 0 | FU63: 0 | FV63: 0 | FW63: 0 | FX63: 0 | FY63: 0 | FZ63: 0 | GA63: 0 | GB63: 0 | GC63: 0 | GD63: 0 | GE63: 0 | GF63: 0 | GG63: 0 | GH63: 0
A64: 6 | B64: UNDERGROUND CABLES | C64: > 22 kv & < = 33 kv | D64: 120.5838107 | E64: 49.69612603 | F64: 7.049547931 | G64: 2 | H64: 0 | I64: 0 | J64: 3.0102 | K64: 3.281 | L64: 1.4324 | M64: 10.0012 | N64: 4.5895 | O64: 0 | P64: 11.5508 | Q64: 11.1953 | R64: 0 | S64: 0 | T64: 0 | U64: 0 | V64: 0 | W64: 0.6064 | X64: 0.6064 | Y64: 0 | Z64: 0 | AA64: 0 | AB64: 0 | AC64: 0 | AD64: 0 | AE64: 0 | AF64: 0 | AG64: 0 | AH64: 0 | AI64: 0 | AJ64: 0 | AK64: 0 | AL64: 0 | AM64: 0 | AN64: 0 | AO64: 0 | AP64: 0 | AQ64: 0 | AR64: 0 | AS64: 0 | AT64: 0 | AU64: 0 | AV64: 0 | AW64: 0 | AX64: 0 | AY64: 0 | AZ64: 0 | BA64: 1.9406 | BB64: 1.9406 | BC64: 0 | BD64: 0 | BE64: 5.8426 | BF64: 5.8426 | BG64: 0 | BH64: 5.6418 | BI64: 5.6418 | BJ64: 0 | BK64: 0 | BL64: 0 | BM64: 0 | BN64: 0 | BO64: 0 | BP64: 0 | BQ64: 0 | BR64: 0 | BS64: 0 | BT64: 0 | BU64: 0 | BV64: 0 | BW64: 0 | BX64: 0 | BY64: 0 | BZ64: 0 | CA64: 0 | CB64: 0 | CC64: 0 | CD64: 0 | CE64: 0 | CF64: 0 | CG64: 0 | CH64: 0 | CI64: 0 | CJ64: 0 | CK64: 0 | CL64: 0 | CM64: 0 | CN64: 0 | CO64: 0 | CP64: 0 | CQ64: 0 | CR64: 0 | CS64: 0 | CT64: 0 | CV64: 0 | CW64: 0 | CX64: 362.9813869 | CY64: 395.6354829 | CZ64: 172.7242504 | DA64: 1205.982807 | DB64: 553.4193992 | DC64: 0 | DD64: 1392.839481 | DE64: 1349.971936 | DF64: 0 | DG64: 0 | DH64: 0 | DI64: 0 | DJ64: 0 | DK64: 73.1220228 | DL64: 73.1220228 | DM64: 0 | DN64: 0 | DO64: 0 | DP64: 0 | DQ64: 0 | DR64: 0 | DS64: 0 | DT64: 0 | DU64: 0 | DV64: 0 | DW64: 0 | DX64: 0 | DY64: 0 | DZ64: 0 | EA64: 0 | EB64: 0 | EC64: 0 | ED64: 0 | EE64: 0 | EF64: 0 | EG64: 0 | EH64: 0 | EI64: 0 | EJ64: 0 | EK64: 0 | EL64: 0 | EM64: 0 | EN64: 0 | EO64: 234.004943 | EP64: 234.004943 | EQ64: 0 | ER64: 0 | ES64: 704.5229723 | ET64: 704.5229723 | EU64: 0 | EV64: 680.3097432 | EW64: 680.3097432 | EX64: 0 | EY64: 0 | EZ64: 0 | FA64: 0 | FB64: 0 | FC64: 0 | FD64: 0 | FE64: 0 | FF64: 0 | FG64: 0 | FH64: 0 | FI64: 0 | FJ64: 0 | FK64: 0 | FL64: 0 | FM64: 0 | FN64: 0 | FO64: 0 | FP64: 0 | FQ64: 0 | FR64: 0 | FS64: 0 | FT64: 0 | FU64: 0 | FV64: 0 | FW64: 0 | FX64: 0 | FY64: 0 | FZ64: 0 | GA64: 0 | GB64: 0 | GC64: 0 | GD64: 0 | GE64: 0 | GF64: 0 | GG64: 0 | GH64: 0
CV65: 0 | CW65: 0 | CX65: 0 | CY65: 0 | CZ65: 0 | DA65: 0 | DB65: 0 | DC65: 0 | DD65: 0 | DE65: 0 | DF65: 0 | DG65: 0 | DH65: 0 | DI65: 0 | DJ65: 0 | DK65: 0 | DL65: 0 | DM65: 0 | DN65: 0 | DO65: 0 | DP65: 0 | DQ65: 0 | DR65: 0 | DS65: 0 | DT65: 0 | DU65: 0 | DV65: 0 | DW65: 0 | DX65: 0 | DY65: 0 | DZ65: 0 | EA65: 0 | EB65: 0 | EC65: 0 | ED65: 0 | EE65: 0 | EF65: 0 | EG65: 0 | EH65: 0 | EI65: 0 | EJ65: 0 | EK65: 0 | EL65: 0 | EM65: 0 | EN65: 0 | EO65: 0 | EP65: 0 | EQ65: 0 | ER65: 0 | ES65: 0 | ET65: 0 | EU65: 0 | EV65: 0 | EW65: 0 | EX65: 0 | EY65: 0 | EZ65: 0 | FA65: 0 | FB65: 0 | FC65: 0 | FD65: 0 | FE65: 0 | FF65: 0 | FG65: 0 | FH65: 0 | FI65: 0 | FJ65: 0 | FK65: 0 | FL65: 0 | FM65: 0 | FN65: 0 | FO65: 0 | FP65: 0 | FQ65: 0 | FR65: 0 | FS65: 0 | FT65: 0 | FU65: 0 | FV65: 0 | FW65: 0 | FX65: 0 | FY65: 0 | FZ65: 0 | GA65: 0 | GB65: 0 | GC65: 0 | GD65: 0 | GE65: 0 | GF65: 0 | GG65: 0 | GH65: 0
CV66: 0 | CW66: 0 | CX66: 0 | CY66: 0 | CZ66: 0 | DA66: 0 | DB66: 0 | DC66: 0 | DD66: 0 | DE66: 0 | DF66: 0 | DG66: 0 | DH66: 0 | DI66: 0 | DJ66: 0 | DK66: 0 | DL66: 0 | DM66: 0 | DN66: 0 | DO66: 0 | DP66: 0 | DQ66: 0 | DR66: 0 | DS66: 0 | DT66: 0 | DU66: 0 | DV66: 0 | DW66: 0 | DX66: 0 | DY66: 0 | DZ66: 0 | EA66: 0 | EB66: 0 | EC66: 0 | ED66: 0 | EE66: 0 | EF66: 0 | EG66: 0 | EH66: 0 | EI66: 0 | EJ66: 0 | EK66: 0 | EL66: 0 | EM66: 0 | EN66: 0 | EO66: 0 | EP66: 0 | EQ66: 0 | ER66: 0 | ES66: 0 | ET66: 0 | EU66: 0 | EV66: 0 | EW66: 0 | EX66: 0 | EY66: 0 | EZ66: 0 | FA66: 0 | FB66: 0 | FC66: 0 | FD66: 0 | FE66: 0 | FF66: 0 | FG66: 0 | FH66: 0 | FI66: 0 | FJ66: 0 | FK66: 0 | FL66: 0 | FM66: 0 | FN66: 0 | FO66: 0 | FP66: 0 | FQ66: 0 | FR66: 0 | FS66: 0 | FT66: 0 | FU66: 0 | FV66: 0 | FW66: 0 | FX66: 0 | FY66: 0 | FZ66: 0 | GA66: 0 | GB66: 0 | GC66: 0 | GD66: 0 | GE66: 0 | GF66: 0 | GG66: 0 | GH66: 0
CV67: 0 | CW67: 0 | CX67: 0 | CY67: 0 | CZ67: 0 | DA67: 0 | DB67: 0 | DC67: 0 | DD67: 0 | DE67: 0 | DF67: 0 | DG67: 0 | DH67: 0 | DI67: 0 | DJ67: 0 | DK67: 0 | DL67: 0 | DM67: 0 | DN67: 0 | DO67: 0 | DP67: 0 | DQ67: 0 | DR67: 0 | DS67: 0 | DT67: 0 | DU67: 0 | DV67: 0 | DW67: 0 | DX67: 0 | DY67: 0 | DZ67: 0 | EA67: 0 | EB67: 0 | EC67: 0 | ED67: 0 | EE67: 0 | EF67: 0 | EG67: 0 | EH67: 0 | EI67: 0 | EJ67: 0 | EK67: 0 | EL67: 0 | EM67: 0 | EN67: 0 | EO67: 0 | EP67: 0 | EQ67: 0 | ER67: 0 | ES67: 0 | ET67: 0 | EU67: 0 | EV67: 0 | EW67: 0 | EX67: 0 | EY67: 0 | EZ67: 0 | FA67: 0 | FB67: 0 | FC67: 0 | FD67: 0 | FE67: 0 | FF67: 0 | FG67: 0 | FH67: 0 | FI67: 0 | FJ67: 0 | FK67: 0 | FL67: 0 | FM67: 0 | FN67: 0 | FO67: 0 | FP67: 0 | FQ67: 0 | FR67: 0 | FS67: 0 | FT67: 0 | FU67: 0 | FV67: 0 | FW67: 0 | FX67: 0 | FY67: 0 | FZ67: 0 | GA67: 0 | GB67: 0 | GC67: 0 | GD67: 0 | GE67: 0 | GF67: 0 | GG67: 0 | GH67: 0
CV68: 0 | CW68: 0 | CX68: 0 | CY68: 0 | CZ68: 0 | DA68: 0 | DB68: 0 | DC68: 0 | DD68: 0 | DE68: 0 | DF68: 0 | DG68: 0 | DH68: 0 | DI68: 0 | DJ68: 0 | DK68: 0 | DL68: 0 | DM68: 0 | DN68: 0 | DO68: 0 | DP68: 0 | DQ68: 0 | DR68: 0 | DS68: 0 | DT68: 0 | DU68: 0 | DV68: 0 | DW68: 0 | DX68: 0 | DY68: 0 | DZ68: 0 | EA68: 0 | EB68: 0 | EC68: 0 | ED68: 0 | EE68: 0 | EF68: 0 | EG68: 0 | EH68: 0 | EI68: 0 | EJ68: 0 | EK68: 0 | EL68: 0 | EM68: 0 | EN68: 0 | EO68: 0 | EP68: 0 | EQ68: 0 | ER68: 0 | ES68: 0 | ET68: 0 | EU68: 0 | EV68: 0 | EW68: 0 | EX68: 0 | EY68: 0 | EZ68: 0 | FA68: 0 | FB68: 0 | FC68: 0 | FD68: 0 | FE68: 0 | FF68: 0 | FG68: 0 | FH68: 0 | FI68: 0 | FJ68: 0 | FK68: 0 | FL68: 0 | FM68: 0 | FN68: 0 | FO68: 0 | FP68: 0 | FQ68: 0 | FR68: 0 | FS68: 0 | FT68: 0 | FU68: 0 | FV68: 0 | FW68: 0 | FX68: 0 | FY68: 0 | FZ68: 0 | GA68: 0 | GB68: 0 | GC68: 0 | GD68: 0 | GE68: 0 | GF68: 0 | GG68: 0 | GH68: 0
CV69: 0 | CW69: 0 | CX69: 0 | CY69: 0 | CZ69: 0 | DA69: 0 | DB69: 0 | DC69: 0 | DD69: 0 | DE69: 0 | DF69: 0 | DG69: 0 | DH69: 0 | DI69: 0 | DJ69: 0 | DK69: 0 | DL69: 0 | DM69: 0 | DN69: 0 | DO69: 0 | DP69: 0 | DQ69: 0 | DR69: 0 | DS69: 0 | DT69: 0 | DU69: 0 | DV69: 0 | DW69: 0 | DX69: 0 | DY69: 0 | DZ69: 0 | EA69: 0 | EB69: 0 | EC69: 0 | ED69: 0 | EE69: 0 | EF69: 0 | EG69: 0 | EH69: 0 | EI69: 0 | EJ69: 0 | EK69: 0 | EL69: 0 | EM69: 0 | EN69: 0 | EO69: 0 | EP69: 0 | EQ69: 0 | ER69: 0 | ES69: 0 | ET69: 0 | EU69: 0 | EV69: 0 | EW69: 0 | EX69: 0 | EY69: 0 | EZ69: 0 | FA69: 0 | FB69: 0 | FC69: 0 | FD69: 0 | FE69: 0 | FF69: 0 | FG69: 0 | FH69: 0 | FI69: 0 | FJ69: 0 | FK69: 0 | FL69: 0 | FM69: 0 | FN69: 0 | FO69: 0 | FP69: 0 | FQ69: 0 | FR69: 0 | FS69: 0 | FT69: 0 | FU69: 0 | FV69: 0 | FW69: 0 | FX69: 0 | FY69: 0 | FZ69: 0 | GA69: 0 | GB69: 0 | GC69: 0 | GD69: 0 | GE69: 0 | GF69: 0 | GG69: 0 | GH69: 0
CV70: 0 | CW70: 0 | CX70: 0 | CY70: 0 | CZ70: 0 | DA70: 0 | DB70: 0 | DC70: 0 | DD70: 0 | DE70: 0 | DF70: 0 | DG70: 0 | DH70: 0 | DI70: 0 | DJ70: 0 | DK70: 0 | DL70: 0 | DM70: 0 | DN70: 0 | DO70: 0 | DP70: 0 | DQ70: 0 | DR70: 0 | DS70: 0 | DT70: 0 | DU70: 0 | DV70: 0 | DW70: 0 | DX70: 0 | DY70: 0 | DZ70: 0 | EA70: 0 | EB70: 0 | EC70: 0 | ED70: 0 | EE70: 0 | EF70: 0 | EG70: 0 | EH70: 0 | EI70: 0 | EJ70: 0 | EK70: 0 | EL70: 0 | EM70: 0 | EN70: 0 | EO70: 0 | EP70: 0 | EQ70: 0 | ER70: 0 | ES70: 0 | ET70: 0 | EU70: 0 | EV70: 0 | EW70: 0 | EX70: 0 | EY70: 0 | EZ70: 0 | FA70: 0 | FB70: 0 | FC70: 0 | FD70: 0 | FE70: 0 | FF70: 0 | FG70: 0 | FH70: 0 | FI70: 0 | FJ70: 0 | FK70: 0 | FL70: 0 | FM70: 0 | FN70: 0 | FO70: 0 | FP70: 0 | FQ70: 0 | FR70: 0 | FS70: 0 | FT70: 0 | FU70: 0 | FV70: 0 | FW70: 0 | FX70: 0 | FY70: 0 | FZ70: 0 | GA70: 0 | GB70: 0 | GC70: 0 | GD70: 0 | GE70: 0 | GF70: 0 | GG70: 0 | GH70: 0
CV71: 0 | CW71: 0 | CX71: 0 | CY71: 0 | CZ71: 0 | DA71: 0 | DB71: 0 | DC71: 0 | DD71: 0 | DE71: 0 | DF71: 0 | DG71: 0 | DH71: 0 | DI71: 0 | DJ71: 0 | DK71: 0 | DL71: 0 | DM71: 0 | DN71: 0 | DO71: 0 | DP71: 0 | DQ71: 0 | DR71: 0 | DS71: 0 | DT71: 0 | DU71: 0 | DV71: 0 | DW71: 0 | DX71: 0 | DY71: 0 | DZ71: 0 | EA71: 0 | EB71: 0 | EC71: 0 | ED71: 0 | EE71: 0 | EF71: 0 | EG71: 0 | EH71: 0 | EI71: 0 | EJ71: 0 | EK71: 0 | EL71: 0 | EM71: 0 | EN71: 0 | EO71: 0 | EP71: 0 | EQ71: 0 | ER71: 0 | ES71: 0 | ET71: 0 | EU71: 0 | EV71: 0 | EW71: 0 | EX71: 0 | EY71: 0 | EZ71: 0 | FA71: 0 | FB71: 0 | FC71: 0 | FD71: 0 | FE71: 0 | FF71: 0 | FG71: 0 | FH71: 0 | FI71: 0 | FJ71: 0 | FK71: 0 | FL71: 0 | FM71: 0 | FN71: 0 | FO71: 0 | FP71: 0 | FQ71: 0 | FR71: 0 | FS71: 0 | FT71: 0 | FU71: 0 | FV71: 0 | FW71: 0 | FX71: 0 | FY71: 0 | FZ71: 0 | GA71: 0 | GB71: 0 | GC71: 0 | GD71: 0 | GE71: 0 | GF71: 0 | GG71: 0 | GH71: 0
CV72: 0 | CW72: 0 | CX72: 0 | CY72: 0 | CZ72: 0 | DA72: 0 | DB72: 0 | DC72: 0 | DD72: 0 | DE72: 0 | DF72: 0 | DG72: 0 | DH72: 0 | DI72: 0 | DJ72: 0 | DK72: 0 | DL72: 0 | DM72: 0 | DN72: 0 | DO72: 0 | DP72: 0 | DQ72: 0 | DR72: 0 | DS72: 0 | DT72: 0 | DU72: 0 | DV72: 0 | DW72: 0 | DX72: 0 | DY72: 0 | DZ72: 0 | EA72: 0 | EB72: 0 | EC72: 0 | ED72: 0 | EE72: 0 | EF72: 0 | EG72: 0 | EH72: 0 | EI72: 0 | EJ72: 0 | EK72: 0 | EL72: 0 | EM72: 0 | EN72: 0 | EO72: 0 | EP72: 0 | EQ72: 0 | ER72: 0 | ES72: 0 | ET72: 0 | EU72: 0 | EV72: 0 | EW72: 0 | EX72: 0 | EY72: 0 | EZ72: 0 | FA72: 0 | FB72: 0 | FC72: 0 | FD72: 0 | FE72: 0 | FF72: 0 | FG72: 0 | FH72: 0 | FI72: 0 | FJ72: 0 | FK72: 0 | FL72: 0 | FM72: 0 | FN72: 0 | FO72: 0 | FP72: 0 | FQ72: 0 | FR72: 0 | FS72: 0 | FT72: 0 | FU72: 0 | FV72: 0 | FW72: 0 | FX72: 0 | FY72: 0 | FZ72: 0 | GA72: 0 | GB72: 0 | GC72: 0 | GD72: 0 | GE72: 0 | GF72: 0 | GG72: 0 | GH72: 0
CV73: 0 | CW73: 0 | CX73: 0 | CY73: 0 | CZ73: 0 | DA73: 0 | DB73: 0 | DC73: 0 | DD73: 0 | DE73: 0 | DF73: 0 | DG73: 0 | DH73: 0 | DI73: 0 | DJ73: 0 | DK73: 0 | DL73: 0 | DM73: 0 | DN73: 0 | DO73: 0 | DP73: 0 | DQ73: 0 | DR73: 0 | DS73: 0 | DT73: 0 | DU73: 0 | DV73: 0 | DW73: 0 | DX73: 0 | DY73: 0 | DZ73: 0 | EA73: 0 | EB73: 0 | EC73: 0 | ED73: 0 | EE73: 0 | EF73: 0 | EG73: 0 | EH73: 0 | EI73: 0 | EJ73: 0 | EK73: 0 | EL73: 0 | EM73: 0 | EN73: 0 | EO73: 0 | EP73: 0 | EQ73: 0 | ER73: 0 | ES73: 0 | ET73: 0 | EU73: 0 | EV73: 0 | EW73: 0 | EX73: 0 | EY73: 0 | EZ73: 0 | FA73: 0 | FB73: 0 | FC73: 0 | FD73: 0 | FE73: 0 | FF73: 0 | FG73: 0 | FH73: 0 | FI73: 0 | FJ73: 0 | FK73: 0 | FL73: 0 | FM73: 0 | FN73: 0 | FO73: 0 | FP73: 0 | FQ73: 0 | FR73: 0 | FS73: 0 | FT73: 0 | FU73: 0 | FV73: 0 | FW73: 0 | FX73: 0 | FY73: 0 | FZ73: 0 | GA73: 0 | GB73: 0 | GC73: 0 | GD73: 0 | GE73: 0 | GF73: 0 | GG73: 0 | GH73: 0
CV74: 0 | CW74: 0 | CX74: 0 | CY74: 0 | CZ74: 0 | DA74: 0 | DB74: 0 | DC74: 0 | DD74: 0 | DE74: 0 | DF74: 0 | DG74: 0 | DH74: 0 | DI74: 0 | DJ74: 0 | DK74: 0 | DL74: 0 | DM74: 0 | DN74: 0 | DO74: 0 | DP74: 0 | DQ74: 0 | DR74: 0 | DS74: 0 | DT74: 0 | DU74: 0 | DV74: 0 | DW74: 0 | DX74: 0 | DY74: 0 | DZ74: 0 | EA74: 0 | EB74: 0 | EC74: 0 | ED74: 0 | EE74: 0 | EF74: 0 | EG74: 0 | EH74: 0 | EI74: 0 | EJ74: 0 | EK74: 0 | EL74: 0 | EM74: 0 | EN74: 0 | EO74: 0 | EP74: 0 | EQ74: 0 | ER74: 0 | ES74: 0 | ET74: 0 | EU74: 0 | EV74: 0 | EW74: 0 | EX74: 0 | EY74: 0 | EZ74: 0 | FA74: 0 | FB74: 0 | FC74: 0 | FD74: 0 | FE74: 0 | FF74: 0 | FG74: 0 | FH74: 0 | FI74: 0 | FJ74: 0 | FK74: 0 | FL74: 0 | FM74: 0 | FN74: 0 | FO74: 0 | FP74: 0 | FQ74: 0 | FR74: 0 | FS74: 0 | FT74: 0 | FU74: 0 | FV74: 0 | FW74: 0 | FX74: 0 | FY74: 0 | FZ74: 0 | GA74: 0 | GB74: 0 | GC74: 0 | GD74: 0 | GE74: 0 | GF74: 0 | GG74: 0 | GH74: 0
CV75: 0 | CW75: 0 | CX75: 0 | CY75: 0 | CZ75: 0 | DA75: 0 | DB75: 0 | DC75: 0 | DD75: 0 | DE75: 0 | DF75: 0 | DG75: 0 | DH75: 0 | DI75: 0 | DJ75: 0 | DK75: 0 | DL75: 0 | DM75: 0 | DN75: 0 | DO75: 0 | DP75: 0 | DQ75: 0 | DR75: 0 | DS75: 0 | DT75: 0 | DU75: 0 | DV75: 0 | DW75: 0 | DX75: 0 | DY75: 0 | DZ75: 0 | EA75: 0 | EB75: 0 | EC75: 0 | ED75: 0 | EE75: 0 | EF75: 0 | EG75: 0 | EH75: 0 | EI75: 0 | EJ75: 0 | EK75: 0 | EL75: 0 | EM75: 0 | EN75: 0 | EO75: 0 | EP75: 0 | EQ75: 0 | ER75: 0 | ES75: 0 | ET75: 0 | EU75: 0 | EV75: 0 | EW75: 0 | EX75: 0 | EY75: 0 | EZ75: 0 | FA75: 0 | FB75: 0 | FC75: 0 | FD75: 0 | FE75: 0 | FF75: 0 | FG75: 0 | FH75: 0 | FI75: 0 | FJ75: 0 | FK75: 0 | FL75: 0 | FM75: 0 | FN75: 0 | FO75: 0 | FP75: 0 | FQ75: 0 | FR75: 0 | FS75: 0 | FT75: 0 | FU75: 0 | FV75: 0 | FW75: 0 | FX75: 0 | FY75: 0 | FZ75: 0 | GA75: 0 | GB75: 0 | GC75: 0 | GD75: 0 | GE75: 0 | GF75: 0 | GG75: 0 | GH75: 0
CV76: 0 | CW76: 0 | CX76: 0 | CY76: 0 | CZ76: 0 | DA76: 0 | DB76: 0 | DC76: 0 | DD76: 0 | DE76: 0 | DF76: 0 | DG76: 0 | DH76: 0 | DI76: 0 | DJ76: 0 | DK76: 0 | DL76: 0 | DM76: 0 | DN76: 0 | DO76: 0 | DP76: 0 | DQ76: 0 | DR76: 0 | DS76: 0 | DT76: 0 | DU76: 0 | DV76: 0 | DW76: 0 | DX76: 0 | DY76: 0 | DZ76: 0 | EA76: 0 | EB76: 0 | EC76: 0 | ED76: 0 | EE76: 0 | EF76: 0 | EG76: 0 | EH76: 0 | EI76: 0 | EJ76: 0 | EK76: 0 | EL76: 0 | EM76: 0 | EN76: 0 | EO76: 0 | EP76: 0 | EQ76: 0 | ER76: 0 | ES76: 0 | ET76: 0 | EU76: 0 | EV76: 0 | EW76: 0 | EX76: 0 | EY76: 0 | EZ76: 0 | FA76: 0 | FB76: 0 | FC76: 0 | FD76: 0 | FE76: 0 | FF76: 0 | FG76: 0 | FH76: 0 | FI76: 0 | FJ76: 0 | FK76: 0 | FL76: 0 | FM76: 0 | FN76: 0 | FO76: 0 | FP76: 0 | FQ76: 0 | FR76: 0 | FS76: 0 | FT76: 0 | FU76: 0 | FV76: 0 | FW76: 0 | FX76: 0 | FY76: 0 | FZ76: 0 | GA76: 0 | GB76: 0 | GC76: 0 | GD76: 0 | GE76: 0 | GF76: 0 | GG76: 0 | GH76: 0
CV77: 0 | CW77: 0 | CX77: 0 | CY77: 0 | CZ77: 0 | DA77: 0 | DB77: 0 | DC77: 0 | DD77: 0 | DE77: 0 | DF77: 0 | DG77: 0 | DH77: 0 | DI77: 0 | DJ77: 0 | DK77: 0 | DL77: 0 | DM77: 0 | DN77: 0 | DO77: 0 | DP77: 0 | DQ77: 0 | DR77: 0 | DS77: 0 | DT77: 0 | DU77: 0 | DV77: 0 | DW77: 0 | DX77: 0 | DY77: 0 | DZ77: 0 | EA77: 0 | EB77: 0 | EC77: 0 | ED77: 0 | EE77: 0 | EF77: 0 | EG77: 0 | EH77: 0 | EI77: 0 | EJ77: 0 | EK77: 0 | EL77: 0 | EM77: 0 | EN77: 0 | EO77: 0 | EP77: 0 | EQ77: 0 | ER77: 0 | ES77: 0 | ET77: 0 | EU77: 0 | EV77: 0 | EW77: 0 | EX77: 0 | EY77: 0 | EZ77: 0 | FA77: 0 | FB77: 0 | FC77: 0 | FD77: 0 | FE77: 0 | FF77: 0 | FG77: 0 | FH77: 0 | FI77: 0 | FJ77: 0 | FK77: 0 | FL77: 0 | FM77: 0 | FN77: 0 | FO77: 0 | FP77: 0 | FQ77: 0 | FR77: 0 | FS77: 0 | FT77: 0 | FU77: 0 | FV77: 0 | FW77: 0 | FX77: 0 | FY77: 0 | FZ77: 0 | GA77: 0 | GB77: 0 | GC77: 0 | GD77: 0 | GE77: 0 | GF77: 0 | GG77: 0 | GH77: 0
CV78: 0 | CW78: 0 | CX78: 0 | CY78: 0 | CZ78: 0 | DA78: 0 | DB78: 0 | DC78: 0 | DD78: 0 | DE78: 0 | DF78: 0 | DG78: 0 | DH78: 0 | DI78: 0 | DJ78: 0 | DK78: 0 | DL78: 0 | DM78: 0 | DN78: 0 | DO78: 0 | DP78: 0 | DQ78: 0 | DR78: 0 | DS78: 0 | DT78: 0 | DU78: 0 | DV78: 0 | DW78: 0 | DX78: 0 | DY78: 0 | DZ78: 0 | EA78: 0 | EB78: 0 | EC78: 0 | ED78: 0 | EE78: 0 | EF78: 0 | EG78: 0 | EH78: 0 | EI78: 0 | EJ78: 0 | EK78: 0 | EL78: 0 | EM78: 0 | EN78: 0 | EO78: 0 | EP78: 0 | EQ78: 0 | ER78: 0 | ES78: 0 | ET78: 0 | EU78: 0 | EV78: 0 | EW78: 0 | EX78: 0 | EY78: 0 | EZ78: 0 | FA78: 0 | FB78: 0 | FC78: 0 | FD78: 0 | FE78: 0 | FF78: 0 | FG78: 0 | FH78: 0 | FI78: 0 | FJ78: 0 | FK78: 0 | FL78: 0 | FM78: 0 | FN78: 0 | FO78: 0 | FP78: 0 | FQ78: 0 | FR78: 0 | FS78: 0 | FT78: 0 | FU78: 0 | FV78: 0 | FW78: 0 | FX78: 0 | FY78: 0 | FZ78: 0 | GA78: 0 | GB78: 0 | GC78: 0 | GD78: 0 | GE78: 0 | GF78: 0 | GG78: 0 | GH78: 0
CV79: 0 | CW79: 0 | CX79: 0 | CY79: 0 | CZ79: 0 | DA79: 0 | DB79: 0 | DC79: 0 | DD79: 0 | DE79: 0 | DF79: 0 | DG79: 0 | DH79: 0 | DI79: 0 | DJ79: 0 | DK79: 0 | DL79: 0 | DM79: 0 | DN79: 0 | DO79: 0 | DP79: 0 | DQ79: 0 | DR79: 0 | DS79: 0 | DT79: 0 | DU79: 0 | DV79: 0 | DW79: 0 | DX79: 0 | DY79: 0 | DZ79: 0 | EA79: 0 | EB79: 0 | EC79: 0 | ED79: 0 | EE79: 0 | EF79: 0 | EG79: 0 | EH79: 0 | EI79: 0 | EJ79: 0 | EK79: 0 | EL79: 0 | EM79: 0 | EN79: 0 | EO79: 0 | EP79: 0 | EQ79: 0 | ER79: 0 | ES79: 0 | ET79: 0 | EU79: 0 | EV79: 0 | EW79: 0 | EX79: 0 | EY79: 0 | EZ79: 0 | FA79: 0 | FB79: 0 | FC79: 0 | FD79: 0 | FE79: 0 | FF79: 0 | FG79: 0 | FH79: 0 | FI79: 0 | FJ79: 0 | FK79: 0 | FL79: 0 | FM79: 0 | FN79: 0 | FO79: 0 | FP79: 0 | FQ79: 0 | FR79: 0 | FS79: 0 | FT79: 0 | FU79: 0 | FV79: 0 | FW79: 0 | FX79: 0 | FY79: 0 | FZ79: 0 | GA79: 0 | GB79: 0 | GC79: 0 | GD79: 0 | GE79: 0 | GF79: 0 | GG79: 0 | GH79: 0
CV80: 0 | CW80: 0 | CX80: 0 | CY80: 0 | CZ80: 0 | DA80: 0 | DB80: 0 | DC80: 0 | DD80: 0 | DE80: 0 | DF80: 0 | DG80: 0 | DH80: 0 | DI80: 0 | DJ80: 0 | DK80: 0 | DL80: 0 | DM80: 0 | DN80: 0 | DO80: 0 | DP80: 0 | DQ80: 0 | DR80: 0 | DS80: 0 | DT80: 0 | DU80: 0 | DV80: 0 | DW80: 0 | DX80: 0 | DY80: 0 | DZ80: 0 | EA80: 0 | EB80: 0 | EC80: 0 | ED80: 0 | EE80: 0 | EF80: 0 | EG80: 0 | EH80: 0 | EI80: 0 | EJ80: 0 | EK80: 0 | EL80: 0 | EM80: 0 | EN80: 0 | EO80: 0 | EP80: 0 | EQ80: 0 | ER80: 0 | ES80: 0 | ET80: 0 | EU80: 0 | EV80: 0 | EW80: 0 | EX80: 0 | EY80: 0 | EZ80: 0 | FA80: 0 | FB80: 0 | FC80: 0 | FD80: 0 | FE80: 0 | FF80: 0 | FG80: 0 | FH80: 0 | FI80: 0 | FJ80: 0 | FK80: 0 | FL80: 0 | FM80: 0 | FN80: 0 | FO80: 0 | FP80: 0 | FQ80: 0 | FR80: 0 | FS80: 0 | FT80: 0 | FU80: 0 | FV80: 0 | FW80: 0 | FX80: 0 | FY80: 0 | FZ80: 0 | GA80: 0 | GB80: 0 | GC80: 0 | GD80: 0 | GE80: 0 | GF80: 0 | GG80: 0 | GH80: 0
CV81: =IFERROR($D81*H81,"") -> 0 | CW81: =IFERROR($D81*I81,"") -> 0 | CX81: =IFERROR($D81*J81,"") -> 0 | CY81: =IFERROR($D81*K81,"") -> 0 | CZ81: =IFERROR($D81*L81,"") -> 0 | DA81: =IFERROR($D81*M81,"") -> 0 | DB81: =IFERROR($D81*N81,"") -> 0 | DC81: =IFERROR($D81*O81,"") -> 0 | DD81: =IFERROR($D81*P81,"") -> 0 | DE81: =IFERROR($D81*Q81,"") -> 0 | DF81: =IFERROR($D81*R81,"") -> 0 | DG81: =IFERROR($D81*S81,"") -> 0 | DH81: =IFERROR($D81*T81,"") -> 0 | DI81: =IFERROR($D81*U81,"") -> 0 | DJ81: =IFERROR($D81*V81,"") -> 0 | DK81: =IFERROR($D81*W81,"") -> 0 | DL81: =IFERROR($D81*X81,"") -> 0 | DM81: =IFERROR($D81*Y81,"") -> 0 | DN81: =IFERROR($D81*Z81,"") -> 0 | DO81: =IFERROR($D81*AA81,"") -> 0 | DP81: =IFERROR($D81*AB81,"") -> 0 | DQ81: =IFERROR($D81*AC81,"") -> 0 | DR81: =IFERROR($D81*AD81,"") -> 0 | DS81: =IFERROR($D81*AE81,"") -> 0 | DT81: =IFERROR($D81*AF81,"") -> 0 | DU81: =IFERROR($D81*AG81,"") -> 0 | DV81: =IFERROR($D81*AH81,"") -> 0 | DW81: =IFERROR($D81*AI81,"") -> 0 | DX81: =IFERROR($D81*AJ81,"") -> 0 | DY81: =IFERROR($D81*AK81,"") -> 0 | DZ81: =IFERROR($D81*AL81,"") -> 0 | EA81: =IFERROR($D81*AM81,"") -> 0 | EB81: =IFERROR($D81*AN81,"") -> 0 | EC81: =IFERROR($D81*AO81,"") -> 0 | ED81: =IFERROR($D81*AP81,"") -> 0 | EE81: =IFERROR($D81*AQ81,"") -> 0 | EF81: =IFERROR($D81*AR81,"") -> 0 | EG81: =IFERROR($D81*AS81,"") -> 0 | EH81: =IFERROR($D81*AT81,"") -> 0 | EI81: =IFERROR($D81*AU81,"") -> 0 | EJ81: =IFERROR($D81*AV81,"") -> 0 | EK81: =IFERROR($D81*AW81,"") -> 0 | EL81: =IFERROR($D81*AX81,"") -> 0 | EM81: =IFERROR($D81*AY81,"") -> 0 | EN81: =IFERROR($D81*AZ81,"") -> 0 | EO81: =IFERROR($D81*BA81,"") -> 0 | EP81: =IFERROR($D81*BB81,"") -> 0 | EQ81: =IFERROR($D81*BC81,"") -> 0 | ER81: =IFERROR($D81*BD81,"") -> 0 | ES81: =IFERROR($D81*BE81,"") -> 0 | ET81: =IFERROR($D81*BF81,"") -> 0 | EU81: =IFERROR($D81*BG81,"") -> 0 | EV81: =IFERROR($D81*BH81,"") -> 0 | EW81: =IFERROR($D81*BI81,"") -> 0 | EX81: =IFERROR($D81*BJ81,"") -> 0 | EY81: =IFERROR($D81*BK81,"") -> 0 | EZ81: =IFERROR($D81*BL81,"") -> 0 | FA81: =IFERROR($D81*BM81,"") -> 0 | FB81: =IFERROR($D81*BN81,"") -> 0 | FC81: =IFERROR($D81*BO81,"") -> 0 | FD81: =IFERROR($D81*BP81,"") -> 0 | FE81: =IFERROR($D81*BQ81,"") -> 0 | FF81: =IFERROR($D81*BR81,"") -> 0 | FG81: =IFERROR($D81*BS81,"") -> 0 | FH81: =IFERROR($D81*BT81,"") -> 0 | FI81: =IFERROR($D81*BU81,"") -> 0 | FJ81: =IFERROR($D81*BV81,"") -> 0 | FK81: =IFERROR($D81*BW81,"") -> 0 | FL81: =IFERROR($D81*BX81,"") -> 0 | FM81: =IFERROR($D81*BY81,"") -> 0 | FN81: =IFERROR($D81*BZ81,"") -> 0 | FO81: =IFERROR($D81*CA81,"") -> 0 | FP81: =IFERROR($D81*CB81,"") -> 0 | FQ81: =IFERROR($D81*CC81,"") -> 0 | FR81: =IFERROR($D81*CD81,"") -> 0 | FS81: =IFERROR($D81*CE81,"") -> 0 | FT81: =IFERROR($D81*CF81,"") -> 0 | FU81: =IFERROR($D81*CG81,"") -> 0 | FV81: =IFERROR($D81*CH81,"") -> 0 | FW81: =IFERROR($D81*CI81,"") -> 0 | FX81: =IFERROR($D81*CJ81,"") -> 0 | FY81: =IFERROR($D81*CK81,"") -> 0 | FZ81: =IFERROR($D81*CL81,"") -> 0 | GA81: =IFERROR($D81*CM81,"") -> 0 | GB81: =IFERROR($D81*CN81,"") -> 0 | GC81: =IFERROR($D81*CO81,"") -> 0 | GD81: =IFERROR($D81*CP81,"") -> 0 | GE81: =IFERROR($D81*CQ81,"") -> 0 | GF81: =IFERROR($D81*CR81,"") -> 0 | GG81: =IFERROR($D81*CS81,"") -> 0 | GH81: =IFERROR($D81*CT81,"") -> 0
CV82: 0 | CW82: 0 | CX82: 0 | CY82: 0 | CZ82: 0 | DA82: 0 | DB82: 0 | DC82: 0 | DD82: 0 | DE82: 0 | DF82: 0 | DG82: 0 | DH82: 0 | DI82: 0 | DJ82: 0 | DK82: 0 | DL82: 0 | DM82: 0 | DN82: 0 | DO82: 0 | DP82: 0 | DQ82: 0 | DR82: 0 | DS82: 0 | DT82: 0 | DU82: 0 | DV82: 0 | DW82: 0 | DX82: 0 | DY82: 0 | DZ82: 0 | EA82: 0 | EB82: 0 | EC82: 0 | ED82: 0 | EE82: 0 | EF82: 0 | EG82: 0 | EH82: 0 | EI82: 0 | EJ82: 0 | EK82: 0 | EL82: 0 | EM82: 0 | EN82: 0 | EO82: 0 | EP82: 0 | EQ82: 0 | ER82: 0 | ES82: 0 | ET82: 0 | EU82: 0 | EV82: 0 | EW82: 0 | EX82: 0 | EY82: 0 | EZ82: 0 | FA82: 0 | FB82: 0 | FC82: 0 | FD82: 0 | FE82: 0 | FF82: 0 | FG82: 0 | FH82: 0 | FI82: 0 | FJ82: 0 | FK82: 0 | FL82: 0 | FM82: 0 | FN82: 0 | FO82: 0 | FP82: 0 | FQ82: 0 | FR82: 0 | FS82: 0 | FT82: 0 | FU82: 0 | FV82: 0 | FW82: 0 | FX82: 0 | FY82: 0 | FZ82: 0 | GA82: 0 | GB82: 0 | GC82: 0 | GD82: 0 | GE82: 0 | GF82: 0 | GG82: 0 | GH82: 0
CV83: 0 | CW83: 0 | CX83: 0 | CY83: 0 | CZ83: 0 | DA83: 0 | DB83: 0 | DC83: 0 | DD83: 0 | DE83: 0 | DF83: 0 | DG83: 0 | DH83: 0 | DI83: 0 | DJ83: 0 | DK83: 0 | DL83: 0 | DM83: 0 | DN83: 0 | DO83: 0 | DP83: 0 | DQ83: 0 | DR83: 0 | DS83: 0 | DT83: 0 | DU83: 0 | DV83: 0 | DW83: 0 | DX83: 0 | DY83: 0 | DZ83: 0 | EA83: 0 | EB83: 0 | EC83: 0 | ED83: 0 | EE83: 0 | EF83: 0 | EG83: 0 | EH83: 0 | EI83: 0 | EJ83: 0 | EK83: 0 | EL83: 0 | EM83: 0 | EN83: 0 | EO83: 0 | EP83: 0 | EQ83: 0 | ER83: 0 | ES83: 0 | ET83: 0 | EU83: 0 | EV83: 0 | EW83: 0 | EX83: 0 | EY83: 0 | EZ83: 0 | FA83: 0 | FB83: 0 | FC83: 0 | FD83: 0 | FE83: 0 | FF83: 0 | FG83: 0 | FH83: 0 | FI83: 0 | FJ83: 0 | FK83: 0 | FL83: 0 | FM83: 0 | FN83: 0 | FO83: 0 | FP83: 0 | FQ83: 0 | FR83: 0 | FS83: 0 | FT83: 0 | FU83: 0 | FV83: 0 | FW83: 0 | FX83: 0 | FY83: 0 | FZ83: 0 | GA83: 0 | GB83: 0 | GC83: 0 | GD83: 0 | GE83: 0 | GF83: 0 | GG83: 0 | GH83: 0
CV84: 0 | CW84: 0 | CX84: 0 | CY84: 0 | CZ84: 0 | DA84: 0 | DB84: 0 | DC84: 0 | DD84: 0 | DE84: 0 | DF84: 0 | DG84: 0 | DH84: 0 | DI84: 0 | DJ84: 0 | DK84: 0 | DL84: 0 | DM84: 0 | DN84: 0 | DO84: 0 | DP84: 0 | DQ84: 0 | DR84: 0 | DS84: 0 | DT84: 0 | DU84: 0 | DV84: 0 | DW84: 0 | DX84: 0 | DY84: 0 | DZ84: 0 | EA84: 0 | EB84: 0 | EC84: 0 | ED84: 0 | EE84: 0 | EF84: 0 | EG84: 0 | EH84: 0 | EI84: 0 | EJ84: 0 | EK84: 0 | EL84: 0 | EM84: 0 | EN84: 0 | EO84: 0 | EP84: 0 | EQ84: 0 | ER84: 0 | ES84: 0 | ET84: 0 | EU84: 0 | EV84: 0 | EW84: 0 | EX84: 0 | EY84: 0 | EZ84: 0 | FA84: 0 | FB84: 0 | FC84: 0 | FD84: 0 | FE84: 0 | FF84: 0 | FG84: 0 | FH84: 0 | FI84: 0 | FJ84: 0 | FK84: 0 | FL84: 0 | FM84: 0 | FN84: 0 | FO84: 0 | FP84: 0 | FQ84: 0 | FR84: 0 | FS84: 0 | FT84: 0 | FU84: 0 | FV84: 0 | FW84: 0 | FX84: 0 | FY84: 0 | FZ84: 0 | GA84: 0 | GB84: 0 | GC84: 0 | GD84: 0 | GE84: 0 | GF84: 0 | GG84: 0 | GH84: 0
CV85: 0 | CW85: 0 | CX85: 0 | CY85: 0 | CZ85: 0 | DA85: 0 | DB85: 0 | DC85: 0 | DD85: 0 | DE85: 0 | DF85: 0 | DG85: 0 | DH85: 0 | DI85: 0 | DJ85: 0 | DK85: 0 | DL85: 0 | DM85: 0 | DN85: 0 | DO85: 0 | DP85: 0 | DQ85: 0 | DR85: 0 | DS85: 0 | DT85: 0 | DU85: 0 | DV85: 0 | DW85: 0 | DX85: 0 | DY85: 0 | DZ85: 0 | EA85: 0 | EB85: 0 | EC85: 0 | ED85: 0 | EE85: 0 | EF85: 0 | EG85: 0 | EH85: 0 | EI85: 0 | EJ85: 0 | EK85: 0 | EL85: 0 | EM85: 0 | EN85: 0 | EO85: 0 | EP85: 0 | EQ85: 0 | ER85: 0 | ES85: 0 | ET85: 0 | EU85: 0 | EV85: 0 | EW85: 0 | EX85: 0 | EY85: 0 | EZ85: 0 | FA85: 0 | FB85: 0 | FC85: 0 | FD85: 0 | FE85: 0 | FF85: 0 | FG85: 0 | FH85: 0 | FI85: 0 | FJ85: 0 | FK85: 0 | FL85: 0 | FM85: 0 | FN85: 0 | FO85: 0 | FP85: 0 | FQ85: 0 | FR85: 0 | FS85: 0 | FT85: 0 | FU85: 0 | FV85: 0 | FW85: 0 | FX85: 0 | FY85: 0 | FZ85: 0 | GA85: 0 | GB85: 0 | GC85: 0 | GD85: 0 | GE85: 0 | GF85: 0 | GG85: 0 | GH85: 0
CV86: 0 | CW86: 0 | CX86: 0 | CY86: 0 | CZ86: 0 | DA86: 0 | DB86: 0 | DC86: 0 | DD86: 0 | DE86: 0 | DF86: 0 | DG86: 0 | DH86: 0 | DI86: 0 | DJ86: 0 | DK86: 0 | DL86: 0 | DM86: 0 | DN86: 0 | DO86: 0 | DP86: 0 | DQ86: 0 | DR86: 0 | DS86: 0 | DT86: 0 | DU86: 0 | DV86: 0 | DW86: 0 | DX86: 0 | DY86: 0 | DZ86: 0 | EA86: 0 | EB86: 0 | EC86: 0 | ED86: 0 | EE86: 0 | EF86: 0 | EG86: 0 | EH86: 0 | EI86: 0 | EJ86: 0 | EK86: 0 | EL86: 0 | EM86: 0 | EN86: 0 | EO86: 0 | EP86: 0 | EQ86: 0 | ER86: 0 | ES86: 0 | ET86: 0 | EU86: 0 | EV86: 0 | EW86: 0 | EX86: 0 | EY86: 0 | EZ86: 0 | FA86: 0 | FB86: 0 | FC86: 0 | FD86: 0 | FE86: 0 | FF86: 0 | FG86: 0 | FH86: 0 | FI86: 0 | FJ86: 0 | FK86: 0 | FL86: 0 | FM86: 0 | FN86: 0 | FO86: 0 | FP86: 0 | FQ86: 0 | FR86: 0 | FS86: 0 | FT86: 0 | FU86: 0 | FV86: 0 | FW86: 0 | FX86: 0 | FY86: 0 | FZ86: 0 | GA86: 0 | GB86: 0 | GC86: 0 | GD86: 0 | GE86: 0 | GF86: 0 | GG86: 0 | GH86: 0
CV87: 0 | CW87: 0 | CX87: 0 | CY87: 0 | CZ87: 0 | DA87: 0 | DB87: 0 | DC87: 0 | DD87: 0 | DE87: 0 | DF87: 0 | DG87: 0 | DH87: 0 | DI87: 0 | DJ87: 0 | DK87: 0 | DL87: 0 | DM87: 0 | DN87: 0 | DO87: 0 | DP87: 0 | DQ87: 0 | DR87: 0 | DS87: 0 | DT87: 0 | DU87: 0 | DV87: 0 | DW87: 0 | DX87: 0 | DY87: 0 | DZ87: 0 | EA87: 0 | EB87: 0 | EC87: 0 | ED87: 0 | EE87: 0 | EF87: 0 | EG87: 0 | EH87: 0 | EI87: 0 | EJ87: 0 | EK87: 0 | EL87: 0 | EM87: 0 | EN87: 0 | EO87: 0 | EP87: 0 | EQ87: 0 | ER87: 0 | ES87: 0 | ET87: 0 | EU87: 0 | EV87: 0 | EW87: 0 | EX87: 0 | EY87: 0 | EZ87: 0 | FA87: 0 | FB87: 0 | FC87: 0 | FD87: 0 | FE87: 0 | FF87: 0 | FG87: 0 | FH87: 0 | FI87: 0 | FJ87: 0 | FK87: 0 | FL87: 0 | FM87: 0 | FN87: 0 | FO87: 0 | FP87: 0 | FQ87: 0 | FR87: 0 | FS87: 0 | FT87: 0 | FU87: 0 | FV87: 0 | FW87: 0 | FX87: 0 | FY87: 0 | FZ87: 0 | GA87: 0 | GB87: 0 | GC87: 0 | GD87: 0 | GE87: 0 | GF87: 0 | GG87: 0 | GH87: 0
CV88: 0 | CW88: 0 | CX88: 0 | CY88: 0 | CZ88: 0 | DA88: 0 | DB88: 0 | DC88: 0 | DD88: 0 | DE88: 0 | DF88: 0 | DG88: 0 | DH88: 0 | DI88: 0 | DJ88: 0 | DK88: 0 | DL88: 0 | DM88: 0 | DN88: 0 | DO88: 0 | DP88: 0 | DQ88: 0 | DR88: 0 | DS88: 0 | DT88: 0 | DU88: 0 | DV88: 0 | DW88: 0 | DX88: 0 | DY88: 0 | DZ88: 0 | EA88: 0 | EB88: 0 | EC88: 0 | ED88: 0 | EE88: 0 | EF88: 0 | EG88: 0 | EH88: 0 | EI88: 0 | EJ88: 0 | EK88: 0 | EL88: 0 | EM88: 0 | EN88: 0 | EO88: 0 | EP88: 0 | EQ88: 0 | ER88: 0 | ES88: 0 | ET88: 0 | EU88: 0 | EV88: 0 | EW88: 0 | EX88: 0 | EY88: 0 | EZ88: 0 | FA88: 0 | FB88: 0 | FC88: 0 | FD88: 0 | FE88: 0 | FF88: 0 | FG88: 0 | FH88: 0 | FI88: 0 | FJ88: 0 | FK88: 0 | FL88: 0 | FM88: 0 | FN88: 0 | FO88: 0 | FP88: 0 | FQ88: 0 | FR88: 0 | FS88: 0 | FT88: 0 | FU88: 0 | FV88: 0 | FW88: 0 | FX88: 0 | FY88: 0 | FZ88: 0 | GA88: 0 | GB88: 0 | GC88: 0 | GD88: 0 | GE88: 0 | GF88: 0 | GG88: 0 | GH88: 0
CV89: 0 | CW89: 0 | CX89: 0 | CY89: 0 | CZ89: 0 | DA89: 0 | DB89: 0 | DC89: 0 | DD89: 0 | DE89: 0 | DF89: 0 | DG89: 0 | DH89: 0 | DI89: 0 | DJ89: 0 | DK89: 0 | DL89: 0 | DM89: 0 | DN89: 0 | DO89: 0 | DP89: 0 | DQ89: 0 | DR89: 0 | DS89: 0 | DT89: 0 | DU89: 0 | DV89: 0 | DW89: 0 | DX89: 0 | DY89: 0 | DZ89: 0 | EA89: 0 | EB89: 0 | EC89: 0 | ED89: 0 | EE89: 0 | EF89: 0 | EG89: 0 | EH89: 0 | EI89: 0 | EJ89: 0 | EK89: 0 | EL89: 0 | EM89: 0 | EN89: 0 | EO89: 0 | EP89: 0 | EQ89: 0 | ER89: 0 | ES89: 0 | ET89: 0 | EU89: 0 | EV89: 0 | EW89: 0 | EX89: 0 | EY89: 0 | EZ89: 0 | FA89: 0 | FB89: 0 | FC89: 0 | FD89: 0 | FE89: 0 | FF89: 0 | FG89: 0 | FH89: 0 | FI89: 0 | FJ89: 0 | FK89: 0 | FL89: 0 | FM89: 0 | FN89: 0 | FO89: 0 | FP89: 0 | FQ89: 0 | FR89: 0 | FS89: 0 | FT89: 0 | FU89: 0 | FV89: 0 | FW89: 0 | FX89: 0 | FY89: 0 | FZ89: 0 | GA89: 0 | GB89: 0 | GC89: 0 | GD89: 0 | GE89: 0 | GF89: 0 | GG89: 0 | GH89: 0
CV90: 0 | CW90: 0 | CX90: 0 | CY90: 0 | CZ90: 0 | DA90: 0 | DB90: 0 | DC90: 0 | DD90: 0 | DE90: 0 | DF90: 0 | DG90: 0 | DH90: 0 | DI90: 0 | DJ90: 0 | DK90: 0 | DL90: 0 | DM90: 0 | DN90: 0 | DO90: 0 | DP90: 0 | DQ90: 0 | DR90: 0 | DS90: 0 | DT90: 0 | DU90: 0 | DV90: 0 | DW90: 0 | DX90: 0 | DY90: 0 | DZ90: 0 | EA90: 0 | EB90: 0 | EC90: 0 | ED90: 0 | EE90: 0 | EF90: 0 | EG90: 0 | EH90: 0 | EI90: 0 | EJ90: 0 | EK90: 0 | EL90: 0 | EM90: 0 | EN90: 0 | EO90: 0 | EP90: 0 | EQ90: 0 | ER90: 0 | ES90: 0 | ET90: 0 | EU90: 0 | EV90: 0 | EW90: 0 | EX90: 0 | EY90: 0 | EZ90: 0 | FA90: 0 | FB90: 0 | FC90: 0 | FD90: 0 | FE90: 0 | FF90: 0 | FG90: 0 | FH90: 0 | FI90: 0 | FJ90: 0 | FK90: 0 | FL90: 0 | FM90: 0 | FN90: 0 | FO90: 0 | FP90: 0 | FQ90: 0 | FR90: 0 | FS90: 0 | FT90: 0 | FU90: 0 | FV90: 0 | FW90: 0 | FX90: 0 | FY90: 0 | FZ90: 0 | GA90: 0 | GB90: 0 | GC90: 0 | GD90: 0 | GE90: 0 | GF90: 0 | GG90: 0 | GH90: 0
CV91: 0 | CW91: 0 | CX91: 0 | CY91: 0 | CZ91: 0 | DA91: 0 | DB91: 0 | DC91: 0 | DD91: 0 | DE91: 0 | DF91: 0 | DG91: 0 | DH91: 0 | DI91: 0 | DJ91: 0 | DK91: 0 | DL91: 0 | DM91: 0 | DN91: 0 | DO91: 0 | DP91: 0 | DQ91: 0 | DR91: 0 | DS91: 0 | DT91: 0 | DU91: 0 | DV91: 0 | DW91: 0 | DX91: 0 | DY91: 0 | DZ91: 0 | EA91: 0 | EB91: 0 | EC91: 0 | ED91: 0 | EE91: 0 | EF91: 0 | EG91: 0 | EH91: 0 | EI91: 0 | EJ91: 0 | EK91: 0 | EL91: 0 | EM91: 0 | EN91: 0 | EO91: 0 | EP91: 0 | EQ91: 0 | ER91: 0 | ES91: 0 | ET91: 0 | EU91: 0 | EV91: 0 | EW91: 0 | EX91: 0 | EY91: 0 | EZ91: 0 | FA91: 0 | FB91: 0 | FC91: 0 | FD91: 0 | FE91: 0 | FF91: 0 | FG91: 0 | FH91: 0 | FI91: 0 | FJ91: 0 | FK91: 0 | FL91: 0 | FM91: 0 | FN91: 0 | FO91: 0 | FP91: 0 | FQ91: 0 | FR91: 0 | FS91: 0 | FT91: 0 | FU91: 0 | FV91: 0 | FW91: 0 | FX91: 0 | FY91: 0 | FZ91: 0 | GA91: 0 | GB91: 0 | GC91: 0 | GD91: 0 | GE91: 0 | GF91: 0 | GG91: 0 | GH91: 0
CV92: 0 | CW92: 0 | CX92: 0 | CY92: 0 | CZ92: 0 | DA92: 0 | DB92: 0 | DC92: 0 | DD92: 0 | DE92: 0 | DF92: 0 | DG92: 0 | DH92: 0 | DI92: 0 | DJ92: 0 | DK92: 0 | DL92: 0 | DM92: 0 | DN92: 0 | DO92: 0 | DP92: 0 | DQ92: 0 | DR92: 0 | DS92: 0 | DT92: 0 | DU92: 0 | DV92: 0 | DW92: 0 | DX92: 0 | DY92: 0 | DZ92: 0 | EA92: 0 | EB92: 0 | EC92: 0 | ED92: 0 | EE92: 0 | EF92: 0 | EG92: 0 | EH92: 0 | EI92: 0 | EJ92: 0 | EK92: 0 | EL92: 0 | EM92: 0 | EN92: 0 | EO92: 0 | EP92: 0 | EQ92: 0 | ER92: 0 | ES92: 0 | ET92: 0 | EU92: 0 | EV92: 0 | EW92: 0 | EX92: 0 | EY92: 0 | EZ92: 0 | FA92: 0 | FB92: 0 | FC92: 0 | FD92: 0 | FE92: 0 | FF92: 0 | FG92: 0 | FH92: 0 | FI92: 0 | FJ92: 0 | FK92: 0 | FL92: 0 | FM92: 0 | FN92: 0 | FO92: 0 | FP92: 0 | FQ92: 0 | FR92: 0 | FS92: 0 | FT92: 0 | FU92: 0 | FV92: 0 | FW92: 0 | FX92: 0 | FY92: 0 | FZ92: 0 | GA92: 0 | GB92: 0 | GC92: 0 | GD92: 0 | GE92: 0 | GF92: 0 | GG92: 0 | GH92: 0
CV93: 0 | CW93: 0 | CX93: 0 | CY93: 0 | CZ93: 0 | DA93: 0 | DB93: 0 | DC93: 0 | DD93: 0 | DE93: 0 | DF93: 0 | DG93: 0 | DH93: 0 | DI93: 0 | DJ93: 0 | DK93: 0 | DL93: 0 | DM93: 0 | DN93: 0 | DO93: 0 | DP93: 0 | DQ93: 0 | DR93: 0 | DS93: 0 | DT93: 0 | DU93: 0 | DV93: 0 | DW93: 0 | DX93: 0 | DY93: 0 | DZ93: 0 | EA93: 0 | EB93: 0 | EC93: 0 | ED93: 0 | EE93: 0 | EF93: 0 | EG93: 0 | EH93: 0 | EI93: 0 | EJ93: 0 | EK93: 0 | EL93: 0 | EM93: 0 | EN93: 0 | EO93: 0 | EP93: 0 | EQ93: 0 | ER93: 0 | ES93: 0 | ET93: 0 | EU93: 0 | EV93: 0 | EW93: 0 | EX93: 0 | EY93: 0 | EZ93: 0 | FA93: 0 | FB93: 0 | FC93: 0 | FD93: 0 | FE93: 0 | FF93: 0 | FG93: 0 | FH93: 0 | FI93: 0 | FJ93: 0 | FK93: 0 | FL93: 0 | FM93: 0 | FN93: 0 | FO93: 0 | FP93: 0 | FQ93: 0 | FR93: 0 | FS93: 0 | FT93: 0 | FU93: 0 | FV93: 0 | FW93: 0 | FX93: 0 | FY93: 0 | FZ93: 0 | GA93: 0 | GB93: 0 | GC93: 0 | GD93: 0 | GE93: 0 | GF93: 0 | GG93: 0 | GH93: 0
CV94: 0 | CW94: 0 | CX94: 0 | CY94: 0 | CZ94: 0 | DA94: 0 | DB94: 0 | DC94: 0 | DD94: 0 | DE94: 0 | DF94: 0 | DG94: 0 | DH94: 0 | DI94: 0 | DJ94: 0 | DK94: 0 | DL94: 0 | DM94: 0 | DN94: 0 | DO94: 0 | DP94: 0 | DQ94: 0 | DR94: 0 | DS94: 0 | DT94: 0 | DU94: 0 | DV94: 0 | DW94: 0 | DX94: 0 | DY94: 0 | DZ94: 0 | EA94: 0 | EB94: 0 | EC94: 0 | ED94: 0 | EE94: 0 | EF94: 0 | EG94: 0 | EH94: 0 | EI94: 0 | EJ94: 0 | EK94: 0 | EL94: 0 | EM94: 0 | EN94: 0 | EO94: 0 | EP94: 0 | EQ94: 0 | ER94: 0 | ES94: 0 | ET94: 0 | EU94: 0 | EV94: 0 | EW94: 0 | EX94: 0 | EY94: 0 | EZ94: 0 | FA94: 0 | FB94: 0 | FC94: 0 | FD94: 0 | FE94: 0 | FF94: 0 | FG94: 0 | FH94: 0 | FI94: 0 | FJ94: 0 | FK94: 0 | FL94: 0 | FM94: 0 | FN94: 0 | FO94: 0 | FP94: 0 | FQ94: 0 | FR94: 0 | FS94: 0 | FT94: 0 | FU94: 0 | FV94: 0 | FW94: 0 | FX94: 0 | FY94: 0 | FZ94: 0 | GA94: 0 | GB94: 0 | GC94: 0 | GD94: 0 | GE94: 0 | GF94: 0 | GG94: 0 | GH94: 0
CV95: 0 | CW95: 0 | CX95: 0 | CY95: 0 | CZ95: 0 | DA95: 0 | DB95: 0 | DC95: 0 | DD95: 0 | DE95: 0 | DF95: 0 | DG95: 0 | DH95: 0 | DI95: 0 | DJ95: 0 | DK95: 0 | DL95: 0 | DM95: 0 | DN95: 0 | DO95: 0 | DP95: 0 | DQ95: 0 | DR95: 0 | DS95: 0 | DT95: 0 | DU95: 0 | DV95: 0 | DW95: 0 | DX95: 0 | DY95: 0 | DZ95: 0 | EA95: 0 | EB95: 0 | EC95: 0 | ED95: 0 | EE95: 0 | EF95: 0 | EG95: 0 | EH95: 0 | EI95: 0 | EJ95: 0 | EK95: 0 | EL95: 0 | EM95: 0 | EN95: 0 | EO95: 0 | EP95: 0 | EQ95: 0 | ER95: 0 | ES95: 0 | ET95: 0 | EU95: 0 | EV95: 0 | EW95: 0 | EX95: 0 | EY95: 0 | EZ95: 0 | FA95: 0 | FB95: 0 | FC95: 0 | FD95: 0 | FE95: 0 | FF95: 0 | FG95: 0 | FH95: 0 | FI95: 0 | FJ95: 0 | FK95: 0 | FL95: 0 | FM95: 0 | FN95: 0 | FO95: 0 | FP95: 0 | FQ95: 0 | FR95: 0 | FS95: 0 | FT95: 0 | FU95: 0 | FV95: 0 | FW95: 0 | FX95: 0 | FY95: 0 | FZ95: 0 | GA95: 0 | GB95: 0 | GC95: 0 | GD95: 0 | GE95: 0 | GF95: 0 | GG95: 0 | GH95: 0
CV96: 0 | CW96: 0 | CX96: 0 | CY96: 0 | CZ96: 0 | DA96: 0 | DB96: 0 | DC96: 0 | DD96: 0 | DE96: 0 | DF96: 0 | DG96: 0 | DH96: 0 | DI96: 0 | DJ96: 0 | DK96: 0 | DL96: 0 | DM96: 0 | DN96: 0 | DO96: 0 | DP96: 0 | DQ96: 0 | DR96: 0 | DS96: 0 | DT96: 0 | DU96: 0 | DV96: 0 | DW96: 0 | DX96: 0 | DY96: 0 | DZ96: 0 | EA96: 0 | EB96: 0 | EC96: 0 | ED96: 0 | EE96: 0 | EF96: 0 | EG96: 0 | EH96: 0 | EI96: 0 | EJ96: 0 | EK96: 0 | EL96: 0 | EM96: 0 | EN96: 0 | EO96: 0 | EP96: 0 | EQ96: 0 | ER96: 0 | ES96: 0 | ET96: 0 | EU96: 0 | EV96: 0 | EW96: 0 | EX96: 0 | EY96: 0 | EZ96: 0 | FA96: 0 | FB96: 0 | FC96: 0 | FD96: 0 | FE96: 0 | FF96: 0 | FG96: 0 | FH96: 0 | FI96: 0 | FJ96: 0 | FK96: 0 | FL96: 0 | FM96: 0 | FN96: 0 | FO96: 0 | FP96: 0 | FQ96: 0 | FR96: 0 | FS96: 0 | FT96: 0 | FU96: 0 | FV96: 0 | FW96: 0 | FX96: 0 | FY96: 0 | FZ96: 0 | GA96: 0 | GB96: 0 | GC96: 0 | GD96: 0 | GE96: 0 | GF96: 0 | GG96: 0 | GH96: 0
CV97: 0 | CW97: 0 | CX97: 0 | CY97: 0 | CZ97: 0 | DA97: 0 | DB97: 0 | DC97: 0 | DD97: 0 | DE97: 0 | DF97: 0 | DG97: 0 | DH97: 0 | DI97: 0 | DJ97: 0 | DK97: 0 | DL97: 0 | DM97: 0 | DN97: 0 | DO97: 0 | DP97: 0 | DQ97: 0 | DR97: 0 | DS97: 0 | DT97: 0 | DU97: 0 | DV97: 0 | DW97: 0 | DX97: 0 | DY97: 0 | DZ97: 0 | EA97: 0 | EB97: 0 | EC97: 0 | ED97: 0 | EE97: 0 | EF97: 0 | EG97: 0 | EH97: 0 | EI97: 0 | EJ97: 0 | EK97: 0 | EL97: 0 | EM97: 0 | EN97: 0 | EO97: 0 | EP97: 0 | EQ97: 0 | ER97: 0 | ES97: 0 | ET97: 0 | EU97: 0 | EV97: 0 | EW97: 0 | EX97: 0 | EY97: 0 | EZ97: 0 | FA97: 0 | FB97: 0 | FC97: 0 | FD97: 0 | FE97: 0 | FF97: 0 | FG97: 0 | FH97: 0 | FI97: 0 | FJ97: 0 | FK97: 0 | FL97: 0 | FM97: 0 | FN97: 0 | FO97: 0 | FP97: 0 | FQ97: 0 | FR97: 0 | FS97: 0 | FT97: 0 | FU97: 0 | FV97: 0 | FW97: 0 | FX97: 0 | FY97: 0 | FZ97: 0 | GA97: 0 | GB97: 0 | GC97: 0 | GD97: 0 | GE97: 0 | GF97: 0 | GG97: 0 | GH97: 0
CV98: 0 | CW98: 0 | CX98: 0 | CY98: 0 | CZ98: 0 | DA98: 0 | DB98: 0 | DC98: 0 | DD98: 0 | DE98: 0 | DF98: 0 | DG98: 0 | DH98: 0 | DI98: 0 | DJ98: 0 | DK98: 0 | DL98: 0 | DM98: 0 | DN98: 0 | DO98: 0 | DP98: 0 | DQ98: 0 | DR98: 0 | DS98: 0 | DT98: 0 | DU98: 0 | DV98: 0 | DW98: 0 | DX98: 0 | DY98: 0 | DZ98: 0 | EA98: 0 | EB98: 0 | EC98: 0 | ED98: 0 | EE98: 0 | EF98: 0 | EG98: 0 | EH98: 0 | EI98: 0 | EJ98: 0 | EK98: 0 | EL98: 0 | EM98: 0 | EN98: 0 | EO98: 0 | EP98: 0 | EQ98: 0 | ER98: 0 | ES98: 0 | ET98: 0 | EU98: 0 | EV98: 0 | EW98: 0 | EX98: 0 | EY98: 0 | EZ98: 0 | FA98: 0 | FB98: 0 | FC98: 0 | FD98: 0 | FE98: 0 | FF98: 0 | FG98: 0 | FH98: 0 | FI98: 0 | FJ98: 0 | FK98: 0 | FL98: 0 | FM98: 0 | FN98: 0 | FO98: 0 | FP98: 0 | FQ98: 0 | FR98: 0 | FS98: 0 | FT98: 0 | FU98: 0 | FV98: 0 | FW98: 0 | FX98: 0 | FY98: 0 | FZ98: 0 | GA98: 0 | GB98: 0 | GC98: 0 | GD98: 0 | GE98: 0 | GF98: 0 | GG98: 0 | GH98: 0
CV99: 0 | CW99: 0 | CX99: 0 | CY99: 0 | CZ99: 0 | DA99: 0 | DB99: 0 | DC99: 0 | DD99: 0 | DE99: 0 | DF99: 0 | DG99: 0 | DH99: 0 | DI99: 0 | DJ99: 0 | DK99: 0 | DL99: 0 | DM99: 0 | DN99: 0 | DO99: 0 | DP99: 0 | DQ99: 0 | DR99: 0 | DS99: 0 | DT99: 0 | DU99: 0 | DV99: 0 | DW99: 0 | DX99: 0 | DY99: 0 | DZ99: 0 | EA99: 0 | EB99: 0 | EC99: 0 | ED99: 0 | EE99: 0 | EF99: 0 | EG99: 0 | EH99: 0 | EI99: 0 | EJ99: 0 | EK99: 0 | EL99: 0 | EM99: 0 | EN99: 0 | EO99: 0 | EP99: 0 | EQ99: 0 | ER99: 0 | ES99: 0 | ET99: 0 | EU99: 0 | EV99: 0 | EW99: 0 | EX99: 0 | EY99: 0 | EZ99: 0 | FA99: 0 | FB99: 0 | FC99: 0 | FD99: 0 | FE99: 0 | FF99: 0 | FG99: 0 | FH99: 0 | FI99: 0 | FJ99: 0 | FK99: 0 | FL99: 0 | FM99: 0 | FN99: 0 | FO99: 0 | FP99: 0 | FQ99: 0 | FR99: 0 | FS99: 0 | FT99: 0 | FU99: 0 | FV99: 0 | FW99: 0 | FX99: 0 | FY99: 0 | FZ99: 0 | GA99: 0 | GB99: 0 | GC99: 0 | GD99: 0 | GE99: 0 | GF99: 0 | GG99: 0 | GH99: 0
CV100: 0 | CW100: 0 | CX100: 0 | CY100: 0 | CZ100: 0 | DA100: 0 | DB100: 0 | DC100: 0 | DD100: 0 | DE100: 0 | DF100: 0 | DG100: 0 | DH100: 0 | DI100: 0 | DJ100: 0 | DK100: 0 | DL100: 0 | DM100: 0 | DN100: 0 | DO100: 0 | DP100: 0 | DQ100: 0 | DR100: 0 | DS100: 0 | DT100: 0 | DU100: 0 | DV100: 0 | DW100: 0 | DX100: 0 | DY100: 0 | DZ100: 0 | EA100: 0 | EB100: 0 | EC100: 0 | ED100: 0 | EE100: 0 | EF100: 0 | EG100: 0 | EH100: 0 | EI100: 0 | EJ100: 0 | EK100: 0 | EL100: 0 | EM100: 0 | EN100: 0 | EO100: 0 | EP100: 0 | EQ100: 0 | ER100: 0 | ES100: 0 | ET100: 0 | EU100: 0 | EV100: 0 | EW100: 0 | EX100: 0 | EY100: 0 | EZ100: 0 | FA100: 0 | FB100: 0 | FC100: 0 | FD100: 0 | FE100: 0 | FF100: 0 | FG100: 0 | FH100: 0 | FI100: 0 | FJ100: 0 | FK100: 0 | FL100: 0 | FM100: 0 | FN100: 0 | FO100: 0 | FP100: 0 | FQ100: 0 | FR100: 0 | FS100: 0 | FT100: 0 | FU100: 0 | FV100: 0 | FW100: 0 | FX100: 0 | FY100: 0 | FZ100: 0 | GA100: 0 | GB100: 0 | GC100: 0 | GD100: 0 | GE100: 0 | GF100: 0 | GG100: 0 | GH100: 0
CV101: =IFERROR($D101*H101,"") -> 0 | CW101: =IFERROR($D101*I101,"") -> 0 | CX101: =IFERROR($D101*J101,"") -> 0 | CY101: =IFERROR($D101*K101,"") -> 0 | CZ101: =IFERROR($D101*L101,"") -> 0 | DA101: =IFERROR($D101*M101,"") -> 0 | DB101: =IFERROR($D101*N101,"") -> 0 | DC101: =IFERROR($D101*O101,"") -> 0 | DD101: =IFERROR($D101*P101,"") -> 0 | DE101: =IFERROR($D101*Q101,"") -> 0 | DF101: =IFERROR($D101*R101,"") -> 0 | DG101: =IFERROR($D101*S101,"") -> 0 | DH101: =IFERROR($D101*T101,"") -> 0 | DI101: =IFERROR($D101*U101,"") -> 0 | DJ101: =IFERROR($D101*V101,"") -> 0 | DK101: =IFERROR($D101*W101,"") -> 0 | DL101: =IFERROR($D101*X101,"") -> 0 | DM101: =IFERROR($D101*Y101,"") -> 0 | DN101: =IFERROR($D101*Z101,"") -> 0 | DO101: =IFERROR($D101*AA101,"") -> 0 | DP101: =IFERROR($D101*AB101,"") -> 0 | DQ101: =IFERROR($D101*AC101,"") -> 0 | DR101: =IFERROR($D101*AD101,"") -> 0 | DS101: =IFERROR($D101*AE101,"") -> 0 | DT101: =IFERROR($D101*AF101,"") -> 0 | DU101: =IFERROR($D101*AG101,"") -> 0 | DV101: =IFERROR($D101*AH101,"") -> 0 | DW101: =IFERROR($D101*AI101,"") -> 0 | DX101: =IFERROR($D101*AJ101,"") -> 0 | DY101: =IFERROR($D101*AK101,"") -> 0 | DZ101: =IFERROR($D101*AL101,"") -> 0 | EA101: =IFERROR($D101*AM101,"") -> 0 | EB101: =IFERROR($D101*AN101,"") -> 0 | EC101: =IFERROR($D101*AO101,"") -> 0 | ED101: =IFERROR($D101*AP101,"") -> 0 | EE101: =IFERROR($D101*AQ101,"") -> 0 | EF101: =IFERROR($D101*AR101,"") -> 0 | EG101: =IFERROR($D101*AS101,"") -> 0 | EH101: =IFERROR($D101*AT101,"") -> 0 | EI101: =IFERROR($D101*AU101,"") -> 0 | EJ101: =IFERROR($D101*AV101,"") -> 0 | EK101: =IFERROR($D101*AW101,"") -> 0 | EL101: =IFERROR($D101*AX101,"") -> 0 | EM101: =IFERROR($D101*AY101,"") -> 0 | EN101: =IFERROR($D101*AZ101,"") -> 0 | EO101: =IFERROR($D101*BA101,"") -> 0 | EP101: =IFERROR($D101*BB101,"") -> 0 | EQ101: =IFERROR($D101*BC101,"") -> 0 | ER101: =IFERROR($D101*BD101,"") -> 0 | ES101: =IFERROR($D101*BE101,"") -> 0 | ET101: =IFERROR($D101*BF101,"") -> 0 | EU101: =IFERROR($D101*BG101,"") -> 0 | EV101: =IFERROR($D101*BH101,"") -> 0 | EW101: =IFERROR($D101*BI101,"") -> 0 | EX101: =IFERROR($D101*BJ101,"") -> 0 | EY101: =IFERROR($D101*BK101,"") -> 0 | EZ101: =IFERROR($D101*BL101,"") -> 0 | FA101: =IFERROR($D101*BM101,"") -> 0 | FB101: =IFERROR($D101*BN101,"") -> 0 | FC101: =IFERROR($D101*BO101,"") -> 0 | FD101: =IFERROR($D101*BP101,"") -> 0 | FE101: =IFERROR($D101*BQ101,"") -> 0 | FF101: =IFERROR($D101*BR101,"") -> 0 | FG101: =IFERROR($D101*BS101,"") -> 0 | FH101: =IFERROR($D101*BT101,"") -> 0 | FI101: =IFERROR($D101*BU101,"") -> 0 | FJ101: =IFERROR($D101*BV101,"") -> 0 | FK101: =IFERROR($D101*BW101,"") -> 0 | FL101: =IFERROR($D101*BX101,"") -> 0 | FM101: =IFERROR($D101*BY101,"") -> 0 | FN101: =IFERROR($D101*BZ101,"") -> 0 | FO101: =IFERROR($D101*CA101,"") -> 0 | FP101: =IFERROR($D101*CB101,"") -> 0 | FQ101: =IFERROR($D101*CC101,"") -> 0 | FR101: =IFERROR($D101*CD101,"") -> 0 | FS101: =IFERROR($D101*CE101,"") -> 0 | FT101: =IFERROR($D101*CF101,"") -> 0 | FU101: =IFERROR($D101*CG101,"") -> 0 | FV101: =IFERROR($D101*CH101,"") -> 0 | FW101: =IFERROR($D101*CI101,"") -> 0 | FX101: =IFERROR($D101*CJ101,"") -> 0 | FY101: =IFERROR($D101*CK101,"") -> 0 | FZ101: =IFERROR($D101*CL101,"") -> 0 | GA101: =IFERROR($D101*CM101,"") -> 0 | GB101: =IFERROR($D101*CN101,"") -> 0 | GC101: =IFERROR($D101*CO101,"") -> 0 | GD101: =IFERROR($D101*CP101,"") -> 0 | GE101: =IFERROR($D101*CQ101,"") -> 0 | GF101: =IFERROR($D101*CR101,"") -> 0 | GG101: =IFERROR($D101*CS101,"") -> 0 | GH101: =IFERROR($D101*CT101,"") -> 0
CV102: 0 | CW102: 0 | CX102: 0 | CY102: 0 | CZ102: 0 | DA102: 0 | DB102: 0 | DC102: 0 | DD102: 0 | DE102: 0 | DF102: 0 | DG102: 0 | DH102: 0 | DI102: 0 | DJ102: 0 | DK102: 0 | DL102: 0 | DM102: 0 | DN102: 0 | DO102: 0 | DP102: 0 | DQ102: 0 | DR102: 0 | DS102: 0 | DT102: 0 | DU102: 0 | DV102: 0 | DW102: 0 | DX102: 0 | DY102: 0 | DZ102: 0 | EA102: 0 | EB102: 0 | EC102: 0 | ED102: 0 | EE102: 0 | EF102: 0 | EG102: 0 | EH102: 0 | EI102: 0 | EJ102: 0 | EK102: 0 | EL102: 0 | EM102: 0 | EN102: 0 | EO102: 0 | EP102: 0 | EQ102: 0 | ER102: 0 | ES102: 0 | ET102: 0 | EU102: 0 | EV102: 0 | EW102: 0 | EX102: 0 | EY102: 0 | EZ102: 0 | FA102: 0 | FB102: 0 | FC102: 0 | FD102: 0 | FE102: 0 | FF102: 0 | FG102: 0 | FH102: 0 | FI102: 0 | FJ102: 0 | FK102: 0 | FL102: 0 | FM102: 0 | FN102: 0 | FO102: 0 | FP102: 0 | FQ102: 0 | FR102: 0 | FS102: 0 | FT102: 0 | FU102: 0 | FV102: 0 | FW102: 0 | FX102: 0 | FY102: 0 | FZ102: 0 | GA102: 0 | GB102: 0 | GC102: 0 | GD102: 0 | GE102: 0 | GF102: 0 | GG102: 0 | GH102: 0
CV103: 0 | CW103: 0 | CX103: 0 | CY103: 0 | CZ103: 0 | DA103: 0 | DB103: 0 | DC103: 0 | DD103: 0 | DE103: 0 | DF103: 0 | DG103: 0 | DH103: 0 | DI103: 0 | DJ103: 0 | DK103: 0 | DL103: 0 | DM103: 0 | DN103: 0 | DO103: 0 | DP103: 0 | DQ103: 0 | DR103: 0 | DS103: 0 | DT103: 0 | DU103: 0 | DV103: 0 | DW103: 0 | DX103: 0 | DY103: 0 | DZ103: 0 | EA103: 0 | EB103: 0 | EC103: 0 | ED103: 0 | EE103: 0 | EF103: 0 | EG103: 0 | EH103: 0 | EI103: 0 | EJ103: 0 | EK103: 0 | EL103: 0 | EM103: 0 | EN103: 0 | EO103: 0 | EP103: 0 | EQ103: 0 | ER103: 0 | ES103: 0 | ET103: 0 | EU103: 0 | EV103: 0 | EW103: 0 | EX103: 0 | EY103: 0 | EZ103: 0 | FA103: 0 | FB103: 0 | FC103: 0 | FD103: 0 | FE103: 0 | FF103: 0 | FG103: 0 | FH103: 0 | FI103: 0 | FJ103: 0 | FK103: 0 | FL103: 0 | FM103: 0 | FN103: 0 | FO103: 0 | FP103: 0 | FQ103: 0 | FR103: 0 | FS103: 0 | FT103: 0 | FU103: 0 | FV103: 0 | FW103: 0 | FX103: 0 | FY103: 0 | FZ103: 0 | GA103: 0 | GB103: 0 | GC103: 0 | GD103: 0 | GE103: 0 | GF103: 0 | GG103: 0 | GH103: 0
CV104: 0 | CW104: 0 | CX104: 0 | CY104: 0 | CZ104: 0 | DA104: 0 | DB104: 0 | DC104: 0 | DD104: 0 | DE104: 0 | DF104: 0 | DG104: 0 | DH104: 0 | DI104: 0 | DJ104: 0 | DK104: 0 | DL104: 0 | DM104: 0 | DN104: 0 | DO104: 0 | DP104: 0 | DQ104: 0 | DR104: 0 | DS104: 0 | DT104: 0 | DU104: 0 | DV104: 0 | DW104: 0 | DX104: 0 | DY104: 0 | DZ104: 0 | EA104: 0 | EB104: 0 | EC104: 0 | ED104: 0 | EE104: 0 | EF104: 0 | EG104: 0 | EH104: 0 | EI104: 0 | EJ104: 0 | EK104: 0 | EL104: 0 | EM104: 0 | EN104: 0 | EO104: 0 | EP104: 0 | EQ104: 0 | ER104: 0 | ES104: 0 | ET104: 0 | EU104: 0 | EV104: 0 | EW104: 0 | EX104: 0 | EY104: 0 | EZ104: 0 | FA104: 0 | FB104: 0 | FC104: 0 | FD104: 0 | FE104: 0 | FF104: 0 | FG104: 0 | FH104: 0 | FI104: 0 | FJ104: 0 | FK104: 0 | FL104: 0 | FM104: 0 | FN104: 0 | FO104: 0 | FP104: 0 | FQ104: 0 | FR104: 0 | FS104: 0 | FT104: 0 | FU104: 0 | FV104: 0 | FW104: 0 | FX104: 0 | FY104: 0 | FZ104: 0 | GA104: 0 | GB104: 0 | GC104: 0 | GD104: 0 | GE104: 0 | GF104: 0 | GG104: 0 | GH104: 0
CV105: 0 | CW105: 0 | CX105: 0 | CY105: 0 | CZ105: 0 | DA105: 0 | DB105: 0 | DC105: 0 | DD105: 0 | DE105: 0 | DF105: 0 | DG105: 0 | DH105: 0 | DI105: 0 | DJ105: 0 | DK105: 0 | DL105: 0 | DM105: 0 | DN105: 0 | DO105: 0 | DP105: 0 | DQ105: 0 | DR105: 0 | DS105: 0 | DT105: 0 | DU105: 0 | DV105: 0 | DW105: 0 | DX105: 0 | DY105: 0 | DZ105: 0 | EA105: 0 | EB105: 0 | EC105: 0 | ED105: 0 | EE105: 0 | EF105: 0 | EG105: 0 | EH105: 0 | EI105: 0 | EJ105: 0 | EK105: 0 | EL105: 0 | EM105: 0 | EN105: 0 | EO105: 0 | EP105: 0 | EQ105: 0 | ER105: 0 | ES105: 0 | ET105: 0 | EU105: 0 | EV105: 0 | EW105: 0 | EX105: 0 | EY105: 0 | EZ105: 0 | FA105: 0 | FB105: 0 | FC105: 0 | FD105: 0 | FE105: 0 | FF105: 0 | FG105: 0 | FH105: 0 | FI105: 0 | FJ105: 0 | FK105: 0 | FL105: 0 | FM105: 0 | FN105: 0 | FO105: 0 | FP105: 0 | FQ105: 0 | FR105: 0 | FS105: 0 | FT105: 0 | FU105: 0 | FV105: 0 | FW105: 0 | FX105: 0 | FY105: 0 | FZ105: 0 | GA105: 0 | GB105: 0 | GC105: 0 | GD105: 0 | GE105: 0 | GF105: 0 | GG105: 0 | GH105: 0
CV106: 0 | CW106: 0 | CX106: 0 | CY106: 0 | CZ106: 0 | DA106: 0 | DB106: 0 | DC106: 0 | DD106: 0 | DE106: 0 | DF106: 0 | DG106: 0 | DH106: 0 | DI106: 0 | DJ106: 0 | DK106: 0 | DL106: 0 | DM106: 0 | DN106: 0 | DO106: 0 | DP106: 0 | DQ106: 0 | DR106: 0 | DS106: 0 | DT106: 0 | DU106: 0 | DV106: 0 | DW106: 0 | DX106: 0 | DY106: 0 | DZ106: 0 | EA106: 0 | EB106: 0 | EC106: 0 | ED106: 0 | EE106: 0 | EF106: 0 | EG106: 0 | EH106: 0 | EI106: 0 | EJ106: 0 | EK106: 0 | EL106: 0 | EM106: 0 | EN106: 0 | EO106: 0 | EP106: 0 | EQ106: 0 | ER106: 0 | ES106: 0 | ET106: 0 | EU106: 0 | EV106: 0 | EW106: 0 | EX106: 0 | EY106: 0 | EZ106: 0 | FA106: 0 | FB106: 0 | FC106: 0 | FD106: 0 | FE106: 0 | FF106: 0 | FG106: 0 | FH106: 0 | FI106: 0 | FJ106: 0 | FK106: 0 | FL106: 0 | FM106: 0 | FN106: 0 | FO106: 0 | FP106: 0 | FQ106: 0 | FR106: 0 | FS106: 0 | FT106: 0 | FU106: 0 | FV106: 0 | FW106: 0 | FX106: 0 | FY106: 0 | FZ106: 0 | GA106: 0 | GB106: 0 | GC106: 0 | GD106: 0 | GE106: 0 | GF106: 0 | GG106: 0 | GH106: 0
CV107: 0 | CW107: 0 | CX107: 0 | CY107: 0 | CZ107: 0 | DA107: 0 | DB107: 0 | DC107: 0 | DD107: 0 | DE107: 0 | DF107: 0 | DG107: 0 | DH107: 0 | DI107: 0 | DJ107: 0 | DK107: 0 | DL107: 0 | DM107: 0 | DN107: 0 | DO107: 0 | DP107: 0 | DQ107: 0 | DR107: 0 | DS107: 0 | DT107: 0 | DU107: 0 | DV107: 0 | DW107: 0 | DX107: 0 | DY107: 0 | DZ107: 0 | EA107: 0 | EB107: 0 | EC107: 0 | ED107: 0 | EE107: 0 | EF107: 0 | EG107: 0 | EH107: 0 | EI107: 0 | EJ107: 0 | EK107: 0 | EL107: 0 | EM107: 0 | EN107: 0 | EO107: 0 | EP107: 0 | EQ107: 0 | ER107: 0 | ES107: 0 | ET107: 0 | EU107: 0 | EV107: 0 | EW107: 0 | EX107: 0 | EY107: 0 | EZ107: 0 | FA107: 0 | FB107: 0 | FC107: 0 | FD107: 0 | FE107: 0 | FF107: 0 | FG107: 0 | FH107: 0 | FI107: 0 | FJ107: 0 | FK107: 0 | FL107: 0 | FM107: 0 | FN107: 0 | FO107: 0 | FP107: 0 | FQ107: 0 | FR107: 0 | FS107: 0 | FT107: 0 | FU107: 0 | FV107: 0 | FW107: 0 | FX107: 0 | FY107: 0 | FZ107: 0 | GA107: 0 | GB107: 0 | GC107: 0 | GD107: 0 | GE107: 0 | GF107: 0 | GG107: 0 | GH107: 0
CV108: 0 | CW108: 0 | CX108: 0 | CY108: 0 | CZ108: 0 | DA108: 0 | DB108: 0 | DC108: 0 | DD108: 0 | DE108: 0 | DF108: 0 | DG108: 0 | DH108: 0 | DI108: 0 | DJ108: 0 | DK108: 0 | DL108: 0 | DM108: 0 | DN108: 0 | DO108: 0 | DP108: 0 | DQ108: 0 | DR108: 0 | DS108: 0 | DT108: 0 | DU108: 0 | DV108: 0 | DW108: 0 | DX108: 0 | DY108: 0 | DZ108: 0 | EA108: 0 | EB108: 0 | EC108: 0 | ED108: 0 | EE108: 0 | EF108: 0 | EG108: 0 | EH108: 0 | EI108: 0 | EJ108: 0 | EK108: 0 | EL108: 0 | EM108: 0 | EN108: 0 | EO108: 0 | EP108: 0 | EQ108: 0 | ER108: 0 | ES108: 0 | ET108: 0 | EU108: 0 | EV108: 0 | EW108: 0 | EX108: 0 | EY108: 0 | EZ108: 0 | FA108: 0 | FB108: 0 | FC108: 0 | FD108: 0 | FE108: 0 | FF108: 0 | FG108: 0 | FH108: 0 | FI108: 0 | FJ108: 0 | FK108: 0 | FL108: 0 | FM108: 0 | FN108: 0 | FO108: 0 | FP108: 0 | FQ108: 0 | FR108: 0 | FS108: 0 | FT108: 0 | FU108: 0 | FV108: 0 | FW108: 0 | FX108: 0 | FY108: 0 | FZ108: 0 | GA108: 0 | GB108: 0 | GC108: 0 | GD108: 0 | GE108: 0 | GF108: 0 | GG108: 0 | GH108: 0
CV109: 0 | CW109: 0 | CX109: 0 | CY109: 0 | CZ109: 0 | DA109: 0 | DB109: 0 | DC109: 0 | DD109: 0 | DE109: 0 | DF109: 0 | DG109: 0 | DH109: 0 | DI109: 0 | DJ109: 0 | DK109: 0 | DL109: 0 | DM109: 0 | DN109: 0 | DO109: 0 | DP109: 0 | DQ109: 0 | DR109: 0 | DS109: 0 | DT109: 0 | DU109: 0 | DV109: 0 | DW109: 0 | DX109: 0 | DY109: 0 | DZ109: 0 | EA109: 0 | EB109: 0 | EC109: 0 | ED109: 0 | EE109: 0 | EF109: 0 | EG109: 0 | EH109: 0 | EI109: 0 | EJ109: 0 | EK109: 0 | EL109: 0 | EM109: 0 | EN109: 0 | EO109: 0 | EP109: 0 | EQ109: 0 | ER109: 0 | ES109: 0 | ET109: 0 | EU109: 0 | EV109: 0 | EW109: 0 | EX109: 0 | EY109: 0 | EZ109: 0 | FA109: 0 | FB109: 0 | FC109: 0 | FD109: 0 | FE109: 0 | FF109: 0 | FG109: 0 | FH109: 0 | FI109: 0 | FJ109: 0 | FK109: 0 | FL109: 0 | FM109: 0 | FN109: 0 | FO109: 0 | FP109: 0 | FQ109: 0 | FR109: 0 | FS109: 0 | FT109: 0 | FU109: 0 | FV109: 0 | FW109: 0 | FX109: 0 | FY109: 0 | FZ109: 0 | GA109: 0 | GB109: 0 | GC109: 0 | GD109: 0 | GE109: 0 | GF109: 0 | GG109: 0 | GH109: 0
CV110: 0 | CW110: 0 | CX110: 0 | CY110: 0 | CZ110: 0 | DA110: 0 | DB110: 0 | DC110: 0 | DD110: 0 | DE110: 0 | DF110: 0 | DG110: 0 | DH110: 0 | DI110: 0 | DJ110: 0 | DK110: 0 | DL110: 0 | DM110: 0 | DN110: 0 | DO110: 0 | DP110: 0 | DQ110: 0 | DR110: 0 | DS110: 0 | DT110: 0 | DU110: 0 | DV110: 0 | DW110: 0 | DX110: 0 | DY110: 0 | DZ110: 0 | EA110: 0 | EB110: 0 | EC110: 0 | ED110: 0 | EE110: 0 | EF110: 0 | EG110: 0 | EH110: 0 | EI110: 0 | EJ110: 0 | EK110: 0 | EL110: 0 | EM110: 0 | EN110: 0 | EO110: 0 | EP110: 0 | EQ110: 0 | ER110: 0 | ES110: 0 | ET110: 0 | EU110: 0 | EV110: 0 | EW110: 0 | EX110: 0 | EY110: 0 | EZ110: 0 | FA110: 0 | FB110: 0 | FC110: 0 | FD110: 0 | FE110: 0 | FF110: 0 | FG110: 0 | FH110: 0 | FI110: 0 | FJ110: 0 | FK110: 0 | FL110: 0 | FM110: 0 | FN110: 0 | FO110: 0 | FP110: 0 | FQ110: 0 | FR110: 0 | FS110: 0 | FT110: 0 | FU110: 0 | FV110: 0 | FW110: 0 | FX110: 0 | FY110: 0 | FZ110: 0 | GA110: 0 | GB110: 0 | GC110: 0 | GD110: 0 | GE110: 0 | GF110: 0 | GG110: 0 | GH110: 0
CV111: 0 | CW111: 0 | CX111: 0 | CY111: 0 | CZ111: 0 | DA111: 0 | DB111: 0 | DC111: 0 | DD111: 0 | DE111: 0 | DF111: 0 | DG111: 0 | DH111: 0 | DI111: 0 | DJ111: 0 | DK111: 0 | DL111: 0 | DM111: 0 | DN111: 0 | DO111: 0 | DP111: 0 | DQ111: 0 | DR111: 0 | DS111: 0 | DT111: 0 | DU111: 0 | DV111: 0 | DW111: 0 | DX111: 0 | DY111: 0 | DZ111: 0 | EA111: 0 | EB111: 0 | EC111: 0 | ED111: 0 | EE111: 0 | EF111: 0 | EG111: 0 | EH111: 0 | EI111: 0 | EJ111: 0 | EK111: 0 | EL111: 0 | EM111: 0 | EN111: 0 | EO111: 0 | EP111: 0 | EQ111: 0 | ER111: 0 | ES111: 0 | ET111: 0 | EU111: 0 | EV111: 0 | EW111: 0 | EX111: 0 | EY111: 0 | EZ111: 0 | FA111: 0 | FB111: 0 | FC111: 0 | FD111: 0 | FE111: 0 | FF111: 0 | FG111: 0 | FH111: 0 | FI111: 0 | FJ111: 0 | FK111: 0 | FL111: 0 | FM111: 0 | FN111: 0 | FO111: 0 | FP111: 0 | FQ111: 0 | FR111: 0 | FS111: 0 | FT111: 0 | FU111: 0 | FV111: 0 | FW111: 0 | FX111: 0 | FY111: 0 | FZ111: 0 | GA111: 0 | GB111: 0 | GC111: 0 | GD111: 0 | GE111: 0 | GF111: 0 | GG111: 0 | GH111: 0
CV112: 0 | CW112: 0 | CX112: 0 | CY112: 0 | CZ112: 0 | DA112: 0 | DB112: 0 | DC112: 0 | DD112: 0 | DE112: 0 | DF112: 0 | DG112: 0 | DH112: 0 | DI112: 0 | DJ112: 0 | DK112: 0 | DL112: 0 | DM112: 0 | DN112: 0 | DO112: 0 | DP112: 0 | DQ112: 0 | DR112: 0 | DS112: 0 | DT112: 0 | DU112: 0 | DV112: 0 | DW112: 0 | DX112: 0 | DY112: 0 | DZ112: 0 | EA112: 0 | EB112: 0 | EC112: 0 | ED112: 0 | EE112: 0 | EF112: 0 | EG112: 0 | EH112: 0 | EI112: 0 | EJ112: 0 | EK112: 0 | EL112: 0 | EM112: 0 | EN112: 0 | EO112: 0 | EP112: 0 | EQ112: 0 | ER112: 0 | ES112: 0 | ET112: 0 | EU112: 0 | EV112: 0 | EW112: 0 | EX112: 0 | EY112: 0 | EZ112: 0 | FA112: 0 | FB112: 0 | FC112: 0 | FD112: 0 | FE112: 0 | FF112: 0 | FG112: 0 | FH112: 0 | FI112: 0 | FJ112: 0 | FK112: 0 | FL112: 0 | FM112: 0 | FN112: 0 | FO112: 0 | FP112: 0 | FQ112: 0 | FR112: 0 | FS112: 0 | FT112: 0 | FU112: 0 | FV112: 0 | FW112: 0 | FX112: 0 | FY112: 0 | FZ112: 0 | GA112: 0 | GB112: 0 | GC112: 0 | GD112: 0 | GE112: 0 | GF112: 0 | GG112: 0 | GH112: 0
CV113: 0 | CW113: 0 | CX113: 0 | CY113: 0 | CZ113: 0 | DA113: 0 | DB113: 0 | DC113: 0 | DD113: 0 | DE113: 0 | DF113: 0 | DG113: 0 | DH113: 0 | DI113: 0 | DJ113: 0 | DK113: 0 | DL113: 0 | DM113: 0 | DN113: 0 | DO113: 0 | DP113: 0 | DQ113: 0 | DR113: 0 | DS113: 0 | DT113: 0 | DU113: 0 | DV113: 0 | DW113: 0 | DX113: 0 | DY113: 0 | DZ113: 0 | EA113: 0 | EB113: 0 | EC113: 0 | ED113: 0 | EE113: 0 | EF113: 0 | EG113: 0 | EH113: 0 | EI113: 0 | EJ113: 0 | EK113: 0 | EL113: 0 | EM113: 0 | EN113: 0 | EO113: 0 | EP113: 0 | EQ113: 0 | ER113: 0 | ES113: 0 | ET113: 0 | EU113: 0 | EV113: 0 | EW113: 0 | EX113: 0 | EY113: 0 | EZ113: 0 | FA113: 0 | FB113: 0 | FC113: 0 | FD113: 0 | FE113: 0 | FF113: 0 | FG113: 0 | FH113: 0 | FI113: 0 | FJ113: 0 | FK113: 0 | FL113: 0 | FM113: 0 | FN113: 0 | FO113: 0 | FP113: 0 | FQ113: 0 | FR113: 0 | FS113: 0 | FT113: 0 | FU113: 0 | FV113: 0 | FW113: 0 | FX113: 0 | FY113: 0 | FZ113: 0 | GA113: 0 | GB113: 0 | GC113: 0 | GD113: 0 | GE113: 0 | GF113: 0 | GG113: 0 | GH113: 0
CV114: 0 | CW114: 0 | CX114: 0 | CY114: 0 | CZ114: 0 | DA114: 0 | DB114: 0 | DC114: 0 | DD114: 0 | DE114: 0 | DF114: 0 | DG114: 0 | DH114: 0 | DI114: 0 | DJ114: 0 | DK114: 0 | DL114: 0 | DM114: 0 | DN114: 0 | DO114: 0 | DP114: 0 | DQ114: 0 | DR114: 0 | DS114: 0 | DT114: 0 | DU114: 0 | DV114: 0 | DW114: 0 | DX114: 0 | DY114: 0 | DZ114: 0 | EA114: 0 | EB114: 0 | EC114: 0 | ED114: 0 | EE114: 0 | EF114: 0 | EG114: 0 | EH114: 0 | EI114: 0 | EJ114: 0 | EK114: 0 | EL114: 0 | EM114: 0 | EN114: 0 | EO114: 0 | EP114: 0 | EQ114: 0 | ER114: 0 | ES114: 0 | ET114: 0 | EU114: 0 | EV114: 0 | EW114: 0 | EX114: 0 | EY114: 0 | EZ114: 0 | FA114: 0 | FB114: 0 | FC114: 0 | FD114: 0 | FE114: 0 | FF114: 0 | FG114: 0 | FH114: 0 | FI114: 0 | FJ114: 0 | FK114: 0 | FL114: 0 | FM114: 0 | FN114: 0 | FO114: 0 | FP114: 0 | FQ114: 0 | FR114: 0 | FS114: 0 | FT114: 0 | FU114: 0 | FV114: 0 | FW114: 0 | FX114: 0 | FY114: 0 | FZ114: 0 | GA114: 0 | GB114: 0 | GC114: 0 | GD114: 0 | GE114: 0 | GF114: 0 | GG114: 0 | GH114: 0
CV115: 0 | CW115: 0 | CX115: 0 | CY115: 0 | CZ115: 0 | DA115: 0 | DB115: 0 | DC115: 0 | DD115: 0 | DE115: 0 | DF115: 0 | DG115: 0 | DH115: 0 | DI115: 0 | DJ115: 0 | DK115: 0 | DL115: 0 | DM115: 0 | DN115: 0 | DO115: 0 | DP115: 0 | DQ115: 0 | DR115: 0 | DS115: 0 | DT115: 0 | DU115: 0 | DV115: 0 | DW115: 0 | DX115: 0 | DY115: 0 | DZ115: 0 | EA115: 0 | EB115: 0 | EC115: 0 | ED115: 0 | EE115: 0 | EF115: 0 | EG115: 0 | EH115: 0 | EI115: 0 | EJ115: 0 | EK115: 0 | EL115: 0 | EM115: 0 | EN115: 0 | EO115: 0 | EP115: 0 | EQ115: 0 | ER115: 0 | ES115: 0 | ET115: 0 | EU115: 0 | EV115: 0 | EW115: 0 | EX115: 0 | EY115: 0 | EZ115: 0 | FA115: 0 | FB115: 0 | FC115: 0 | FD115: 0 | FE115: 0 | FF115: 0 | FG115: 0 | FH115: 0 | FI115: 0 | FJ115: 0 | FK115: 0 | FL115: 0 | FM115: 0 | FN115: 0 | FO115: 0 | FP115: 0 | FQ115: 0 | FR115: 0 | FS115: 0 | FT115: 0 | FU115: 0 | FV115: 0 | FW115: 0 | FX115: 0 | FY115: 0 | FZ115: 0 | GA115: 0 | GB115: 0 | GC115: 0 | GD115: 0 | GE115: 0 | GF115: 0 | GG115: 0 | GH115: 0
CV116: 0 | CW116: 0 | CX116: 0 | CY116: 0 | CZ116: 0 | DA116: 0 | DB116: 0 | DC116: 0 | DD116: 0 | DE116: 0 | DF116: 0 | DG116: 0 | DH116: 0 | DI116: 0 | DJ116: 0 | DK116: 0 | DL116: 0 | DM116: 0 | DN116: 0 | DO116: 0 | DP116: 0 | DQ116: 0 | DR116: 0 | DS116: 0 | DT116: 0 | DU116: 0 | DV116: 0 | DW116: 0 | DX116: 0 | DY116: 0 | DZ116: 0 | EA116: 0 | EB116: 0 | EC116: 0 | ED116: 0 | EE116: 0 | EF116: 0 | EG116: 0 | EH116: 0 | EI116: 0 | EJ116: 0 | EK116: 0 | EL116: 0 | EM116: 0 | EN116: 0 | EO116: 0 | EP116: 0 | EQ116: 0 | ER116: 0 | ES116: 0 | ET116: 0 | EU116: 0 | EV116: 0 | EW116: 0 | EX116: 0 | EY116: 0 | EZ116: 0 | FA116: 0 | FB116: 0 | FC116: 0 | FD116: 0 | FE116: 0 | FF116: 0 | FG116: 0 | FH116: 0 | FI116: 0 | FJ116: 0 | FK116: 0 | FL116: 0 | FM116: 0 | FN116: 0 | FO116: 0 | FP116: 0 | FQ116: 0 | FR116: 0 | FS116: 0 | FT116: 0 | FU116: 0 | FV116: 0 | FW116: 0 | FX116: 0 | FY116: 0 | FZ116: 0 | GA116: 0 | GB116: 0 | GC116: 0 | GD116: 0 | GE116: 0 | GF116: 0 | GG116: 0 | GH116: 0
CV117: 0 | CW117: 0 | CX117: 0 | CY117: 0 | CZ117: 0 | DA117: 0 | DB117: 0 | DC117: 0 | DD117: 0 | DE117: 0 | DF117: 0 | DG117: 0 | DH117: 0 | DI117: 0 | DJ117: 0 | DK117: 0 | DL117: 0 | DM117: 0 | DN117: 0 | DO117: 0 | DP117: 0 | DQ117: 0 | DR117: 0 | DS117: 0 | DT117: 0 | DU117: 0 | DV117: 0 | DW117: 0 | DX117: 0 | DY117: 0 | DZ117: 0 | EA117: 0 | EB117: 0 | EC117: 0 | ED117: 0 | EE117: 0 | EF117: 0 | EG117: 0 | EH117: 0 | EI117: 0 | EJ117: 0 | EK117: 0 | EL117: 0 | EM117: 0 | EN117: 0 | EO117: 0 | EP117: 0 | EQ117: 0 | ER117: 0 | ES117: 0 | ET117: 0 | EU117: 0 | EV117: 0 | EW117: 0 | EX117: 0 | EY117: 0 | EZ117: 0 | FA117: 0 | FB117: 0 | FC117: 0 | FD117: 0 | FE117: 0 | FF117: 0 | FG117: 0 | FH117: 0 | FI117: 0 | FJ117: 0 | FK117: 0 | FL117: 0 | FM117: 0 | FN117: 0 | FO117: 0 | FP117: 0 | FQ117: 0 | FR117: 0 | FS117: 0 | FT117: 0 | FU117: 0 | FV117: 0 | FW117: 0 | FX117: 0 | FY117: 0 | FZ117: 0 | GA117: 0 | GB117: 0 | GC117: 0 | GD117: 0 | GE117: 0 | GF117: 0 | GG117: 0 | GH117: 0
CV118: 0 | CW118: 0 | CX118: 0 | CY118: 0 | CZ118: 0 | DA118: 0 | DB118: 0 | DC118: 0 | DD118: 0 | DE118: 0 | DF118: 0 | DG118: 0 | DH118: 0 | DI118: 0 | DJ118: 0 | DK118: 0 | DL118: 0 | DM118: 0 | DN118: 0 | DO118: 0 | DP118: 0 | DQ118: 0 | DR118: 0 | DS118: 0 | DT118: 0 | DU118: 0 | DV118: 0 | DW118: 0 | DX118: 0 | DY118: 0 | DZ118: 0 | EA118: 0 | EB118: 0 | EC118: 0 | ED118: 0 | EE118: 0 | EF118: 0 | EG118: 0 | EH118: 0 | EI118: 0 | EJ118: 0 | EK118: 0 | EL118: 0 | EM118: 0 | EN118: 0 | EO118: 0 | EP118: 0 | EQ118: 0 | ER118: 0 | ES118: 0 | ET118: 0 | EU118: 0 | EV118: 0 | EW118: 0 | EX118: 0 | EY118: 0 | EZ118: 0 | FA118: 0 | FB118: 0 | FC118: 0 | FD118: 0 | FE118: 0 | FF118: 0 | FG118: 0 | FH118: 0 | FI118: 0 | FJ118: 0 | FK118: 0 | FL118: 0 | FM118: 0 | FN118: 0 | FO118: 0 | FP118: 0 | FQ118: 0 | FR118: 0 | FS118: 0 | FT118: 0 | FU118: 0 | FV118: 0 | FW118: 0 | FX118: 0 | FY118: 0 | FZ118: 0 | GA118: 0 | GB118: 0 | GC118: 0 | GD118: 0 | GE118: 0 | GF118: 0 | GG118: 0 | GH118: 0
CV119: 0 | CW119: 0 | CX119: 0 | CY119: 0 | CZ119: 0 | DA119: 0 | DB119: 0 | DC119: 0 | DD119: 0 | DE119: 0 | DF119: 0 | DG119: 0 | DH119: 0 | DI119: 0 | DJ119: 0 | DK119: 0 | DL119: 0 | DM119: 0 | DN119: 0 | DO119: 0 | DP119: 0 | DQ119: 0 | DR119: 0 | DS119: 0 | DT119: 0 | DU119: 0 | DV119: 0 | DW119: 0 | DX119: 0 | DY119: 0 | DZ119: 0 | EA119: 0 | EB119: 0 | EC119: 0 | ED119: 0 | EE119: 0 | EF119: 0 | EG119: 0 | EH119: 0 | EI119: 0 | EJ119: 0 | EK119: 0 | EL119: 0 | EM119: 0 | EN119: 0 | EO119: 0 | EP119: 0 | EQ119: 0 | ER119: 0 | ES119: 0 | ET119: 0 | EU119: 0 | EV119: 0 | EW119: 0 | EX119: 0 | EY119: 0 | EZ119: 0 | FA119: 0 | FB119: 0 | FC119: 0 | FD119: 0 | FE119: 0 | FF119: 0 | FG119: 0 | FH119: 0 | FI119: 0 | FJ119: 0 | FK119: 0 | FL119: 0 | FM119: 0 | FN119: 0 | FO119: 0 | FP119: 0 | FQ119: 0 | FR119: 0 | FS119: 0 | FT119: 0 | FU119: 0 | FV119: 0 | FW119: 0 | FX119: 0 | FY119: 0 | FZ119: 0 | GA119: 0 | GB119: 0 | GC119: 0 | GD119: 0 | GE119: 0 | GF119: 0 | GG119: 0 | GH119: 0
CV120: 0 | CW120: 0 | CX120: 0 | CY120: 0 | CZ120: 0 | DA120: 0 | DB120: 0 | DC120: 0 | DD120: 0 | DE120: 0 | DF120: 0 | DG120: 0 | DH120: 0 | DI120: 0 | DJ120: 0 | DK120: 0 | DL120: 0 | DM120: 0 | DN120: 0 | DO120: 0 | DP120: 0 | DQ120: 0 | DR120: 0 | DS120: 0 | DT120: 0 | DU120: 0 | DV120: 0 | DW120: 0 | DX120: 0 | DY120: 0 | DZ120: 0 | EA120: 0 | EB120: 0 | EC120: 0 | ED120: 0 | EE120: 0 | EF120: 0 | EG120: 0 | EH120: 0 | EI120: 0 | EJ120: 0 | EK120: 0 | EL120: 0 | EM120: 0 | EN120: 0 | EO120: 0 | EP120: 0 | EQ120: 0 | ER120: 0 | ES120: 0 | ET120: 0 | EU120: 0 | EV120: 0 | EW120: 0 | EX120: 0 | EY120: 0 | EZ120: 0 | FA120: 0 | FB120: 0 | FC120: 0 | FD120: 0 | FE120: 0 | FF120: 0 | FG120: 0 | FH120: 0 | FI120: 0 | FJ120: 0 | FK120: 0 | FL120: 0 | FM120: 0 | FN120: 0 | FO120: 0 | FP120: 0 | FQ120: 0 | FR120: 0 | FS120: 0 | FT120: 0 | FU120: 0 | FV120: 0 | FW120: 0 | FX120: 0 | FY120: 0 | FZ120: 0 | GA120: 0 | GB120: 0 | GC120: 0 | GD120: 0 | GE120: 0 | GF120: 0 | GG120: 0 | GH120: 0
CV121: 0 | CW121: 0 | CX121: 0 | CY121: 0 | CZ121: 0 | DA121: 0 | DB121: 0 | DC121: 0 | DD121: 0 | DE121: 0 | DF121: 0 | DG121: 0 | DH121: 0 | DI121: 0 | DJ121: 0 | DK121: 0 | DL121: 0 | DM121: 0 | DN121: 0 | DO121: 0 | DP121: 0 | DQ121: 0 | DR121: 0 | DS121: 0 | DT121: 0 | DU121: 0 | DV121: 0 | DW121: 0 | DX121: 0 | DY121: 0 | DZ121: 0 | EA121: 0 | EB121: 0 | EC121: 0 | ED121: 0 | EE121: 0 | EF121: 0 | EG121: 0 | EH121: 0 | EI121: 0 | EJ121: 0 | EK121: 0 | EL121: 0 | EM121: 0 | EN121: 0 | EO121: 0 | EP121: 0 | EQ121: 0 | ER121: 0 | ES121: 0 | ET121: 0 | EU121: 0 | EV121: 0 | EW121: 0 | EX121: 0 | EY121: 0 | EZ121: 0 | FA121: 0 | FB121: 0 | FC121: 0 | FD121: 0 | FE121: 0 | FF121: 0 | FG121: 0 | FH121: 0 | FI121: 0 | FJ121: 0 | FK121: 0 | FL121: 0 | FM121: 0 | FN121: 0 | FO121: 0 | FP121: 0 | FQ121: 0 | FR121: 0 | FS121: 0 | FT121: 0 | FU121: 0 | FV121: 0 | FW121: 0 | FX121: 0 | FY121: 0 | FZ121: 0 | GA121: 0 | GB121: 0 | GC121: 0 | GD121: 0 | GE121: 0 | GF121: 0 | GG121: 0 | GH121: 0
CV122: 0 | CW122: 0 | CX122: 0 | CY122: 0 | CZ122: 0 | DA122: 0 | DB122: 0 | DC122: 0 | DD122: 0 | DE122: 0 | DF122: 0 | DG122: 0 | DH122: 0 | DI122: 0 | DJ122: 0 | DK122: 0 | DL122: 0 | DM122: 0 | DN122: 0 | DO122: 0 | DP122: 0 | DQ122: 0 | DR122: 0 | DS122: 0 | DT122: 0 | DU122: 0 | DV122: 0 | DW122: 0 | DX122: 0 | DY122: 0 | DZ122: 0 | EA122: 0 | EB122: 0 | EC122: 0 | ED122: 0 | EE122: 0 | EF122: 0 | EG122: 0 | EH122: 0 | EI122: 0 | EJ122: 0 | EK122: 0 | EL122: 0 | EM122: 0 | EN122: 0 | EO122: 0 | EP122: 0 | EQ122: 0 | ER122: 0 | ES122: 0 | ET122: 0 | EU122: 0 | EV122: 0 | EW122: 0 | EX122: 0 | EY122: 0 | EZ122: 0 | FA122: 0 | FB122: 0 | FC122: 0 | FD122: 0 | FE122: 0 | FF122: 0 | FG122: 0 | FH122: 0 | FI122: 0 | FJ122: 0 | FK122: 0 | FL122: 0 | FM122: 0 | FN122: 0 | FO122: 0 | FP122: 0 | FQ122: 0 | FR122: 0 | FS122: 0 | FT122: 0 | FU122: 0 | FV122: 0 | FW122: 0 | FX122: 0 | FY122: 0 | FZ122: 0 | GA122: 0 | GB122: 0 | GC122: 0 | GD122: 0 | GE122: 0 | GF122: 0 | GG122: 0 | GH122: 0
CV123: 0 | CW123: 0 | CX123: 0 | CY123: 0 | CZ123: 0 | DA123: 0 | DB123: 0 | DC123: 0 | DD123: 0 | DE123: 0 | DF123: 0 | DG123: 0 | DH123: 0 | DI123: 0 | DJ123: 0 | DK123: 0 | DL123: 0 | DM123: 0 | DN123: 0 | DO123: 0 | DP123: 0 | DQ123: 0 | DR123: 0 | DS123: 0 | DT123: 0 | DU123: 0 | DV123: 0 | DW123: 0 | DX123: 0 | DY123: 0 | DZ123: 0 | EA123: 0 | EB123: 0 | EC123: 0 | ED123: 0 | EE123: 0 | EF123: 0 | EG123: 0 | EH123: 0 | EI123: 0 | EJ123: 0 | EK123: 0 | EL123: 0 | EM123: 0 | EN123: 0 | EO123: 0 | EP123: 0 | EQ123: 0 | ER123: 0 | ES123: 0 | ET123: 0 | EU123: 0 | EV123: 0 | EW123: 0 | EX123: 0 | EY123: 0 | EZ123: 0 | FA123: 0 | FB123: 0 | FC123: 0 | FD123: 0 | FE123: 0 | FF123: 0 | FG123: 0 | FH123: 0 | FI123: 0 | FJ123: 0 | FK123: 0 | FL123: 0 | FM123: 0 | FN123: 0 | FO123: 0 | FP123: 0 | FQ123: 0 | FR123: 0 | FS123: 0 | FT123: 0 | FU123: 0 | FV123: 0 | FW123: 0 | FX123: 0 | FY123: 0 | FZ123: 0 | GA123: 0 | GB123: 0 | GC123: 0 | GD123: 0 | GE123: 0 | GF123: 0 | GG123: 0 | GH123: 0
CV124: 0 | CW124: 0 | CX124: 0 | CY124: 0 | CZ124: 0 | DA124: 0 | DB124: 0 | DC124: 0 | DD124: 0 | DE124: 0 | DF124: 0 | DG124: 0 | DH124: 0 | DI124: 0 | DJ124: 0 | DK124: 0 | DL124: 0 | DM124: 0 | DN124: 0 | DO124: 0 | DP124: 0 | DQ124: 0 | DR124: 0 | DS124: 0 | DT124: 0 | DU124: 0 | DV124: 0 | DW124: 0 | DX124: 0 | DY124: 0 | DZ124: 0 | EA124: 0 | EB124: 0 | EC124: 0 | ED124: 0 | EE124: 0 | EF124: 0 | EG124: 0 | EH124: 0 | EI124: 0 | EJ124: 0 | EK124: 0 | EL124: 0 | EM124: 0 | EN124: 0 | EO124: 0 | EP124: 0 | EQ124: 0 | ER124: 0 | ES124: 0 | ET124: 0 | EU124: 0 | EV124: 0 | EW124: 0 | EX124: 0 | EY124: 0 | EZ124: 0 | FA124: 0 | FB124: 0 | FC124: 0 | FD124: 0 | FE124: 0 | FF124: 0 | FG124: 0 | FH124: 0 | FI124: 0 | FJ124: 0 | FK124: 0 | FL124: 0 | FM124: 0 | FN124: 0 | FO124: 0 | FP124: 0 | FQ124: 0 | FR124: 0 | FS124: 0 | FT124: 0 | FU124: 0 | FV124: 0 | FW124: 0 | FX124: 0 | FY124: 0 | FZ124: 0 | GA124: 0 | GB124: 0 | GC124: 0 | GD124: 0 | GE124: 0 | GF124: 0 | GG124: 0 | GH124: 0
CV125: 0 | CW125: 0 | CX125: 0 | CY125: 0 | CZ125: 0 | DA125: 0 | DB125: 0 | DC125: 0 | DD125: 0 | DE125: 0 | DF125: 0 | DG125: 0 | DH125: 0 | DI125: 0 | DJ125: 0 | DK125: 0 | DL125: 0 | DM125: 0 | DN125: 0 | DO125: 0 | DP125: 0 | DQ125: 0 | DR125: 0 | DS125: 0 | DT125: 0 | DU125: 0 | DV125: 0 | DW125: 0 | DX125: 0 | DY125: 0 | DZ125: 0 | EA125: 0 | EB125: 0 | EC125: 0 | ED125: 0 | EE125: 0 | EF125: 0 | EG125: 0 | EH125: 0 | EI125: 0 | EJ125: 0 | EK125: 0 | EL125: 0 | EM125: 0 | EN125: 0 | EO125: 0 | EP125: 0 | EQ125: 0 | ER125: 0 | ES125: 0 | ET125: 0 | EU125: 0 | EV125: 0 | EW125: 0 | EX125: 0 | EY125: 0 | EZ125: 0 | FA125: 0 | FB125: 0 | FC125: 0 | FD125: 0 | FE125: 0 | FF125: 0 | FG125: 0 | FH125: 0 | FI125: 0 | FJ125: 0 | FK125: 0 | FL125: 0 | FM125: 0 | FN125: 0 | FO125: 0 | FP125: 0 | FQ125: 0 | FR125: 0 | FS125: 0 | FT125: 0 | FU125: 0 | FV125: 0 | FW125: 0 | FX125: 0 | FY125: 0 | FZ125: 0 | GA125: 0 | GB125: 0 | GC125: 0 | GD125: 0 | GE125: 0 | GF125: 0 | GG125: 0 | GH125: 0
CV126: 0 | CW126: 0 | CX126: 0 | CY126: 0 | CZ126: 0 | DA126: 0 | DB126: 0 | DC126: 0 | DD126: 0 | DE126: 0 | DF126: 0 | DG126: 0 | DH126: 0 | DI126: 0 | DJ126: 0 | DK126: 0 | DL126: 0 | DM126: 0 | DN126: 0 | DO126: 0 | DP126: 0 | DQ126: 0 | DR126: 0 | DS126: 0 | DT126: 0 | DU126: 0 | DV126: 0 | DW126: 0 | DX126: 0 | DY126: 0 | DZ126: 0 | EA126: 0 | EB126: 0 | EC126: 0 | ED126: 0 | EE126: 0 | EF126: 0 | EG126: 0 | EH126: 0 | EI126: 0 | EJ126: 0 | EK126: 0 | EL126: 0 | EM126: 0 | EN126: 0 | EO126: 0 | EP126: 0 | EQ126: 0 | ER126: 0 | ES126: 0 | ET126: 0 | EU126: 0 | EV126: 0 | EW126: 0 | EX126: 0 | EY126: 0 | EZ126: 0 | FA126: 0 | FB126: 0 | FC126: 0 | FD126: 0 | FE126: 0 | FF126: 0 | FG126: 0 | FH126: 0 | FI126: 0 | FJ126: 0 | FK126: 0 | FL126: 0 | FM126: 0 | FN126: 0 | FO126: 0 | FP126: 0 | FQ126: 0 | FR126: 0 | FS126: 0 | FT126: 0 | FU126: 0 | FV126: 0 | FW126: 0 | FX126: 0 | FY126: 0 | FZ126: 0 | GA126: 0 | GB126: 0 | GC126: 0 | GD126: 0 | GE126: 0 | GF126: 0 | GG126: 0 | GH126: 0
CV127: 0 | CW127: 0 | CX127: 0 | CY127: 0 | CZ127: 0 | DA127: 0 | DB127: 0 | DC127: 0 | DD127: 0 | DE127: 0 | DF127: 0 | DG127: 0 | DH127: 0 | DI127: 0 | DJ127: 0 | DK127: 0 | DL127: 0 | DM127: 0 | DN127: 0 | DO127: 0 | DP127: 0 | DQ127: 0 | DR127: 0 | DS127: 0 | DT127: 0 | DU127: 0 | DV127: 0 | DW127: 0 | DX127: 0 | DY127: 0 | DZ127: 0 | EA127: 0 | EB127: 0 | EC127: 0 | ED127: 0 | EE127: 0 | EF127: 0 | EG127: 0 | EH127: 0 | EI127: 0 | EJ127: 0 | EK127: 0 | EL127: 0 | EM127: 0 | EN127: 0 | EO127: 0 | EP127: 0 | EQ127: 0 | ER127: 0 | ES127: 0 | ET127: 0 | EU127: 0 | EV127: 0 | EW127: 0 | EX127: 0 | EY127: 0 | EZ127: 0 | FA127: 0 | FB127: 0 | FC127: 0 | FD127: 0 | FE127: 0 | FF127: 0 | FG127: 0 | FH127: 0 | FI127: 0 | FJ127: 0 | FK127: 0 | FL127: 0 | FM127: 0 | FN127: 0 | FO127: 0 | FP127: 0 | FQ127: 0 | FR127: 0 | FS127: 0 | FT127: 0 | FU127: 0 | FV127: 0 | FW127: 0 | FX127: 0 | FY127: 0 | FZ127: 0 | GA127: 0 | GB127: 0 | GC127: 0 | GD127: 0 | GE127: 0 | GF127: 0 | GG127: 0 | GH127: 0
CV128: 0 | CW128: 0 | CX128: 0 | CY128: 0 | CZ128: 0 | DA128: 0 | DB128: 0 | DC128: 0 | DD128: 0 | DE128: 0 | DF128: 0 | DG128: 0 | DH128: 0 | DI128: 0 | DJ128: 0 | DK128: 0 | DL128: 0 | DM128: 0 | DN128: 0 | DO128: 0 | DP128: 0 | DQ128: 0 | DR128: 0 | DS128: 0 | DT128: 0 | DU128: 0 | DV128: 0 | DW128: 0 | DX128: 0 | DY128: 0 | DZ128: 0 | EA128: 0 | EB128: 0 | EC128: 0 | ED128: 0 | EE128: 0 | EF128: 0 | EG128: 0 | EH128: 0 | EI128: 0 | EJ128: 0 | EK128: 0 | EL128: 0 | EM128: 0 | EN128: 0 | EO128: 0 | EP128: 0 | EQ128: 0 | ER128: 0 | ES128: 0 | ET128: 0 | EU128: 0 | EV128: 0 | EW128: 0 | EX128: 0 | EY128: 0 | EZ128: 0 | FA128: 0 | FB128: 0 | FC128: 0 | FD128: 0 | FE128: 0 | FF128: 0 | FG128: 0 | FH128: 0 | FI128: 0 | FJ128: 0 | FK128: 0 | FL128: 0 | FM128: 0 | FN128: 0 | FO128: 0 | FP128: 0 | FQ128: 0 | FR128: 0 | FS128: 0 | FT128: 0 | FU128: 0 | FV128: 0 | FW128: 0 | FX128: 0 | FY128: 0 | FZ128: 0 | GA128: 0 | GB128: 0 | GC128: 0 | GD128: 0 | GE128: 0 | GF128: 0 | GG128: 0 | GH128: 0
CV129: 0 | CW129: 0 | CX129: 0 | CY129: 0 | CZ129: 0 | DA129: 0 | DB129: 0 | DC129: 0 | DD129: 0 | DE129: 0 | DF129: 0 | DG129: 0 | DH129: 0 | DI129: 0 | DJ129: 0 | DK129: 0 | DL129: 0 | DM129: 0 | DN129: 0 | DO129: 0 | DP129: 0 | DQ129: 0 | DR129: 0 | DS129: 0 | DT129: 0 | DU129: 0 | DV129: 0 | DW129: 0 | DX129: 0 | DY129: 0 | DZ129: 0 | EA129: 0 | EB129: 0 | EC129: 0 | ED129: 0 | EE129: 0 | EF129: 0 | EG129: 0 | EH129: 0 | EI129: 0 | EJ129: 0 | EK129: 0 | EL129: 0 | EM129: 0 | EN129: 0 | EO129: 0 | EP129: 0 | EQ129: 0 | ER129: 0 | ES129: 0 | ET129: 0 | EU129: 0 | EV129: 0 | EW129: 0 | EX129: 0 | EY129: 0 | EZ129: 0 | FA129: 0 | FB129: 0 | FC129: 0 | FD129: 0 | FE129: 0 | FF129: 0 | FG129: 0 | FH129: 0 | FI129: 0 | FJ129: 0 | FK129: 0 | FL129: 0 | FM129: 0 | FN129: 0 | FO129: 0 | FP129: 0 | FQ129: 0 | FR129: 0 | FS129: 0 | FT129: 0 | FU129: 0 | FV129: 0 | FW129: 0 | FX129: 0 | FY129: 0 | FZ129: 0 | GA129: 0 | GB129: 0 | GC129: 0 | GD129: 0 | GE129: 0 | GF129: 0 | GG129: 0 | GH129: 0
CV130: 0 | CW130: 0 | CX130: 0 | CY130: 0 | CZ130: 0 | DA130: 0 | DB130: 0 | DC130: 0 | DD130: 0 | DE130: 0 | DF130: 0 | DG130: 0 | DH130: 0 | DI130: 0 | DJ130: 0 | DK130: 0 | DL130: 0 | DM130: 0 | DN130: 0 | DO130: 0 | DP130: 0 | DQ130: 0 | DR130: 0 | DS130: 0 | DT130: 0 | DU130: 0 | DV130: 0 | DW130: 0 | DX130: 0 | DY130: 0 | DZ130: 0 | EA130: 0 | EB130: 0 | EC130: 0 | ED130: 0 | EE130: 0 | EF130: 0 | EG130: 0 | EH130: 0 | EI130: 0 | EJ130: 0 | EK130: 0 | EL130: 0 | EM130: 0 | EN130: 0 | EO130: 0 | EP130: 0 | EQ130: 0 | ER130: 0 | ES130: 0 | ET130: 0 | EU130: 0 | EV130: 0 | EW130: 0 | EX130: 0 | EY130: 0 | EZ130: 0 | FA130: 0 | FB130: 0 | FC130: 0 | FD130: 0 | FE130: 0 | FF130: 0 | FG130: 0 | FH130: 0 | FI130: 0 | FJ130: 0 | FK130: 0 | FL130: 0 | FM130: 0 | FN130: 0 | FO130: 0 | FP130: 0 | FQ130: 0 | FR130: 0 | FS130: 0 | FT130: 0 | FU130: 0 | FV130: 0 | FW130: 0 | FX130: 0 | FY130: 0 | FZ130: 0 | GA130: 0 | GB130: 0 | GC130: 0 | GD130: 0 | GE130: 0 | GF130: 0 | GG130: 0 | GH130: 0
CV131: 0 | CW131: 0 | CX131: 0 | CY131: 0 | CZ131: 0 | DA131: 0 | DB131: 0 | DC131: 0 | DD131: 0 | DE131: 0 | DF131: 0 | DG131: 0 | DH131: 0 | DI131: 0 | DJ131: 0 | DK131: 0 | DL131: 0 | DM131: 0 | DN131: 0 | DO131: 0 | DP131: 0 | DQ131: 0 | DR131: 0 | DS131: 0 | DT131: 0 | DU131: 0 | DV131: 0 | DW131: 0 | DX131: 0 | DY131: 0 | DZ131: 0 | EA131: 0 | EB131: 0 | EC131: 0 | ED131: 0 | EE131: 0 | EF131: 0 | EG131: 0 | EH131: 0 | EI131: 0 | EJ131: 0 | EK131: 0 | EL131: 0 | EM131: 0 | EN131: 0 | EO131: 0 | EP131: 0 | EQ131: 0 | ER131: 0 | ES131: 0 | ET131: 0 | EU131: 0 | EV131: 0 | EW131: 0 | EX131: 0 | EY131: 0 | EZ131: 0 | FA131: 0 | FB131: 0 | FC131: 0 | FD131: 0 | FE131: 0 | FF131: 0 | FG131: 0 | FH131: 0 | FI131: 0 | FJ131: 0 | FK131: 0 | FL131: 0 | FM131: 0 | FN131: 0 | FO131: 0 | FP131: 0 | FQ131: 0 | FR131: 0 | FS131: 0 | FT131: 0 | FU131: 0 | FV131: 0 | FW131: 0 | FX131: 0 | FY131: 0 | FZ131: 0 | GA131: 0 | GB131: 0 | GC131: 0 | GD131: 0 | GE131: 0 | GF131: 0 | GG131: 0 | GH131: 0
CV132: 0 | CW132: 0 | CX132: 0 | CY132: 0 | CZ132: 0 | DA132: 0 | DB132: 0 | DC132: 0 | DD132: 0 | DE132: 0 | DF132: 0 | DG132: 0 | DH132: 0 | DI132: 0 | DJ132: 0 | DK132: 0 | DL132: 0 | DM132: 0 | DN132: 0 | DO132: 0 | DP132: 0 | DQ132: 0 | DR132: 0 | DS132: 0 | DT132: 0 | DU132: 0 | DV132: 0 | DW132: 0 | DX132: 0 | DY132: 0 | DZ132: 0 | EA132: 0 | EB132: 0 | EC132: 0 | ED132: 0 | EE132: 0 | EF132: 0 | EG132: 0 | EH132: 0 | EI132: 0 | EJ132: 0 | EK132: 0 | EL132: 0 | EM132: 0 | EN132: 0 | EO132: 0 | EP132: 0 | EQ132: 0 | ER132: 0 | ES132: 0 | ET132: 0 | EU132: 0 | EV132: 0 | EW132: 0 | EX132: 0 | EY132: 0 | EZ132: 0 | FA132: 0 | FB132: 0 | FC132: 0 | FD132: 0 | FE132: 0 | FF132: 0 | FG132: 0 | FH132: 0 | FI132: 0 | FJ132: 0 | FK132: 0 | FL132: 0 | FM132: 0 | FN132: 0 | FO132: 0 | FP132: 0 | FQ132: 0 | FR132: 0 | FS132: 0 | FT132: 0 | FU132: 0 | FV132: 0 | FW132: 0 | FX132: 0 | FY132: 0 | FZ132: 0 | GA132: 0 | GB132: 0 | GC132: 0 | GD132: 0 | GE132: 0 | GF132: 0 | GG132: 0 | GH132: 0
CV133: 0 | CW133: 0 | CX133: 0 | CY133: 0 | CZ133: 0 | DA133: 0 | DB133: 0 | DC133: 0 | DD133: 0 | DE133: 0 | DF133: 0 | DG133: 0 | DH133: 0 | DI133: 0 | DJ133: 0 | DK133: 0 | DL133: 0 | DM133: 0 | DN133: 0 | DO133: 0 | DP133: 0 | DQ133: 0 | DR133: 0 | DS133: 0 | DT133: 0 | DU133: 0 | DV133: 0 | DW133: 0 | DX133: 0 | DY133: 0 | DZ133: 0 | EA133: 0 | EB133: 0 | EC133: 0 | ED133: 0 | EE133: 0 | EF133: 0 | EG133: 0 | EH133: 0 | EI133: 0 | EJ133: 0 | EK133: 0 | EL133: 0 | EM133: 0 | EN133: 0 | EO133: 0 | EP133: 0 | EQ133: 0 | ER133: 0 | ES133: 0 | ET133: 0 | EU133: 0 | EV133: 0 | EW133: 0 | EX133: 0 | EY133: 0 | EZ133: 0 | FA133: 0 | FB133: 0 | FC133: 0 | FD133: 0 | FE133: 0 | FF133: 0 | FG133: 0 | FH133: 0 | FI133: 0 | FJ133: 0 | FK133: 0 | FL133: 0 | FM133: 0 | FN133: 0 | FO133: 0 | FP133: 0 | FQ133: 0 | FR133: 0 | FS133: 0 | FT133: 0 | FU133: 0 | FV133: 0 | FW133: 0 | FX133: 0 | FY133: 0 | FZ133: 0 | GA133: 0 | GB133: 0 | GC133: 0 | GD133: 0 | GE133: 0 | GF133: 0 | GG133: 0 | GH133: 0
CV134: 0 | CW134: 0 | CX134: 0 | CY134: 0 | CZ134: 0 | DA134: 0 | DB134: 0 | DC134: 0 | DD134: 0 | DE134: 0 | DF134: 0 | DG134: 0 | DH134: 0 | DI134: 0 | DJ134: 0 | DK134: 0 | DL134: 0 | DM134: 0 | DN134: 0 | DO134: 0 | DP134: 0 | DQ134: 0 | DR134: 0 | DS134: 0 | DT134: 0 | DU134: 0 | DV134: 0 | DW134: 0 | DX134: 0 | DY134: 0 | DZ134: 0 | EA134: 0 | EB134: 0 | EC134: 0 | ED134: 0 | EE134: 0 | EF134: 0 | EG134: 0 | EH134: 0 | EI134: 0 | EJ134: 0 | EK134: 0 | EL134: 0 | EM134: 0 | EN134: 0 | EO134: 0 | EP134: 0 | EQ134: 0 | ER134: 0 | ES134: 0 | ET134: 0 | EU134: 0 | EV134: 0 | EW134: 0 | EX134: 0 | EY134: 0 | EZ134: 0 | FA134: 0 | FB134: 0 | FC134: 0 | FD134: 0 | FE134: 0 | FF134: 0 | FG134: 0 | FH134: 0 | FI134: 0 | FJ134: 0 | FK134: 0 | FL134: 0 | FM134: 0 | FN134: 0 | FO134: 0 | FP134: 0 | FQ134: 0 | FR134: 0 | FS134: 0 | FT134: 0 | FU134: 0 | FV134: 0 | FW134: 0 | FX134: 0 | FY134: 0 | FZ134: 0 | GA134: 0 | GB134: 0 | GC134: 0 | GD134: 0 | GE134: 0 | GF134: 0 | GG134: 0 | GH134: 0
CV135: 0 | CW135: 0 | CX135: 0 | CY135: 0 | CZ135: 0 | DA135: 0 | DB135: 0 | DC135: 0 | DD135: 0 | DE135: 0 | DF135: 0 | DG135: 0 | DH135: 0 | DI135: 0 | DJ135: 0 | DK135: 0 | DL135: 0 | DM135: 0 | DN135: 0 | DO135: 0 | DP135: 0 | DQ135: 0 | DR135: 0 | DS135: 0 | DT135: 0 | DU135: 0 | DV135: 0 | DW135: 0 | DX135: 0 | DY135: 0 | DZ135: 0 | EA135: 0 | EB135: 0 | EC135: 0 | ED135: 0 | EE135: 0 | EF135: 0 | EG135: 0 | EH135: 0 | EI135: 0 | EJ135: 0 | EK135: 0 | EL135: 0 | EM135: 0 | EN135: 0 | EO135: 0 | EP135: 0 | EQ135: 0 | ER135: 0 | ES135: 0 | ET135: 0 | EU135: 0 | EV135: 0 | EW135: 0 | EX135: 0 | EY135: 0 | EZ135: 0 | FA135: 0 | FB135: 0 | FC135: 0 | FD135: 0 | FE135: 0 | FF135: 0 | FG135: 0 | FH135: 0 | FI135: 0 | FJ135: 0 | FK135: 0 | FL135: 0 | FM135: 0 | FN135: 0 | FO135: 0 | FP135: 0 | FQ135: 0 | FR135: 0 | FS135: 0 | FT135: 0 | FU135: 0 | FV135: 0 | FW135: 0 | FX135: 0 | FY135: 0 | FZ135: 0 | GA135: 0 | GB135: 0 | GC135: 0 | GD135: 0 | GE135: 0 | GF135: 0 | GG135: 0 | GH135: 0
CV136: 0 | CW136: 0 | CX136: 0 | CY136: 0 | CZ136: 0 | DA136: 0 | DB136: 0 | DC136: 0 | DD136: 0 | DE136: 0 | DF136: 0 | DG136: 0 | DH136: 0 | DI136: 0 | DJ136: 0 | DK136: 0 | DL136: 0 | DM136: 0 | DN136: 0 | DO136: 0 | DP136: 0 | DQ136: 0 | DR136: 0 | DS136: 0 | DT136: 0 | DU136: 0 | DV136: 0 | DW136: 0 | DX136: 0 | DY136: 0 | DZ136: 0 | EA136: 0 | EB136: 0 | EC136: 0 | ED136: 0 | EE136: 0 | EF136: 0 | EG136: 0 | EH136: 0 | EI136: 0 | EJ136: 0 | EK136: 0 | EL136: 0 | EM136: 0 | EN136: 0 | EO136: 0 | EP136: 0 | EQ136: 0 | ER136: 0 | ES136: 0 | ET136: 0 | EU136: 0 | EV136: 0 | EW136: 0 | EX136: 0 | EY136: 0 | EZ136: 0 | FA136: 0 | FB136: 0 | FC136: 0 | FD136: 0 | FE136: 0 | FF136: 0 | FG136: 0 | FH136: 0 | FI136: 0 | FJ136: 0 | FK136: 0 | FL136: 0 | FM136: 0 | FN136: 0 | FO136: 0 | FP136: 0 | FQ136: 0 | FR136: 0 | FS136: 0 | FT136: 0 | FU136: 0 | FV136: 0 | FW136: 0 | FX136: 0 | FY136: 0 | FZ136: 0 | GA136: 0 | GB136: 0 | GC136: 0 | GD136: 0 | GE136: 0 | GF136: 0 | GG136: 0 | GH136: 0
CV137: 0 | CW137: 0 | CX137: 0 | CY137: 0 | CZ137: 0 | DA137: 0 | DB137: 0 | DC137: 0 | DD137: 0 | DE137: 0 | DF137: 0 | DG137: 0 | DH137: 0 | DI137: 0 | DJ137: 0 | DK137: 0 | DL137: 0 | DM137: 0 | DN137: 0 | DO137: 0 | DP137: 0 | DQ137: 0 | DR137: 0 | DS137: 0 | DT137: 0 | DU137: 0 | DV137: 0 | DW137: 0 | DX137: 0 | DY137: 0 | DZ137: 0 | EA137: 0 | EB137: 0 | EC137: 0 | ED137: 0 | EE137: 0 | EF137: 0 | EG137: 0 | EH137: 0 | EI137: 0 | EJ137: 0 | EK137: 0 | EL137: 0 | EM137: 0 | EN137: 0 | EO137: 0 | EP137: 0 | EQ137: 0 | ER137: 0 | ES137: 0 | ET137: 0 | EU137: 0 | EV137: 0 | EW137: 0 | EX137: 0 | EY137: 0 | EZ137: 0 | FA137: 0 | FB137: 0 | FC137: 0 | FD137: 0 | FE137: 0 | FF137: 0 | FG137: 0 | FH137: 0 | FI137: 0 | FJ137: 0 | FK137: 0 | FL137: 0 | FM137: 0 | FN137: 0 | FO137: 0 | FP137: 0 | FQ137: 0 | FR137: 0 | FS137: 0 | FT137: 0 | FU137: 0 | FV137: 0 | FW137: 0 | FX137: 0 | FY137: 0 | FZ137: 0 | GA137: 0 | GB137: 0 | GC137: 0 | GD137: 0 | GE137: 0 | GF137: 0 | GG137: 0 | GH137: 0
CV138: 0 | CW138: 0 | CX138: 0 | CY138: 0 | CZ138: 0 | DA138: 0 | DB138: 0 | DC138: 0 | DD138: 0 | DE138: 0 | DF138: 0 | DG138: 0 | DH138: 0 | DI138: 0 | DJ138: 0 | DK138: 0 | DL138: 0 | DM138: 0 | DN138: 0 | DO138: 0 | DP138: 0 | DQ138: 0 | DR138: 0 | DS138: 0 | DT138: 0 | DU138: 0 | DV138: 0 | DW138: 0 | DX138: 0 | DY138: 0 | DZ138: 0 | EA138: 0 | EB138: 0 | EC138: 0 | ED138: 0 | EE138: 0 | EF138: 0 | EG138: 0 | EH138: 0 | EI138: 0 | EJ138: 0 | EK138: 0 | EL138: 0 | EM138: 0 | EN138: 0 | EO138: 0 | EP138: 0 | EQ138: 0 | ER138: 0 | ES138: 0 | ET138: 0 | EU138: 0 | EV138: 0 | EW138: 0 | EX138: 0 | EY138: 0 | EZ138: 0 | FA138: 0 | FB138: 0 | FC138: 0 | FD138: 0 | FE138: 0 | FF138: 0 | FG138: 0 | FH138: 0 | FI138: 0 | FJ138: 0 | FK138: 0 | FL138: 0 | FM138: 0 | FN138: 0 | FO138: 0 | FP138: 0 | FQ138: 0 | FR138: 0 | FS138: 0 | FT138: 0 | FU138: 0 | FV138: 0 | FW138: 0 | FX138: 0 | FY138: 0 | FZ138: 0 | GA138: 0 | GB138: 0 | GC138: 0 | GD138: 0 | GE138: 0 | GF138: 0 | GG138: 0 | GH138: 0
CV139: 0 | CW139: 0 | CX139: 0 | CY139: 0 | CZ139: 0 | DA139: 0 | DB139: 0 | DC139: 0 | DD139: 0 | DE139: 0 | DF139: 0 | DG139: 0 | DH139: 0 | DI139: 0 | DJ139: 0 | DK139: 0 | DL139: 0 | DM139: 0 | DN139: 0 | DO139: 0 | DP139: 0 | DQ139: 0 | DR139: 0 | DS139: 0 | DT139: 0 | DU139: 0 | DV139: 0 | DW139: 0 | DX139: 0 | DY139: 0 | DZ139: 0 | EA139: 0 | EB139: 0 | EC139: 0 | ED139: 0 | EE139: 0 | EF139: 0 | EG139: 0 | EH139: 0 | EI139: 0 | EJ139: 0 | EK139: 0 | EL139: 0 | EM139: 0 | EN139: 0 | EO139: 0 | EP139: 0 | EQ139: 0 | ER139: 0 | ES139: 0 | ET139: 0 | EU139: 0 | EV139: 0 | EW139: 0 | EX139: 0 | EY139: 0 | EZ139: 0 | FA139: 0 | FB139: 0 | FC139: 0 | FD139: 0 | FE139: 0 | FF139: 0 | FG139: 0 | FH139: 0 | FI139: 0 | FJ139: 0 | FK139: 0 | FL139: 0 | FM139: 0 | FN139: 0 | FO139: 0 | FP139: 0 | FQ139: 0 | FR139: 0 | FS139: 0 | FT139: 0 | FU139: 0 | FV139: 0 | FW139: 0 | FX139: 0 | FY139: 0 | FZ139: 0 | GA139: 0 | GB139: 0 | GC139: 0 | GD139: 0 | GE139: 0 | GF139: 0 | GG139: 0 | GH139: 0
CV140: 0 | CW140: 0 | CX140: 0 | CY140: 0 | CZ140: 0 | DA140: 0 | DB140: 0 | DC140: 0 | DD140: 0 | DE140: 0 | DF140: 0 | DG140: 0 | DH140: 0 | DI140: 0 | DJ140: 0 | DK140: 0 | DL140: 0 | DM140: 0 | DN140: 0 | DO140: 0 | DP140: 0 | DQ140: 0 | DR140: 0 | DS140: 0 | DT140: 0 | DU140: 0 | DV140: 0 | DW140: 0 | DX140: 0 | DY140: 0 | DZ140: 0 | EA140: 0 | EB140: 0 | EC140: 0 | ED140: 0 | EE140: 0 | EF140: 0 | EG140: 0 | EH140: 0 | EI140: 0 | EJ140: 0 | EK140: 0 | EL140: 0 | EM140: 0 | EN140: 0 | EO140: 0 | EP140: 0 | EQ140: 0 | ER140: 0 | ES140: 0 | ET140: 0 | EU140: 0 | EV140: 0 | EW140: 0 | EX140: 0 | EY140: 0 | EZ140: 0 | FA140: 0 | FB140: 0 | FC140: 0 | FD140: 0 | FE140: 0 | FF140: 0 | FG140: 0 | FH140: 0 | FI140: 0 | FJ140: 0 | FK140: 0 | FL140: 0 | FM140: 0 | FN140: 0 | FO140: 0 | FP140: 0 | FQ140: 0 | FR140: 0 | FS140: 0 | FT140: 0 | FU140: 0 | FV140: 0 | FW140: 0 | FX140: 0 | FY140: 0 | FZ140: 0 | GA140: 0 | GB140: 0 | GC140: 0 | GD140: 0 | GE140: 0 | GF140: 0 | GG140: 0 | GH140: 0
CV141: 0 | CW141: 0 | CX141: 0 | CY141: 0 | CZ141: 0 | DA141: 0 | DB141: 0 | DC141: 0 | DD141: 0 | DE141: 0 | DF141: 0 | DG141: 0 | DH141: 0 | DI141: 0 | DJ141: 0 | DK141: 0 | DL141: 0 | DM141: 0 | DN141: 0 | DO141: 0 | DP141: 0 | DQ141: 0 | DR141: 0 | DS141: 0 | DT141: 0 | DU141: 0 | DV141: 0 | DW141: 0 | DX141: 0 | DY141: 0 | DZ141: 0 | EA141: 0 | EB141: 0 | EC141: 0 | ED141: 0 | EE141: 0 | EF141: 0 | EG141: 0 | EH141: 0 | EI141: 0 | EJ141: 0 | EK141: 0 | EL141: 0 | EM141: 0 | EN141: 0 | EO141: 0 | EP141: 0 | EQ141: 0 | ER141: 0 | ES141: 0 | ET141: 0 | EU141: 0 | EV141: 0 | EW141: 0 | EX141: 0 | EY141: 0 | EZ141: 0 | FA141: 0 | FB141: 0 | FC141: 0 | FD141: 0 | FE141: 0 | FF141: 0 | FG141: 0 | FH141: 0 | FI141: 0 | FJ141: 0 | FK141: 0 | FL141: 0 | FM141: 0 | FN141: 0 | FO141: 0 | FP141: 0 | FQ141: 0 | FR141: 0 | FS141: 0 | FT141: 0 | FU141: 0 | FV141: 0 | FW141: 0 | FX141: 0 | FY141: 0 | FZ141: 0 | GA141: 0 | GB141: 0 | GC141: 0 | GD141: 0 | GE141: 0 | GF141: 0 | GG141: 0 | GH141: 0
CV142: 0 | CW142: 0 | CX142: 0 | CY142: 0 | CZ142: 0 | DA142: 0 | DB142: 0 | DC142: 0 | DD142: 0 | DE142: 0 | DF142: 0 | DG142: 0 | DH142: 0 | DI142: 0 | DJ142: 0 | DK142: 0 | DL142: 0 | DM142: 0 | DN142: 0 | DO142: 0 | DP142: 0 | DQ142: 0 | DR142: 0 | DS142: 0 | DT142: 0 | DU142: 0 | DV142: 0 | DW142: 0 | DX142: 0 | DY142: 0 | DZ142: 0 | EA142: 0 | EB142: 0 | EC142: 0 | ED142: 0 | EE142: 0 | EF142: 0 | EG142: 0 | EH142: 0 | EI142: 0 | EJ142: 0 | EK142: 0 | EL142: 0 | EM142: 0 | EN142: 0 | EO142: 0 | EP142: 0 | EQ142: 0 | ER142: 0 | ES142: 0 | ET142: 0 | EU142: 0 | EV142: 0 | EW142: 0 | EX142: 0 | EY142: 0 | EZ142: 0 | FA142: 0 | FB142: 0 | FC142: 0 | FD142: 0 | FE142: 0 | FF142: 0 | FG142: 0 | FH142: 0 | FI142: 0 | FJ142: 0 | FK142: 0 | FL142: 0 | FM142: 0 | FN142: 0 | FO142: 0 | FP142: 0 | FQ142: 0 | FR142: 0 | FS142: 0 | FT142: 0 | FU142: 0 | FV142: 0 | FW142: 0 | FX142: 0 | FY142: 0 | FZ142: 0 | GA142: 0 | GB142: 0 | GC142: 0 | GD142: 0 | GE142: 0 | GF142: 0 | GG142: 0 | GH142: 0
CV143: 0 | CW143: 0 | CX143: 0 | CY143: 0 | CZ143: 0 | DA143: 0 | DB143: 0 | DC143: 0 | DD143: 0 | DE143: 0 | DF143: 0 | DG143: 0 | DH143: 0 | DI143: 0 | DJ143: 0 | DK143: 0 | DL143: 0 | DM143: 0 | DN143: 0 | DO143: 0 | DP143: 0 | DQ143: 0 | DR143: 0 | DS143: 0 | DT143: 0 | DU143: 0 | DV143: 0 | DW143: 0 | DX143: 0 | DY143: 0 | DZ143: 0 | EA143: 0 | EB143: 0 | EC143: 0 | ED143: 0 | EE143: 0 | EF143: 0 | EG143: 0 | EH143: 0 | EI143: 0 | EJ143: 0 | EK143: 0 | EL143: 0 | EM143: 0 | EN143: 0 | EO143: 0 | EP143: 0 | EQ143: 0 | ER143: 0 | ES143: 0 | ET143: 0 | EU143: 0 | EV143: 0 | EW143: 0 | EX143: 0 | EY143: 0 | EZ143: 0 | FA143: 0 | FB143: 0 | FC143: 0 | FD143: 0 | FE143: 0 | FF143: 0 | FG143: 0 | FH143: 0 | FI143: 0 | FJ143: 0 | FK143: 0 | FL143: 0 | FM143: 0 | FN143: 0 | FO143: 0 | FP143: 0 | FQ143: 0 | FR143: 0 | FS143: 0 | FT143: 0 | FU143: 0 | FV143: 0 | FW143: 0 | FX143: 0 | FY143: 0 | FZ143: 0 | GA143: 0 | GB143: 0 | GC143: 0 | GD143: 0 | GE143: 0 | GF143: 0 | GG143: 0 | GH143: 0
CV144: 0 | CW144: 0 | CX144: 0 | CY144: 0 | CZ144: 0 | DA144: 0 | DB144: 0 | DC144: 0 | DD144: 0 | DE144: 0 | DF144: 0 | DG144: 0 | DH144: 0 | DI144: 0 | DJ144: 0 | DK144: 0 | DL144: 0 | DM144: 0 | DN144: 0 | DO144: 0 | DP144: 0 | DQ144: 0 | DR144: 0 | DS144: 0 | DT144: 0 | DU144: 0 | DV144: 0 | DW144: 0 | DX144: 0 | DY144: 0 | DZ144: 0 | EA144: 0 | EB144: 0 | EC144: 0 | ED144: 0 | EE144: 0 | EF144: 0 | EG144: 0 | EH144: 0 | EI144: 0 | EJ144: 0 | EK144: 0 | EL144: 0 | EM144: 0 | EN144: 0 | EO144: 0 | EP144: 0 | EQ144: 0 | ER144: 0 | ES144: 0 | ET144: 0 | EU144: 0 | EV144: 0 | EW144: 0 | EX144: 0 | EY144: 0 | EZ144: 0 | FA144: 0 | FB144: 0 | FC144: 0 | FD144: 0 | FE144: 0 | FF144: 0 | FG144: 0 | FH144: 0 | FI144: 0 | FJ144: 0 | FK144: 0 | FL144: 0 | FM144: 0 | FN144: 0 | FO144: 0 | FP144: 0 | FQ144: 0 | FR144: 0 | FS144: 0 | FT144: 0 | FU144: 0 | FV144: 0 | FW144: 0 | FX144: 0 | FY144: 0 | FZ144: 0 | GA144: 0 | GB144: 0 | GC144: 0 | GD144: 0 | GE144: 0 | GF144: 0 | GG144: 0 | GH144: 0
CV145: 0 | CW145: 0 | CX145: 0 | CY145: 0 | CZ145: 0 | DA145: 0 | DB145: 0 | DC145: 0 | DD145: 0 | DE145: 0 | DF145: 0 | DG145: 0 | DH145: 0 | DI145: 0 | DJ145: 0 | DK145: 0 | DL145: 0 | DM145: 0 | DN145: 0 | DO145: 0 | DP145: 0 | DQ145: 0 | DR145: 0 | DS145: 0 | DT145: 0 | DU145: 0 | DV145: 0 | DW145: 0 | DX145: 0 | DY145: 0 | DZ145: 0 | EA145: 0 | EB145: 0 | EC145: 0 | ED145: 0 | EE145: 0 | EF145: 0 | EG145: 0 | EH145: 0 | EI145: 0 | EJ145: 0 | EK145: 0 | EL145: 0 | EM145: 0 | EN145: 0 | EO145: 0 | EP145: 0 | EQ145: 0 | ER145: 0 | ES145: 0 | ET145: 0 | EU145: 0 | EV145: 0 | EW145: 0 | EX145: 0 | EY145: 0 | EZ145: 0 | FA145: 0 | FB145: 0 | FC145: 0 | FD145: 0 | FE145: 0 | FF145: 0 | FG145: 0 | FH145: 0 | FI145: 0 | FJ145: 0 | FK145: 0 | FL145: 0 | FM145: 0 | FN145: 0 | FO145: 0 | FP145: 0 | FQ145: 0 | FR145: 0 | FS145: 0 | FT145: 0 | FU145: 0 | FV145: 0 | FW145: 0 | FX145: 0 | FY145: 0 | FZ145: 0 | GA145: 0 | GB145: 0 | GC145: 0 | GD145: 0 | GE145: 0 | GF145: 0 | GG145: 0 | GH145: 0
CV146: 0 | CW146: 0 | CX146: 0 | CY146: 0 | CZ146: 0 | DA146: 0 | DB146: 0 | DC146: 0 | DD146: 0 | DE146: 0 | DF146: 0 | DG146: 0 | DH146: 0 | DI146: 0 | DJ146: 0 | DK146: 0 | DL146: 0 | DM146: 0 | DN146: 0 | DO146: 0 | DP146: 0 | DQ146: 0 | DR146: 0 | DS146: 0 | DT146: 0 | DU146: 0 | DV146: 0 | DW146: 0 | DX146: 0 | DY146: 0 | DZ146: 0 | EA146: 0 | EB146: 0 | EC146: 0 | ED146: 0 | EE146: 0 | EF146: 0 | EG146: 0 | EH146: 0 | EI146: 0 | EJ146: 0 | EK146: 0 | EL146: 0 | EM146: 0 | EN146: 0 | EO146: 0 | EP146: 0 | EQ146: 0 | ER146: 0 | ES146: 0 | ET146: 0 | EU146: 0 | EV146: 0 | EW146: 0 | EX146: 0 | EY146: 0 | EZ146: 0 | FA146: 0 | FB146: 0 | FC146: 0 | FD146: 0 | FE146: 0 | FF146: 0 | FG146: 0 | FH146: 0 | FI146: 0 | FJ146: 0 | FK146: 0 | FL146: 0 | FM146: 0 | FN146: 0 | FO146: 0 | FP146: 0 | FQ146: 0 | FR146: 0 | FS146: 0 | FT146: 0 | FU146: 0 | FV146: 0 | FW146: 0 | FX146: 0 | FY146: 0 | FZ146: 0 | GA146: 0 | GB146: 0 | GC146: 0 | GD146: 0 | GE146: 0 | GF146: 0 | GG146: 0 | GH146: 0
CV147: 0 | CW147: 0 | CX147: 0 | CY147: 0 | CZ147: 0 | DA147: 0 | DB147: 0 | DC147: 0 | DD147: 0 | DE147: 0 | DF147: 0 | DG147: 0 | DH147: 0 | DI147: 0 | DJ147: 0 | DK147: 0 | DL147: 0 | DM147: 0 | DN147: 0 | DO147: 0 | DP147: 0 | DQ147: 0 | DR147: 0 | DS147: 0 | DT147: 0 | DU147: 0 | DV147: 0 | DW147: 0 | DX147: 0 | DY147: 0 | DZ147: 0 | EA147: 0 | EB147: 0 | EC147: 0 | ED147: 0 | EE147: 0 | EF147: 0 | EG147: 0 | EH147: 0 | EI147: 0 | EJ147: 0 | EK147: 0 | EL147: 0 | EM147: 0 | EN147: 0 | EO147: 0 | EP147: 0 | EQ147: 0 | ER147: 0 | ES147: 0 | ET147: 0 | EU147: 0 | EV147: 0 | EW147: 0 | EX147: 0 | EY147: 0 | EZ147: 0 | FA147: 0 | FB147: 0 | FC147: 0 | FD147: 0 | FE147: 0 | FF147: 0 | FG147: 0 | FH147: 0 | FI147: 0 | FJ147: 0 | FK147: 0 | FL147: 0 | FM147: 0 | FN147: 0 | FO147: 0 | FP147: 0 | FQ147: 0 | FR147: 0 | FS147: 0 | FT147: 0 | FU147: 0 | FV147: 0 | FW147: 0 | FX147: 0 | FY147: 0 | FZ147: 0 | GA147: 0 | GB147: 0 | GC147: 0 | GD147: 0 | GE147: 0 | GF147: 0 | GG147: 0 | GH147: 0
CV148: 0 | CW148: 0 | CX148: 0 | CY148: 0 | CZ148: 0 | DA148: 0 | DB148: 0 | DC148: 0 | DD148: 0 | DE148: 0 | DF148: 0 | DG148: 0 | DH148: 0 | DI148: 0 | DJ148: 0 | DK148: 0 | DL148: 0 | DM148: 0 | DN148: 0 | DO148: 0 | DP148: 0 | DQ148: 0 | DR148: 0 | DS148: 0 | DT148: 0 | DU148: 0 | DV148: 0 | DW148: 0 | DX148: 0 | DY148: 0 | DZ148: 0 | EA148: 0 | EB148: 0 | EC148: 0 | ED148: 0 | EE148: 0 | EF148: 0 | EG148: 0 | EH148: 0 | EI148: 0 | EJ148: 0 | EK148: 0 | EL148: 0 | EM148: 0 | EN148: 0 | EO148: 0 | EP148: 0 | EQ148: 0 | ER148: 0 | ES148: 0 | ET148: 0 | EU148: 0 | EV148: 0 | EW148: 0 | EX148: 0 | EY148: 0 | EZ148: 0 | FA148: 0 | FB148: 0 | FC148: 0 | FD148: 0 | FE148: 0 | FF148: 0 | FG148: 0 | FH148: 0 | FI148: 0 | FJ148: 0 | FK148: 0 | FL148: 0 | FM148: 0 | FN148: 0 | FO148: 0 | FP148: 0 | FQ148: 0 | FR148: 0 | FS148: 0 | FT148: 0 | FU148: 0 | FV148: 0 | FW148: 0 | FX148: 0 | FY148: 0 | FZ148: 0 | GA148: 0 | GB148: 0 | GC148: 0 | GD148: 0 | GE148: 0 | GF148: 0 | GG148: 0 | GH148: 0
CV149: 0 | CW149: =IFERROR($D149*I149,"") -> 0 | CX149: =IFERROR($D149*J149,"") -> 0 | CY149: =IFERROR($D149*K149,"") -> 0 | CZ149: =IFERROR($D149*L149,"") -> 0 | DA149: =IFERROR($D149*M149,"") -> 0 | DB149: =IFERROR($D149*N149,"") -> 0 | DC149: =IFERROR($D149*O149,"") -> 0 | DD149: =IFERROR($D149*P149,"") -> 0 | DE149: =IFERROR($D149*Q149,"") -> 0 | DF149: =IFERROR($D149*R149,"") -> 0 | DG149: =IFERROR($D149*S149,"") -> 0 | DH149: =IFERROR($D149*T149,"") -> 0 | DI149: =IFERROR($D149*U149,"") -> 0 | DJ149: =IFERROR($D149*V149,"") -> 0 | DK149: =IFERROR($D149*W149,"") -> 0 | DL149: =IFERROR($D149*X149,"") -> 0 | DM149: =IFERROR($D149*Y149,"") -> 0 | DN149: =IFERROR($D149*Z149,"") -> 0 | DO149: =IFERROR($D149*AA149,"") -> 0 | DP149: =IFERROR($D149*AB149,"") -> 0 | DQ149: =IFERROR($D149*AC149,"") -> 0 | DR149: =IFERROR($D149*AD149,"") -> 0 | DS149: =IFERROR($D149*AE149,"") -> 0 | DT149: =IFERROR($D149*AF149,"") -> 0 | DU149: =IFERROR($D149*AG149,"") -> 0 | DV149: =IFERROR($D149*AH149,"") -> 0 | DW149: =IFERROR($D149*AI149,"") -> 0 | DX149: =IFERROR($D149*AJ149,"") -> 0 | DY149: =IFERROR($D149*AK149,"") -> 0 | DZ149: =IFERROR($D149*AL149,"") -> 0 | EA149: =IFERROR($D149*AM149,"") -> 0 | EB149: =IFERROR($D149*AN149,"") -> 0 | EC149: =IFERROR($D149*AO149,"") -> 0 | ED149: =IFERROR($D149*AP149,"") -> 0 | EE149: =IFERROR($D149*AQ149,"") -> 0 | EF149: =IFERROR($D149*AR149,"") -> 0 | EG149: =IFERROR($D149*AS149,"") -> 0 | EH149: =IFERROR($D149*AT149,"") -> 0 | EI149: =IFERROR($D149*AU149,"") -> 0 | EJ149: =IFERROR($D149*AV149,"") -> 0 | EK149: =IFERROR($D149*AW149,"") -> 0 | EL149: =IFERROR($D149*AX149,"") -> 0 | EM149: =IFERROR($D149*AY149,"") -> 0 | EN149: =IFERROR($D149*AZ149,"") -> 0 | EO149: =IFERROR($D149*BA149,"") -> 0 | EP149: =IFERROR($D149*BB149,"") -> 0 | EQ149: =IFERROR($D149*BC149,"") -> 0 | ER149: =IFERROR($D149*BD149,"") -> 0 | ES149: =IFERROR($D149*BE149,"") -> 0 | ET149: =IFERROR($D149*BF149,"") -> 0 | EU149: =IFERROR($D149*BG149,"") -> 0 | EV149: =IFERROR($D149*BH149,"") -> 0 | EW149: =IFERROR($D149*BI149,"") -> 0 | EX149: =IFERROR($D149*BJ149,"") -> 0 | EY149: =IFERROR($D149*BK149,"") -> 0 | EZ149: =IFERROR($D149*BL149,"") -> 0 | FA149: =IFERROR($D149*BM149,"") -> 0 | FB149: =IFERROR($D149*BN149,"") -> 0 | FC149: =IFERROR($D149*BO149,"") -> 0 | FD149: =IFERROR($D149*BP149,"") -> 0 | FE149: =IFERROR($D149*BQ149,"") -> 0 | FF149: =IFERROR($D149*BR149,"") -> 0 | FG149: =IFERROR($D149*BS149,"") -> 0 | FH149: =IFERROR($D149*BT149,"") -> 0 | FI149: =IFERROR($D149*BU149,"") -> 0 | FJ149: =IFERROR($D149*BV149,"") -> 0 | FK149: =IFERROR($D149*BW149,"") -> 0 | FL149: =IFERROR($D149*BX149,"") -> 0 | FM149: =IFERROR($D149*BY149,"") -> 0 | FN149: =IFERROR($D149*BZ149,"") -> 0 | FO149: =IFERROR($D149*CA149,"") -> 0 | FP149: =IFERROR($D149*CB149,"") -> 0 | FQ149: =IFERROR($D149*CC149,"") -> 0 | FR149: =IFERROR($D149*CD149,"") -> 0 | FS149: =IFERROR($D149*CE149,"") -> 0 | FT149: =IFERROR($D149*CF149,"") -> 0 | FU149: =IFERROR($D149*CG149,"") -> 0 | FV149: =IFERROR($D149*CH149,"") -> 0 | FW149: =IFERROR($D149*CI149,"") -> 0 | FX149: =IFERROR($D149*CJ149,"") -> 0 | FY149: =IFERROR($D149*CK149,"") -> 0 | FZ149: =IFERROR($D149*CL149,"") -> 0 | GA149: =IFERROR($D149*CM149,"") -> 0 | GB149: =IFERROR($D149*CN149,"") -> 0 | GC149: =IFERROR($D149*CO149,"") -> 0 | GD149: =IFERROR($D149*CP149,"") -> 0 | GE149: =IFERROR($D149*CQ149,"") -> 0 | GF149: =IFERROR($D149*CR149,"") -> 0 | GG149: =IFERROR($D149*CS149,"") -> 0 | GH149: =IFERROR($D149*CT149,"") -> 0
CV150: =IFERROR($D150*H150,"") -> 0 | CW150: 0 | CX150: 0 | CY150: 0 | CZ150: 0 | DA150: 0 | DB150: 0 | DC150: 0 | DD150: 0 | DE150: 0 | DF150: 0 | DG150: 0 | DH150: 0 | DI150: 0 | DJ150: 0 | DK150: 0 | DL150: 0 | DM150: 0 | DN150: 0 | DO150: 0 | DP150: 0 | DQ150: 0 | DR150: 0 | DS150: 0 | DT150: 0 | DU150: 0 | DV150: 0 | DW150: 0 | DX150: 0 | DY150: 0 | DZ150: 0 | EA150: 0 | EB150: 0 | EC150: 0 | ED150: 0 | EE150: 0 | EF150: 0 | EG150: 0 | EH150: 0 | EI150: 0 | EJ150: 0 | EK150: 0 | EL150: 0 | EM150: 0 | EN150: 0 | EO150: 0 | EP150: 0 | EQ150: 0 | ER150: 0 | ES150: 0 | ET150: 0 | EU150: 0 | EV150: 0 | EW150: 0 | EX150: 0 | EY150: 0 | EZ150: 0 | FA150: 0 | FB150: 0 | FC150: 0 | FD150: 0 | FE150: 0 | FF150: 0 | FG150: 0 | FH150: 0 | FI150: 0 | FJ150: 0 | FK150: 0 | FL150: 0 | FM150: 0 | FN150: 0 | FO150: 0 | FP150: 0 | FQ150: 0 | FR150: 0 | FS150: 0 | FT150: 0 | FU150: 0 | FV150: 0 | FW150: 0 | FX150: 0 | FY150: 0 | FZ150: 0 | GA150: 0 | GB150: 0 | GC150: 0 | GD150: 0 | GE150: 0 | GF150: 0 | GG150: 0 | GH150: 0
CV151: 0 | CW151: 0 | CX151: 0 | CY151: 0 | CZ151: 0 | DA151: 0 | DB151: 0 | DC151: 0 | DD151: 0 | DE151: 0 | DF151: 0 | DG151: 0 | DH151: 0 | DI151: 0 | DJ151: 0 | DK151: 0 | DL151: 0 | DM151: 0 | DN151: 0 | DO151: 0 | DP151: 0 | DQ151: 0 | DR151: 0 | DS151: 0 | DT151: 0 | DU151: 0 | DV151: 0 | DW151: 0 | DX151: 0 | DY151: 0 | DZ151: 0 | EA151: 0 | EB151: 0 | EC151: 0 | ED151: 0 | EE151: 0 | EF151: 0 | EG151: 0 | EH151: 0 | EI151: 0 | EJ151: 0 | EK151: 0 | EL151: 0 | EM151: 0 | EN151: 0 | EO151: 0 | EP151: 0 | EQ151: 0 | ER151: 0 | ES151: 0 | ET151: 0 | EU151: 0 | EV151: 0 | EW151: 0 | EX151: 0 | EY151: 0 | EZ151: 0 | FA151: 0 | FB151: 0 | FC151: 0 | FD151: 0 | FE151: 0 | FF151: 0 | FG151: 0 | FH151: 0 | FI151: 0 | FJ151: 0 | FK151: 0 | FL151: 0 | FM151: 0 | FN151: 0 | FO151: 0 | FP151: 0 | FQ151: 0 | FR151: 0 | FS151: 0 | FT151: 0 | FU151: 0 | FV151: 0 | FW151: 0 | FX151: 0 | FY151: 0 | FZ151: 0 | GA151: 0 | GB151: 0 | GC151: 0 | GD151: 0 | GE151: 0 | GF151: 0 | GG151: 0 | GH151: 0
CV152: 0 | CW152: 0 | CX152: 0 | CY152: 0 | CZ152: 0 | DA152: 0 | DB152: 0 | DC152: 0 | DD152: 0 | DE152: 0 | DF152: 0 | DG152: 0 | DH152: 0 | DI152: 0 | DJ152: 0 | DK152: 0 | DL152: 0 | DM152: 0 | DN152: 0 | DO152: 0 | DP152: 0 | DQ152: 0 | DR152: 0 | DS152: 0 | DT152: 0 | DU152: 0 | DV152: 0 | DW152: 0 | DX152: 0 | DY152: 0 | DZ152: 0 | EA152: 0 | EB152: 0 | EC152: 0 | ED152: 0 | EE152: 0 | EF152: 0 | EG152: 0 | EH152: 0 | EI152: 0 | EJ152: 0 | EK152: 0 | EL152: 0 | EM152: 0 | EN152: 0 | EO152: 0 | EP152: 0 | EQ152: 0 | ER152: 0 | ES152: 0 | ET152: 0 | EU152: 0 | EV152: 0 | EW152: 0 | EX152: 0 | EY152: 0 | EZ152: 0 | FA152: 0 | FB152: 0 | FC152: 0 | FD152: 0 | FE152: 0 | FF152: 0 | FG152: 0 | FH152: 0 | FI152: 0 | FJ152: 0 | FK152: 0 | FL152: 0 | FM152: 0 | FN152: 0 | FO152: 0 | FP152: 0 | FQ152: 0 | FR152: 0 | FS152: 0 | FT152: 0 | FU152: 0 | FV152: 0 | FW152: 0 | FX152: 0 | FY152: 0 | FZ152: 0 | GA152: 0 | GB152: 0 | GC152: 0 | GD152: 0 | GE152: 0 | GF152: 0 | GG152: 0 | GH152: 0
CV153: 0 | CW153: 0 | CX153: 0 | CY153: 0 | CZ153: 0 | DA153: 0 | DB153: 0 | DC153: 0 | DD153: 0 | DE153: 0 | DF153: 0 | DG153: 0 | DH153: 0 | DI153: 0 | DJ153: 0 | DK153: 0 | DL153: 0 | DM153: 0 | DN153: 0 | DO153: 0 | DP153: 0 | DQ153: 0 | DR153: 0 | DS153: 0 | DT153: 0 | DU153: 0 | DV153: 0 | DW153: 0 | DX153: 0 | DY153: 0 | DZ153: 0 | EA153: 0 | EB153: 0 | EC153: 0 | ED153: 0 | EE153: 0 | EF153: 0 | EG153: 0 | EH153: 0 | EI153: 0 | EJ153: 0 | EK153: 0 | EL153: 0 | EM153: 0 | EN153: 0 | EO153: 0 | EP153: 0 | EQ153: 0 | ER153: 0 | ES153: 0 | ET153: 0 | EU153: 0 | EV153: 0 | EW153: 0 | EX153: 0 | EY153: 0 | EZ153: 0 | FA153: 0 | FB153: 0 | FC153: 0 | FD153: 0 | FE153: 0 | FF153: 0 | FG153: 0 | FH153: 0 | FI153: 0 | FJ153: 0 | FK153: 0 | FL153: 0 | FM153: 0 | FN153: 0 | FO153: 0 | FP153: 0 | FQ153: 0 | FR153: 0 | FS153: 0 | FT153: 0 | FU153: 0 | FV153: 0 | FW153: 0 | FX153: 0 | FY153: 0 | FZ153: 0 | GA153: 0 | GB153: 0 | GC153: 0 | GD153: 0 | GE153: 0 | GF153: 0 | GG153: 0 | GH153: 0
CV154: 0 | CW154: 0 | CX154: 0 | CY154: 0 | CZ154: 0 | DA154: 0 | DB154: 0 | DC154: 0 | DD154: 0 | DE154: 0 | DF154: 0 | DG154: 0 | DH154: 0 | DI154: 0 | DJ154: 0 | DK154: 0 | DL154: 0 | DM154: 0 | DN154: 0 | DO154: 0 | DP154: 0 | DQ154: 0 | DR154: 0 | DS154: 0 | DT154: 0 | DU154: 0 | DV154: 0 | DW154: 0 | DX154: 0 | DY154: 0 | DZ154: 0 | EA154: 0 | EB154: 0 | EC154: 0 | ED154: 0 | EE154: 0 | EF154: 0 | EG154: 0 | EH154: 0 | EI154: 0 | EJ154: 0 | EK154: 0 | EL154: 0 | EM154: 0 | EN154: 0 | EO154: 0 | EP154: 0 | EQ154: 0 | ER154: 0 | ES154: 0 | ET154: 0 | EU154: 0 | EV154: 0 | EW154: 0 | EX154: 0 | EY154: 0 | EZ154: 0 | FA154: 0 | FB154: 0 | FC154: 0 | FD154: 0 | FE154: 0 | FF154: 0 | FG154: 0 | FH154: 0 | FI154: 0 | FJ154: 0 | FK154: 0 | FL154: 0 | FM154: 0 | FN154: 0 | FO154: 0 | FP154: 0 | FQ154: 0 | FR154: 0 | FS154: 0 | FT154: 0 | FU154: 0 | FV154: 0 | FW154: 0 | FX154: 0 | FY154: 0 | FZ154: 0 | GA154: 0 | GB154: 0 | GC154: 0 | GD154: 0 | GE154: 0 | GF154: 0 | GG154: 0 | GH154: 0
CV155: 0 | CW155: 0 | CX155: 0 | CY155: 0 | CZ155: 0 | DA155: 0 | DB155: 0 | DC155: 0 | DD155: 0 | DE155: 0 | DF155: 0 | DG155: 0 | DH155: 0 | DI155: 0 | DJ155: 0 | DK155: 0 | DL155: 0 | DM155: 0 | DN155: 0 | DO155: 0 | DP155: 0 | DQ155: 0 | DR155: 0 | DS155: 0 | DT155: 0 | DU155: 0 | DV155: 0 | DW155: 0 | DX155: 0 | DY155: 0 | DZ155: 0 | EA155: 0 | EB155: 0 | EC155: 0 | ED155: 0 | EE155: 0 | EF155: 0 | EG155: 0 | EH155: 0 | EI155: 0 | EJ155: 0 | EK155: 0 | EL155: 0 | EM155: 0 | EN155: 0 | EO155: 0 | EP155: 0 | EQ155: 0 | ER155: 0 | ES155: 0 | ET155: 0 | EU155: 0 | EV155: 0 | EW155: 0 | EX155: 0 | EY155: 0 | EZ155: 0 | FA155: 0 | FB155: 0 | FC155: 0 | FD155: 0 | FE155: 0 | FF155: 0 | FG155: 0 | FH155: 0 | FI155: 0 | FJ155: 0 | FK155: 0 | FL155: 0 | FM155: 0 | FN155: 0 | FO155: 0 | FP155: 0 | FQ155: 0 | FR155: 0 | FS155: 0 | FT155: 0 | FU155: 0 | FV155: 0 | FW155: 0 | FX155: 0 | FY155: 0 | FZ155: 0 | GA155: 0 | GB155: 0 | GC155: 0 | GD155: 0 | GE155: 0 | GF155: 0 | GG155: 0 | GH155: 0
CV156: 0 | CW156: 0 | CX156: 0 | CY156: 0 | CZ156: 0 | DA156: 0 | DB156: 0 | DC156: 0 | DD156: 0 | DE156: 0 | DF156: 0 | DG156: 0 | DH156: 0 | DI156: 0 | DJ156: 0 | DK156: 0 | DL156: 0 | DM156: 0 | DN156: 0 | DO156: 0 | DP156: 0 | DQ156: 0 | DR156: 0 | DS156: 0 | DT156: 0 | DU156: 0 | DV156: 0 | DW156: 0 | DX156: 0 | DY156: 0 | DZ156: 0 | EA156: 0 | EB156: 0 | EC156: 0 | ED156: 0 | EE156: 0 | EF156: 0 | EG156: 0 | EH156: 0 | EI156: 0 | EJ156: 0 | EK156: 0 | EL156: 0 | EM156: 0 | EN156: 0 | EO156: 0 | EP156: 0 | EQ156: 0 | ER156: 0 | ES156: 0 | ET156: 0 | EU156: 0 | EV156: 0 | EW156: 0 | EX156: 0 | EY156: 0 | EZ156: 0 | FA156: 0 | FB156: 0 | FC156: 0 | FD156: 0 | FE156: 0 | FF156: 0 | FG156: 0 | FH156: 0 | FI156: 0 | FJ156: 0 | FK156: 0 | FL156: 0 | FM156: 0 | FN156: 0 | FO156: 0 | FP156: 0 | FQ156: 0 | FR156: 0 | FS156: 0 | FT156: 0 | FU156: 0 | FV156: 0 | FW156: 0 | FX156: 0 | FY156: 0 | FZ156: 0 | GA156: 0 | GB156: 0 | GC156: 0 | GD156: 0 | GE156: 0 | GF156: 0 | GG156: 0 | GH156: 0
CV157: 0 | CW157: 0 | CX157: 0 | CY157: 0 | CZ157: 0 | DA157: 0 | DB157: 0 | DC157: 0 | DD157: 0 | DE157: 0 | DF157: 0 | DG157: 0 | DH157: 0 | DI157: 0 | DJ157: 0 | DK157: 0 | DL157: 0 | DM157: 0 | DN157: 0 | DO157: 0 | DP157: 0 | DQ157: 0 | DR157: 0 | DS157: 0 | DT157: 0 | DU157: 0 | DV157: 0 | DW157: 0 | DX157: 0 | DY157: 0 | DZ157: 0 | EA157: 0 | EB157: 0 | EC157: 0 | ED157: 0 | EE157: 0 | EF157: 0 | EG157: 0 | EH157: 0 | EI157: 0 | EJ157: 0 | EK157: 0 | EL157: 0 | EM157: 0 | EN157: 0 | EO157: 0 | EP157: 0 | EQ157: 0 | ER157: 0 | ES157: 0 | ET157: 0 | EU157: 0 | EV157: 0 | EW157: 0 | EX157: 0 | EY157: 0 | EZ157: 0 | FA157: 0 | FB157: 0 | FC157: 0 | FD157: 0 | FE157: 0 | FF157: 0 | FG157: 0 | FH157: 0 | FI157: 0 | FJ157: 0 | FK157: 0 | FL157: 0 | FM157: 0 | FN157: 0 | FO157: 0 | FP157: 0 | FQ157: 0 | FR157: 0 | FS157: 0 | FT157: 0 | FU157: 0 | FV157: 0 | FW157: 0 | FX157: 0 | FY157: 0 | FZ157: 0 | GA157: 0 | GB157: 0 | GC157: 0 | GD157: 0 | GE157: 0 | GF157: 0 | GG157: 0 | GH157: 0
CV158: 0 | CW158: 0 | CX158: 0 | CY158: 0 | CZ158: 0 | DA158: 0 | DB158: 0 | DC158: 0 | DD158: 0 | DE158: 0 | DF158: 0 | DG158: 0 | DH158: 0 | DI158: 0 | DJ158: 0 | DK158: 0 | DL158: 0 | DM158: 0 | DN158: 0 | DO158: 0 | DP158: 0 | DQ158: 0 | DR158: 0 | DS158: 0 | DT158: 0 | DU158: 0 | DV158: 0 | DW158: 0 | DX158: 0 | DY158: 0 | DZ158: 0 | EA158: 0 | EB158: 0 | EC158: 0 | ED158: 0 | EE158: 0 | EF158: 0 | EG158: 0 | EH158: 0 | EI158: 0 | EJ158: 0 | EK158: 0 | EL158: 0 | EM158: 0 | EN158: 0 | EO158: 0 | EP158: 0 | EQ158: 0 | ER158: 0 | ES158: 0 | ET158: 0 | EU158: 0 | EV158: 0 | EW158: 0 | EX158: 0 | EY158: 0 | EZ158: 0 | FA158: 0 | FB158: 0 | FC158: 0 | FD158: 0 | FE158: 0 | FF158: 0 | FG158: 0 | FH158: 0 | FI158: 0 | FJ158: 0 | FK158: 0 | FL158: 0 | FM158: 0 | FN158: 0 | FO158: 0 | FP158: 0 | FQ158: 0 | FR158: 0 | FS158: 0 | FT158: 0 | FU158: 0 | FV158: 0 | FW158: 0 | FX158: 0 | FY158: 0 | FZ158: 0 | GA158: 0 | GB158: 0 | GC158: 0 | GD158: 0 | GE158: 0 | GF158: 0 | GG158: 0 | GH158: 0
CV159: 0 | CW159: 0 | CX159: 0 | CY159: 0 | CZ159: 0 | DA159: 0 | DB159: 0 | DC159: 0 | DD159: 0 | DE159: 0 | DF159: 0 | DG159: 0 | DH159: 0 | DI159: 0 | DJ159: 0 | DK159: 0 | DL159: 0 | DM159: 0 | DN159: 0 | DO159: 0 | DP159: 0 | DQ159: 0 | DR159: 0 | DS159: 0 | DT159: 0 | DU159: 0 | DV159: 0 | DW159: 0 | DX159: 0 | DY159: 0 | DZ159: 0 | EA159: 0 | EB159: 0 | EC159: 0 | ED159: 0 | EE159: 0 | EF159: 0 | EG159: 0 | EH159: 0 | EI159: 0 | EJ159: 0 | EK159: 0 | EL159: 0 | EM159: 0 | EN159: 0 | EO159: 0 | EP159: 0 | EQ159: 0 | ER159: 0 | ES159: 0 | ET159: 0 | EU159: 0 | EV159: 0 | EW159: 0 | EX159: 0 | EY159: 0 | EZ159: 0 | FA159: 0 | FB159: 0 | FC159: 0 | FD159: 0 | FE159: 0 | FF159: 0 | FG159: 0 | FH159: 0 | FI159: 0 | FJ159: 0 | FK159: 0 | FL159: 0 | FM159: 0 | FN159: 0 | FO159: 0 | FP159: 0 | FQ159: 0 | FR159: 0 | FS159: 0 | FT159: 0 | FU159: 0 | FV159: 0 | FW159: 0 | FX159: 0 | FY159: 0 | FZ159: 0 | GA159: 0 | GB159: 0 | GC159: 0 | GD159: 0 | GE159: 0 | GF159: 0 | GG159: 0 | GH159: 0
CV160: 0 | CW160: 0 | CX160: 0 | CY160: 0 | CZ160: 0 | DA160: 0 | DB160: 0 | DC160: 0 | DD160: 0 | DE160: 0 | DF160: 0 | DG160: 0 | DH160: 0 | DI160: 0 | DJ160: 0 | DK160: 0 | DL160: 0 | DM160: 0 | DN160: 0 | DO160: 0 | DP160: 0 | DQ160: 0 | DR160: 0 | DS160: 0 | DT160: 0 | DU160: 0 | DV160: 0 | DW160: 0 | DX160: 0 | DY160: 0 | DZ160: 0 | EA160: 0 | EB160: 0 | EC160: 0 | ED160: 0 | EE160: 0 | EF160: 0 | EG160: 0 | EH160: 0 | EI160: 0 | EJ160: 0 | EK160: 0 | EL160: 0 | EM160: 0 | EN160: 0 | EO160: 0 | EP160: 0 | EQ160: 0 | ER160: 0 | ES160: 0 | ET160: 0 | EU160: 0 | EV160: 0 | EW160: 0 | EX160: 0 | EY160: 0 | EZ160: 0 | FA160: 0 | FB160: 0 | FC160: 0 | FD160: 0 | FE160: 0 | FF160: 0 | FG160: 0 | FH160: 0 | FI160: 0 | FJ160: 0 | FK160: 0 | FL160: 0 | FM160: 0 | FN160: 0 | FO160: 0 | FP160: 0 | FQ160: 0 | FR160: 0 | FS160: 0 | FT160: 0 | FU160: 0 | FV160: 0 | FW160: 0 | FX160: 0 | FY160: 0 | FZ160: 0 | GA160: 0 | GB160: 0 | GC160: 0 | GD160: 0 | GE160: 0 | GF160: 0 | GG160: 0 | GH160: 0
CV161: 0 | CW161: 0 | CX161: 0 | CY161: 0 | CZ161: 0 | DA161: 0 | DB161: 0 | DC161: 0 | DD161: 0 | DE161: 0 | DF161: 0 | DG161: 0 | DH161: 0 | DI161: 0 | DJ161: 0 | DK161: 0 | DL161: 0 | DM161: 0 | DN161: 0 | DO161: 0 | DP161: 0 | DQ161: 0 | DR161: 0 | DS161: 0 | DT161: 0 | DU161: 0 | DV161: 0 | DW161: 0 | DX161: 0 | DY161: 0 | DZ161: 0 | EA161: 0 | EB161: 0 | EC161: 0 | ED161: 0 | EE161: 0 | EF161: 0 | EG161: 0 | EH161: 0 | EI161: 0 | EJ161: 0 | EK161: 0 | EL161: 0 | EM161: 0 | EN161: 0 | EO161: 0 | EP161: 0 | EQ161: 0 | ER161: 0 | ES161: 0 | ET161: 0 | EU161: 0 | EV161: 0 | EW161: 0 | EX161: 0 | EY161: 0 | EZ161: 0 | FA161: 0 | FB161: 0 | FC161: 0 | FD161: 0 | FE161: 0 | FF161: 0 | FG161: 0 | FH161: 0 | FI161: 0 | FJ161: 0 | FK161: 0 | FL161: 0 | FM161: 0 | FN161: 0 | FO161: 0 | FP161: 0 | FQ161: 0 | FR161: 0 | FS161: 0 | FT161: 0 | FU161: 0 | FV161: 0 | FW161: 0 | FX161: 0 | FY161: 0 | FZ161: 0 | GA161: 0 | GB161: 0 | GC161: 0 | GD161: 0 | GE161: 0 | GF161: 0 | GG161: 0 | GH161: 0
CV162: 0 | CW162: 0 | CX162: 0 | CY162: 0 | CZ162: 0 | DA162: 0 | DB162: 0 | DC162: 0 | DD162: 0 | DE162: 0 | DF162: 0 | DG162: 0 | DH162: 0 | DI162: 0 | DJ162: 0 | DK162: 0 | DL162: 0 | DM162: 0 | DN162: 0 | DO162: 0 | DP162: 0 | DQ162: 0 | DR162: 0 | DS162: 0 | DT162: 0 | DU162: 0 | DV162: 0 | DW162: 0 | DX162: 0 | DY162: 0 | DZ162: 0 | EA162: 0 | EB162: 0 | EC162: 0 | ED162: 0 | EE162: 0 | EF162: 0 | EG162: 0 | EH162: 0 | EI162: 0 | EJ162: 0 | EK162: 0 | EL162: 0 | EM162: 0 | EN162: 0 | EO162: 0 | EP162: 0 | EQ162: 0 | ER162: 0 | ES162: 0 | ET162: 0 | EU162: 0 | EV162: 0 | EW162: 0 | EX162: 0 | EY162: 0 | EZ162: 0 | FA162: 0 | FB162: 0 | FC162: 0 | FD162: 0 | FE162: 0 | FF162: 0 | FG162: 0 | FH162: 0 | FI162: 0 | FJ162: 0 | FK162: 0 | FL162: 0 | FM162: 0 | FN162: 0 | FO162: 0 | FP162: 0 | FQ162: 0 | FR162: 0 | FS162: 0 | FT162: 0 | FU162: 0 | FV162: 0 | FW162: 0 | FX162: 0 | FY162: 0 | FZ162: 0 | GA162: 0 | GB162: 0 | GC162: 0 | GD162: 0 | GE162: 0 | GF162: 0 | GG162: 0 | GH162: 0
CV163: 0 | CW163: 0 | CX163: 0 | CY163: 0 | CZ163: 0 | DA163: 0 | DB163: 0 | DC163: 0 | DD163: 0 | DE163: 0 | DF163: 0 | DG163: 0 | DH163: 0 | DI163: 0 | DJ163: 0 | DK163: 0 | DL163: 0 | DM163: 0 | DN163: 0 | DO163: 0 | DP163: 0 | DQ163: 0 | DR163: 0 | DS163: 0 | DT163: 0 | DU163: 0 | DV163: 0 | DW163: 0 | DX163: 0 | DY163: 0 | DZ163: 0 | EA163: 0 | EB163: 0 | EC163: 0 | ED163: 0 | EE163: 0 | EF163: 0 | EG163: 0 | EH163: 0 | EI163: 0 | EJ163: 0 | EK163: 0 | EL163: 0 | EM163: 0 | EN163: 0 | EO163: 0 | EP163: 0 | EQ163: 0 | ER163: 0 | ES163: 0 | ET163: 0 | EU163: 0 | EV163: 0 | EW163: 0 | EX163: 0 | EY163: 0 | EZ163: 0 | FA163: 0 | FB163: 0 | FC163: 0 | FD163: 0 | FE163: 0 | FF163: 0 | FG163: 0 | FH163: 0 | FI163: 0 | FJ163: 0 | FK163: 0 | FL163: 0 | FM163: 0 | FN163: 0 | FO163: 0 | FP163: 0 | FQ163: 0 | FR163: 0 | FS163: 0 | FT163: 0 | FU163: 0 | FV163: 0 | FW163: 0 | FX163: 0 | FY163: 0 | FZ163: 0 | GA163: 0 | GB163: 0 | GC163: 0 | GD163: 0 | GE163: 0 | GF163: 0 | GG163: 0 | GH163: 0
CV164: 0 | CW164: 0 | CX164: 0 | CY164: 0 | CZ164: 0 | DA164: 0 | DB164: 0 | DC164: 0 | DD164: 0 | DE164: 0 | DF164: 0 | DG164: 0 | DH164: 0 | DI164: 0 | DJ164: 0 | DK164: 0 | DL164: 0 | DM164: 0 | DN164: 0 | DO164: 0 | DP164: 0 | DQ164: 0 | DR164: 0 | DS164: 0 | DT164: 0 | DU164: 0 | DV164: 0 | DW164: 0 | DX164: 0 | DY164: 0 | DZ164: 0 | EA164: 0 | EB164: 0 | EC164: 0 | ED164: 0 | EE164: 0 | EF164: 0 | EG164: 0 | EH164: 0 | EI164: 0 | EJ164: 0 | EK164: 0 | EL164: 0 | EM164: 0 | EN164: 0 | EO164: 0 | EP164: 0 | EQ164: 0 | ER164: 0 | ES164: 0 | ET164: 0 | EU164: 0 | EV164: 0 | EW164: 0 | EX164: 0 | EY164: 0 | EZ164: 0 | FA164: 0 | FB164: 0 | FC164: 0 | FD164: 0 | FE164: 0 | FF164: 0 | FG164: 0 | FH164: 0 | FI164: 0 | FJ164: 0 | FK164: 0 | FL164: 0 | FM164: 0 | FN164: 0 | FO164: 0 | FP164: 0 | FQ164: 0 | FR164: 0 | FS164: 0 | FT164: 0 | FU164: 0 | FV164: 0 | FW164: 0 | FX164: 0 | FY164: 0 | FZ164: 0 | GA164: 0 | GB164: 0 | GC164: 0 | GD164: 0 | GE164: 0 | GF164: 0 | GG164: 0 | GH164: 0
CV165: 0 | CW165: 0 | CX165: 0 | CY165: 0 | CZ165: 0 | DA165: 0 | DB165: 0 | DC165: 0 | DD165: 0 | DE165: 0 | DF165: 0 | DG165: 0 | DH165: 0 | DI165: 0 | DJ165: 0 | DK165: 0 | DL165: 0 | DM165: 0 | DN165: 0 | DO165: 0 | DP165: 0 | DQ165: 0 | DR165: 0 | DS165: 0 | DT165: 0 | DU165: 0 | DV165: 0 | DW165: 0 | DX165: 0 | DY165: 0 | DZ165: 0 | EA165: 0 | EB165: 0 | EC165: 0 | ED165: 0 | EE165: 0 | EF165: 0 | EG165: 0 | EH165: 0 | EI165: 0 | EJ165: 0 | EK165: 0 | EL165: 0 | EM165: 0 | EN165: 0 | EO165: 0 | EP165: 0 | EQ165: 0 | ER165: 0 | ES165: 0 | ET165: 0 | EU165: 0 | EV165: 0 | EW165: 0 | EX165: 0 | EY165: 0 | EZ165: 0 | FA165: 0 | FB165: 0 | FC165: 0 | FD165: 0 | FE165: 0 | FF165: 0 | FG165: 0 | FH165: 0 | FI165: 0 | FJ165: 0 | FK165: 0 | FL165: 0 | FM165: 0 | FN165: 0 | FO165: 0 | FP165: 0 | FQ165: 0 | FR165: 0 | FS165: 0 | FT165: 0 | FU165: 0 | FV165: 0 | FW165: 0 | FX165: 0 | FY165: 0 | FZ165: 0 | GA165: 0 | GB165: 0 | GC165: 0 | GD165: 0 | GE165: 0 | GF165: 0 | GG165: 0 | GH165: 0
CV166: 0 | CW166: 0 | CX166: 0 | CY166: 0 | CZ166: 0 | DA166: 0 | DB166: 0 | DC166: 0 | DD166: 0 | DE166: 0 | DF166: 0 | DG166: 0 | DH166: 0 | DI166: 0 | DJ166: 0 | DK166: 0 | DL166: 0 | DM166: 0 | DN166: 0 | DO166: 0 | DP166: 0 | DQ166: 0 | DR166: 0 | DS166: 0 | DT166: 0 | DU166: 0 | DV166: 0 | DW166: 0 | DX166: 0 | DY166: 0 | DZ166: 0 | EA166: 0 | EB166: 0 | EC166: 0 | ED166: 0 | EE166: 0 | EF166: 0 | EG166: 0 | EH166: 0 | EI166: 0 | EJ166: 0 | EK166: 0 | EL166: 0 | EM166: 0 | EN166: 0 | EO166: 0 | EP166: 0 | EQ166: 0 | ER166: 0 | ES166: 0 | ET166: 0 | EU166: 0 | EV166: 0 | EW166: 0 | EX166: 0 | EY166: 0 | EZ166: 0 | FA166: 0 | FB166: 0 | FC166: 0 | FD166: 0 | FE166: 0 | FF166: 0 | FG166: 0 | FH166: 0 | FI166: 0 | FJ166: 0 | FK166: 0 | FL166: 0 | FM166: 0 | FN166: 0 | FO166: 0 | FP166: 0 | FQ166: 0 | FR166: 0 | FS166: 0 | FT166: 0 | FU166: 0 | FV166: 0 | FW166: 0 | FX166: 0 | FY166: 0 | FZ166: 0 | GA166: 0 | GB166: 0 | GC166: 0 | GD166: 0 | GE166: 0 | GF166: 0 | GG166: 0 | GH166: 0
CV167: 0 | CW167: 0 | CX167: 0 | CY167: 0 | CZ167: 0 | DA167: 0 | DB167: 0 | DC167: 0 | DD167: 0 | DE167: 0 | DF167: 0 | DG167: 0 | DH167: 0 | DI167: 0 | DJ167: 0 | DK167: 0 | DL167: 0 | DM167: 0 | DN167: 0 | DO167: 0 | DP167: 0 | DQ167: 0 | DR167: 0 | DS167: 0 | DT167: 0 | DU167: 0 | DV167: 0 | DW167: 0 | DX167: 0 | DY167: 0 | DZ167: 0 | EA167: 0 | EB167: 0 | EC167: 0 | ED167: 0 | EE167: 0 | EF167: 0 | EG167: 0 | EH167: 0 | EI167: 0 | EJ167: 0 | EK167: 0 | EL167: 0 | EM167: 0 | EN167: 0 | EO167: 0 | EP167: 0 | EQ167: 0 | ER167: 0 | ES167: 0 | ET167: 0 | EU167: 0 | EV167: 0 | EW167: 0 | EX167: 0 | EY167: 0 | EZ167: 0 | FA167: 0 | FB167: 0 | FC167: 0 | FD167: 0 | FE167: 0 | FF167: 0 | FG167: 0 | FH167: 0 | FI167: 0 | FJ167: 0 | FK167: 0 | FL167: 0 | FM167: 0 | FN167: 0 | FO167: 0 | FP167: 0 | FQ167: 0 | FR167: 0 | FS167: 0 | FT167: 0 | FU167: 0 | FV167: 0 | FW167: 0 | FX167: 0 | FY167: 0 | FZ167: 0 | GA167: 0 | GB167: 0 | GC167: 0 | GD167: 0 | GE167: 0 | GF167: 0 | GG167: 0 | GH167: 0
CV168: 0 | CW168: 0 | CX168: 0 | CY168: 0 | CZ168: 0 | DA168: 0 | DB168: 0 | DC168: 0 | DD168: 0 | DE168: 0 | DF168: 0 | DG168: 0 | DH168: 0 | DI168: 0 | DJ168: 0 | DK168: 0 | DL168: 0 | DM168: 0 | DN168: 0 | DO168: 0 | DP168: 0 | DQ168: 0 | DR168: 0 | DS168: 0 | DT168: 0 | DU168: 0 | DV168: 0 | DW168: 0 | DX168: 0 | DY168: 0 | DZ168: 0 | EA168: 0 | EB168: 0 | EC168: 0 | ED168: 0 | EE168: 0 | EF168: 0 | EG168: 0 | EH168: 0 | EI168: 0 | EJ168: 0 | EK168: 0 | EL168: 0 | EM168: 0 | EN168: 0 | EO168: 0 | EP168: 0 | EQ168: 0 | ER168: 0 | ES168: 0 | ET168: 0 | EU168: 0 | EV168: 0 | EW168: 0 | EX168: 0 | EY168: 0 | EZ168: 0 | FA168: 0 | FB168: 0 | FC168: 0 | FD168: 0 | FE168: 0 | FF168: 0 | FG168: 0 | FH168: 0 | FI168: 0 | FJ168: 0 | FK168: 0 | FL168: 0 | FM168: 0 | FN168: 0 | FO168: 0 | FP168: 0 | FQ168: 0 | FR168: 0 | FS168: 0 | FT168: 0 | FU168: 0 | FV168: 0 | FW168: 0 | FX168: 0 | FY168: 0 | FZ168: 0 | GA168: 0 | GB168: 0 | GC168: 0 | GD168: 0 | GE168: 0 | GF168: 0 | GG168: 0 | GH168: 0
CV169: 0 | CW169: 0 | CX169: 0 | CY169: 0 | CZ169: 0 | DA169: 0 | DB169: 0 | DC169: 0 | DD169: 0 | DE169: 0 | DF169: 0 | DG169: 0 | DH169: 0 | DI169: 0 | DJ169: 0 | DK169: 0 | DL169: 0 | DM169: 0 | DN169: 0 | DO169: 0 | DP169: 0 | DQ169: 0 | DR169: 0 | DS169: 0 | DT169: 0 | DU169: 0 | DV169: 0 | DW169: 0 | DX169: 0 | DY169: 0 | DZ169: 0 | EA169: 0 | EB169: 0 | EC169: 0 | ED169: 0 | EE169: 0 | EF169: 0 | EG169: 0 | EH169: 0 | EI169: 0 | EJ169: 0 | EK169: 0 | EL169: 0 | EM169: 0 | EN169: 0 | EO169: 0 | EP169: 0 | EQ169: 0 | ER169: 0 | ES169: 0 | ET169: 0 | EU169: 0 | EV169: 0 | EW169: 0 | EX169: 0 | EY169: 0 | EZ169: 0 | FA169: 0 | FB169: 0 | FC169: 0 | FD169: 0 | FE169: 0 | FF169: 0 | FG169: 0 | FH169: 0 | FI169: 0 | FJ169: 0 | FK169: 0 | FL169: 0 | FM169: 0 | FN169: 0 | FO169: 0 | FP169: 0 | FQ169: 0 | FR169: 0 | FS169: 0 | FT169: 0 | FU169: 0 | FV169: 0 | FW169: 0 | FX169: 0 | FY169: 0 | FZ169: 0 | GA169: 0 | GB169: 0 | GC169: 0 | GD169: 0 | GE169: 0 | GF169: 0 | GG169: 0 | GH169: 0
CV170: 0 | CW170: 0 | CX170: 0 | CY170: 0 | CZ170: 0 | DA170: 0 | DB170: 0 | DC170: 0 | DD170: 0 | DE170: 0 | DF170: 0 | DG170: 0 | DH170: 0 | DI170: 0 | DJ170: 0 | DK170: 0 | DL170: 0 | DM170: 0 | DN170: 0 | DO170: 0 | DP170: 0 | DQ170: 0 | DR170: 0 | DS170: 0 | DT170: 0 | DU170: 0 | DV170: 0 | DW170: 0 | DX170: 0 | DY170: 0 | DZ170: 0 | EA170: 0 | EB170: 0 | EC170: 0 | ED170: 0 | EE170: 0 | EF170: 0 | EG170: 0 | EH170: 0 | EI170: 0 | EJ170: 0 | EK170: 0 | EL170: 0 | EM170: 0 | EN170: 0 | EO170: 0 | EP170: 0 | EQ170: 0 | ER170: 0 | ES170: 0 | ET170: 0 | EU170: 0 | EV170: 0 | EW170: 0 | EX170: 0 | EY170: 0 | EZ170: 0 | FA170: 0 | FB170: 0 | FC170: 0 | FD170: 0 | FE170: 0 | FF170: 0 | FG170: 0 | FH170: 0 | FI170: 0 | FJ170: 0 | FK170: 0 | FL170: 0 | FM170: 0 | FN170: 0 | FO170: 0 | FP170: 0 | FQ170: 0 | FR170: 0 | FS170: 0 | FT170: 0 | FU170: 0 | FV170: 0 | FW170: 0 | FX170: 0 | FY170: 0 | FZ170: 0 | GA170: 0 | GB170: 0 | GC170: 0 | GD170: 0 | GE170: 0 | GF170: 0 | GG170: 0 | GH170: 0
CV171: 0 | CW171: 0 | CX171: 0 | CY171: 0 | CZ171: 0 | DA171: 0 | DB171: 0 | DC171: 0 | DD171: 0 | DE171: 0 | DF171: 0 | DG171: 0 | DH171: 0 | DI171: 0 | DJ171: 0 | DK171: 0 | DL171: 0 | DM171: 0 | DN171: 0 | DO171: 0 | DP171: 0 | DQ171: 0 | DR171: 0 | DS171: 0 | DT171: 0 | DU171: 0 | DV171: 0 | DW171: 0 | DX171: 0 | DY171: 0 | DZ171: 0 | EA171: 0 | EB171: 0 | EC171: 0 | ED171: 0 | EE171: 0 | EF171: 0 | EG171: 0 | EH171: 0 | EI171: 0 | EJ171: 0 | EK171: 0 | EL171: 0 | EM171: 0 | EN171: 0 | EO171: 0 | EP171: 0 | EQ171: 0 | ER171: 0 | ES171: 0 | ET171: 0 | EU171: 0 | EV171: 0 | EW171: 0 | EX171: 0 | EY171: 0 | EZ171: 0 | FA171: 0 | FB171: 0 | FC171: 0 | FD171: 0 | FE171: 0 | FF171: 0 | FG171: 0 | FH171: 0 | FI171: 0 | FJ171: 0 | FK171: 0 | FL171: 0 | FM171: 0 | FN171: 0 | FO171: 0 | FP171: 0 | FQ171: 0 | FR171: 0 | FS171: 0 | FT171: 0 | FU171: 0 | FV171: 0 | FW171: 0 | FX171: 0 | FY171: 0 | FZ171: 0 | GA171: 0 | GB171: 0 | GC171: 0 | GD171: 0 | GE171: 0 | GF171: 0 | GG171: 0 | GH171: 0
CV172: 0 | CW172: 0 | CX172: 0 | CY172: 0 | CZ172: 0 | DA172: 0 | DB172: 0 | DC172: 0 | DD172: 0 | DE172: 0 | DF172: 0 | DG172: 0 | DH172: 0 | DI172: 0 | DJ172: 0 | DK172: 0 | DL172: 0 | DM172: 0 | DN172: 0 | DO172: 0 | DP172: 0 | DQ172: 0 | DR172: 0 | DS172: 0 | DT172: 0 | DU172: 0 | DV172: 0 | DW172: 0 | DX172: 0 | DY172: 0 | DZ172: 0 | EA172: 0 | EB172: 0 | EC172: 0 | ED172: 0 | EE172: 0 | EF172: 0 | EG172: 0 | EH172: 0 | EI172: 0 | EJ172: 0 | EK172: 0 | EL172: 0 | EM172: 0 | EN172: 0 | EO172: 0 | EP172: 0 | EQ172: 0 | ER172: 0 | ES172: 0 | ET172: 0 | EU172: 0 | EV172: 0 | EW172: 0 | EX172: 0 | EY172: 0 | EZ172: 0 | FA172: 0 | FB172: 0 | FC172: 0 | FD172: 0 | FE172: 0 | FF172: 0 | FG172: 0 | FH172: 0 | FI172: 0 | FJ172: 0 | FK172: 0 | FL172: 0 | FM172: 0 | FN172: 0 | FO172: 0 | FP172: 0 | FQ172: 0 | FR172: 0 | FS172: 0 | FT172: 0 | FU172: 0 | FV172: 0 | FW172: 0 | FX172: 0 | FY172: 0 | FZ172: 0 | GA172: 0 | GB172: 0 | GC172: 0 | GD172: 0 | GE172: 0 | GF172: 0 | GG172: 0 | GH172: 0
CV173: 0 | CW173: 0 | CX173: 0 | CY173: 0 | CZ173: 0 | DA173: 0 | DB173: 0 | DC173: 0 | DD173: 0 | DE173: 0 | DF173: 0 | DG173: 0 | DH173: 0 | DI173: 0 | DJ173: 0 | DK173: 0 | DL173: 0 | DM173: 0 | DN173: 0 | DO173: 0 | DP173: 0 | DQ173: 0 | DR173: 0 | DS173: 0 | DT173: 0 | DU173: 0 | DV173: 0 | DW173: 0 | DX173: 0 | DY173: 0 | DZ173: 0 | EA173: 0 | EB173: 0 | EC173: 0 | ED173: 0 | EE173: 0 | EF173: 0 | EG173: 0 | EH173: 0 | EI173: 0 | EJ173: 0 | EK173: 0 | EL173: 0 | EM173: 0 | EN173: 0 | EO173: 0 | EP173: 0 | EQ173: 0 | ER173: 0 | ES173: 0 | ET173: 0 | EU173: 0 | EV173: 0 | EW173: 0 | EX173: 0 | EY173: 0 | EZ173: 0 | FA173: 0 | FB173: 0 | FC173: 0 | FD173: 0 | FE173: 0 | FF173: 0 | FG173: 0 | FH173: 0 | FI173: 0 | FJ173: 0 | FK173: 0 | FL173: 0 | FM173: 0 | FN173: 0 | FO173: 0 | FP173: 0 | FQ173: 0 | FR173: 0 | FS173: 0 | FT173: 0 | FU173: 0 | FV173: 0 | FW173: 0 | FX173: 0 | FY173: 0 | FZ173: 0 | GA173: 0 | GB173: 0 | GC173: 0 | GD173: 0 | GE173: 0 | GF173: 0 | GG173: 0 | GH173: 0
CV174: 0 | CW174: 0 | CX174: 0 | CY174: 0 | CZ174: 0 | DA174: 0 | DB174: 0 | DC174: 0 | DD174: 0 | DE174: 0 | DF174: 0 | DG174: 0 | DH174: 0 | DI174: 0 | DJ174: 0 | DK174: 0 | DL174: 0 | DM174: 0 | DN174: 0 | DO174: 0 | DP174: 0 | DQ174: 0 | DR174: 0 | DS174: 0 | DT174: 0 | DU174: 0 | DV174: 0 | DW174: 0 | DX174: 0 | DY174: 0 | DZ174: 0 | EA174: 0 | EB174: 0 | EC174: 0 | ED174: 0 | EE174: 0 | EF174: 0 | EG174: 0 | EH174: 0 | EI174: 0 | EJ174: 0 | EK174: 0 | EL174: 0 | EM174: 0 | EN174: 0 | EO174: 0 | EP174: 0 | EQ174: 0 | ER174: 0 | ES174: 0 | ET174: 0 | EU174: 0 | EV174: 0 | EW174: 0 | EX174: 0 | EY174: 0 | EZ174: 0 | FA174: 0 | FB174: 0 | FC174: 0 | FD174: 0 | FE174: 0 | FF174: 0 | FG174: 0 | FH174: 0 | FI174: 0 | FJ174: 0 | FK174: 0 | FL174: 0 | FM174: 0 | FN174: 0 | FO174: 0 | FP174: 0 | FQ174: 0 | FR174: 0 | FS174: 0 | FT174: 0 | FU174: 0 | FV174: 0 | FW174: 0 | FX174: 0 | FY174: 0 | FZ174: 0 | GA174: 0 | GB174: 0 | GC174: 0 | GD174: 0 | GE174: 0 | GF174: 0 | GG174: 0 | GH174: 0
CV175: 0 | CW175: 0 | CX175: 0 | CY175: 0 | CZ175: 0 | DA175: 0 | DB175: 0 | DC175: 0 | DD175: 0 | DE175: 0 | DF175: 0 | DG175: 0 | DH175: 0 | DI175: 0 | DJ175: 0 | DK175: 0 | DL175: 0 | DM175: 0 | DN175: 0 | DO175: 0 | DP175: 0 | DQ175: 0 | DR175: 0 | DS175: 0 | DT175: 0 | DU175: 0 | DV175: 0 | DW175: 0 | DX175: 0 | DY175: 0 | DZ175: 0 | EA175: 0 | EB175: 0 | EC175: 0 | ED175: 0 | EE175: 0 | EF175: 0 | EG175: 0 | EH175: 0 | EI175: 0 | EJ175: 0 | EK175: 0 | EL175: 0 | EM175: 0 | EN175: 0 | EO175: 0 | EP175: 0 | EQ175: 0 | ER175: 0 | ES175: 0 | ET175: 0 | EU175: 0 | EV175: 0 | EW175: 0 | EX175: 0 | EY175: 0 | EZ175: 0 | FA175: 0 | FB175: 0 | FC175: 0 | FD175: 0 | FE175: 0 | FF175: 0 | FG175: 0 | FH175: 0 | FI175: 0 | FJ175: 0 | FK175: 0 | FL175: 0 | FM175: 0 | FN175: 0 | FO175: 0 | FP175: 0 | FQ175: 0 | FR175: 0 | FS175: 0 | FT175: 0 | FU175: 0 | FV175: 0 | FW175: 0 | FX175: 0 | FY175: 0 | FZ175: 0 | GA175: 0 | GB175: 0 | GC175: 0 | GD175: 0 | GE175: 0 | GF175: 0 | GG175: 0 | GH175: 0
CV176: 0 | CW176: 0 | CX176: 0 | CY176: 0 | CZ176: 0 | DA176: 0 | DB176: 0 | DC176: 0 | DD176: 0 | DE176: 0 | DF176: 0 | DG176: 0 | DH176: 0 | DI176: 0 | DJ176: 0 | DK176: 0 | DL176: 0 | DM176: 0 | DN176: 0 | DO176: 0 | DP176: 0 | DQ176: 0 | DR176: 0 | DS176: 0 | DT176: 0 | DU176: 0 | DV176: 0 | DW176: 0 | DX176: 0 | DY176: 0 | DZ176: 0 | EA176: 0 | EB176: 0 | EC176: 0 | ED176: 0 | EE176: 0 | EF176: 0 | EG176: 0 | EH176: 0 | EI176: 0 | EJ176: 0 | EK176: 0 | EL176: 0 | EM176: 0 | EN176: 0 | EO176: 0 | EP176: 0 | EQ176: 0 | ER176: 0 | ES176: 0 | ET176: 0 | EU176: 0 | EV176: 0 | EW176: 0 | EX176: 0 | EY176: 0 | EZ176: 0 | FA176: 0 | FB176: 0 | FC176: 0 | FD176: 0 | FE176: 0 | FF176: 0 | FG176: 0 | FH176: 0 | FI176: 0 | FJ176: 0 | FK176: 0 | FL176: 0 | FM176: 0 | FN176: 0 | FO176: 0 | FP176: 0 | FQ176: 0 | FR176: 0 | FS176: 0 | FT176: 0 | FU176: 0 | FV176: 0 | FW176: 0 | FX176: 0 | FY176: 0 | FZ176: 0 | GA176: 0 | GB176: 0 | GC176: 0 | GD176: 0 | GE176: 0 | GF176: 0 | GG176: 0 | GH176: 0
CV177: 0 | CW177: 0 | CX177: 0 | CY177: 0 | CZ177: 0 | DA177: 0 | DB177: 0 | DC177: 0 | DD177: 0 | DE177: 0 | DF177: 0 | DG177: 0 | DH177: 0 | DI177: 0 | DJ177: 0 | DK177: 0 | DL177: 0 | DM177: 0 | DN177: 0 | DO177: 0 | DP177: 0 | DQ177: 0 | DR177: 0 | DS177: 0 | DT177: 0 | DU177: 0 | DV177: 0 | DW177: 0 | DX177: 0 | DY177: 0 | DZ177: 0 | EA177: 0 | EB177: 0 | EC177: 0 | ED177: 0 | EE177: 0 | EF177: 0 | EG177: 0 | EH177: 0 | EI177: 0 | EJ177: 0 | EK177: 0 | EL177: 0 | EM177: 0 | EN177: 0 | EO177: 0 | EP177: 0 | EQ177: 0 | ER177: 0 | ES177: 0 | ET177: 0 | EU177: 0 | EV177: 0 | EW177: 0 | EX177: 0 | EY177: 0 | EZ177: 0 | FA177: 0 | FB177: 0 | FC177: 0 | FD177: 0 | FE177: 0 | FF177: 0 | FG177: 0 | FH177: 0 | FI177: 0 | FJ177: 0 | FK177: 0 | FL177: 0 | FM177: 0 | FN177: 0 | FO177: 0 | FP177: 0 | FQ177: 0 | FR177: 0 | FS177: 0 | FT177: 0 | FU177: 0 | FV177: 0 | FW177: 0 | FX177: 0 | FY177: 0 | FZ177: 0 | GA177: 0 | GB177: 0 | GC177: 0 | GD177: 0 | GE177: 0 | GF177: 0 | GG177: 0 | GH177: 0
CV178: 0 | CW178: 0 | CX178: 0 | CY178: 0 | CZ178: 0 | DA178: 0 | DB178: 0 | DC178: 0 | DD178: 0 | DE178: 0 | DF178: 0 | DG178: 0 | DH178: 0 | DI178: 0 | DJ178: 0 | DK178: 0 | DL178: 0 | DM178: 0 | DN178: 0 | DO178: 0 | DP178: 0 | DQ178: 0 | DR178: 0 | DS178: 0 | DT178: 0 | DU178: 0 | DV178: 0 | DW178: 0 | DX178: 0 | DY178: 0 | DZ178: 0 | EA178: 0 | EB178: 0 | EC178: 0 | ED178: 0 | EE178: 0 | EF178: 0 | EG178: 0 | EH178: 0 | EI178: 0 | EJ178: 0 | EK178: 0 | EL178: 0 | EM178: 0 | EN178: 0 | EO178: 0 | EP178: 0 | EQ178: 0 | ER178: 0 | ES178: 0 | ET178: 0 | EU178: 0 | EV178: 0 | EW178: 0 | EX178: 0 | EY178: 0 | EZ178: 0 | FA178: 0 | FB178: 0 | FC178: 0 | FD178: 0 | FE178: 0 | FF178: 0 | FG178: 0 | FH178: 0 | FI178: 0 | FJ178: 0 | FK178: 0 | FL178: 0 | FM178: 0 | FN178: 0 | FO178: 0 | FP178: 0 | FQ178: 0 | FR178: 0 | FS178: 0 | FT178: 0 | FU178: 0 | FV178: 0 | FW178: 0 | FX178: 0 | FY178: 0 | FZ178: 0 | GA178: 0 | GB178: 0 | GC178: 0 | GD178: 0 | GE178: 0 | GF178: 0 | GG178: 0 | GH178: 0
CV179: 0 | CW179: 0 | CX179: 0 | CY179: 0 | CZ179: 0 | DA179: 0 | DB179: 0 | DC179: 0 | DD179: 0 | DE179: 0 | DF179: 0 | DG179: 0 | DH179: 0 | DI179: 0 | DJ179: 0 | DK179: 0 | DL179: 0 | DM179: 0 | DN179: 0 | DO179: 0 | DP179: 0 | DQ179: 0 | DR179: 0 | DS179: 0 | DT179: 0 | DU179: 0 | DV179: 0 | DW179: 0 | DX179: 0 | DY179: 0 | DZ179: 0 | EA179: 0 | EB179: 0 | EC179: 0 | ED179: 0 | EE179: 0 | EF179: 0 | EG179: 0 | EH179: 0 | EI179: 0 | EJ179: 0 | EK179: 0 | EL179: 0 | EM179: 0 | EN179: 0 | EO179: 0 | EP179: 0 | EQ179: 0 | ER179: 0 | ES179: 0 | ET179: 0 | EU179: 0 | EV179: 0 | EW179: 0 | EX179: 0 | EY179: 0 | EZ179: 0 | FA179: 0 | FB179: 0 | FC179: 0 | FD179: 0 | FE179: 0 | FF179: 0 | FG179: 0 | FH179: 0 | FI179: 0 | FJ179: 0 | FK179: 0 | FL179: 0 | FM179: 0 | FN179: 0 | FO179: 0 | FP179: 0 | FQ179: 0 | FR179: 0 | FS179: 0 | FT179: 0 | FU179: 0 | FV179: 0 | FW179: 0 | FX179: 0 | FY179: 0 | FZ179: 0 | GA179: 0 | GB179: 0 | GC179: 0 | GD179: 0 | GE179: 0 | GF179: 0 | GG179: 0 | GH179: 0
CV180: 0 | CW180: 0 | CX180: 0 | CY180: 0 | CZ180: 0 | DA180: 0 | DB180: 0 | DC180: 0 | DD180: 0 | DE180: 0 | DF180: 0 | DG180: 0 | DH180: 0 | DI180: 0 | DJ180: 0 | DK180: 0 | DL180: 0 | DM180: 0 | DN180: 0 | DO180: 0 | DP180: 0 | DQ180: 0 | DR180: 0 | DS180: 0 | DT180: 0 | DU180: 0 | DV180: 0 | DW180: 0 | DX180: 0 | DY180: 0 | DZ180: 0 | EA180: 0 | EB180: 0 | EC180: 0 | ED180: 0 | EE180: 0 | EF180: 0 | EG180: 0 | EH180: 0 | EI180: 0 | EJ180: 0 | EK180: 0 | EL180: 0 | EM180: 0 | EN180: 0 | EO180: 0 | EP180: 0 | EQ180: 0 | ER180: 0 | ES180: 0 | ET180: 0 | EU180: 0 | EV180: 0 | EW180: 0 | EX180: 0 | EY180: 0 | EZ180: 0 | FA180: 0 | FB180: 0 | FC180: 0 | FD180: 0 | FE180: 0 | FF180: 0 | FG180: 0 | FH180: 0 | FI180: 0 | FJ180: 0 | FK180: 0 | FL180: 0 | FM180: 0 | FN180: 0 | FO180: 0 | FP180: 0 | FQ180: 0 | FR180: 0 | FS180: 0 | FT180: 0 | FU180: 0 | FV180: 0 | FW180: 0 | FX180: 0 | FY180: 0 | FZ180: 0 | GA180: 0 | GB180: 0 | GC180: 0 | GD180: 0 | GE180: 0 | GF180: 0 | GG180: 0 | GH180: 0
CV181: 0 | CW181: 0 | CX181: 0 | CY181: 0 | CZ181: 0 | DA181: 0 | DB181: 0 | DC181: 0 | DD181: 0 | DE181: 0 | DF181: 0 | DG181: 0 | DH181: 0 | DI181: 0 | DJ181: 0 | DK181: 0 | DL181: 0 | DM181: 0 | DN181: 0 | DO181: 0 | DP181: 0 | DQ181: 0 | DR181: 0 | DS181: 0 | DT181: 0 | DU181: 0 | DV181: 0 | DW181: 0 | DX181: 0 | DY181: 0 | DZ181: 0 | EA181: 0 | EB181: 0 | EC181: 0 | ED181: 0 | EE181: 0 | EF181: 0 | EG181: 0 | EH181: 0 | EI181: 0 | EJ181: 0 | EK181: 0 | EL181: 0 | EM181: 0 | EN181: 0 | EO181: 0 | EP181: 0 | EQ181: 0 | ER181: 0 | ES181: 0 | ET181: 0 | EU181: 0 | EV181: 0 | EW181: 0 | EX181: 0 | EY181: 0 | EZ181: 0 | FA181: 0 | FB181: 0 | FC181: 0 | FD181: 0 | FE181: 0 | FF181: 0 | FG181: 0 | FH181: 0 | FI181: 0 | FJ181: 0 | FK181: 0 | FL181: 0 | FM181: 0 | FN181: 0 | FO181: 0 | FP181: 0 | FQ181: 0 | FR181: 0 | FS181: 0 | FT181: 0 | FU181: 0 | FV181: 0 | FW181: 0 | FX181: 0 | FY181: 0 | FZ181: 0 | GA181: 0 | GB181: 0 | GC181: 0 | GD181: 0 | GE181: 0 | GF181: 0 | GG181: 0 | GH181: 0
CV182: 0 | CW182: 0 | CX182: 0 | CY182: 0 | CZ182: 0 | DA182: 0 | DB182: 0 | DC182: 0 | DD182: 0 | DE182: 0 | DF182: 0 | DG182: 0 | DH182: 0 | DI182: 0 | DJ182: 0 | DK182: 0 | DL182: 0 | DM182: 0 | DN182: 0 | DO182: 0 | DP182: 0 | DQ182: 0 | DR182: 0 | DS182: 0 | DT182: 0 | DU182: 0 | DV182: 0 | DW182: 0 | DX182: 0 | DY182: 0 | DZ182: 0 | EA182: 0 | EB182: 0 | EC182: 0 | ED182: 0 | EE182: 0 | EF182: 0 | EG182: 0 | EH182: 0 | EI182: 0 | EJ182: 0 | EK182: 0 | EL182: 0 | EM182: 0 | EN182: 0 | EO182: 0 | EP182: 0 | EQ182: 0 | ER182: 0 | ES182: 0 | ET182: 0 | EU182: 0 | EV182: 0 | EW182: 0 | EX182: 0 | EY182: 0 | EZ182: 0 | FA182: 0 | FB182: 0 | FC182: 0 | FD182: 0 | FE182: 0 | FF182: 0 | FG182: 0 | FH182: 0 | FI182: 0 | FJ182: 0 | FK182: 0 | FL182: 0 | FM182: 0 | FN182: 0 | FO182: 0 | FP182: 0 | FQ182: 0 | FR182: 0 | FS182: 0 | FT182: 0 | FU182: 0 | FV182: 0 | FW182: 0 | FX182: 0 | FY182: 0 | FZ182: 0 | GA182: 0 | GB182: 0 | GC182: 0 | GD182: 0 | GE182: 0 | GF182: 0 | GG182: 0 | GH182: 0
CV183: 0 | CW183: 0 | CX183: 0 | CY183: 0 | CZ183: 0 | DA183: 0 | DB183: 0 | DC183: 0 | DD183: 0 | DE183: 0 | DF183: 0 | DG183: 0 | DH183: 0 | DI183: 0 | DJ183: 0 | DK183: 0 | DL183: 0 | DM183: 0 | DN183: 0 | DO183: 0 | DP183: 0 | DQ183: 0 | DR183: 0 | DS183: 0 | DT183: 0 | DU183: 0 | DV183: 0 | DW183: 0 | DX183: 0 | DY183: 0 | DZ183: 0 | EA183: 0 | EB183: 0 | EC183: 0 | ED183: 0 | EE183: 0 | EF183: 0 | EG183: 0 | EH183: 0 | EI183: 0 | EJ183: 0 | EK183: 0 | EL183: 0 | EM183: 0 | EN183: 0 | EO183: 0 | EP183: 0 | EQ183: 0 | ER183: 0 | ES183: 0 | ET183: 0 | EU183: 0 | EV183: 0 | EW183: 0 | EX183: 0 | EY183: 0 | EZ183: 0 | FA183: 0 | FB183: 0 | FC183: 0 | FD183: 0 | FE183: 0 | FF183: 0 | FG183: 0 | FH183: 0 | FI183: 0 | FJ183: 0 | FK183: 0 | FL183: 0 | FM183: 0 | FN183: 0 | FO183: 0 | FP183: 0 | FQ183: 0 | FR183: 0 | FS183: 0 | FT183: 0 | FU183: 0 | FV183: 0 | FW183: 0 | FX183: 0 | FY183: 0 | FZ183: 0 | GA183: 0 | GB183: 0 | GC183: 0 | GD183: 0 | GE183: 0 | GF183: 0 | GG183: 0 | GH183: 0
CV184: 0 | CW184: 0 | CX184: 0 | CY184: 0 | CZ184: 0 | DA184: 0 | DB184: 0 | DC184: 0 | DD184: 0 | DE184: 0 | DF184: 0 | DG184: 0 | DH184: 0 | DI184: 0 | DJ184: 0 | DK184: 0 | DL184: 0 | DM184: 0 | DN184: 0 | DO184: 0 | DP184: 0 | DQ184: 0 | DR184: 0 | DS184: 0 | DT184: 0 | DU184: 0 | DV184: 0 | DW184: 0 | DX184: 0 | DY184: 0 | DZ184: 0 | EA184: 0 | EB184: 0 | EC184: 0 | ED184: 0 | EE184: 0 | EF184: 0 | EG184: 0 | EH184: 0 | EI184: 0 | EJ184: 0 | EK184: 0 | EL184: 0 | EM184: 0 | EN184: 0 | EO184: 0 | EP184: 0 | EQ184: 0 | ER184: 0 | ES184: 0 | ET184: 0 | EU184: 0 | EV184: 0 | EW184: 0 | EX184: 0 | EY184: 0 | EZ184: 0 | FA184: 0 | FB184: 0 | FC184: 0 | FD184: 0 | FE184: 0 | FF184: 0 | FG184: 0 | FH184: 0 | FI184: 0 | FJ184: 0 | FK184: 0 | FL184: 0 | FM184: 0 | FN184: 0 | FO184: 0 | FP184: 0 | FQ184: 0 | FR184: 0 | FS184: 0 | FT184: 0 | FU184: 0 | FV184: 0 | FW184: 0 | FX184: 0 | FY184: 0 | FZ184: 0 | GA184: 0 | GB184: 0 | GC184: 0 | GD184: 0 | GE184: 0 | GF184: 0 | GG184: 0 | GH184: 0
CV185: 0 | CW185: 0 | CX185: 0 | CY185: 0 | CZ185: 0 | DA185: 0 | DB185: 0 | DC185: 0 | DD185: 0 | DE185: 0 | DF185: 0 | DG185: 0 | DH185: 0 | DI185: 0 | DJ185: 0 | DK185: 0 | DL185: 0 | DM185: 0 | DN185: 0 | DO185: 0 | DP185: 0 | DQ185: 0 | DR185: 0 | DS185: 0 | DT185: 0 | DU185: 0 | DV185: 0 | DW185: 0 | DX185: 0 | DY185: 0 | DZ185: 0 | EA185: 0 | EB185: 0 | EC185: 0 | ED185: 0 | EE185: 0 | EF185: 0 | EG185: 0 | EH185: 0 | EI185: 0 | EJ185: 0 | EK185: 0 | EL185: 0 | EM185: 0 | EN185: 0 | EO185: 0 | EP185: 0 | EQ185: 0 | ER185: 0 | ES185: 0 | ET185: 0 | EU185: 0 | EV185: 0 | EW185: 0 | EX185: 0 | EY185: 0 | EZ185: 0 | FA185: 0 | FB185: 0 | FC185: 0 | FD185: 0 | FE185: 0 | FF185: 0 | FG185: 0 | FH185: 0 | FI185: 0 | FJ185: 0 | FK185: 0 | FL185: 0 | FM185: 0 | FN185: 0 | FO185: 0 | FP185: 0 | FQ185: 0 | FR185: 0 | FS185: 0 | FT185: 0 | FU185: 0 | FV185: 0 | FW185: 0 | FX185: 0 | FY185: 0 | FZ185: 0 | GA185: 0 | GB185: 0 | GC185: 0 | GD185: 0 | GE185: 0 | GF185: 0 | GG185: 0 | GH185: 0
CV186: 0 | CW186: 0 | CX186: 0 | CY186: 0 | CZ186: 0 | DA186: 0 | DB186: 0 | DC186: 0 | DD186: 0 | DE186: 0 | DF186: 0 | DG186: 0 | DH186: 0 | DI186: 0 | DJ186: 0 | DK186: 0 | DL186: 0 | DM186: 0 | DN186: 0 | DO186: 0 | DP186: 0 | DQ186: 0 | DR186: 0 | DS186: 0 | DT186: 0 | DU186: 0 | DV186: 0 | DW186: 0 | DX186: 0 | DY186: 0 | DZ186: 0 | EA186: 0 | EB186: 0 | EC186: 0 | ED186: 0 | EE186: 0 | EF186: 0 | EG186: 0 | EH186: 0 | EI186: 0 | EJ186: 0 | EK186: 0 | EL186: 0 | EM186: 0 | EN186: 0 | EO186: 0 | EP186: 0 | EQ186: 0 | ER186: 0 | ES186: 0 | ET186: 0 | EU186: 0 | EV186: 0 | EW186: 0 | EX186: 0 | EY186: 0 | EZ186: 0 | FA186: 0 | FB186: 0 | FC186: 0 | FD186: 0 | FE186: 0 | FF186: 0 | FG186: 0 | FH186: 0 | FI186: 0 | FJ186: 0 | FK186: 0 | FL186: 0 | FM186: 0 | FN186: 0 | FO186: 0 | FP186: 0 | FQ186: 0 | FR186: 0 | FS186: 0 | FT186: 0 | FU186: 0 | FV186: 0 | FW186: 0 | FX186: 0 | FY186: 0 | FZ186: 0 | GA186: 0 | GB186: 0 | GC186: 0 | GD186: 0 | GE186: 0 | GF186: 0 | GG186: 0 | GH186: 0
CV187: 0 | CW187: 0 | CX187: 0 | CY187: 0 | CZ187: 0 | DA187: 0 | DB187: 0 | DC187: 0 | DD187: 0 | DE187: 0 | DF187: 0 | DG187: 0 | DH187: 0 | DI187: 0 | DJ187: 0 | DK187: 0 | DL187: 0 | DM187: 0 | DN187: 0 | DO187: 0 | DP187: 0 | DQ187: 0 | DR187: 0 | DS187: 0 | DT187: 0 | DU187: 0 | DV187: 0 | DW187: 0 | DX187: 0 | DY187: 0 | DZ187: 0 | EA187: 0 | EB187: 0 | EC187: 0 | ED187: 0 | EE187: 0 | EF187: 0 | EG187: 0 | EH187: 0 | EI187: 0 | EJ187: 0 | EK187: 0 | EL187: 0 | EM187: 0 | EN187: 0 | EO187: 0 | EP187: 0 | EQ187: 0 | ER187: 0 | ES187: 0 | ET187: 0 | EU187: 0 | EV187: 0 | EW187: 0 | EX187: 0 | EY187: 0 | EZ187: 0 | FA187: 0 | FB187: 0 | FC187: 0 | FD187: 0 | FE187: 0 | FF187: 0 | FG187: 0 | FH187: 0 | FI187: 0 | FJ187: 0 | FK187: 0 | FL187: 0 | FM187: 0 | FN187: 0 | FO187: 0 | FP187: 0 | FQ187: 0 | FR187: 0 | FS187: 0 | FT187: 0 | FU187: 0 | FV187: 0 | FW187: 0 | FX187: 0 | FY187: 0 | FZ187: 0 | GA187: 0 | GB187: 0 | GC187: 0 | GD187: 0 | GE187: 0 | GF187: 0 | GG187: 0 | GH187: 0
CV188: 0 | CW188: 0 | CX188: 0 | CY188: 0 | CZ188: 0 | DA188: 0 | DB188: 0 | DC188: 0 | DD188: 0 | DE188: 0 | DF188: 0 | DG188: 0 | DH188: 0 | DI188: 0 | DJ188: 0 | DK188: 0 | DL188: 0 | DM188: 0 | DN188: 0 | DO188: 0 | DP188: 0 | DQ188: 0 | DR188: 0 | DS188: 0 | DT188: 0 | DU188: 0 | DV188: 0 | DW188: 0 | DX188: 0 | DY188: 0 | DZ188: 0 | EA188: 0 | EB188: 0 | EC188: 0 | ED188: 0 | EE188: 0 | EF188: 0 | EG188: 0 | EH188: 0 | EI188: 0 | EJ188: 0 | EK188: 0 | EL188: 0 | EM188: 0 | EN188: 0 | EO188: 0 | EP188: 0 | EQ188: 0 | ER188: 0 | ES188: 0 | ET188: 0 | EU188: 0 | EV188: 0 | EW188: 0 | EX188: 0 | EY188: 0 | EZ188: 0 | FA188: 0 | FB188: 0 | FC188: 0 | FD188: 0 | FE188: 0 | FF188: 0 | FG188: 0 | FH188: 0 | FI188: 0 | FJ188: 0 | FK188: 0 | FL188: 0 | FM188: 0 | FN188: 0 | FO188: 0 | FP188: 0 | FQ188: 0 | FR188: 0 | FS188: 0 | FT188: 0 | FU188: 0 | FV188: 0 | FW188: 0 | FX188: 0 | FY188: 0 | FZ188: 0 | GA188: 0 | GB188: 0 | GC188: 0 | GD188: 0 | GE188: 0 | GF188: 0 | GG188: 0 | GH188: 0
CV189: 0 | CW189: 0 | CX189: 0 | CY189: 0 | CZ189: 0 | DA189: 0 | DB189: 0 | DC189: 0 | DD189: 0 | DE189: 0 | DF189: 0 | DG189: 0 | DH189: 0 | DI189: 0 | DJ189: 0 | DK189: 0 | DL189: 0 | DM189: 0 | DN189: 0 | DO189: 0 | DP189: 0 | DQ189: 0 | DR189: 0 | DS189: 0 | DT189: 0 | DU189: 0 | DV189: 0 | DW189: 0 | DX189: 0 | DY189: 0 | DZ189: 0 | EA189: 0 | EB189: 0 | EC189: 0 | ED189: 0 | EE189: 0 | EF189: 0 | EG189: 0 | EH189: 0 | EI189: 0 | EJ189: 0 | EK189: 0 | EL189: 0 | EM189: 0 | EN189: 0 | EO189: 0 | EP189: 0 | EQ189: 0 | ER189: 0 | ES189: 0 | ET189: 0 | EU189: 0 | EV189: 0 | EW189: 0 | EX189: 0 | EY189: 0 | EZ189: 0 | FA189: 0 | FB189: 0 | FC189: 0 | FD189: 0 | FE189: 0 | FF189: 0 | FG189: 0 | FH189: 0 | FI189: 0 | FJ189: 0 | FK189: 0 | FL189: 0 | FM189: 0 | FN189: 0 | FO189: 0 | FP189: 0 | FQ189: 0 | FR189: 0 | FS189: 0 | FT189: 0 | FU189: 0 | FV189: 0 | FW189: 0 | FX189: 0 | FY189: 0 | FZ189: 0 | GA189: 0 | GB189: 0 | GC189: 0 | GD189: 0 | GE189: 0 | GF189: 0 | GG189: 0 | GH189: 0
CV190: 0 | CW190: 0 | CX190: 0 | CY190: 0 | CZ190: 0 | DA190: 0 | DB190: 0 | DC190: 0 | DD190: 0 | DE190: 0 | DF190: 0 | DG190: 0 | DH190: 0 | DI190: 0 | DJ190: 0 | DK190: 0 | DL190: 0 | DM190: 0 | DN190: 0 | DO190: 0 | DP190: 0 | DQ190: 0 | DR190: 0 | DS190: 0 | DT190: 0 | DU190: 0 | DV190: 0 | DW190: 0 | DX190: 0 | DY190: 0 | DZ190: 0 | EA190: 0 | EB190: 0 | EC190: 0 | ED190: 0 | EE190: 0 | EF190: 0 | EG190: 0 | EH190: 0 | EI190: 0 | EJ190: 0 | EK190: 0 | EL190: 0 | EM190: 0 | EN190: 0 | EO190: 0 | EP190: 0 | EQ190: 0 | ER190: 0 | ES190: 0 | ET190: 0 | EU190: 0 | EV190: 0 | EW190: 0 | EX190: 0 | EY190: 0 | EZ190: 0 | FA190: 0 | FB190: 0 | FC190: 0 | FD190: 0 | FE190: 0 | FF190: 0 | FG190: 0 | FH190: 0 | FI190: 0 | FJ190: 0 | FK190: 0 | FL190: 0 | FM190: 0 | FN190: 0 | FO190: 0 | FP190: 0 | FQ190: 0 | FR190: 0 | FS190: 0 | FT190: 0 | FU190: 0 | FV190: 0 | FW190: 0 | FX190: 0 | FY190: 0 | FZ190: 0 | GA190: 0 | GB190: 0 | GC190: 0 | GD190: 0 | GE190: 0 | GF190: 0 | GG190: 0 | GH190: 0
CV191: 0 | CW191: 0 | CX191: 0 | CY191: 0 | CZ191: 0 | DA191: 0 | DB191: 0 | DC191: 0 | DD191: 0 | DE191: 0 | DF191: 0 | DG191: 0 | DH191: 0 | DI191: 0 | DJ191: 0 | DK191: 0 | DL191: 0 | DM191: 0 | DN191: 0 | DO191: 0 | DP191: 0 | DQ191: 0 | DR191: 0 | DS191: 0 | DT191: 0 | DU191: 0 | DV191: 0 | DW191: 0 | DX191: 0 | DY191: 0 | DZ191: 0 | EA191: 0 | EB191: 0 | EC191: 0 | ED191: 0 | EE191: 0 | EF191: 0 | EG191: 0 | EH191: 0 | EI191: 0 | EJ191: 0 | EK191: 0 | EL191: 0 | EM191: 0 | EN191: 0 | EO191: 0 | EP191: 0 | EQ191: 0 | ER191: 0 | ES191: 0 | ET191: 0 | EU191: 0 | EV191: 0 | EW191: 0 | EX191: 0 | EY191: 0 | EZ191: 0 | FA191: 0 | FB191: 0 | FC191: 0 | FD191: 0 | FE191: 0 | FF191: 0 | FG191: 0 | FH191: 0 | FI191: 0 | FJ191: 0 | FK191: 0 | FL191: 0 | FM191: 0 | FN191: 0 | FO191: 0 | FP191: 0 | FQ191: 0 | FR191: 0 | FS191: 0 | FT191: 0 | FU191: 0 | FV191: 0 | FW191: 0 | FX191: 0 | FY191: 0 | FZ191: 0 | GA191: 0 | GB191: 0 | GC191: 0 | GD191: 0 | GE191: 0 | GF191: 0 | GG191: 0 | GH191: 0
CV192: 0 | CW192: 0 | CX192: 0 | CY192: 0 | CZ192: 0 | DA192: 0 | DB192: 0 | DC192: 0 | DD192: 0 | DE192: 0 | DF192: 0 | DG192: 0 | DH192: 0 | DI192: 0 | DJ192: 0 | DK192: 0 | DL192: 0 | DM192: 0 | DN192: 0 | DO192: 0 | DP192: 0 | DQ192: 0 | DR192: 0 | DS192: 0 | DT192: 0 | DU192: 0 | DV192: 0 | DW192: 0 | DX192: 0 | DY192: 0 | DZ192: 0 | EA192: 0 | EB192: 0 | EC192: 0 | ED192: 0 | EE192: 0 | EF192: 0 | EG192: 0 | EH192: 0 | EI192: 0 | EJ192: 0 | EK192: 0 | EL192: 0 | EM192: 0 | EN192: 0 | EO192: 0 | EP192: 0 | EQ192: 0 | ER192: 0 | ES192: 0 | ET192: 0 | EU192: 0 | EV192: 0 | EW192: 0 | EX192: 0 | EY192: 0 | EZ192: 0 | FA192: 0 | FB192: 0 | FC192: 0 | FD192: 0 | FE192: 0 | FF192: 0 | FG192: 0 | FH192: 0 | FI192: 0 | FJ192: 0 | FK192: 0 | FL192: 0 | FM192: 0 | FN192: 0 | FO192: 0 | FP192: 0 | FQ192: 0 | FR192: 0 | FS192: 0 | FT192: 0 | FU192: 0 | FV192: 0 | FW192: 0 | FX192: 0 | FY192: 0 | FZ192: 0 | GA192: 0 | GB192: 0 | GC192: 0 | GD192: 0 | GE192: 0 | GF192: 0 | GG192: 0 | GH192: 0
CV193: 0 | CW193: 0 | CX193: 0 | CY193: 0 | CZ193: 0 | DA193: 0 | DB193: 0 | DC193: 0 | DD193: 0 | DE193: 0 | DF193: 0 | DG193: 0 | DH193: 0 | DI193: 0 | DJ193: 0 | DK193: 0 | DL193: 0 | DM193: 0 | DN193: 0 | DO193: 0 | DP193: 0 | DQ193: 0 | DR193: 0 | DS193: 0 | DT193: 0 | DU193: 0 | DV193: 0 | DW193: 0 | DX193: 0 | DY193: 0 | DZ193: 0 | EA193: 0 | EB193: 0 | EC193: 0 | ED193: 0 | EE193: 0 | EF193: 0 | EG193: 0 | EH193: 0 | EI193: 0 | EJ193: 0 | EK193: 0 | EL193: 0 | EM193: 0 | EN193: 0 | EO193: 0 | EP193: 0 | EQ193: 0 | ER193: 0 | ES193: 0 | ET193: 0 | EU193: 0 | EV193: 0 | EW193: 0 | EX193: 0 | EY193: 0 | EZ193: 0 | FA193: 0 | FB193: 0 | FC193: 0 | FD193: 0 | FE193: 0 | FF193: 0 | FG193: 0 | FH193: 0 | FI193: 0 | FJ193: 0 | FK193: 0 | FL193: 0 | FM193: 0 | FN193: 0 | FO193: 0 | FP193: 0 | FQ193: 0 | FR193: 0 | FS193: 0 | FT193: 0 | FU193: 0 | FV193: 0 | FW193: 0 | FX193: 0 | FY193: 0 | FZ193: 0 | GA193: 0 | GB193: 0 | GC193: 0 | GD193: 0 | GE193: 0 | GF193: 0 | GG193: 0 | GH193: 0
CV194: 0 | CW194: 0 | CX194: 0 | CY194: 0 | CZ194: 0 | DA194: 0 | DB194: 0 | DC194: 0 | DD194: 0 | DE194: 0 | DF194: 0 | DG194: 0 | DH194: 0 | DI194: 0 | DJ194: 0 | DK194: 0 | DL194: 0 | DM194: 0 | DN194: 0 | DO194: 0 | DP194: 0 | DQ194: 0 | DR194: 0 | DS194: 0 | DT194: 0 | DU194: 0 | DV194: 0 | DW194: 0 | DX194: 0 | DY194: 0 | DZ194: 0 | EA194: 0 | EB194: 0 | EC194: 0 | ED194: 0 | EE194: 0 | EF194: 0 | EG194: 0 | EH194: 0 | EI194: 0 | EJ194: 0 | EK194: 0 | EL194: 0 | EM194: 0 | EN194: 0 | EO194: 0 | EP194: 0 | EQ194: 0 | ER194: 0 | ES194: 0 | ET194: 0 | EU194: 0 | EV194: 0 | EW194: 0 | EX194: 0 | EY194: 0 | EZ194: 0 | FA194: 0 | FB194: 0 | FC194: 0 | FD194: 0 | FE194: 0 | FF194: 0 | FG194: 0 | FH194: 0 | FI194: 0 | FJ194: 0 | FK194: 0 | FL194: 0 | FM194: 0 | FN194: 0 | FO194: 0 | FP194: 0 | FQ194: 0 | FR194: 0 | FS194: 0 | FT194: 0 | FU194: 0 | FV194: 0 | FW194: 0 | FX194: 0 | FY194: 0 | FZ194: 0 | GA194: 0 | GB194: 0 | GC194: 0 | GD194: 0 | GE194: 0 | GF194: 0 | GG194: 0 | GH194: 0
CV195: 0 | CW195: 0 | CX195: 0 | CY195: 0 | CZ195: 0 | DA195: 0 | DB195: 0 | DC195: 0 | DD195: 0 | DE195: 0 | DF195: 0 | DG195: 0 | DH195: 0 | DI195: 0 | DJ195: 0 | DK195: 0 | DL195: 0 | DM195: 0 | DN195: 0 | DO195: 0 | DP195: 0 | DQ195: 0 | DR195: 0 | DS195: 0 | DT195: 0 | DU195: 0 | DV195: 0 | DW195: 0 | DX195: 0 | DY195: 0 | DZ195: 0 | EA195: 0 | EB195: 0 | EC195: 0 | ED195: 0 | EE195: 0 | EF195: 0 | EG195: 0 | EH195: 0 | EI195: 0 | EJ195: 0 | EK195: 0 | EL195: 0 | EM195: 0 | EN195: 0 | EO195: 0 | EP195: 0 | EQ195: 0 | ER195: 0 | ES195: 0 | ET195: 0 | EU195: 0 | EV195: 0 | EW195: 0 | EX195: 0 | EY195: 0 | EZ195: 0 | FA195: 0 | FB195: 0 | FC195: 0 | FD195: 0 | FE195: 0 | FF195: 0 | FG195: 0 | FH195: 0 | FI195: 0 | FJ195: 0 | FK195: 0 | FL195: 0 | FM195: 0 | FN195: 0 | FO195: 0 | FP195: 0 | FQ195: 0 | FR195: 0 | FS195: 0 | FT195: 0 | FU195: 0 | FV195: 0 | FW195: 0 | FX195: 0 | FY195: 0 | FZ195: 0 | GA195: 0 | GB195: 0 | GC195: 0 | GD195: 0 | GE195: 0 | GF195: 0 | GG195: 0 | GH195: 0
CV196: 0 | CW196: 0 | CX196: 0 | CY196: 0 | CZ196: 0 | DA196: 0 | DB196: 0 | DC196: 0 | DD196: 0 | DE196: 0 | DF196: 0 | DG196: 0 | DH196: 0 | DI196: 0 | DJ196: 0 | DK196: 0 | DL196: 0 | DM196: 0 | DN196: 0 | DO196: 0 | DP196: 0 | DQ196: 0 | DR196: 0 | DS196: 0 | DT196: 0 | DU196: 0 | DV196: 0 | DW196: 0 | DX196: 0 | DY196: 0 | DZ196: 0 | EA196: 0 | EB196: 0 | EC196: 0 | ED196: 0 | EE196: 0 | EF196: 0 | EG196: 0 | EH196: 0 | EI196: 0 | EJ196: 0 | EK196: 0 | EL196: 0 | EM196: 0 | EN196: 0 | EO196: 0 | EP196: 0 | EQ196: 0 | ER196: 0 | ES196: 0 | ET196: 0 | EU196: 0 | EV196: 0 | EW196: 0 | EX196: 0 | EY196: 0 | EZ196: 0 | FA196: 0 | FB196: 0 | FC196: 0 | FD196: 0 | FE196: 0 | FF196: 0 | FG196: 0 | FH196: 0 | FI196: 0 | FJ196: 0 | FK196: 0 | FL196: 0 | FM196: 0 | FN196: 0 | FO196: 0 | FP196: 0 | FQ196: 0 | FR196: 0 | FS196: 0 | FT196: 0 | FU196: 0 | FV196: 0 | FW196: 0 | FX196: 0 | FY196: 0 | FZ196: 0 | GA196: 0 | GB196: 0 | GC196: 0 | GD196: 0 | GE196: 0 | GF196: 0 | GG196: 0 | GH196: 0
CV197: 0 | CW197: 0 | CX197: 0 | CY197: 0 | CZ197: 0 | DA197: 0 | DB197: 0 | DC197: 0 | DD197: 0 | DE197: 0 | DF197: 0 | DG197: 0 | DH197: 0 | DI197: 0 | DJ197: 0 | DK197: 0 | DL197: 0 | DM197: 0 | DN197: 0 | DO197: 0 | DP197: 0 | DQ197: 0 | DR197: 0 | DS197: 0 | DT197: 0 | DU197: 0 | DV197: 0 | DW197: 0 | DX197: 0 | DY197: 0 | DZ197: 0 | EA197: 0 | EB197: 0 | EC197: 0 | ED197: 0 | EE197: 0 | EF197: 0 | EG197: 0 | EH197: 0 | EI197: 0 | EJ197: 0 | EK197: 0 | EL197: 0 | EM197: 0 | EN197: 0 | EO197: 0 | EP197: 0 | EQ197: 0 | ER197: 0 | ES197: 0 | ET197: 0 | EU197: 0 | EV197: 0 | EW197: 0 | EX197: 0 | EY197: 0 | EZ197: 0 | FA197: 0 | FB197: 0 | FC197: 0 | FD197: 0 | FE197: 0 | FF197: 0 | FG197: 0 | FH197: 0 | FI197: 0 | FJ197: 0 | FK197: 0 | FL197: 0 | FM197: 0 | FN197: 0 | FO197: 0 | FP197: 0 | FQ197: 0 | FR197: 0 | FS197: 0 | FT197: 0 | FU197: 0 | FV197: 0 | FW197: 0 | FX197: 0 | FY197: 0 | FZ197: 0 | GA197: 0 | GB197: 0 | GC197: 0 | GD197: 0 | GE197: 0 | GF197: 0 | GG197: 0 | GH197: 0
CV198: 0 | CW198: 0 | CX198: 0 | CY198: 0 | CZ198: 0 | DA198: 0 | DB198: 0 | DC198: 0 | DD198: 0 | DE198: 0 | DF198: 0 | DG198: 0 | DH198: 0 | DI198: 0 | DJ198: 0 | DK198: 0 | DL198: 0 | DM198: 0 | DN198: 0 | DO198: 0 | DP198: 0 | DQ198: 0 | DR198: 0 | DS198: 0 | DT198: 0 | DU198: 0 | DV198: 0 | DW198: 0 | DX198: 0 | DY198: 0 | DZ198: 0 | EA198: 0 | EB198: 0 | EC198: 0 | ED198: 0 | EE198: 0 | EF198: 0 | EG198: 0 | EH198: 0 | EI198: 0 | EJ198: 0 | EK198: 0 | EL198: 0 | EM198: 0 | EN198: 0 | EO198: 0 | EP198: 0 | EQ198: 0 | ER198: 0 | ES198: 0 | ET198: 0 | EU198: 0 | EV198: 0 | EW198: 0 | EX198: 0 | EY198: 0 | EZ198: 0 | FA198: 0 | FB198: 0 | FC198: 0 | FD198: 0 | FE198: 0 | FF198: 0 | FG198: 0 | FH198: 0 | FI198: 0 | FJ198: 0 | FK198: 0 | FL198: 0 | FM198: 0 | FN198: 0 | FO198: 0 | FP198: 0 | FQ198: 0 | FR198: 0 | FS198: 0 | FT198: 0 | FU198: 0 | FV198: 0 | FW198: 0 | FX198: 0 | FY198: 0 | FZ198: 0 | GA198: 0 | GB198: 0 | GC198: 0 | GD198: 0 | GE198: 0 | GF198: 0 | GG198: 0 | GH198: 0
CV199: 0 | CW199: 0 | CX199: 0 | CY199: 0 | CZ199: 0 | DA199: 0 | DB199: 0 | DC199: 0 | DD199: 0 | DE199: 0 | DF199: 0 | DG199: 0 | DH199: 0 | DI199: 0 | DJ199: 0 | DK199: 0 | DL199: 0 | DM199: 0 | DN199: 0 | DO199: 0 | DP199: 0 | DQ199: 0 | DR199: 0 | DS199: 0 | DT199: 0 | DU199: 0 | DV199: 0 | DW199: 0 | DX199: 0 | DY199: 0 | DZ199: 0 | EA199: 0 | EB199: 0 | EC199: 0 | ED199: 0 | EE199: 0 | EF199: 0 | EG199: 0 | EH199: 0 | EI199: 0 | EJ199: 0 | EK199: 0 | EL199: 0 | EM199: 0 | EN199: 0 | EO199: 0 | EP199: 0 | EQ199: 0 | ER199: 0 | ES199: 0 | ET199: 0 | EU199: 0 | EV199: 0 | EW199: 0 | EX199: 0 | EY199: 0 | EZ199: 0 | FA199: 0 | FB199: 0 | FC199: 0 | FD199: 0 | FE199: 0 | FF199: 0 | FG199: 0 | FH199: 0 | FI199: 0 | FJ199: 0 | FK199: 0 | FL199: 0 | FM199: 0 | FN199: 0 | FO199: 0 | FP199: 0 | FQ199: 0 | FR199: 0 | FS199: 0 | FT199: 0 | FU199: 0 | FV199: 0 | FW199: 0 | FX199: 0 | FY199: 0 | FZ199: 0 | GA199: 0 | GB199: 0 | GC199: 0 | GD199: 0 | GE199: 0 | GF199: 0 | GG199: 0 | GH199: 0
CV200: 0 | CW200: 0 | CX200: 0 | CY200: 0 | CZ200: 0 | DA200: 0 | DB200: 0 | DC200: 0 | DD200: 0 | DE200: 0 | DF200: 0 | DG200: 0 | DH200: 0 | DI200: 0 | DJ200: 0 | DK200: 0 | DL200: 0 | DM200: 0 | DN200: 0 | DO200: 0 | DP200: 0 | DQ200: 0 | DR200: 0 | DS200: 0 | DT200: 0 | DU200: 0 | DV200: 0 | DW200: 0 | DX200: 0 | DY200: 0 | DZ200: 0 | EA200: 0 | EB200: 0 | EC200: 0 | ED200: 0 | EE200: 0 | EF200: 0 | EG200: 0 | EH200: 0 | EI200: 0 | EJ200: 0 | EK200: 0 | EL200: 0 | EM200: 0 | EN200: 0 | EO200: 0 | EP200: 0 | EQ200: 0 | ER200: 0 | ES200: 0 | ET200: 0 | EU200: 0 | EV200: 0 | EW200: 0 | EX200: 0 | EY200: 0 | EZ200: 0 | FA200: 0 | FB200: 0 | FC200: 0 | FD200: 0 | FE200: 0 | FF200: 0 | FG200: 0 | FH200: 0 | FI200: 0 | FJ200: 0 | FK200: 0 | FL200: 0 | FM200: 0 | FN200: 0 | FO200: 0 | FP200: 0 | FQ200: 0 | FR200: 0 | FS200: 0 | FT200: 0 | FU200: 0 | FV200: 0 | FW200: 0 | FX200: 0 | FY200: 0 | FZ200: 0 | GA200: 0 | GB200: 0 | GC200: 0 | GD200: 0 | GE200: 0 | GF200: 0 | GG200: 0 | GH200: 0
CV201: 0 | CW201: 0 | CX201: 0 | CY201: 0 | CZ201: 0 | DA201: 0 | DB201: 0 | DC201: 0 | DD201: 0 | DE201: 0 | DF201: 0 | DG201: 0 | DH201: 0 | DI201: 0 | DJ201: 0 | DK201: 0 | DL201: 0 | DM201: 0 | DN201: 0 | DO201: 0 | DP201: 0 | DQ201: 0 | DR201: 0 | DS201: 0 | DT201: 0 | DU201: 0 | DV201: 0 | DW201: 0 | DX201: 0 | DY201: 0 | DZ201: 0 | EA201: 0 | EB201: 0 | EC201: 0 | ED201: 0 | EE201: 0 | EF201: 0 | EG201: 0 | EH201: 0 | EI201: 0 | EJ201: 0 | EK201: 0 | EL201: 0 | EM201: 0 | EN201: 0 | EO201: 0 | EP201: 0 | EQ201: 0 | ER201: 0 | ES201: 0 | ET201: 0 | EU201: 0 | EV201: 0 | EW201: 0 | EX201: 0 | EY201: 0 | EZ201: 0 | FA201: 0 | FB201: 0 | FC201: 0 | FD201: 0 | FE201: 0 | FF201: 0 | FG201: 0 | FH201: 0 | FI201: 0 | FJ201: 0 | FK201: 0 | FL201: 0 | FM201: 0 | FN201: 0 | FO201: 0 | FP201: 0 | FQ201: 0 | FR201: 0 | FS201: 0 | FT201: 0 | FU201: 0 | FV201: 0 | FW201: 0 | FX201: 0 | FY201: 0 | FZ201: 0 | GA201: 0 | GB201: 0 | GC201: 0 | GD201: 0 | GE201: 0 | GF201: 0 | GG201: 0 | GH201: 0
CV202: 0 | CW202: 0 | CX202: 0 | CY202: 0 | CZ202: 0 | DA202: 0 | DB202: 0 | DC202: 0 | DD202: 0 | DE202: 0 | DF202: 0 | DG202: 0 | DH202: 0 | DI202: 0 | DJ202: 0 | DK202: 0 | DL202: 0 | DM202: 0 | DN202: 0 | DO202: 0 | DP202: 0 | DQ202: 0 | DR202: 0 | DS202: 0 | DT202: 0 | DU202: 0 | DV202: 0 | DW202: 0 | DX202: 0 | DY202: 0 | DZ202: 0 | EA202: 0 | EB202: 0 | EC202: 0 | ED202: 0 | EE202: 0 | EF202: 0 | EG202: 0 | EH202: 0 | EI202: 0 | EJ202: 0 | EK202: 0 | EL202: 0 | EM202: 0 | EN202: 0 | EO202: 0 | EP202: 0 | EQ202: 0 | ER202: 0 | ES202: 0 | ET202: 0 | EU202: 0 | EV202: 0 | EW202: 0 | EX202: 0 | EY202: 0 | EZ202: 0 | FA202: 0 | FB202: 0 | FC202: 0 | FD202: 0 | FE202: 0 | FF202: 0 | FG202: 0 | FH202: 0 | FI202: 0 | FJ202: 0 | FK202: 0 | FL202: 0 | FM202: 0 | FN202: 0 | FO202: 0 | FP202: 0 | FQ202: 0 | FR202: 0 | FS202: 0 | FT202: 0 | FU202: 0 | FV202: 0 | FW202: 0 | FX202: 0 | FY202: 0 | FZ202: 0 | GA202: 0 | GB202: 0 | GC202: 0 | GD202: 0 | GE202: 0 | GF202: 0 | GG202: 0 | GH202: 0
CV203: 0 | CW203: 0 | CX203: 0 | CY203: 0 | CZ203: 0 | DA203: 0 | DB203: 0 | DC203: 0 | DD203: 0 | DE203: 0 | DF203: 0 | DG203: 0 | DH203: 0 | DI203: 0 | DJ203: 0 | DK203: 0 | DL203: 0 | DM203: 0 | DN203: 0 | DO203: 0 | DP203: 0 | DQ203: 0 | DR203: 0 | DS203: 0 | DT203: 0 | DU203: 0 | DV203: 0 | DW203: 0 | DX203: 0 | DY203: 0 | DZ203: 0 | EA203: 0 | EB203: 0 | EC203: 0 | ED203: 0 | EE203: 0 | EF203: 0 | EG203: 0 | EH203: 0 | EI203: 0 | EJ203: 0 | EK203: 0 | EL203: 0 | EM203: 0 | EN203: 0 | EO203: 0 | EP203: 0 | EQ203: 0 | ER203: 0 | ES203: 0 | ET203: 0 | EU203: 0 | EV203: 0 | EW203: 0 | EX203: 0 | EY203: 0 | EZ203: 0 | FA203: 0 | FB203: 0 | FC203: 0 | FD203: 0 | FE203: 0 | FF203: 0 | FG203: 0 | FH203: 0 | FI203: 0 | FJ203: 0 | FK203: 0 | FL203: 0 | FM203: 0 | FN203: 0 | FO203: 0 | FP203: 0 | FQ203: 0 | FR203: 0 | FS203: 0 | FT203: 0 | FU203: 0 | FV203: 0 | FW203: 0 | FX203: 0 | FY203: 0 | FZ203: 0 | GA203: 0 | GB203: 0 | GC203: 0 | GD203: 0 | GE203: 0 | GF203: 0 | GG203: 0 | GH203: 0
CV204: 0 | CW204: 0 | CX204: 0 | CY204: 0 | CZ204: 0 | DA204: 0 | DB204: 0 | DC204: 0 | DD204: 0 | DE204: 0 | DF204: 0 | DG204: 0 | DH204: 0 | DI204: 0 | DJ204: 0 | DK204: 0 | DL204: 0 | DM204: 0 | DN204: 0 | DO204: 0 | DP204: 0 | DQ204: 0 | DR204: 0 | DS204: 0 | DT204: 0 | DU204: 0 | DV204: 0 | DW204: 0 | DX204: 0 | DY204: 0 | DZ204: 0 | EA204: 0 | EB204: 0 | EC204: 0 | ED204: 0 | EE204: 0 | EF204: 0 | EG204: 0 | EH204: 0 | EI204: 0 | EJ204: 0 | EK204: 0 | EL204: 0 | EM204: 0 | EN204: 0 | EO204: 0 | EP204: 0 | EQ204: 0 | ER204: 0 | ES204: 0 | ET204: 0 | EU204: 0 | EV204: 0 | EW204: 0 | EX204: 0 | EY204: 0 | EZ204: 0 | FA204: 0 | FB204: 0 | FC204: 0 | FD204: 0 | FE204: 0 | FF204: 0 | FG204: 0 | FH204: 0 | FI204: 0 | FJ204: 0 | FK204: 0 | FL204: 0 | FM204: 0 | FN204: 0 | FO204: 0 | FP204: 0 | FQ204: 0 | FR204: 0 | FS204: 0 | FT204: 0 | FU204: 0 | FV204: 0 | FW204: 0 | FX204: 0 | FY204: 0 | FZ204: 0 | GA204: 0 | GB204: 0 | GC204: 0 | GD204: 0 | GE204: 0 | GF204: 0 | GG204: 0 | GH204: 0
CV205: 0 | CW205: 0 | CX205: 0 | CY205: 0 | CZ205: 0 | DA205: 0 | DB205: 0 | DC205: 0 | DD205: 0 | DE205: 0 | DF205: 0 | DG205: 0 | DH205: 0 | DI205: 0 | DJ205: 0 | DK205: 0 | DL205: 0 | DM205: 0 | DN205: 0 | DO205: 0 | DP205: 0 | DQ205: 0 | DR205: 0 | DS205: 0 | DT205: 0 | DU205: 0 | DV205: 0 | DW205: 0 | DX205: 0 | DY205: 0 | DZ205: 0 | EA205: 0 | EB205: 0 | EC205: 0 | ED205: 0 | EE205: 0 | EF205: 0 | EG205: 0 | EH205: 0 | EI205: 0 | EJ205: 0 | EK205: 0 | EL205: 0 | EM205: 0 | EN205: 0 | EO205: 0 | EP205: 0 | EQ205: 0 | ER205: 0 | ES205: 0 | ET205: 0 | EU205: 0 | EV205: 0 | EW205: 0 | EX205: 0 | EY205: 0 | EZ205: 0 | FA205: 0 | FB205: 0 | FC205: 0 | FD205: 0 | FE205: 0 | FF205: 0 | FG205: 0 | FH205: 0 | FI205: 0 | FJ205: 0 | FK205: 0 | FL205: 0 | FM205: 0 | FN205: 0 | FO205: 0 | FP205: 0 | FQ205: 0 | FR205: 0 | FS205: 0 | FT205: 0 | FU205: 0 | FV205: 0 | FW205: 0 | FX205: 0 | FY205: 0 | FZ205: 0 | GA205: 0 | GB205: 0 | GC205: 0 | GD205: 0 | GE205: 0 | GF205: 0 | GG205: 0 | GH205: 0

Sheet Historical scenario - output
D1: Replacement expenditure forecast ($,000) | X1: Replacement quantity forecast (#)
D2: 1 | E2: 2 | F2: 3 | G2: 4 | H2: 5 | I2: 6 | J2: 7 | K2: 8 | L2: 9 | M2: 10 | N2: 11 | O2: 12 | P2: 13 | Q2: 14 | R2: 15 | S2: 16 | T2: 17 | U2: 18 | V2: 19 | W2: 20 | X2: 1 | Y2: 2 | Z2: 3 | AA2: 4 | AB2: 5 | AC2: 6 | AD2: 7 | AE2: 8 | AF2: 9 | AG2: 10 | AH2: 11 | AI2: 12 | AJ2: 13 | AK2: 14 | AL2: 15 | AM2: 16 | AN2: 17 | AO2: 18 | AP2: 19 | AQ2: 20
A5: ID | B5: Asset category | D5: 2018 | E5: 2019 | F5: 2020 | G5: 2021 | H5: 2022 | I5: 2023 | J5: 2024 | K5: 2025 | L5: 2026 | M5: 2027 | N5: 2028 | O5: 2029 | P5: 2030 | Q5: 2031 | R5: 2032 | S5: 2033 | T5: 2034 | U5: 2035 | V5: 2036 | W5: 2037 | X5: 2018 | Y5: 2019 | Z5: 2020 | AA5: 2021 | AB5: 2022 | AC5: 2023 | AD5: 2024 | AE5: 2025 | AF5: 2026 | AG5: 2027 | AH5: 2028 | AI5: 2029 | AJ5: 2030 | AK5: 2031 | AL5: 2032 | AM5: 2033 | AN5: 2034 | AO5: 2035 | AP5: 2036 | AQ5: 2037
A6: 1 | B6: OVERHEAD CONDUCTORS | D6: =IFERROR(IF($A6="","",SUMIFS(D$21:D$175,$A$21:$A$175,$A6)),"") -> 16733.60048 | E6: =IFERROR(IF($A6="","",SUMIFS(E$21:E$175,$A$21:$A$175,$A6)),"") -> 19580.23978 | F6: 22708.62954 | G6: 26107.09092 | H6: 29755.95387 | I6: 33627.52552 | J6: 37686.49805 | K6: 41890.8263 | L6: 46193.07029 | M6: 50542.15709 | N6: 54885.47482 | O6: 59171.17275 | P6: 63350.51074 | Q6: 67380.08342 | R6: 71223.74226 | S6: 74854.05481 | T6: 78253.17432 | U6: =IFERROR(IF($A6="","",SUMIFS(U$21:U$175,$A$21:$A$175,$A6)),"") -> 81413.04157 | V6: 84334.90069 | W6: 87028.17389 | X6: =IFERROR(IF($A6="","",SUMIFS(X$21:X$175,$A$21:$A$175,$A6)),"") -> 83.23542577 | Y6: =IFERROR(IF($A6="","",SUMIFS(Y$21:Y$175,$A$21:$A$175,$A6)),"") -> 96.18979971 | Z6: 110.1958502 | AA6: 125.1668803 | AB6: 140.9860794 | AC6: 157.5084459 | AD6: 174.5643301 | AE6: 191.9645426 | AF6: 209.5068463 | AG6: 226.9835197 | AH6: 244.1895608 | AI6: 260.9310181 | AJ6: 277.0328797 | AK6: 292.3459582 | AL6: 306.7522542 | AM6: 320.1683893 | AN6: 332.5468413 | AO6: =IFERROR(IF($A6="","",SUMIFS(AO$21:AO$175,$A$21:$A$175,$A6)),"") -> 343.8748909 | AP6: 354.1713753 | AQ6: 363.4815271
A7: 2 | B7: POLES | D7: =IFERROR(IF($A7="","",SUMIFS(D$21:D$175,$A$21:$A$175,$A7)),"") -> 10905.09915 | E7: 12543.00535 | F7: 14235.43345 | G7: 15942.99921 | H7: 17624.79501 | I7: 19241.47162 | J7: 20758.33833 | K7: 22148.19376 | L7: 23393.61915 | M7: 24488.49858 | N7: 25438.57633 | O7: 26260.92372 | P7: 26982.27252 | Q7: 27636.28184 | R7: 28259.93221 | S7: 28889.3709 | T7: 29555.64082 | U7: 30280.79114 | V7: 31074.87077 | W7: 31934.23811 | X7: 1817.165326 | Y7: 2083.818534 | Z7: 2359.680989 | AA7: 2638.9546 | AB7: 2915.541699 | AC7: 3183.457506 | AD7: 3437.253559 | AE7: 3672.41468 | AF7: 3885.69345 | AG7: 4075.34976 | AH7: 4241.268739 | AI7: 4384.93854 | AJ7: 4509.280579 | AK7: 4618.338751 | AL7: 4716.850088 | AM7: 4809.73512 | AN7: 4901.559529 | AO7: 4996.026692 | AP7: 5095.56158 | AQ7: 5201.039137
A8: 3 | B8: SERVICE LINES | D8: 2612.883962 | E8: 2878.660879 | F8: 3138.825093 | G8: 3388.170734 | H8: 3621.737317 | I8: 3835.072224 | J8: 4024.4739 | K8: 4187.196118 | L8: 4321.595834 | M8: 4427.211103 | N8: 4504.761145 | O8: 4556.067303 | P8: 4583.900738 | Q8: 4591.769432 | R8: 4583.662703 | S8: 4563.775239 | T8: 4536.234203 | U8: 4504.852058 | V8: 4472.924489 | W8: 4443.087634 | X8: 1963.158493 | Y8: 2162.698269 | Z8: 2357.994894 | AA8: 2545.139471 | AB8: 2720.408748 | AC8: 2880.462203 | AD8: 3022.524535 | AE8: 3144.538834 | AF8: 3245.27729 | AG8: 3324.399335 | AH8: 3382.451289 | AI8: 3420.806598 | AJ8: 3441.551109 | AK8: 3447.322826 | AL8: 3441.119873 | AM8: 3426.093178 | AN8: 3405.341588 | AO8: 3381.726404 | AP8: 3357.719877 | AQ8: 3335.298298
A9: 4 | B9: SWITCHGEAR | D9: 4545.840734 | E9: 4630.307755 | F9: 4779.635604 | G9: 4943.192921 | H9: 5107.407086 | I9: 5264.109923 | J9: 5410.345559 | K9: 5548.062226 | L9: 5682.703433 | M9: 5820.788772 | N9: 5967.11217 | O9: 6122.402855 | P9: 6282.231152 | Q9: 6437.620318 | R9: 6577.305386 | S9: 6690.995708 | T9: 6772.567724 | U9: 6822.060706 | V9: 6845.758437 | W9: 6854.370365 | X9: 1043.97773 | Y9: 1062.974414 | Z9: 1093.736334 | AA9: 1129.087264 | AB9: 1167.100432 | AC9: 1206.557791 | AD9: 1246.909487 | AE9: 1288.221924 | AF9: 1330.974422 | AG9: 1375.717506 | AH9: 1422.682205 | AI9: 1471.46041 | AJ9: 1520.867022 | AK9: 1569.048485 | AL9: 1613.827818 | AM9: 1653.192665 | AN9: 1685.771385 | AO9: 1711.134609 | AP9: 1729.818533 | AQ9: 1743.07098
A10: 5 | B10: TRANSFORMERS | D10: 8418.4377 | E10: 9734.13587 | F10: 11188.02698 | G10: 12778.44893 | H10: 14502.40641 | I10: 16355.31494 | J10: 18330.88453 | K10: 20421.16329 | L10: 22616.72914 | M10: 24907.00291 | N10: 27280.64832 | O10: 29726.01764 | P10: 32231.59761 | Q10: 34786.40683 | R10: 37380.2961 | S10: 40004.10733 | T10: 42649.65893 | U10: 45309.54562 | V10: 47976.76778 | W10: 50644.2312 | X10: 105.3302792 | Y10: 118.7330227 | Z10: 133.500036 | AA10: 149.6003888 | AB10: 167.0278462 | AC10: 185.7909217 | AD10: 205.9046016 | AE10: 227.3840931 | AF10: 250.2400065 | AG10: 274.4742808 | AH10: 300.0764372 | AI10: 327.0200953 | AJ10: 355.2599706 | AK10: 384.729671 | AL10: 415.3404791 | AM10: 446.9810103 | AN10: 479.5173598 | AO10: 512.7932744 | AP10: 546.6300774 | AQ10: 580.8264258
A11: 6 | B11: UNDERGROUND CABLES | D11: 2895.975645 | E11: 3048.80496 | F11: 3208.071579 | G11: 3377.437776 | H11: 3560.057239 | I11: 3758.2317 | J11: 3973.151195 | K11: 4204.743083 | L11: 4451.642276 | M11: 4711.281935 | N11: 4980.091985 | O11: 5253.783221 | P11: 5527.68836 | Q11: 5797.12829 | R11: 6057.771841 | S11: 6305.96038 | T11: 6538.973755 | U11: 6755.221179 | V11: 6954.348895 | W11: 7137.265072 | X11: 12.77727168 | Y11: 13.41691123 | Z11: 14.07651731 | AA11: 14.77361378 | AB11: 15.52390996 | AC11: 16.33969851 | AD11: 17.22864061 | AE11: 18.19306326 | AF11: 19.22982904 | AG11: 20.33077145 | AH11: 21.48362777 | AI11: 22.67335255 | AJ11: 23.88366319 | AK11: 25.09865519 | AL11: 26.30432871 | AM11: 27.48988666 | AN11: 28.64869536 | AO11: 29.77883839 | AP11: 30.88323779 | AQ11: 31.96936192
C18: Total | D18: =IFERROR(SUM(D$6:D$17),"") -> 46111.83768 | E18: =IFERROR(SUM(E$6:E$17),"") -> 52415.15459 | F18: 59258.62224 | G18: 66537.34049 | H18: 74172.35693 | I18: 82081.72594 | J18: 90183.69157 | K18: 98400.18478 | L18: 106659.3601 | M18: 114896.9404 | N18: 123056.6648 | O18: 131090.3675 | P18: 138958.2011 | Q18: 146629.2901 | R18: 154082.7105 | S18: 161308.2644 | T18: 168306.2498 | U18: 175085.5123 | V18: 181659.5711 | W18: 188041.3663
A20: ID | B20: Asset category | C20: Asset class
A21: =IFERROR('Historical scenario - input'!A21,"") -> 1 | B21: =IFERROR('Historical scenario - input'!B21,"") -> OVERHEAD CONDUCTORS | C21: =IFERROR('Historical scenario - input'!C21,"") -> ˂ = 1 kv | D21: =IFERROR(repcalc('Historical scenario - input'!$CV21:$GH21,'Historical scenario - input'!$G21,'Historical scenario - input'!$E21,'Historical scenario - input'!$F21,20,TRUE,TRUE),"") -> 7633.755814 | E21: 9145.964378 | F21: 10847.62123 | G21: 12737.99682 | H21: 14810.97791 | I21: 17054.7199 | J21: 19451.60606 | K21: 21978.55958 | L21: 24607.72963 | M21: 27307.54054 | N21: 30044.05864 | O21: 32782.5957 | P21: 35489.43796 | Q21: 38133.56723 | R21: 40688.23171 | S21: 43132.22896 | T21: 45450.78482 | U21: 47635.94694 | V21: 49686.45773 | W21: 51607.12275 | X21: =IFERROR(IF(OR(D21="",'Historical scenario - input'!$D21=""),"",D21/'Historical scenario - input'!$D21),"") -> 10.06400176 | Y21: =IFERROR(IF(OR(E21="",'Historical scenario - input'!$D21=""),"",E21/'Historical scenario - input'!$D21),"") -> 12.0576298 | Z21: =IFERROR(IF(OR(F21="",'Historical scenario - input'!$D21=""),"",F21/'Historical scenario - input'!$D21),"") -> 14.30101797 | AA21: =IFERROR(IF(OR(G21="",'Historical scenario - input'!$D21=""),"",G21/'Historical scenario - input'!$D21),"") -> 16.7932045 | AB21: =IFERROR(IF(OR(H21="",'Historical scenario - input'!$D21=""),"",H21/'Historical scenario - input'!$D21),"") -> 19.52612991 | AC21: =IFERROR(IF(OR(I21="",'Historical scenario - input'!$D21=""),"",I21/'Historical scenario - input'!$D21),"") -> 22.48417886 | AD21: =IFERROR(IF(OR(J21="",'Historical scenario - input'!$D21=""),"",J21/'Historical scenario - input'!$D21),"") -> 25.64412622 | AE21: =IFERROR(IF(OR(K21="",'Historical scenario - input'!$D21=""),"",K21/'Historical scenario - input'!$D21),"") -> 28.97554857 | AF21: =IFERROR(IF(OR(L21="",'Historical scenario - input'!$D21=""),"",L21/'Historical scenario - input'!$D21),"") -> 32.44172859 | AG21: =IFERROR(IF(OR(M21="",'Historical scenario - input'!$D21=""),"",M21/'Historical scenario - input'!$D21),"") -> 36.00103838 | AH21: =IFERROR(IF(OR(N21="",'Historical scenario - input'!$D21=""),"",N21/'Historical scenario - input'!$D21),"") -> 39.60874127 | AI21: =IFERROR(IF(OR(O21="",'Historical scenario - input'!$D21=""),"",O21/'Historical scenario - input'!$D21),"") -> 43.21910589 | AJ21: =IFERROR(IF(OR(P21="",'Historical scenario - input'!$D21=""),"",P21/'Historical scenario - input'!$D21),"") -> 46.78768548 | AK21: =IFERROR(IF(OR(Q21="",'Historical scenario - input'!$D21=""),"",Q21/'Historical scenario - input'!$D21),"") -> 50.27358708 | AL21: =IFERROR(IF(OR(R21="",'Historical scenario - input'!$D21=""),"",R21/'Historical scenario - input'!$D21),"") -> 53.64154232 | AM21: =IFERROR(IF(OR(S21="",'Historical scenario - input'!$D21=""),"",S21/'Historical scenario - input'!$D21),"") -> 56.86359883 | AN21: =IFERROR(IF(OR(T21="",'Historical scenario - input'!$D21=""),"",T21/'Historical scenario - input'!$D21),"") -> 59.92027902 | AO21: =IFERROR(IF(OR(U21="",'Historical scenario - input'!$D21=""),"",U21/'Historical scenario - input'!$D21),"") -> 62.80109889 | AP21: =IFERROR(IF(OR(V21="",'Historical scenario - input'!$D21=""),"",V21/'Historical scenario - input'!$D21),"") -> 65.50440048 | AQ21: =IFERROR(IF(OR(W21="",'Historical scenario - input'!$D21=""),"",W21/'Historical scenario - input'!$D21),"") -> 68.03651922
A22: =IFERROR('Historical scenario - input'!A22,"") -> 1 | B22: =IFERROR('Historical scenario - input'!B22,"") -> OVERHEAD CONDUCTORS | C22: =IFERROR('Historical scenario - input'!C22,"") -> ˃ 11 kv & < = 22 kv ; multiple-phase | D22: =IFERROR(repcalc('Historical scenario - input'!$CV22:$GH22,'Historical scenario - input'!$G22,'Historical scenario - input'!$E22,'Historical scenario - input'!$F22,20,TRUE,TRUE),"") -> 7554.745119 | E22: 8630.748478 | F22: 9772.068786 | G22: 10967.81547 | H22: 12204.97403 | I22: 13468.73477 | J22: 14742.93432 | K22: 16010.59359 | L22: 17254.52746 | M22: 18457.99389 | N22: 19605.3446 | O22: 20682.63662 | P22: 21678.16443 | Q22: 22582.87588 | R22: 23390.64254 | S22: 24098.36493 | T22: 24705.90511 | U22: 25215.85257 | V22: 25633.14185 | W22: 25964.55246 | X22: =IFERROR(IF(OR(D22="",'Historical scenario - input'!$D22=""),"",D22/'Historical scenario - input'!$D22),"") -> 56.7409209 | Y22: =IFERROR(IF(OR(E22="",'Historical scenario - input'!$D22=""),"",E22/'Historical scenario - input'!$D22),"") -> 64.82238764 | Z22: =IFERROR(IF(OR(F22="",'Historical scenario - input'!$D22=""),"",F22/'Historical scenario - input'!$D22),"") -> 73.39442605 | AA22: =IFERROR(IF(OR(G22="",'Historical scenario - input'!$D22=""),"",G22/'Historical scenario - input'!$D22),"") -> 82.37524101 | AB22: =IFERROR(IF(OR(H22="",'Historical scenario - input'!$D22=""),"",H22/'Historical scenario - input'!$D22),"") -> 91.66708537 | AC22: =IFERROR(IF(OR(I22="",'Historical scenario - input'!$D22=""),"",I22/'Historical scenario - input'!$D22),"") -> 101.158729 | AD22: =IFERROR(IF(OR(J22="",'Historical scenario - input'!$D22=""),"",J22/'Historical scenario - input'!$D22),"") -> 110.7287747 | AE22: =IFERROR(IF(OR(K22="",'Historical scenario - input'!$D22=""),"",K22/'Historical scenario - input'!$D22),"") -> 120.2496987 | AF22: =IFERROR(IF(OR(L22="",'Historical scenario - input'!$D22=""),"",L22/'Historical scenario - input'!$D22),"") -> 129.59243 | AG22: =IFERROR(IF(OR(M22="",'Historical scenario - input'!$D22=""),"",M22/'Historical scenario - input'!$D22),"") -> 138.6312251 | AH22: =IFERROR(IF(OR(N22="",'Historical scenario - input'!$D22=""),"",N22/'Historical scenario - input'!$D22),"") -> 147.2485556 | AI22: =IFERROR(IF(OR(O22="",'Historical scenario - input'!$D22=""),"",O22/'Historical scenario - input'!$D22),"") -> 155.3397011 | AJ22: =IFERROR(IF(OR(P22="",'Historical scenario - input'!$D22=""),"",P22/'Historical scenario - input'!$D22),"") -> 162.8167455 | AK22: =IFERROR(IF(OR(Q22="",'Historical scenario - input'!$D22=""),"",Q22/'Historical scenario - input'!$D22),"") -> 169.6117015 | AL22: =IFERROR(IF(OR(R22="",'Historical scenario - input'!$D22=""),"",R22/'Historical scenario - input'!$D22),"") -> 175.6785407 | AM22: =IFERROR(IF(OR(S22="",'Historical scenario - input'!$D22=""),"",S22/'Historical scenario - input'!$D22),"") -> 180.9939841 | AN22: =IFERROR(IF(OR(T22="",'Historical scenario - input'!$D22=""),"",T22/'Historical scenario - input'!$D22),"") -> 185.5569957 | AO22: =IFERROR(IF(OR(U22="",'Historical scenario - input'!$D22=""),"",U22/'Historical scenario - input'!$D22),"") -> 189.3870241 | AP22: =IFERROR(IF(OR(V22="",'Historical scenario - input'!$D22=""),"",V22/'Historical scenario - input'!$D22),"") -> 192.5211309 | AQ22: =IFERROR(IF(OR(W22="",'Historical scenario - input'!$D22=""),"",W22/'Historical scenario - input'!$D22),"") -> 195.0102345
A23: =IFERROR('Historical scenario - input'!A23,"") -> 1 | B23: =IFERROR('Historical scenario - input'!B23,"") -> OVERHEAD CONDUCTORS | C23: =IFERROR('Historical scenario - input'!C23,"") -> ˃ 11 kv & < = 22 kv ; single-phase | D23: =IFERROR(repcalc('Historical scenario - input'!$CV23:$GH23,'Historical scenario - input'!$G23,'Historical scenario - input'!$E23,'Historical scenario - input'!$F23,20,TRUE,TRUE),"") -> 414.5885893 | E23: 495.202848 | F23: 585.1663925 | G23: 684.1466893 | H23: 791.4951167 | I23: 906.2456927 | J23: 1027.135195 | K23: 1152.645697 | L23: 1281.068455 | M23: 1410.585839 | N23: 1539.365862 | O23: 1665.662111 | P23: 1787.910753 | Q23: 1904.816037 | R23: 2015.416358 | S23: 2119.12448 | T23: 2215.737889 | U23: 2305.418012 | V23: 2388.640069 | W23: 2466.118121 | X23: =IFERROR(IF(OR(D23="",'Historical scenario - input'!$D23=""),"",D23/'Historical scenario - input'!$D23),"") -> 6.621276556 | Y23: =IFERROR(IF(OR(E23="",'Historical scenario - input'!$D23=""),"",E23/'Historical scenario - input'!$D23),"") -> 7.908743977 | Z23: =IFERROR(IF(OR(F23="",'Historical scenario - input'!$D23=""),"",F23/'Historical scenario - input'!$D23),"") -> 9.345526183 | AA23: =IFERROR(IF(OR(G23="",'Historical scenario - input'!$D23=""),"",G23/'Historical scenario - input'!$D23),"") -> 10.92631238 | AB23: =IFERROR(IF(OR(H23="",'Historical scenario - input'!$D23=""),"",H23/'Historical scenario - input'!$D23),"") -> 12.64074361 | AC23: =IFERROR(IF(OR(I23="",'Historical scenario - input'!$D23=""),"",I23/'Historical scenario - input'!$D23),"") -> 14.47339245 | AD23: =IFERROR(IF(OR(J23="",'Historical scenario - input'!$D23=""),"",J23/'Historical scenario - input'!$D23),"") -> 16.40408435 | AE23: =IFERROR(IF(OR(K23="",'Historical scenario - input'!$D23=""),"",K23/'Historical scenario - input'!$D23),"") -> 18.40857691 | AF23: =IFERROR(IF(OR(L23="",'Historical scenario - input'!$D23=""),"",L23/'Historical scenario - input'!$D23),"") -> 20.45958029 | AG23: =IFERROR(IF(OR(M23="",'Historical scenario - input'!$D23=""),"",M23/'Historical scenario - input'!$D23),"") -> 22.52806562 | AH23: =IFERROR(IF(OR(N23="",'Historical scenario - input'!$D23=""),"",N23/'Historical scenario - input'!$D23),"") -> 24.58477479 | AI23: =IFERROR(IF(OR(O23="",'Historical scenario - input'!$D23=""),"",O23/'Historical scenario - input'!$D23),"") -> 26.60181629 | AJ23: =IFERROR(IF(OR(P23="",'Historical scenario - input'!$D23=""),"",P23/'Historical scenario - input'!$D23),"") -> 28.5542146 | AK23: =IFERROR(IF(OR(Q23="",'Historical scenario - input'!$D23=""),"",Q23/'Historical scenario - input'!$D23),"") -> 30.42127569 | AL23: =IFERROR(IF(OR(R23="",'Historical scenario - input'!$D23=""),"",R23/'Historical scenario - input'!$D23),"") -> 32.18764199 | AM23: =IFERROR(IF(OR(S23="",'Historical scenario - input'!$D23=""),"",S23/'Historical scenario - input'!$D23),"") -> 33.84393494 | AN23: =IFERROR(IF(OR(T23="",'Historical scenario - input'!$D23=""),"",T23/'Historical scenario - input'!$D23),"") -> 35.38692024 | AO23: =IFERROR(IF(OR(U23="",'Historical scenario - input'!$D23=""),"",U23/'Historical scenario - input'!$D23),"") -> 36.819176 | AP23: =IFERROR(IF(OR(V23="",'Historical scenario - input'!$D23=""),"",V23/'Historical scenario - input'!$D23),"") -> 38.14829182 | AQ23: =IFERROR(IF(OR(W23="",'Historical scenario - input'!$D23=""),"",W23/'Historical scenario - input'!$D23),"") -> 39.38567178
A24: =IFERROR('Historical scenario - input'!A24,"") -> 1 | B24: =IFERROR('Historical scenario - input'!B24,"") -> OVERHEAD CONDUCTORS | C24: =IFERROR('Historical scenario - input'!C24,"") -> ˃ 11 kv & < = 22 kv ; swer | D24: =IFERROR(repcalc('Historical scenario - input'!$CV24:$GH24,'Historical scenario - input'!$G24,'Historical scenario - input'!$E24,'Historical scenario - input'!$F24,20,TRUE,TRUE),"") -> 258.0212524 | E24: 306.5630109 | F24: 359.8393593 | G24: 417.3730312 | H24: 478.4951328 | I24: 542.3597422 | J24: 607.9704083 | K24: 674.2171826 | L24: 739.9217893 | M24: 803.8877336 | N24: 864.951687 | O24: 922.032422 | P24: 974.1738991 | Q24: 1020.579783 | R24: 1060.637576 | S24: 1093.931552 | T24: 1120.244683 | U24: 1139.550528 | V24: 1151.996675 | W24: 1157.88167 | X24: =IFERROR(IF(OR(D24="",'Historical scenario - input'!$D24=""),"",D24/'Historical scenario - input'!$D24),"") -> 2.928054464 | Y24: =IFERROR(IF(OR(E24="",'Historical scenario - input'!$D24=""),"",E24/'Historical scenario - input'!$D24),"") -> 3.47891185 | Z24: =IFERROR(IF(OR(F24="",'Historical scenario - input'!$D24=""),"",F24/'Historical scenario - input'!$D24),"") -> 4.0834979 | AA24: =IFERROR(IF(OR(G24="",'Historical scenario - input'!$D24=""),"",G24/'Historical scenario - input'!$D24),"") -> 4.736396541 | AB24: =IFERROR(IF(OR(H24="",'Historical scenario - input'!$D24=""),"",H24/'Historical scenario - input'!$D24),"") -> 5.430017088 | AC24: =IFERROR(IF(OR(I24="",'Historical scenario - input'!$D24=""),"",I24/'Historical scenario - input'!$D24),"") -> 6.154759926 | AD24: =IFERROR(IF(OR(J24="",'Historical scenario - input'!$D24=""),"",J24/'Historical scenario - input'!$D24),"") -> 6.899317213 | AE24: =IFERROR(IF(OR(K24="",'Historical scenario - input'!$D24=""),"",K24/'Historical scenario - input'!$D24),"") -> 7.651093128 | AF24: =IFERROR(IF(OR(L24="",'Historical scenario - input'!$D24=""),"",L24/'Historical scenario - input'!$D24),"") -> 8.396716465 | AG24: =IFERROR(IF(OR(M24="",'Historical scenario - input'!$D24=""),"",M24/'Historical scenario - input'!$D24),"") -> 9.122609262 | AH24: =IFERROR(IF(OR(N24="",'Historical scenario - input'!$D24=""),"",N24/'Historical scenario - input'!$D24),"") -> 9.815569937 | AI24: =IFERROR(IF(OR(O24="",'Historical scenario - input'!$D24=""),"",O24/'Historical scenario - input'!$D24),"") -> 10.4633286 | AJ24: =IFERROR(IF(OR(P24="",'Historical scenario - input'!$D24=""),"",P24/'Historical scenario - input'!$D24),"") -> 11.055036 | AK24: =IFERROR(IF(OR(Q24="",'Historical scenario - input'!$D24=""),"",Q24/'Historical scenario - input'!$D24),"") -> 11.58165524 | AL24: =IFERROR(IF(OR(R24="",'Historical scenario - input'!$D24=""),"",R24/'Historical scenario - input'!$D24),"") -> 12.03623562 | AM24: =IFERROR(IF(OR(S24="",'Historical scenario - input'!$D24=""),"",S24/'Historical scenario - input'!$D24),"") -> 12.41405944 | AN24: =IFERROR(IF(OR(T24="",'Historical scenario - input'!$D24=""),"",T24/'Historical scenario - input'!$D24),"") -> 12.71266384 | AO24: =IFERROR(IF(OR(U24="",'Historical scenario - input'!$D24=""),"",U24/'Historical scenario - input'!$D24),"") -> 12.93174875 | AP24: =IFERROR(IF(OR(V24="",'Historical scenario - input'!$D24=""),"",V24/'Historical scenario - input'!$D24),"") -> 13.07298904 | AQ24: =IFERROR(IF(OR(W24="",'Historical scenario - input'!$D24=""),"",W24/'Historical scenario - input'!$D24),"") -> 13.13977264
A25: =IFERROR('Historical scenario - input'!A25,"") -> 1 | B25: =IFERROR('Historical scenario - input'!B25,"") -> OVERHEAD CONDUCTORS | C25: =IFERROR('Historical scenario - input'!C25,"") -> > 1 kv & < = 11 kv | D25: =IFERROR(repcalc('Historical scenario - input'!$CV25:$GH25,'Historical scenario - input'!$G25,'Historical scenario - input'!$E25,'Historical scenario - input'!$F25,20,TRUE,TRUE),"") -> 427.011712 | E25: 518.1386957 | F25: 624.1021509 | G25: 746.3925965 | H25: 886.4713948 | I25: 1045.721518 | J25: 1225.388453 | K25: 1426.512428 | L25: 1649.854492 | M25: 1895.820451 | N25: 2164.388001 | O25: 2455.04344 | P25: 2766.734771 | Q25: 3097.847697 | R25: 3446.209809 | S25: 3809.126196 | T25: 4183.446868 | U25: 4565.663131 | V25: 4952.026673 | W25: 5338.68221 | X25: =IFERROR(IF(OR(D25="",'Historical scenario - input'!$D25=""),"",D25/'Historical scenario - input'!$D25),"") -> 3.535350175 | Y25: =IFERROR(IF(OR(E25="",'Historical scenario - input'!$D25=""),"",E25/'Historical scenario - input'!$D25),"") -> 4.289816127 | Z25: =IFERROR(IF(OR(F25="",'Historical scenario - input'!$D25=""),"",F25/'Historical scenario - input'!$D25),"") -> 5.167117403 | AA25: =IFERROR(IF(OR(G25="",'Historical scenario - input'!$D25=""),"",G25/'Historical scenario - input'!$D25),"") -> 6.179594429 | AB25: =IFERROR(IF(OR(H25="",'Historical scenario - input'!$D25=""),"",H25/'Historical scenario - input'!$D25),"") -> 7.339346234 | AC25: =IFERROR(IF(OR(I25="",'Historical scenario - input'!$D25=""),"",I25/'Historical scenario - input'!$D25),"") -> 8.657822833 | AD25: =IFERROR(IF(OR(J25="",'Historical scenario - input'!$D25=""),"",J25/'Historical scenario - input'!$D25),"") -> 10.14533597 | AE25: =IFERROR(IF(OR(K25="",'Historical scenario - input'!$D25=""),"",K25/'Historical scenario - input'!$D25),"") -> 11.81049798 | AF25: =IFERROR(IF(OR(L25="",'Historical scenario - input'!$D25=""),"",L25/'Historical scenario - input'!$D25),"") -> 13.6596098 | AG25: =IFERROR(IF(OR(M25="",'Historical scenario - input'!$D25=""),"",M25/'Historical scenario - input'!$D25),"") -> 15.69603122 | AH25: =IFERROR(IF(OR(N25="",'Historical scenario - input'!$D25=""),"",N25/'Historical scenario - input'!$D25),"") -> 17.91957757 | AI25: =IFERROR(IF(OR(O25="",'Historical scenario - input'!$D25=""),"",O25/'Historical scenario - input'!$D25),"") -> 20.32599577 | AJ25: =IFERROR(IF(OR(P25="",'Historical scenario - input'!$D25=""),"",P25/'Historical scenario - input'!$D25),"") -> 22.90657605 | AK25: =IFERROR(IF(OR(Q25="",'Historical scenario - input'!$D25=""),"",Q25/'Historical scenario - input'!$D25),"") -> 25.64795318 | AL25: =IFERROR(IF(OR(R25="",'Historical scenario - input'!$D25=""),"",R25/'Historical scenario - input'!$D25),"") -> 28.53214118 | AM25: =IFERROR(IF(OR(S25="",'Historical scenario - input'!$D25=""),"",S25/'Historical scenario - input'!$D25),"") -> 31.53682811 | AN25: =IFERROR(IF(OR(T25="",'Historical scenario - input'!$D25=""),"",T25/'Historical scenario - input'!$D25),"") -> 34.63593433 | AO25: =IFERROR(IF(OR(U25="",'Historical scenario - input'!$D25=""),"",U25/'Historical scenario - input'!$D25),"") -> 37.80041037 | AP25: =IFERROR(IF(OR(V25="",'Historical scenario - input'!$D25=""),"",V25/'Historical scenario - input'!$D25),"") -> 40.9992229 | AQ25: =IFERROR(IF(OR(W25="",'Historical scenario - input'!$D25=""),"",W25/'Historical scenario - input'!$D25),"") -> 44.20045295
A26: =IFERROR('Historical scenario - input'!A26,"") -> 1 | B26: =IFERROR('Historical scenario - input'!B26,"") -> OVERHEAD CONDUCTORS | C26: =IFERROR('Historical scenario - input'!C26,"") -> > 22 kv & < = 66 kv | D26: =IFERROR(repcalc('Historical scenario - input'!$CV26:$GH26,'Historical scenario - input'!$G26,'Historical scenario - input'!$E26,'Historical scenario - input'!$F26,20,TRUE,TRUE),"") -> 445.4779975 | E26: 483.6223691 | F26: 519.8316218 | G26: 553.3663084 | H26: 583.5402893 | I26: 609.7438987 | J26: 631.4636167 | K26: 648.2978236 | L26: 659.9684674 | M26: 666.3286333 | N26: 667.3660388 | O26: 663.2024483 | P26: 654.0889246 | Q26: 640.3967973 | R26: 622.604265 | S26: 601.2786954 | T26: 577.0549487 | U26: 550.6103982 | V26: 522.6376962 | W26: 493.8166798 | X26: =IFERROR(IF(OR(D26="",'Historical scenario - input'!$D26=""),"",D26/'Historical scenario - input'!$D26),"") -> 3.34582192 | Y26: =IFERROR(IF(OR(E26="",'Historical scenario - input'!$D26=""),"",E26/'Historical scenario - input'!$D26),"") -> 3.63231031 | Z26: =IFERROR(IF(OR(F26="",'Historical scenario - input'!$D26=""),"",F26/'Historical scenario - input'!$D26),"") -> 3.904264733 | AA26: =IFERROR(IF(OR(G26="",'Historical scenario - input'!$D26=""),"",G26/'Historical scenario - input'!$D26),"") -> 4.156131469 | AB26: =IFERROR(IF(OR(H26="",'Historical scenario - input'!$D26=""),"",H26/'Historical scenario - input'!$D26),"") -> 4.382757178 | AC26: =IFERROR(IF(OR(I26="",'Historical scenario - input'!$D26=""),"",I26/'Historical scenario - input'!$D26),"") -> 4.579562881 | AD26: =IFERROR(IF(OR(J26="",'Historical scenario - input'!$D26=""),"",J26/'Historical scenario - input'!$D26),"") -> 4.74269172 | AE26: =IFERROR(IF(OR(K26="",'Historical scenario - input'!$D26=""),"",K26/'Historical scenario - input'!$D26),"") -> 4.869127276 | AF26: =IFERROR(IF(OR(L26="",'Historical scenario - input'!$D26=""),"",L26/'Historical scenario - input'!$D26),"") -> 4.956781204 | AG26: =IFERROR(IF(OR(M26="",'Historical scenario - input'!$D26=""),"",M26/'Historical scenario - input'!$D26),"") -> 5.004550078 | AH26: =IFERROR(IF(OR(N26="",'Historical scenario - input'!$D26=""),"",N26/'Historical scenario - input'!$D26),"") -> 5.01234165 | AI26: =IFERROR(IF(OR(O26="",'Historical scenario - input'!$D26=""),"",O26/'Historical scenario - input'!$D26),"") -> 4.981070449 | AJ26: =IFERROR(IF(OR(P26="",'Historical scenario - input'!$D26=""),"",P26/'Historical scenario - input'!$D26),"") -> 4.912622113 | AK26: =IFERROR(IF(OR(Q26="",'Historical scenario - input'!$D26=""),"",Q26/'Historical scenario - input'!$D26),"") -> 4.809785564 | AL26: =IFERROR(IF(OR(R26="",'Historical scenario - input'!$D26=""),"",R26/'Historical scenario - input'!$D26),"") -> 4.676152378 | AM26: =IFERROR(IF(OR(S26="",'Historical scenario - input'!$D26=""),"",S26/'Historical scenario - input'!$D26),"") -> 4.515983842 | AN26: =IFERROR(IF(OR(T26="",'Historical scenario - input'!$D26=""),"",T26/'Historical scenario - input'!$D26),"") -> 4.334048162 | AO26: =IFERROR(IF(OR(U26="",'Historical scenario - input'!$D26=""),"",U26/'Historical scenario - input'!$D26),"") -> 4.135432838 | AP26: =IFERROR(IF(OR(V26="",'Historical scenario - input'!$D26=""),"",V26/'Historical scenario - input'!$D26),"") -> 3.925340129 | AQ26: =IFERROR(IF(OR(W26="",'Historical scenario - input'!$D26=""),"",W26/'Historical scenario - input'!$D26),"") -> 3.708876041
A27: =IFERROR('Historical scenario - input'!A27,"") -> 2 | B27: =IFERROR('Historical scenario - input'!B27,"") -> POLES | C27: =IFERROR('Historical scenario - input'!C27,"") -> ˂ = 1 kv ; concrete | D27: =IFERROR(repcalc('Historical scenario - input'!$CV27:$GH27,'Historical scenario - input'!$G27,'Historical scenario - input'!$E27,'Historical scenario - input'!$F27,20,TRUE,TRUE),"") -> 21.6316519 | E27: 28.5510331 | F27: 37.28736263 | G27: 48.18639422 | H27: 61.62052881 | I27: 77.97941992 | J27: 97.65703991 | K27: 121.0351423 | L27: 148.4633199 | M27: 180.2361695 | N27: 216.5684152 | O27: 257.5691806 | P27: 303.2169125 | Q27: 353.3366969 | R27: 407.5818454 | S27: 465.4216336 | T27: 526.1369145 | U27: 588.8250067 | V27: 652.4147715 | W27: 715.6921699 | X27: =IFERROR(IF(OR(D27="",'Historical scenario - input'!$D27=""),"",D27/'Historical scenario - input'!$D27),"") -> 2.985810401 | Y27: =IFERROR(IF(OR(E27="",'Historical scenario - input'!$D27=""),"",E27/'Historical scenario - input'!$D27),"") -> 3.940890505 | Z27: =IFERROR(IF(OR(F27="",'Historical scenario - input'!$D27=""),"",F27/'Historical scenario - input'!$D27),"") -> 5.146763442 | AA27: =IFERROR(IF(OR(G27="",'Historical scenario - input'!$D27=""),"",G27/'Historical scenario - input'!$D27),"") -> 6.651153492 | AB27: =IFERROR(IF(OR(H27="",'Historical scenario - input'!$D27=""),"",H27/'Historical scenario - input'!$D27),"") -> 8.505463045 | AC27: =IFERROR(IF(OR(I27="",'Historical scenario - input'!$D27=""),"",I27/'Historical scenario - input'!$D27),"") -> 10.76347586 | AD27: =IFERROR(IF(OR(J27="",'Historical scenario - input'!$D27=""),"",J27/'Historical scenario - input'!$D27),"") -> 13.47957183 | AE27: =IFERROR(IF(OR(K27="",'Historical scenario - input'!$D27=""),"",K27/'Historical scenario - input'!$D27),"") -> 16.70644427 | AF27: =IFERROR(IF(OR(L27="",'Historical scenario - input'!$D27=""),"",L27/'Historical scenario - input'!$D27),"") -> 20.49234736 | AG27: =IFERROR(IF(OR(M27="",'Historical scenario - input'!$D27=""),"",M27/'Historical scenario - input'!$D27),"") -> 24.87794424 | AH27: =IFERROR(IF(OR(N27="",'Historical scenario - input'!$D27=""),"",N27/'Historical scenario - input'!$D27),"") -> 29.89287317 | AI27: =IFERROR(IF(OR(O27="",'Historical scenario - input'!$D27=""),"",O27/'Historical scenario - input'!$D27),"") -> 35.55219647 | AJ27: =IFERROR(IF(OR(P27="",'Historical scenario - input'!$D27=""),"",P27/'Historical scenario - input'!$D27),"") -> 41.85293918 | AK27: =IFERROR(IF(OR(Q27="",'Historical scenario - input'!$D27=""),"",Q27/'Historical scenario - input'!$D27),"") -> 48.77095793 | AL27: =IFERROR(IF(OR(R27="",'Historical scenario - input'!$D27=""),"",R27/'Historical scenario - input'!$D27),"") -> 56.25839945 | AM27: =IFERROR(IF(OR(S27="",'Historical scenario - input'!$D27=""),"",S27/'Historical scenario - input'!$D27),"") -> 64.242008 | AN27: =IFERROR(IF(OR(T27="",'Historical scenario - input'!$D27=""),"",T27/'Historical scenario - input'!$D27),"") -> 72.62251995 | AO27: =IFERROR(IF(OR(U27="",'Historical scenario - input'!$D27=""),"",U27/'Historical scenario - input'!$D27),"") -> 81.27533846 | AP27: =IFERROR(IF(OR(V27="",'Historical scenario - input'!$D27=""),"",V27/'Historical scenario - input'!$D27),"") -> 90.05261456 | AQ27: =IFERROR(IF(OR(W27="",'Historical scenario - input'!$D27=""),"",W27/'Historical scenario - input'!$D27),"") -> 98.78677482
A28: =IFERROR('Historical scenario - input'!A28,"") -> 2 | B28: =IFERROR('Historical scenario - input'!B28,"") -> POLES | C28: =IFERROR('Historical scenario - input'!C28,"") -> ˂ = 1 kv ; steel | D28: =IFERROR(repcalc('Historical scenario - input'!$CV28:$GH28,'Historical scenario - input'!$G28,'Historical scenario - input'!$E28,'Historical scenario - input'!$F28,20,TRUE,TRUE),"") -> 268.1184149 | E28: 251.5869012 | F28: 239.5743314 | G28: 232.4059946 | H28: 230.2802076 | I28: 233.3338763 | J28: 241.7203293 | K28: 255.6974995 | L28: 275.7234552 | M28: 302.5541636 | N28: 337.335416 | O28: 381.6775608 | P28: 437.6988156 | Q28: 508.021318 | R28: 595.704539 | S28: 704.1038485 | T28: 836.6481547 | U28: 996.539443 | V28: 1186.387988 | W28: 1407.808794 | X28: =IFERROR(IF(OR(D28="",'Historical scenario - input'!$D28=""),"",D28/'Historical scenario - input'!$D28),"") -> 31.31605667 | Y28: =IFERROR(IF(OR(E28="",'Historical scenario - input'!$D28=""),"",E28/'Historical scenario - input'!$D28),"") -> 29.3851866 | Z28: =IFERROR(IF(OR(F28="",'Historical scenario - input'!$D28=""),"",F28/'Historical scenario - input'!$D28),"") -> 27.98212626 | AA28: =IFERROR(IF(OR(G28="",'Historical scenario - input'!$D28=""),"",G28/'Historical scenario - input'!$D28),"") -> 27.14486918 | AB28: =IFERROR(IF(OR(H28="",'Historical scenario - input'!$D28=""),"",H28/'Historical scenario - input'!$D28),"") -> 26.89657864 | AC28: =IFERROR(IF(OR(I28="",'Historical scenario - input'!$D28=""),"",I28/'Historical scenario - input'!$D28),"") -> 27.25324515 | AD28: =IFERROR(IF(OR(J28="",'Historical scenario - input'!$D28=""),"",J28/'Historical scenario - input'!$D28),"") -> 28.23277742 | AE28: =IFERROR(IF(OR(K28="",'Historical scenario - input'!$D28=""),"",K28/'Historical scenario - input'!$D28),"") -> 29.86530182 | AF28: =IFERROR(IF(OR(L28="",'Historical scenario - input'!$D28=""),"",L28/'Historical scenario - input'!$D28),"") -> 32.20432044 | AG28: =IFERROR(IF(OR(M28="",'Historical scenario - input'!$D28=""),"",M28/'Historical scenario - input'!$D28),"") -> 35.33812974 | AH28: =IFERROR(IF(OR(N28="",'Historical scenario - input'!$D28=""),"",N28/'Historical scenario - input'!$D28),"") -> 39.40055743 | AI28: =IFERROR(IF(OR(O28="",'Historical scenario - input'!$D28=""),"",O28/'Historical scenario - input'!$D28),"") -> 44.57969113 | AJ28: =IFERROR(IF(OR(P28="",'Historical scenario - input'!$D28=""),"",P28/'Historical scenario - input'!$D28),"") -> 51.12293729 | AK28: =IFERROR(IF(OR(Q28="",'Historical scenario - input'!$D28=""),"",Q28/'Historical scenario - input'!$D28),"") -> 59.33655989 | AL28: =IFERROR(IF(OR(R28="",'Historical scenario - input'!$D28=""),"",R28/'Historical scenario - input'!$D28),"") -> 69.57790314 | AM28: =IFERROR(IF(OR(S28="",'Historical scenario - input'!$D28=""),"",S28/'Historical scenario - input'!$D28),"") -> 82.23887206 | AN28: =IFERROR(IF(OR(T28="",'Historical scenario - input'!$D28=""),"",T28/'Historical scenario - input'!$D28),"") -> 97.71996091 | AO28: =IFERROR(IF(OR(U28="",'Historical scenario - input'!$D28=""),"",U28/'Historical scenario - input'!$D28),"") -> 116.3951595 | AP28: =IFERROR(IF(OR(V28="",'Historical scenario - input'!$D28=""),"",V28/'Historical scenario - input'!$D28),"") -> 138.5693462 | AQ28: =IFERROR(IF(OR(W28="",'Historical scenario - input'!$D28=""),"",W28/'Historical scenario - input'!$D28),"") -> 164.4311525
A29: =IFERROR('Historical scenario - input'!A29,"") -> 2 | B29: =IFERROR('Historical scenario - input'!B29,"") -> POLES | C29: =IFERROR('Historical scenario - input'!C29,"") -> ˂ = 1 kv ; wood | D29: =IFERROR(repcalc('Historical scenario - input'!$CV29:$GH29,'Historical scenario - input'!$G29,'Historical scenario - input'!$E29,'Historical scenario - input'!$F29,20,TRUE,TRUE),"") -> 1722.508428 | E29: 1959.66707 | F29: 2203.746788 | G29: 2450.362373 | H29: 2694.848644 | I29: 2932.499759 | J29: 3158.825865 | K29: 3369.806855 | L29: 3562.121866 | M29: 3733.334224 | N29: 3882.014799 | O29: 4007.792016 | P29: 4111.3235 | Q29: 4194.191767 | R29: 4258.733714 | S29: 4307.819961 | T29: 4344.604665 | U29: 4372.26872 | V29: 4393.779018 | W29: 4411.683859 | X29: =IFERROR(IF(OR(D29="",'Historical scenario - input'!$D29=""),"",D29/'Historical scenario - input'!$D29),"") -> 391.5506283 | Y29: =IFERROR(IF(OR(E29="",'Historical scenario - input'!$D29=""),"",E29/'Historical scenario - input'!$D29),"") -> 445.4601557 | Z29: =IFERROR(IF(OR(F29="",'Historical scenario - input'!$D29=""),"",F29/'Historical scenario - input'!$D29),"") -> 500.942942 | AA29: =IFERROR(IF(OR(G29="",'Historical scenario - input'!$D29=""),"",G29/'Historical scenario - input'!$D29),"") -> 557.0021669 | AB29: =IFERROR(IF(OR(H29="",'Historical scenario - input'!$D29=""),"",H29/'Historical scenario - input'!$D29),"") -> 612.5773683 | AC29: =IFERROR(IF(OR(I29="",'Historical scenario - input'!$D29=""),"",I29/'Historical scenario - input'!$D29),"") -> 666.5988417 | AD29: =IFERROR(IF(OR(J29="",'Historical scenario - input'!$D29=""),"",J29/'Historical scenario - input'!$D29),"") -> 718.0459799 | AE29: =IFERROR(IF(OR(K29="",'Historical scenario - input'!$D29=""),"",K29/'Historical scenario - input'!$D29),"") -> 766.0049552 | AF29: =IFERROR(IF(OR(L29="",'Historical scenario - input'!$D29=""),"",L29/'Historical scenario - input'!$D29),"") -> 809.7208884 | AG29: =IFERROR(IF(OR(M29="",'Historical scenario - input'!$D29=""),"",M29/'Historical scenario - input'!$D29),"") -> 848.639889 | AH29: =IFERROR(IF(OR(N29="",'Historical scenario - input'!$D29=""),"",N29/'Historical scenario - input'!$D29),"") -> 882.4370951 | AI29: =IFERROR(IF(OR(O29="",'Historical scenario - input'!$D29=""),"",O29/'Historical scenario - input'!$D29),"") -> 911.0280428 | AJ29: =IFERROR(IF(OR(P29="",'Historical scenario - input'!$D29=""),"",P29/'Historical scenario - input'!$D29),"") -> 934.5622195 | AK29: =IFERROR(IF(OR(Q29="",'Historical scenario - input'!$D29=""),"",Q29/'Historical scenario - input'!$D29),"") -> 953.3993535 | AL29: =IFERROR(IF(OR(R29="",'Historical scenario - input'!$D29=""),"",R29/'Historical scenario - input'!$D29),"") -> 968.0706547 | AM29: =IFERROR(IF(OR(S29="",'Historical scenario - input'!$D29=""),"",S29/'Historical scenario - input'!$D29),"") -> 979.2286556 | AN29: =IFERROR(IF(OR(T29="",'Historical scenario - input'!$D29=""),"",T29/'Historical scenario - input'!$D29),"") -> 987.5903412 | AO29: =IFERROR(IF(OR(U29="",'Historical scenario - input'!$D29=""),"",U29/'Historical scenario - input'!$D29),"") -> 993.8787739 | AP29: =IFERROR(IF(OR(V29="",'Historical scenario - input'!$D29=""),"",V29/'Historical scenario - input'!$D29),"") -> 998.7683701 | AQ29: =IFERROR(IF(OR(W29="",'Historical scenario - input'!$D29=""),"",W29/'Historical scenario - input'!$D29),"") -> 1002.838395
